Workbook

Sheet Lookup_Tables
B1: LookUpTables | F1: Inputs for Grid Extension Calculation
B2: Form Inputs Off Grid | F2: Form Inputs Grid Extension
B3: No. of HH | C3: ='Inputs&Summary'!D24 -> 100 | F3: Number of 3 ph Con | G3: =SUM(Load_Profiling!D20:D23) -> 4
B4: Location | C4: =VLOOKUP('Inputs&Summary'!D17,B9:C11,2,FALSE) -> 1 | F4: Number of 1 Ph Con | G4: =C3 -> 100
B5: Density | C5: =VLOOKUP('Inputs&Summary'!D18,B14:C16,2,FALSE) -> 3 | F5: Total Demand 1 Ph (kWh) | G5: =ROUNDUP(SUM(Load_Profiling!H6:H11,Load_Profiling!H14:H17)/1000,0) -> 15
B6: Solar PV Insolation | C6: =VLOOKUP("*"&StateIP&"*",Lookup_Tables!$B$19:$C$24,2,FALSE) -> 5.5 | F6: Total Demand 3 Ph (kWh) | G6: =ROUNDUP(Load_Profiling!H25/1000,0) -> 61
B8: Location List
B9: Hilly, Tribal, Desert | C9: 1 | F9: 11KV line
B10: Moderate Remote | C10: 2 | F10: Length of Line | G10: ='Inputs&Summary'!D25 -> 3
B11: Normal Terrain | C11: 3 | F11: Unit Cost / Km | G11: =IF(B4=1, 500000,250000) -> 250000
B13: Density list
B14: Highly Scattered | C14: 1 | F14: DTE | G14: 3 Phase | H14: 1 Phase
B15: Medium Scattered | C15: 2 | F15: Capacity (kVA) | G15: =ROUNDUP(G6/0.8,0) -> 77 | H15: =G5/0.8 -> 18.75
B16: Less Scattered | C16: 3 | F16: Number | G16: 1 | H16: 1
F17: Unit Cost (Rs. Lakhs/ unit) | G17: =INDEX(IF(C4=1,D48:D54,C48:C54),MATCH(G15,B48:B54,-1)) -> 2.49 | H17: =INDEX(IF(C4=1,D48:D54,C48:C54),MATCH(H15,B48:B54,-1)) -> 1.845
B18: Solar Radiation List
B19: Rajasthan Thar (1) | C19: 6.2 | F19: Derived from distribution for Offgrid
B20: North Gujarat, Rajasthan, Ladakh, Tamil Nadu (2) | C20: 5.8 | F20: Connections Per pole | G20: =Generation_Distribution!I19 -> 6
B21: Gujarat, Maharashtra, Madhya Pradesh,Andhra Pradesh (3) | C21: 5.6 | F21: Number of Poles | G21: =Generation_Distribution!I20 -> 17
B22: CERC,Coastal Maharashtra, Karnataka, Coastal Andhra Pradesh, Orissa, Jharkhand, Bihar, Uttar Pradesh, Haryana, Punjab (4) | C22: 5.5
B23: Coastal Karnataka, Chhattisgarh, Uttarakhand, Himachal Pradesh, Jammu & Kashmir, West Bengal, Arunachal Pradesh (5) | C23: 5.4
B24: North Eastern States (6) | C24: 4.8 | F24: LT Line
F25: Length of Line | G25: =Generation_Distribution!I22*10^-3 -> 0.8
F26: Unit Cost /Km 3 wire | G26: =IF(B4=1,320000,160000) -> 160000
B27: Determine Connections Per Pole | F27: Unit cost/ Km 3 phase | G27: =IF(B4=1,520000,240000) -> 240000
B28: Highly scattered, Connections (0-25) | C28: =AND($C$5=1,$C$3<=25) -> FALSE | D28: 1.5
B29: Highly scattered, Connections (25-50) | C29: =AND($C$5=1,$C$3>25,$C$3<=50) -> FALSE | D29: 2 | F29: Connection
B30: Highly scattered, Connections (50-75) | C30: =AND($C$5=1,$C$3>50,$C$3<=75) -> FALSE | D30: 2.5 | F30: Single Phase | G30: 2427
B31: Highly scattered, Connections (75-125) | C31: =AND($C$5=1,$C$3>75,$C$3<=125) -> FALSE | D31: 3 | F31: Three phase | G31: 5465
B32: Highly scattered, Connections (>125) | C32: =AND($C$5=1,$C$3>125) -> FALSE | D32: 3.5
F33: Project Type
B34: Medium scattered, Connections (0-25) | C34: =AND($C$5=2,$C$3<=25) -> FALSE | D34: 2.5 | F34: Off-grid
B35: Medium scattered, Connections (25-50) | C35: =AND($C$5=2,$C$3>25,$C$3<=50) -> FALSE | D35: 3 | F35: Grid-based
B36: Medium scattered, Connections (50-75) | C36: =AND($C$5=2,$C$3>50,$C$3<=75) -> FALSE | D36: 3.5
B37: Medium scattered, Connections (75-125) | C37: =AND($C$5=2,$C$3>75,$C$3<=125) -> FALSE | D37: 4.5
B38: Medium scattered, Connections (>125) | C38: =AND($C$5=2,$C$3>125) -> FALSE | D38: 5
B40: Less scattered, Connections (0-25) | C40: =AND($C$5=3,$C$3<=25) -> FALSE | D40: 3.5
B41: Less scattered, Connections (25-50) | C41: =AND($C$5=3,$C$3>25,$C$3<=50) -> FALSE | D41: 4
B42: Less scattered, Connections (50-75) | C42: =AND($C$5=3,$C$3>50,$C$3<=75) -> FALSE | D42: 5
B43: Less scattered, Connections (75-125) | C43: =AND($C$5=3,$C$3>75,$C$3<=125) -> TRUE | D43: 6
B44: Less scattered, Connections (>125) | C44: =AND($C$5=3,$C$3>125) -> FALSE | D44: 7
B47: Distribution transformers kVA ( lakhs/unit) | C47: Other | D47: Hilly
B48: 990 | C48: =AVERAGE(14,19) -> 16.5
B49: 340 | D49: =AVERAGE(7,8) -> 7.5
B50: 250 | C50: =AVERAGE(3,3.2) -> 3.1 | D50: 5.37
B51: 100 | C51: =AVERAGE(1.9,2.2) -> 2.05 | D51: =AVERAGE(2.42,2.56) -> 2.49
B52: 63 | C52: =AVERAGE(1.6,2) -> 1.8 | D52: =AVERAGE(2,2.42) -> 2.21
B53: 25 | C53: =AVERAGE(1,1.4) -> 1.2 | D53: =AVERAGE(1.69,2) -> 1.845
B54: 16 | C54: =AVERAGE(0.4,0.6) -> 0.5 | D54: =AVERAGE(1.36,1.61) -> 1.485

Sheet Grid_Extension_Cost
B2: Distribution System | C2: Three Phase | D2: Single Phase
B3: Infrastructure Cost
B4: 11 kV Line | C4: =Lookup_Tables!$G$10*Lookup_Tables!$G$11 -> 750000 | D4: =Lookup_Tables!$G$10*Lookup_Tables!$G$11 -> 750000
B5: DTC | C5: =(Lookup_Tables!G16*Lookup_Tables!G17)*10^5 -> 249000 | D5: =(Lookup_Tables!H16*Lookup_Tables!H17)*10^5 -> 184500
B6: LT Line | C6: =Lookup_Tables!$G$25*Lookup_Tables!$G$26 -> 128000 | D6: =Lookup_Tables!$G$25*Lookup_Tables!$G$26 -> 128000
B7: Connections | C7: =Lookup_Tables!$G$4*Lookup_Tables!$G$30+Lookup_Tables!$G$3*Lookup_Tables!$G$31 -> 264560 | D7: =Lookup_Tables!$G$4*Lookup_Tables!$G$30+Lookup_Tables!$G$3*Lookup_Tables!$G$31 -> 264560
B9: O & M at 5% | C9: 0.05
B10: 11 kV Line | C10: =C4*C9 -> 37500 | D10: =$C$9*D4 -> 37500
B11: DTC | C11: =C5*C9 -> 12450 | D11: =$C$9*D5 -> 9225
B12: LT Line | C12: =C6*C9 -> 6400 | D12: 6400
B13: Connections | C13: =C7*C9 -> 13228 | D13: 13228
B16: LCOE (Distribution+PowerPurchase)
B17: Annuity Factor | C17: =(1-(1+C21)^-C22)/C21 -> 8.51356372 | D17: =(1-(1+D21)^-D22)/D21 -> 8.51356372
B18: Total CapEx | C18: =SUM(C4:C7) -> 1391560 | D18: =SUM(D4:D7) -> 1327060
B19: Debt | C19: ='Inputs&Summary'!D30*10^-2*Grid_Extension_Cost!C18 -> 974092 | D19: ='Inputs&Summary'!D30*10^-2*Grid_Extension_Cost!D18 -> 928942
B20: Equity | C20: =C18-C19 -> 417468 | D20: =D18-D19 -> 398118
B21: Discount Rate | C21: =10% -> 0.1 | D21: =C21 -> 0.1
B22: Debt Repay yrs | C22: =20 -> 20 | D22: =C22 -> 20
B23: Grid Life | C23: ='Inputs&Summary'!D31 -> 30 | D23: ='Inputs&Summary'!D31 -> 30
B24: RoE | C24: =16% -> 0.16 | D24: =C24 -> 0.16
B25: Escalation | C25: ='Inputs&Summary'!D43 -> 0.0572 | D25: =C25 -> 0.0572
B27: Year | C27: 1 | D27: 2 | E27: 3 | F27: 4 | G27: 5 | H27: 6 | I27: 7 | J27: 8 | K27: 9 | L27: 10 | M27: 11 | N27: 12 | O27: 13 | P27: 14 | Q27: 15 | R27: 16 | S27: 17 | T27: 18 | U27: 19 | V27: 20 | W27: 21 | X27: 22 | Y27: 23 | Z27: 24 | AA27: 25 | AB27: 26 | AC27: 27 | AD27: 28 | AE27: 29 | AF27: 30 | AG27: 31 | AH27: 32 | AI27: 33 | AJ27: 34 | AK27: 35 | AL27: 36 | AM27: 37 | AN27: 38 | AO27: 39 | AP27: 40 | AQ27: 41 | AR27: 42 | AS27: 43 | AT27: 44 | AU27: 45 | AV27: 46 | AW27: 47 | AX27: 48 | AY27: 49 | AZ27: 50
B28: Balance loan at beginning of year | C28: =C19 -> 974092
B29: loan repayment | C29: =-1*PMT($C$21,$C$22,C28) -> 114416.4808 | D29: =IF($C$22>=D$27,C29,0) -> 114416.4808 | E29: =IF($C$22>=E$27,D29,0) -> 114416.4808 | F29: =IF($C$22>=F$27,E29,0) -> 114416.4808 | G29: 114416.4808 | H29: 114416.4808 | I29: 114416.4808 | J29: 114416.4808 | K29: 114416.4808 | L29: 114416.4808 | M29: 114416.4808 | N29: 114416.4808 | O29: 114416.4808 | P29: 114416.4808 | Q29: 114416.4808 | R29: 114416.4808 | S29: 114416.4808 | T29: 114416.4808 | U29: =IF($C$22>=U$27,T29,0) -> 114416.4808 | V29: 114416.4808 | W29: 0 | X29: 0 | Y29: 0 | Z29: 0 | AA29: 0 | AB29: =IF($C$22>=AB$27,AA29,0) -> 0 | AC29: =IF($C$22>=AC$27,AB29,0) -> 0 | AD29: =IF($C$22>=AD$27,AC29,0) -> 0 | AE29: =IF($C$22>=AE$27,AD29,0) -> 0 | AF29: =IF($C$22>=AF$27,AE29,0) -> 0 | AG29: =IF($C$22>=AG$27,AF29,0) -> 0 | AH29: =IF($C$22>=AH$27,AG29,0) -> 0 | AI29: =IF($C$22>=AI$27,AH29,0) -> 0 | AJ29: =IF($C$22>=AJ$27,AI29,0) -> 0 | AK29: =IF($C$22>=AK$27,AJ29,0) -> 0 | AL29: =IF($C$22>=AL$27,AK29,0) -> 0 | AM29: =IF($C$22>=AM$27,AL29,0) -> 0 | AN29: =IF($C$22>=AN$27,AM29,0) -> 0 | AO29: =IF($C$22>=AO$27,AN29,0) -> 0 | AP29: =IF($C$22>=AP$27,AO29,0) -> 0 | AQ29: =IF($C$22>=AQ$27,AP29,0) -> 0 | AR29: =IF($C$22>=AR$27,AQ29,0) -> 0 | AS29: =IF($C$22>=AS$27,AR29,0) -> 0 | AT29: =IF($C$22>=AT$27,AS29,0) -> 0 | AU29: =IF($C$22>=AU$27,AT29,0) -> 0 | AV29: =IF($C$22>=AV$27,AU29,0) -> 0 | AW29: =IF($C$22>=AW$27,AV29,0) -> 0 | AX29: =IF($C$22>=AX$27,AW29,0) -> 0 | AY29: =IF($C$22>=AY$27,AX29,0) -> 0 | AZ29: =IF($C$22>=AZ$27,AY29,0) -> 0
B30: RoE | C30: =-PMT($C$24,$C$22,$C$20) -> 70413.08867 | D30: =IF($C$22>=D$27,C30,0) -> 70413.08867 | E30: 70413.08867 | F30: 70413.08867 | G30: 70413.08867 | H30: 70413.08867 | I30: 70413.08867 | J30: 70413.08867 | K30: 70413.08867 | L30: 70413.08867 | M30: 70413.08867 | N30: 70413.08867 | O30: 70413.08867 | P30: 70413.08867 | Q30: 70413.08867 | R30: 70413.08867 | S30: 70413.08867 | T30: 70413.08867 | U30: 70413.08867 | V30: 70413.08867 | W30: 0 | X30: 0 | Y30: 0 | Z30: 0 | AA30: 0 | AB30: 0 | AC30: 0 | AD30: 0 | AE30: 0 | AF30: 0 | AG30: 0 | AH30: 0 | AI30: 0 | AJ30: 0 | AK30: 0 | AL30: 0 | AM30: 0 | AN30: 0 | AO30: 0 | AP30: 0 | AQ30: 0 | AR30: 0 | AS30: 0 | AT30: 0 | AU30: 0 | AV30: 0 | AW30: 0 | AX30: 0 | AY30: 0 | AZ30: 0
B31: Interest | C31: =-1* IPMT($C$21,1,$C$22,C28) -> 97409.2
B32: Bal loan at end of yr | C32: =C28-(C29-C31) -> 957084.7192
B33: O&M Expenditure | C33: =SUM($C$10:$C$13) -> 69578 | D33: =IF($C$23>=D$27,C33*(1+$C$25),0) -> 73557.8616 | E33: =IF($C$23>=E$27,D33*(1+$C$25),0) -> 77765.37128 | F33: =IF($C$23>=F$27,E33*(1+$C$25),0) -> 82213.55052 | G33: 86916.16561 | H33: 91887.77028 | I33: 97143.75074 | J33: 102700.3733 | K33: 108574.8346 | L33: 114785.3152 | M33: 121351.0352 | N33: 128292.3144 | O33: 135630.6348 | P33: 143388.7071 | Q33: 151590.5412 | R33: 160261.5201 | S33: 169428.4791 | T33: 179119.7881 | U33: 189365.44 | V33: 200197.1431 | W33: 211648.4197 | X33: 223754.7093 | Y33: 236553.4787 | Z33: 250084.3377 | AA33: 264389.1618 | AB33: 279512.2218 | AC33: 295500.3209 | AD33: 312402.9393 | AE33: 330272.3874 | AF33: 349163.968 | AG33: 0 | AH33: 0 | AI33: 0 | AJ33: 0 | AK33: 0 | AL33: 0 | AM33: 0 | AN33: 0 | AO33: 0 | AP33: 0 | AQ33: 0 | AR33: 0 | AS33: 0 | AT33: 0 | AU33: 0 | AV33: 0 | AW33: 0 | AX33: 0 | AY33: 0 | AZ33: 0
B34: Operating Expense per Year | C34: =C29+C30+C33 -> 254407.5695 | D34: 258387.4311 | E34: 262594.9408 | F34: 267043.12 | G34: 271745.7351 | H34: 276717.3398 | I34: 281973.3202 | J34: 287529.9428 | K34: 293404.4041 | L34: 299614.8847 | M34: 306180.6047 | N34: 313121.8839 | O34: 320460.2043 | P34: 328218.2766 | Q34: 336420.1107 | R34: 345091.0896 | S34: 354258.0486 | T34: 363949.3576 | U34: 374195.0094 | V34: 385026.7126 | W34: 211648.4197 | X34: 223754.7093 | Y34: 236553.4787 | Z34: 250084.3377 | AA34: 264389.1618 | AB34: 279512.2218 | AC34: 295500.3209 | AD34: 312402.9393 | AE34: 330272.3874 | AF34: 349163.968 | AG34: 0 | AH34: 0 | AI34: =AI29+AI30+AI33 -> 0 | AJ34: 0 | AK34: 0 | AL34: 0 | AM34: 0 | AN34: 0 | AO34: 0 | AP34: 0 | AQ34: 0 | AR34: 0 | AS34: 0 | AT34: 0 | AU34: 0 | AV34: 0 | AW34: 0 | AX34: 0 | AY34: 0 | AZ34: 0
B35: Total Unit Billed | C35: =Lookup_Tables!G6*365 -> 22265 | D35: =IF($C$23>=D$27,C35*(1+$C$25),0) -> 23538.558 | E35: =IF($C$23>=E$27,D35*(1+$C$25),0) -> 24884.96352 | F35: 26308.38343 | G35: 27813.22296 | H35: 29404.13932 | I35: 31086.05609 | J35: 32864.17849 | K35: 34744.0095 | L35: 36731.36685 | M35: 38832.40103 | N35: 41053.61437 | O35: 43401.88111 | P35: 45884.46871 | Q35: 48509.06032 | R35: 51283.77857 | S35: 54217.21071 | T35: 57318.43516 | U35: 60597.04965 | V35: 64063.20089 | W35: 67727.61598 | X35: 71601.63561 | Y35: 75697.24917 | Z35: 80027.13182 | AA35: 84604.68376 | AB35: 89444.07168 | AC35: 94560.27258 | AD35: 99969.12017 | AE35: 105687.3538 | AF35: 111732.6705 | AG35: 0 | AH35: 0 | AI35: 0 | AJ35: 0 | AK35: 0 | AL35: 0 | AM35: 0 | AN35: 0 | AO35: 0 | AP35: 0 | AQ35: 0 | AR35: 0 | AS35: 0 | AT35: 0 | AU35: 0 | AV35: 0 | AW35: 0 | AX35: 0 | AY35: 0 | AZ35: 0
B36: Losses over distribution | C36: =23%*C35 -> 5120.95 | D36: 5413.86834 | E36: 5723.541609 | F36: 6050.928189 | G36: 6397.041282 | H36: 6762.952043 | I36: 7149.7929 | J36: 7558.761054 | K36: 7991.122186 | L36: 8448.214375 | M36: 8931.452237 | N36: 9442.331305 | O36: 9982.432656 | P36: 10553.4278 | Q36: 11157.08387 | R36: 11795.26907 | S36: 12469.95846 | T36: 13183.24009 | U36: 13937.32142 | V36: 14734.5362 | W36: 15577.35168 | X36: 16468.37619 | Y36: 17410.36731 | Z36: 18406.24032 | AA36: 19459.07727 | AB36: 20572.13649 | AC36: 21748.86269 | AD36: 22992.89764 | AE36: 24308.09138 | AF36: 25698.51421 | AG36: 0 | AH36: 0 | AI36: 0 | AJ36: 0 | AK36: 0 | AL36: 0 | AM36: 0 | AN36: 0 | AO36: 0 | AP36: 0 | AQ36: 0 | AR36: 0 | AS36: 0 | AT36: 0 | AU36: 0 | AV36: 0 | AW36: 0 | AX36: 0 | AY36: 0 | AZ36: 0
B37: Cost of power purchase | C37: =(C35+C36)*'Inputs&Summary'!D29 -> 121772.4749 | D37: =(D35+D36)*'Inputs&Summary'!$D$29*(1+$C$25)^(D27-1) -> 136101.6661 | E37: =(E35+E36)*'Inputs&Summary'!$D$29*(1+$C$25)^(E27-1) -> 152116.9996 | F37: =(F35+F36)*'Inputs&Summary'!$D$29*(1+$C$25)^(F27-1) -> 170016.8868 | G37: =(G35+G36)*'Inputs&Summary'!$D$29*(1+$C$25)^(G27-1) -> 190023.0867 | H37: =(H35+H36)*'Inputs&Summary'!$D$29*(1+$C$25)^(H27-1) -> 212383.453 | I37: =(I35+I36)*'Inputs&Summary'!$D$29*(1+$C$25)^(I27-1) -> 237375.0047 | J37: =(J35+J36)*'Inputs&Summary'!$D$29*(1+$C$25)^(J27-1) -> 265307.3583 | K37: =(K35+K36)*'Inputs&Summary'!$D$29*(1+$C$25)^(K27-1) -> 296526.5633 | L37: =(L35+L36)*'Inputs&Summary'!$D$29*(1+$C$25)^(L27-1) -> 331419.3896 | M37: =(M35+M36)*'Inputs&Summary'!$D$29*(1+$C$25)^(M27-1) -> 370418.119 | N37: =(N35+N36)*'Inputs&Summary'!$D$29*(1+$C$25)^(N27-1) -> 414005.9006 | O37: =(O35+O36)*'Inputs&Summary'!$D$29*(1+$C$25)^(O27-1) -> 462722.7367 | P37: =(P35+P36)*'Inputs&Summary'!$D$29*(1+$C$25)^(P27-1) -> 517172.1725 | Q37: =(Q35+Q36)*'Inputs&Summary'!$D$29*(1+$C$25)^(Q27-1) -> 578028.7737 | R37: =(R35+R36)*'Inputs&Summary'!$D$29*(1+$C$25)^(R27-1) -> 646046.483 | S37: =(S35+S36)*'Inputs&Summary'!$D$29*(1+$C$25)^(S27-1) -> 722067.9614 | T37: =(T35+T36)*'Inputs&Summary'!$D$29*(1+$C$25)^(T27-1) -> 807035.027 | U37: =(U35+U36)*'Inputs&Summary'!$D$29*(1+$C$25)^(U27-1) -> 902000.3236 | V37: =(V35+V36)*'Inputs&Summary'!$D$29*(1+$C$25)^(V27-1) -> 1008140.361 | W37: =(W35+W36)*'Inputs&Summary'!$D$29*(1+$C$25)^(W27-1) -> 1126770.093 | X37: =(X35+X36)*'Inputs&Summary'!$D$29*(1+$C$25)^(X27-1) -> 1259359.203 | Y37: =(Y35+Y36)*'Inputs&Summary'!$D$29*(1+$C$25)^(Y27-1) -> 1407550.317 | Z37: =(Z35+Z36)*'Inputs&Summary'!$D$29*(1+$C$25)^(Z27-1) -> 1573179.353 | AA37: =(AA35+AA36)*'Inputs&Summary'!$D$29*(1+$C$25)^(AA27-1) -> 1758298.262 | AB37: =(AB35+AB36)*'Inputs&Summary'!$D$29*(1+$C$25)^(AB27-1) -> 1965200.454 | AC37: =(AC35+AC36)*'Inputs&Summary'!$D$29*(1+$C$25)^(AC27-1) -> 2196449.207 | AD37: =(AD35+AD36)*'Inputs&Summary'!$D$29*(1+$C$25)^(AD27-1) -> 2454909.427 | AE37: =(AE35+AE36)*'Inputs&Summary'!$D$29*(1+$C$25)^(AE27-1) -> 2743783.136 | AF37: =(AF35+AF36)*'Inputs&Summary'!$D$29*(1+$C$25)^(AF27-1) -> 3066649.147 | AG37: =(AG35+AG36)*'Inputs&Summary'!$D$29*(1+$C$25)^(AG27-1) -> 0 | AH37: =(AH35+AH36)*'Inputs&Summary'!$D$29*(1+$C$25)^(AH27-1) -> 0 | AI37: =(AI35+AI36)*'Inputs&Summary'!$D$29*(1+$C$25)^(AI27-1) -> 0 | AJ37: =(AJ35+AJ36)*'Inputs&Summary'!$D$29*(1+$C$25)^(AJ27-1) -> 0 | AK37: =(AK35+AK36)*'Inputs&Summary'!$D$29*(1+$C$25)^(AK27-1) -> 0 | AL37: =(AL35+AL36)*'Inputs&Summary'!$D$29*(1+$C$25)^(AL27-1) -> 0 | AM37: =(AM35+AM36)*'Inputs&Summary'!$D$29*(1+$C$25)^(AM27-1) -> 0 | AN37: =(AN35+AN36)*'Inputs&Summary'!$D$29*(1+$C$25)^(AN27-1) -> 0 | AO37: =(AO35+AO36)*'Inputs&Summary'!$D$29*(1+$C$25)^(AO27-1) -> 0 | AP37: =(AP35+AP36)*'Inputs&Summary'!$D$29*(1+$C$25)^(AP27-1) -> 0 | AQ37: =(AQ35+AQ36)*'Inputs&Summary'!$D$29*(1+$C$25)^(AQ27-1) -> 0 | AR37: =(AR35+AR36)*'Inputs&Summary'!$D$29*(1+$C$25)^(AR27-1) -> 0 | AS37: =(AS35+AS36)*'Inputs&Summary'!$D$29*(1+$C$25)^(AS27-1) -> 0 | AT37: =(AT35+AT36)*'Inputs&Summary'!$D$29*(1+$C$25)^(AT27-1) -> 0 | AU37: =(AU35+AU36)*'Inputs&Summary'!$D$29*(1+$C$25)^(AU27-1) -> 0 | AV37: =(AV35+AV36)*'Inputs&Summary'!$D$29*(1+$C$25)^(AV27-1) -> 0 | AW37: =(AW35+AW36)*'Inputs&Summary'!$D$29*(1+$C$25)^(AW27-1) -> 0 | AX37: =(AX35+AX36)*'Inputs&Summary'!$D$29*(1+$C$25)^(AX27-1) -> 0 | AY37: =(AY35+AY36)*'Inputs&Summary'!$D$29*(1+$C$25)^(AY27-1) -> 0 | AZ37: =(AZ35+AZ36)*'Inputs&Summary'!$D$29*(1+$C$25)^(AZ27-1) -> 0
B38: Total Cost | C38: =C37+C34 -> 376180.0444 | D38: 394489.0972 | E38: 414711.9404 | F38: 437060.0068 | G38: 461768.8218 | H38: 489100.7928 | I38: 519348.3249 | J38: 552837.301 | K38: 589930.9674 | L38: 631034.2743 | M38: 676598.7237 | N38: 727127.7845 | O38: 783182.941 | P38: 845390.4491 | Q38: 914448.8843 | R38: 991137.5726 | S38: 1076326.01 | T38: 1170984.385 | U38: 1276195.333 | V38: 1393167.074 | W38: 1338418.512 | X38: 1483113.912 | Y38: 1644103.796 | Z38: 1823263.691 | AA38: 2022687.424 | AB38: 2244712.676 | AC38: 2491949.528 | AD38: 2767312.366 | AE38: 3074055.524 | AF38: 3415813.115 | AG38: 0 | AH38: 0 | AI38: =AI37+AI34 -> 0 | AJ38: 0 | AK38: 0 | AL38: 0 | AM38: 0 | AN38: 0 | AO38: 0 | AP38: 0 | AQ38: 0 | AR38: 0 | AS38: 0 | AT38: 0 | AU38: 0 | AV38: 0 | AW38: 0 | AX38: 0 | AY38: 0 | AZ38: 0
B39: Cost /Unit of distribution over grid | C39: =C38/C35 -> 16.89557801 | D39: =IF(D38<>0,D38/D35,0) -> 16.75927205 | E39: 16.66516168 | F39: 16.61295564 | G39: 16.60249236 | H39: 16.63373947 | I39: 16.70679367 | J39: 16.82188104 | K39: 16.97935776 | L39: 17.1797112 | M39: 17.4235614 | N39: 17.71166305 | O39: 18.04490775 | P39: 18.42432686 | Q39: 18.85109458 | R39: 19.32653171 | S39: 19.85210962 | T39: 20.42945488 | U39: 21.06035427 | V39: 21.7467603 | W39: 19.76178392 | X39: 20.71340828 | Y39: 21.71946556 | Z39: 22.78306931 | AA39: 23.90751119 | AB39: 25.09627115 | AC39: 26.35302818 | AD39: 27.68167172 | AE39: 29.08631366 | AF39: 30.57130112 | AG39: 0 | AH39: 0 | AI39: 0 | AJ39: =IF(AJ38<>0,AJ38/AJ35,0) -> 0 | AK39: 0 | AL39: 0 | AM39: 0 | AN39: 0 | AO39: 0 | AP39: 0 | AQ39: 0 | AR39: 0 | AS39: 0 | AT39: 0 | AU39: 0 | AV39: 0 | AW39: 0 | AX39: 0 | AY39: 0 | AZ39: 0
B40: Levelised Cost | C40: =NPV(C21,C39:AA39)/C17 -> 18.79440638
B43: Year | C43: 1 | D43: 2 | E43: 3 | F43: 4 | G43: 5 | H43: 6 | I43: 7 | J43: 8 | K43: 9 | L43: 10 | M43: 11 | N43: 12 | O43: 13 | P43: 14 | Q43: 15 | R43: 16 | S43: 17 | T43: 18 | U43: 19 | V43: 20 | W43: 21 | X43: 22 | Y43: 23 | Z43: 24 | AA43: 25 | AB43: 26 | AC43: 27 | AD43: 28 | AE43: 29 | AF43: 30 | AG43: 31 | AH43: 32 | AI43: 33 | AJ43: 34 | AK43: 35 | AL43: 36 | AM43: 37 | AN43: 38 | AO43: 39 | AP43: 40 | AQ43: 41 | AR43: 42 | AS43: 43 | AT43: 44 | AU43: 45 | AV43: 46 | AW43: 47 | AX43: 48 | AY43: 49 | AZ43: 50
B44: Bal loan at beginnig of year | C44: =D19 -> 928942
B45: loan repayment | C45: =-1*PMT($D$21,$D$22,C44) -> 109113.1788 | D45: =IF($D$22>=D$27,C45,0) -> 109113.1788 | E45: =IF($D$22>=E$27,D45,0) -> 109113.1788 | F45: 109113.1788 | G45: 109113.1788 | H45: 109113.1788 | I45: 109113.1788 | J45: 109113.1788 | K45: 109113.1788 | L45: 109113.1788 | M45: 109113.1788 | N45: 109113.1788 | O45: 109113.1788 | P45: 109113.1788 | Q45: 109113.1788 | R45: 109113.1788 | S45: 109113.1788 | T45: 109113.1788 | U45: 109113.1788 | V45: 109113.1788 | W45: 0 | X45: 0 | Y45: 0 | Z45: 0 | AA45: 0 | AB45: 0 | AC45: 0 | AD45: 0 | AE45: 0 | AF45: 0 | AG45: 0 | AH45: 0 | AI45: 0 | AJ45: 0 | AK45: 0 | AL45: 0 | AM45: 0 | AN45: 0 | AO45: 0 | AP45: 0 | AQ45: 0 | AR45: 0 | AS45: 0 | AT45: 0 | AU45: 0 | AV45: 0 | AW45: 0 | AX45: 0 | AY45: 0 | AZ45: 0
B46: RoE | C46: =-PMT($D$24,$D$22,$D$20) -> 67149.3816 | D46: =IF($D$22>=D$27,C46,0) -> 67149.3816 | E46: =IF($D$22>=E$27,D46,0) -> 67149.3816 | F46: 67149.3816 | G46: 67149.3816 | H46: 67149.3816 | I46: 67149.3816 | J46: 67149.3816 | K46: 67149.3816 | L46: 67149.3816 | M46: 67149.3816 | N46: 67149.3816 | O46: 67149.3816 | P46: 67149.3816 | Q46: 67149.3816 | R46: 67149.3816 | S46: 67149.3816 | T46: 67149.3816 | U46: 67149.3816 | V46: 67149.3816 | W46: 0 | X46: 0 | Y46: 0 | Z46: 0 | AA46: 0 | AB46: 0 | AC46: 0 | AD46: 0 | AE46: 0 | AF46: 0 | AG46: 0 | AH46: 0 | AI46: 0 | AJ46: 0 | AK46: 0 | AL46: 0 | AM46: 0 | AN46: 0 | AO46: 0 | AP46: 0 | AQ46: 0 | AR46: 0 | AS46: 0 | AT46: 0 | AU46: 0 | AV46: 0 | AW46: 0 | AX46: 0 | AY46: 0 | AZ46: 0
B47: Interest | C47: =-1* IPMT($D$21,1,$D$22,C44) -> 92894.2
B48: Bal loan at end of yr | C48: =C44-(C45-C47) -> 912723.0212
B49: O&M Expenditure | C49: =SUM($D$10:$D$13) -> 66353 | D49: =IF($D$23>=D$27,C49*(1+$D$25),0) -> 70148.3916 | E49: =IF($D$23>=E$27,D49*(1+$D$25),0) -> 74160.8796 | F49: 78402.88191 | G49: 82887.52676 | H49: 87628.69329 | I49: 92641.05454 | J49: 97940.12286 | K49: 103542.2979 | L49: 109464.9173 | M49: 115726.3106 | N49: 122345.8556 | O49: 129344.0385 | P49: 136742.5175 | Q49: 144564.1895 | R49: 152833.2612 | S49: 161575.3237 | T49: 170817.4322 | U49: 180588.1893 | V49: 190917.8338 | W49: 201838.3338 | X49: 213383.4865 | Y49: 225589.022 | Z49: 238492.714 | AA49: 252134.4973 | AB49: 266556.5905 | AC49: 281803.6275 | AD49: 297922.795 | AE49: 314963.9789 | AF49: 332979.9185 | AG49: 0 | AH49: 0 | AI49: 0 | AJ49: 0 | AK49: 0 | AL49: 0 | AM49: 0 | AN49: 0 | AO49: 0 | AP49: 0 | AQ49: 0 | AR49: 0 | AS49: 0 | AT49: 0 | AU49: 0 | AV49: 0 | AW49: 0 | AX49: 0 | AY49: 0 | AZ49: 0
B50: Operating Expense per Year | C50: =C45+C46+C49 -> 242615.5604 | D50: 246410.952 | E50: 250423.44 | F50: 254665.4423 | G50: 259150.0871 | H50: 263891.2536 | I50: 268903.6149 | J50: 274202.6832 | K50: 279804.8582 | L50: 285727.4777 | M50: 291988.871 | N50: 298608.4159 | O50: 305606.5989 | P50: 313005.0779 | Q50: 320826.7499 | R50: 329095.8215 | S50: 337837.884 | T50: 347079.9926 | U50: 356850.7497 | V50: 367180.3941 | W50: 201838.3338 | X50: 213383.4865 | Y50: 225589.022 | Z50: 238492.714 | AA50: 252134.4973 | AB50: 266556.5905 | AC50: 281803.6275 | AD50: 297922.795 | AE50: 314963.9789 | AF50: 332979.9185 | AG50: 0 | AH50: 0 | AI50: =AI45+AI46+AI49 -> 0 | AJ50: 0 | AK50: 0 | AL50: 0 | AM50: 0 | AN50: 0 | AO50: 0 | AP50: 0 | AQ50: 0 | AR50: 0 | AS50: 0 | AT50: 0 | AU50: 0 | AV50: 0 | AW50: 0 | AX50: 0 | AY50: 0 | AZ50: 0
B51: Total Unit Billed | C51: =Lookup_Tables!G5*365 -> 5475 | D51: =IF($D$23>=D$27,C51*(1+$D$25),0) -> 5788.17 | E51: =IF($D$23>=E$27,D51*(1+$D$25),0) -> 6119.253324 | F51: 6469.274614 | G51: 6839.317122 | H51: 7230.526061 | I51: 7644.112152 | J51: 8081.355367 | K51: 8543.608894 | L51: 9032.303323 | M51: 9548.951073 | N51: 10095.15107 | O51: 10672.59372 | P51: 11283.06608 | Q51: 11928.45746 | R51: 12610.76522 | S51: 13332.10099 | T51: 14094.69717 | U51: 14900.91385 | V51: 15753.24612 | W51: 16654.3318 | X51: 17606.95958 | Y51: 18614.07767 | Z51: 19678.80291 | AA51: 20804.43043 | AB51: 21994.44385 | AC51: 23252.52604 | AD51: 24582.57053 | AE51: 25988.69357 | AF51: 27475.24684 | AG51: 0 | AH51: 0 | AI51: 0 | AJ51: 0 | AK51: 0 | AL51: 0 | AM51: 0 | AN51: 0 | AO51: 0 | AP51: 0 | AQ51: 0 | AR51: 0 | AS51: 0 | AT51: 0 | AU51: 0 | AV51: 0 | AW51: 0 | AX51: 0 | AY51: 0 | AZ51: 0
B52: Losses over distribution | C52: =23%*C51 -> 1259.25 | D52: =23%*D51 -> 1331.2791 | E52: 1407.428265 | F52: 1487.933161 | G52: 1573.042938 | H52: 1663.020994 | I52: 1758.145795 | J52: 1858.711734 | K52: 1965.030046 | L52: 2077.429764 | M52: 2196.258747 | N52: 2321.884747 | O52: 2454.696555 | P52: 2595.105198 | Q52: 2743.545215 | R52: 2900.476001 | S52: 3066.383228 | T52: 3241.780349 | U52: 3427.210185 | V52: 3623.246608 | W52: 3830.496314 | X52: 4049.600703 | Y52: 4281.237863 | Z52: 4526.124669 | AA52: 4785.019 | AB52: 5058.722087 | AC52: 5348.08099 | AD52: 5653.991223 | AE52: 5977.39952 | AF52: 6319.306773 | AG52: 0 | AH52: 0 | AI52: 0 | AJ52: 0 | AK52: 0 | AL52: 0 | AM52: 0 | AN52: 0 | AO52: 0 | AP52: 0 | AQ52: 0 | AR52: 0 | AS52: 0 | AT52: 0 | AU52: 0 | AV52: 0 | AW52: 0 | AX52: 0 | AY52: 0 | AZ52: 0
B53: Cost of power purchase | C53: =(C51+C52)*'Inputs&Summary'!D29 -> 29944.05121 | D53: =(D51+D52)*'Inputs&Summary'!$D$29*(1+$D$25)^(D43-1) -> 33467.62281 | E53: =(E51+E52)*'Inputs&Summary'!$D$29*(1+$D$25)^(E43-1) -> 37405.81957 | F53: =(F51+F52)*'Inputs&Summary'!$D$29*(1+$D$25)^(F43-1) -> 41807.43119 | G53: =(G51+G52)*'Inputs&Summary'!$D$29*(1+$D$25)^(G43-1) -> 46726.98854 | H53: =(H51+H52)*'Inputs&Summary'!$D$29*(1+$D$25)^(H43-1) -> 52225.43926 | I53: =(I51+I52)*'Inputs&Summary'!$D$29*(1+$D$25)^(I43-1) -> 58370.90279 | J53: =(J51+J52)*'Inputs&Summary'!$D$29*(1+$D$25)^(J43-1) -> 65239.51433 | K53: =(K51+K52)*'Inputs&Summary'!$D$29*(1+$D$25)^(K43-1) -> 72916.36802 | L53: =(L51+L52)*'Inputs&Summary'!$D$29*(1+$D$25)^(L43-1) -> 81496.57121 | M53: =(M51+M52)*'Inputs&Summary'!$D$29*(1+$D$25)^(M43-1) -> 91086.4227 | N53: =(N51+N52)*'Inputs&Summary'!$D$29*(1+$D$25)^(N43-1) -> 101804.7297 | O53: =(O51+O52)*'Inputs&Summary'!$D$29*(1+$D$25)^(O43-1) -> 113784.2795 | P53: =(P51+P52)*'Inputs&Summary'!$D$29*(1+$D$25)^(P43-1) -> 127173.485 | Q53: =(Q51+Q52)*'Inputs&Summary'!$D$29*(1+$D$25)^(Q43-1) -> 142138.223 | R53: =(R51+R52)*'Inputs&Summary'!$D$29*(1+$D$25)^(R43-1) -> 158863.8893 | S53: =(S51+S52)*'Inputs&Summary'!$D$29*(1+$D$25)^(S43-1) -> 177557.6954 | T53: =(T51+T52)*'Inputs&Summary'!$D$29*(1+$D$25)^(T43-1) -> 198451.2362 | U53: =(U51+U52)*'Inputs&Summary'!$D$29*(1+$D$25)^(U43-1) -> 221803.3583 | V53: =(V51+V52)*'Inputs&Summary'!$D$29*(1+$D$25)^(V43-1) -> 247903.3676 | W53: =(W51+W52)*'Inputs&Summary'!$D$29*(1+$D$25)^(W43-1) -> 277074.613 | X53: =(X51+X52)*'Inputs&Summary'!$D$29*(1+$D$25)^(X43-1) -> 309678.4925 | Y53: =(Y51+Y52)*'Inputs&Summary'!$D$29*(1+$D$25)^(Y43-1) -> 346118.9305 | Z53: =(Z51+Z52)*'Inputs&Summary'!$D$29*(1+$D$25)^(Z43-1) -> 386847.3819 | AA53: =(AA51+AA52)*'Inputs&Summary'!$D$29*(1+$D$25)^(AA43-1) -> 432368.4251 | AB53: =(AB51+AB52)*'Inputs&Summary'!$D$29*(1+$D$25)^(AB43-1) -> 483246.0133 | AC53: =(AC51+AC52)*'Inputs&Summary'!$D$29*(1+$D$25)^(AC43-1) -> 540110.4608 | AD53: =(AD51+AD52)*'Inputs&Summary'!$D$29*(1+$D$25)^(AD43-1) -> 603666.2526 | AE53: =(AE51+AE52)*'Inputs&Summary'!$D$29*(1+$D$25)^(AE43-1) -> 674700.7712 | AF53: =(AF51+AF52)*'Inputs&Summary'!$D$29*(1+$D$25)^(AF43-1) -> 754094.0524 | AG53: =(AG51+AG52)*'Inputs&Summary'!$D$29*(1+$D$25)^(AG43-1) -> 0 | AH53: =(AH51+AH52)*'Inputs&Summary'!$D$29*(1+$D$25)^(AH43-1) -> 0 | AI53: =(AI51+AI52)*'Inputs&Summary'!$D$29*(1+$D$25)^(AI43-1) -> 0 | AJ53: =(AJ51+AJ52)*'Inputs&Summary'!$D$29*(1+$D$25)^(AJ43-1) -> 0 | AK53: =(AK51+AK52)*'Inputs&Summary'!$D$29*(1+$D$25)^(AK43-1) -> 0 | AL53: =(AL51+AL52)*'Inputs&Summary'!$D$29*(1+$D$25)^(AL43-1) -> 0 | AM53: =(AM51+AM52)*'Inputs&Summary'!$D$29*(1+$D$25)^(AM43-1) -> 0 | AN53: =(AN51+AN52)*'Inputs&Summary'!$D$29*(1+$D$25)^(AN43-1) -> 0 | AO53: =(AO51+AO52)*'Inputs&Summary'!$D$29*(1+$D$25)^(AO43-1) -> 0 | AP53: =(AP51+AP52)*'Inputs&Summary'!$D$29*(1+$D$25)^(AP43-1) -> 0 | AQ53: =(AQ51+AQ52)*'Inputs&Summary'!$D$29*(1+$D$25)^(AQ43-1) -> 0 | AR53: =(AR51+AR52)*'Inputs&Summary'!$D$29*(1+$D$25)^(AR43-1) -> 0 | AS53: =(AS51+AS52)*'Inputs&Summary'!$D$29*(1+$D$25)^(AS43-1) -> 0 | AT53: =(AT51+AT52)*'Inputs&Summary'!$D$29*(1+$D$25)^(AT43-1) -> 0 | AU53: =(AU51+AU52)*'Inputs&Summary'!$D$29*(1+$D$25)^(AU43-1) -> 0 | AV53: =(AV51+AV52)*'Inputs&Summary'!$D$29*(1+$D$25)^(AV43-1) -> 0 | AW53: =(AW51+AW52)*'Inputs&Summary'!$D$29*(1+$D$25)^(AW43-1) -> 0 | AX53: =(AX51+AX52)*'Inputs&Summary'!$D$29*(1+$D$25)^(AX43-1) -> 0 | AY53: =(AY51+AY52)*'Inputs&Summary'!$D$29*(1+$D$25)^(AY43-1) -> 0 | AZ53: =(AZ51+AZ52)*'Inputs&Summary'!$D$29*(1+$D$25)^(AZ43-1) -> 0
B54: Total Cost | C54: =C53+C50 -> 272559.6116 | D54: 279878.5748 | E54: 287829.2595 | F54: 296472.8735 | G54: 305877.0757 | H54: 316116.6929 | I54: 327274.5177 | J54: 339442.1975 | K54: 352721.2263 | L54: 367224.0489 | M54: 383075.2937 | N54: 400413.1456 | O54: 419390.8784 | P54: 440178.5629 | Q54: 462964.9729 | R54: 487959.7108 | S54: 515395.5795 | T54: 545531.2287 | U54: 578654.1079 | V54: 615083.7617 | W54: 478912.9468 | X54: 523061.979 | Y54: 571707.9525 | Z54: 625340.0959 | AA54: 684502.9224 | AB54: 749802.6038 | AC54: 821914.0883 | AD54: 901589.0476 | AE54: 989664.7501 | AF54: 1087073.971 | AG54: 0 | AH54: 0 | AI54: =AI53+AI50 -> 0 | AJ54: 0 | AK54: 0 | AL54: 0 | AM54: 0 | AN54: 0 | AO54: 0 | AP54: 0 | AQ54: 0 | AR54: 0 | AS54: 0 | AT54: 0 | AU54: 0 | AV54: 0 | AW54: 0 | AX54: 0 | AY54: 0 | AZ54: 0
B55: Cost /Unit of distribution over grid | C55: =C54/C51 -> 49.78257745 | D55: =IF(D54<>0,D54/D51,0) -> 48.35355126 | E55: 47.03666351 | F55: 45.82783869 | G55: 44.72333571 | H55: 43.71973633 | I55: 42.81393459 | J55: 42.00312721 | K55: 41.28480489 | L55: 40.65674455 | M55: 40.11700246 | N55: 39.66390821 | O55: 39.29605957 | P55: 39.0123181 | Q55: 38.81180568 | R55: 38.69390177 | S55: 38.65824147 | T55: 38.70471441 | U55: 38.83346443 | V55: 39.04488998 | W55: 28.75605894 | X55: 29.7076833 | Y55: 30.71374058 | Z55: 31.77734433 | AA55: 32.90178621 | AB55: 34.09054617 | AC55: 35.3473032 | AD55: 36.67594674 | AE55: 38.08058868 | AF55: 39.56557614 | AG55: 0 | AH55: 0 | AI55: 0 | AJ55: =IF(AJ54<>0,AJ54/AJ51,0) -> 0 | AK55: 0 | AL55: 0 | AM55: 0 | AN55: 0 | AO55: 0 | AP55: 0 | AQ55: 0 | AR55: 0 | AS55: 0 | AT55: 0 | AU55: 0 | AV55: 0 | AW55: 0 | AX55: 0 | AY55: 0 | AZ55: 0
B56: Levelised Cost | C56: =NPV(D21,C55:AA55)/D17 -> 45.70521183

Sheet Generation_Distribution
B1: Plant Installation Costs | C1: Solar PV | D1: Biomass Gassifier | E1: Micro Hydro | H1: Off Grid calculator - Power distribution & service connection | I1: Solar PV | J1: Biomass Gassifier | K1: Micro Hydro
B3: Use factor (average energy usage / maximum energy usage) | C3: 0.9 | H3: Basis
B4: Plant Size
B5: Total Energy Demand | C5: =ROUNDUP(Load_Profiling!H25/1000,1) -> 60.3 | D5: =ROUNDUP(Load_Profiling!H25/1000,1) -> 60.3 | E5: =ROUNDUP(Load_Profiling!H25/1000,1) -> 60.3 | G5: 1 | H5: PSC Pole (8m, 200 kg) - average cost | I5: 4000 | J5: 4000 | K5: 4000
B6: Day Time Demand | C6: =ROUNDUP(Load_Profiling!H27/1000,1) -> 52.1 | D6: =ROUNDUP(Load_Profiling!H27/1000,1) -> 52.1 | E6: =ROUNDUP(Load_Profiling!H27/1000,1) -> 52.1 | G6: 2 | H6: RSJ Pole (8m, 125 x 70) - average cost | I6: 5000 | J6: 5000 | K6: 5000
B7: Night Time Demand | C7: =ROUNDUP(Load_Profiling!H28/1000,1) -> 8.3 | D7: =ROUNDUP(Load_Profiling!H28/1000,1) -> 8.3 | E7: =ROUNDUP(Load_Profiling!H28/1000,1) -> 8.3 | G7: 3 | H7: LT stay unit rate | I7: 3000 | J7: 3000 | K7: 3000
B8: Maximum Day time usage (hrs) | C8: =MAX(Load_Profiling!F6:F11,Load_Profiling!F14:F17,Load_Profiling!F20:F23) -> 4 | D8: =MAX(Load_Profiling!F6:F11,Load_Profiling!F14:F17,Load_Profiling!F20:F23) -> 4 | E8: =MAX(Load_Profiling!F6:F11,Load_Profiling!F14:F17,Load_Profiling!F20:F23) -> 4 | G8: 4 | H8: Hardware rate | I8: 1500 | J8: 1500 | K8: 1500
B9: Maximum Night Time usage (hrs) | C9: =MAX(Load_Profiling!G6:G11,Load_Profiling!G14:G17,Load_Profiling!G20:G23) -> 8 | D9: =MAX(Load_Profiling!G6:G11,Load_Profiling!G14:G17,Load_Profiling!G20:G23) -> 8 | E9: =MAX(Load_Profiling!G6:G11,Load_Profiling!G14:G17,Load_Profiling!G20:G23) -> 8 | G9: 5 | H9: ACSR Squirrel - Rate per km | I9: 17000 | J9: 17000 | K9: 17000
B10: Average demand (kW) | C10: =C5/(C8+C9) -> 5.025 | D10: =D5/(D8+D9) -> 5.025 | E10: =E5/(E8+E9) -> 5.025 | G10: 6 | H10: ACSR Weasel - Rate per km | I10: 25000 | J10: 25000 | K10: 25000
B11: Total connected load (kW) | C11: =Load_Profiling!H29/1000 -> 15.759 | D11: =Load_Profiling!H29/1000 -> 15.759 | E11: =Load_Profiling!H29/1000 -> 15.759 | G11: 7 | H11: ACSR Rabbit - Rate per km | I11: 37000 | J11: 37000 | K11: 37000
B12: Maximum demand (kW) | C12: =ROUND(SQRT(C10*C11),1) -> 8.9 | D12: =ROUND(SQRT(D10*D11),1) -> 8.9 | E12: =ROUND(SQRT(E10*E11),1) -> 8.9 | G12: 8 | H12: Grouting and earthing | I12: 1500 | J12: 1500 | K12: 1500
B13: Optimum Plant Size(kWp/ kW) | C13: =ROUNDUP((((C6*1.2)+(C7*1.3))*C3)/(Lookup_Tables!C6*0.8*0.8),1) -> 18.8 | D13: =IF((D12*1.1)<11,11,IF((D12*1.1)<25,25,IF((D12*1.1)<32,32,70))) -> 11 | E13: =E12*1.1 -> 9.79 | G13: 9 | H13: Transportation | I13: =IF(Lookup_Tables!C4=1, 15000, IF(Lookup_Tables!C4=2, 12000, IF(Lookup_Tables!C4=3, 8000,0))) -> 15000 | J13: =IF(Lookup_Tables!C4=1, 15000, IF(Lookup_Tables!C4=2, 12000, IF(Lookup_Tables!C4=3, 8000,0))) -> 15000 | K13: =IF(Lookup_Tables!C4=1, 15000, IF(Lookup_Tables!C4=2, 12000, IF(Lookup_Tables!C4=3, 8000,0))) -> 15000
B14: Optimum Battery Size (kWh) | C14: =ROUNDUP(C7*1.3/0.5,0) -> 22 | D14: 0 | E14: 0 | G14: 10 | H14: Installation | I14: =IF(Lookup_Tables!C4=1, 7000, IF(Lookup_Tables!C4=2, 6000, IF(Lookup_Tables!C4=3, 5000,0))) -> 7000 | J14: =IF(Lookup_Tables!C4=1, 7000, IF(Lookup_Tables!C4=2, 6000, IF(Lookup_Tables!C4=3, 5000,0))) -> 7000 | K14: =IF(Lookup_Tables!C4=1, 7000, IF(Lookup_Tables!C4=2, 6000, IF(Lookup_Tables!C4=3, 5000,0))) -> 7000
B15: Phase | C15: =IF(C13<15,1,3) -> 3 | D15: 3 | E15: 3
B16: Voltage | C16: =IF(C15=1, 230,415) -> 415 | D16: 415 | E16: 415
B17: PLF | C17: =(C5*365)/(C13*8760) -> 0.133643617 | D17: =D5/(D13*(D8+D9)) -> 0.4568181818 | E17: =E5/(E13*(E8+E9)) -> 0.513278856 | H17: Selection
I18: TRUE
B19: Off Grid Calculator | G19: 1 | H19: Connections per pole | I19: =VLOOKUP(I18, Lookup_Tables!C28:D44,2,FALSE) -> 6 | J19: =VLOOKUP(I18, Lookup_Tables!C28:D44,2,FALSE) -> 6 | K19: =VLOOKUP(I18, Lookup_Tables!C28:D44,2,FALSE) -> 6
G20: 2 | H20: No of poles | I20: =ROUNDUP(Lookup_Tables!C3/I19,0) -> 17 | J20: =ROUNDUP(Lookup_Tables!C3/I19,0) -> 17 | K20: =ROUNDUP(Lookup_Tables!C3/I19,0) -> 17
B21: Basis | G21: 3 | H21: Type of pole (1 for RSJ, 2 for PSC) | I21: =IF(Lookup_Tables!C4=1,1, IF(Lookup_Tables!C4=3,2, IF(Lookup_Tables!C4=2,IF(I20<=10,"1","2")))) -> 1 | J21: =IF(Lookup_Tables!C4=1,1, IF(Lookup_Tables!C4=3,2, IF(Lookup_Tables!C4=2,IF(I20<=10,"1","2")))) -> 1 | K21: =IF(Lookup_Tables!C4=1,1, IF(Lookup_Tables!C4=3,2, IF(Lookup_Tables!C4=2,IF(I20<=10,"1","2")))) -> 1
G22: 4 | H22: Length of conductor (meters) - one way | I22: =(I20-1)*50 -> 800 | J22: =(J20-1)*50 -> 800 | K22: 800
B23: Equipment + Mounting structure - per Wp or kW | C23: 70 | D23: =IF(D13=11,60000,IF(D13=25,55000,IF(D13=32,55000,50000))) -> 60000 | E23: 90000 | G23: 5 | H23: Type of ACSR conductor (1 for Squirrel, 2 for Weasel, 3 for rabbit) | I23: =IF(I26<=7,"1",IF(I27<=7,"2","3")) -> 3 | J23: =IF(J26<=7,"1",IF(J27<=7,"2","3")) -> 3 | K23: 3
B24: Inverter / PCU - basic per Wp or kW | C24: 35 | D24: 0 | E24: 0
B25: Battery bank - per Wh | C25: ='Inputs&Summary'!D26 -> 11 | D25: 0 | E25: 0 | H25: Maximum current | I25: =(((C9*1000)/C11/C12)) -> 57.03892407 | J25: =(((D9*1000)/D11/D12)) -> 57.03892407 | K25: 57.03892407
B26: Miscellaneous (Junction box, AC power distribution box, cables, switches, meters, earthing, LA etc) - fixed | C26: 40 | D26: 40 | E26: 40 | H26: Power loss for Squirrel (30 mmsq) | I26: =(($I$25*$I$25*(1.368*($I$22/1000)*50%))/(C9*1000/C11))*100 -> 350.69325 | J26: =(($I$25*$I$25*(1.368*($I$22/1000)*50%))/(D9*1000/D11))*100 -> 350.69325 | K26: 350.69325
B27: Miscellaneous (Junction box, AC power distribution box, cables, switches, meters, earthing, LA etc) - variable per Wp | C27: 4 | D27: 4 | E27: 4 | H27: Power loss for Weasel (50 mmsq) | I27: =(($I$25*$I$25*(0.908*($I$22/1000)*50%))/(C9*1000/C11))*100 -> 232.7700812 | J27: =(($I$25*$I$25*(0.908*($I$22/1000)*50%))/(D9*1000/D11))*100 -> 232.7700812 | K27: 232.7700812
B28: Civil work - fixed per Wp or kW | C28: 100 | D28: 100 | E28: 100 | H28: Power loss for Rabbit (80 mmsq) | I28: =(($I$25*$I$25*(0.5426*($I$22/1000)*50%))/(C9*1000/C11))*100 -> 139.0980683 | J28: =(($I$25*$I$25*(0.5426*($I$22/1000)*50%))/(D9*1000/D11))*100 -> 139.0980683 | K28: 139.0980683
B29: Civil work - variable per Wp or kW | C29: 15 | D29: 15 | E29: 15
B30: Material transportion - per trip | C30: =IF(Lookup_Tables!C4=1,15000,IF(Lookup_Tables!C4=2,12000,8000)) -> 15000 | D30: =IF(Lookup_Tables!C4=1,15000,IF(Lookup_Tables!C4=2,12000,8000)) -> 15000 | E30: =IF(Lookup_Tables!C4=1,15000,IF(Lookup_Tables!C4=2,12000,8000)) -> 15000
B31: Installation - per man day | C31: 10000 | D31: 10000 | E31: 10000 | H31: Power disribution cost breakup | I31: Solar PV
B32: Project development | C32: 0.2 | D32: 0.2 | E32: 0.15
G33: 1 | H33: Pole and Stay unit | I33: =IF(I23=1,I20*(I6+I7),I20*(I5+I7)) -> 119000 | J33: =IF(J23=1,J20*(J6+J7),J20*(J5+J7)) -> 119000 | K33: =IF(K23=1,K20*(K6+K7),K20*(K5+K7)) -> 119000
B34: Cost breakup | G34: 2 | H34: Conductor | I34: =IF(I23=1,I22*(C11+1)*I9/1000,IF(I23=2,I22*(C11+1)*I10/1000,I22*(C11+1)*I11/1000)) -> 496066.4 | J34: =IF(J23=1,J22*(D11+1)*J9/1000,IF(J23=2,J22*(D11+1)*J10/1000,J22*(D11+1)*J11/1000)) -> 496066.4 | K34: =IF(K23=1,K22*(E11+1)*K9/1000,IF(K23=2,K22*(E11+1)*K10/1000,K22*(E11+1)*K11/1000)) -> 496066.4
G35: 3 | H35: Hardware | I35: =I20*I8 -> 25500 | J35: =J20*J8 -> 25500 | K35: 25500
B36: Equipment+ Mounting structure | C36: =C13*1000*C23 -> 1316000 | D36: =D13*D23 -> 660000 | E36: =E13*E23 -> 881100 | G36: 4 | H36: Grouting and earthing | I36: =I20*I12 -> 25500 | J36: =J20*J12 -> 25500 | K36: 25500
B37: Inverter / PCU | C37: =IF(C13<=5,C13*1000*C24*1.3,IF(C13<=10,C13*1000*C24*1.2,IF(C13<=15,C13*1000*C24*1.1,C13*1000*C24))) -> 658000 | D37: =IF(D13<=5,D13*1000*D24*1.3,IF(D13<=10,D13*1000*D24*1.2,IF(D13<=15,D13*1000*D24*1.1,D13*1000*D24))) -> 0 | E37: =IF(E13<=5,E13*1000*E24*1.3,IF(E13<=10,E13*1000*E24*1.2,IF(E13<=15,E13*1000*E24*1.1,E13*1000*E24))) -> 0 | G37: 5 | H37: Material transportation | I37: =IF((I20/20)<=1,I13,IF((I20/20)<=2,I13*2,IF((I20/20)<=3,I13*3,IF((I20/20)<=4,I13*4,I13*5)))) -> 15000 | J37: =IF((J20/20)<=1,J13,IF((J20/20)<=2,J13*2,IF((J20/20)<=3,J13*3,IF((J20/20)<=4,J13*4,J13*5)))) -> 15000 | K37: 15000
B38: Battery bank | C38: =C14*1000*C25 -> 242000 | D38: =D14*1000*D25 -> 0 | E38: =E14*1000*E25 -> 0 | G38: 6 | H38: Installation | I38: =IF(I20<=10,I14*1.2*I20,IF(I20<=20,I14*1.1*I20,I14*I20)) -> 130900 | J38: =IF(J20<=10,J14*1.2*J20,IF(J20<=20,J14*1.1*J20,J14*J20)) -> 130900 | K38: 130900
B39: Miscellaneous (Junction box, power distribution box, cables, switches, meters, earthing, LA etc) | C39: =C26*1000+(C13*C27*1000) -> 115200 | D39: =D26*1000+(D13*D27*1000) -> 84000 | E39: =E26*1000+(E13*E27*1000) -> 79160 | H39: Total | I39: =SUM(I33:I38) -> 811966.4 | J39: =SUM(J33:J38) -> 811966.4 | K39: 811966.4
B40: Civil work | C40: =C28*1000+(C13*1000*C29) -> 382000 | D40: =D28*1000+(D13*1000*D29) -> 265000 | E40: =E28*1000+(E13*1000*E29) -> 246850 | H40: Power distribution cost per Pole | I40: =ROUNDUP(I39/I20,0) -> 47763 | J40: =ROUNDUP(J39/J20,0) -> 47763 | K40: 47763
B41: Material transportion | C41: =(ROUND(C13/10,0)+2)*C30 -> 60000 | D41: =(ROUND(D13/10,0)+2)*D30 -> 45000 | E41: =(ROUND(E13/10,0)+2)*E30 -> 45000
B42: Installation | C42: =C13*2*C31 -> 376000 | D42: =D13*2*D31 -> 220000 | E42: =E13*2*E31 -> 195800
B43: Project development | C43: =SUM(C36:C42)*C32 -> 629840 | D43: =SUM(D36:D42)*D32 -> 254800 | E43: =SUM(E36:E42)*E32 -> 217186.5 | H43: Service connection cost breakup
B44: Total | C44: =SUM(C36:C43) -> 3779040 | D44: =SUM(D36:D43) -> 1528800 | E44: =SUM(E36:E43) -> 1665096.5
B45: Power geneation cost per Wp | C45: =ROUND(C44/C13/1000,0) -> 201 | D45: =ROUND(D44/D13/1000,0) -> 139 | E45: =ROUND(E44/E13/1000,0) -> 170 | G45: 1 | H45: Cable and supporting GI wire | I45: =800*Lookup_Tables!$C$3 -> 80000 | J45: =800*Lookup_Tables!$C$3 -> 80000 | K45: =800*Lookup_Tables!$C$3 -> 80000
G46: 2 | H46: Single phase energy meter | I46: =1200*Lookup_Tables!$C$3 -> 120000 | J46: =1200*Lookup_Tables!$C$3 -> 120000 | K46: =1200*Lookup_Tables!$C$3 -> 120000
B47: Off Grid calculator - O & M | G47: 3 | H47: MCB / switch, mounting board, earthing | I47: =1500*Lookup_Tables!$C$3 -> 150000 | J47: =1500*Lookup_Tables!$C$3 -> 150000 | K47: =1500*Lookup_Tables!$C$3 -> 150000
G48: 4 | H48: Installation | I48: =600*Lookup_Tables!$C$3 -> 60000 | J48: =600*Lookup_Tables!$C$3 -> 60000 | K48: =600*Lookup_Tables!$C$3 -> 60000
B49: Annual Operation & Maintenance cost | H49: Total | I49: =SUM(I45:I48) -> 410000 | J49: =SUM(J45:J48) -> 410000 | K49: 410000
H50: Service connection cost per connection | I50: =ROUNDUP(I49/Lookup_Tables!$C$3,0) -> 4100 | J50: =ROUNDUP(J49/Lookup_Tables!$C$3,0) -> 4100 | K50: =ROUNDUP(K49/Lookup_Tables!$C$3,0) -> 4100
B51: Battery/ Plant maintenance - one visit of technician | C51: =IF(Lookup_Tables!C4=1,6000,IF(Lookup_Tables!C4=2,4500,3000)) -> 6000 | D51: =IF(Lookup_Tables!C4=1,6000,IF(Lookup_Tables!C4=2,4500,3000)) -> 6000 | E51: =IF(Lookup_Tables!C4=1,6000,IF(Lookup_Tables!C4=2,4500,3000)) -> 6000
B52: Battery replacement cost - once in 5 years | C52: 0 | D52: 0 | E52: 0
B53: Miscellaneous plant maintenance - two visits of technician | C53: =IF(Lookup_Tables!C4=1,12000,IF(Lookup_Tables!C4=2,9000,6000)) -> 12000 | D53: =IF(Lookup_Tables!C4=1,12000,IF(Lookup_Tables!C4=2,9000,6000)) -> 12000 | E53: =IF(Lookup_Tables!C4=1,12000,IF(Lookup_Tables!C4=2,9000,6000)) -> 12000
B54: Miscellaneous material cost for maintenance | C54: =SUM(C36:C41)*1% -> 27732 | D54: =SUM(D36:D41)*1% -> 10540 | E54: =SUM(E36:E41)*1% -> 12521.1
B55: Plant operator & project administration by trained villager | C55: =IF(Lookup_Tables!C4=1,6000,IF(Lookup_Tables!C4=2,12000,24000)) -> 6000 | D55: =IF(Lookup_Tables!C4=1,6000,IF(Lookup_Tables!C4=2,12000,24000)) -> 6000 | E55: =IF(Lookup_Tables!C4=1,6000,IF(Lookup_Tables!C4=2,12000,24000)) -> 6000
B56: Land rent & security | C56: =IF(Lookup_Tables!C4=1,6000,IF(Lookup_Tables!C4=2,12000,24000)) -> 6000 | D56: =IF(Lookup_Tables!C4=1,6000,IF(Lookup_Tables!C4=2,12000,24000)) -> 6000 | E56: =IF(Lookup_Tables!C4=1,6000,IF(Lookup_Tables!C4=2,12000,24000)) -> 6000
B57: Plant Insurance (fire, theft) | C57: =SUM(C39:C42)*0.25% -> 2333 | D57: =SUM(D39:D42)*0.25% -> 1535 | E57: =SUM(E39:E42)*0.25% -> 1417.025
B58: Total | C58: =SUM(C51:C57) -> 60065 | D58: =SUM(D51:D57) -> 42075 | E58: =SUM(E51:E57) -> 43938.125
B60: Inputs
B61: Plant Size | C61: =C13*10^-3 -> 0.0188 | D61: =D13*10^-3 -> 0.011 | E61: =E13*10^-3 -> 0.00979
B62: Capital Expenditure | C62: =C44 -> 3779040 | D62: =D44 -> 1528800 | E62: =E44 -> 1665096.5
B63: Distribution Costs | C63: =I49+I39 -> 1221966.4 | D63: =J49+J39 -> 1221966.4 | E63: 1221966.4
B64: Service Connection Costs | C64: =I49 -> 410000 | D64: =J49 -> 410000 | E64: =K49 -> 410000
B65: Total Capex ( Rs. Lakh/MW) | C65: =(SUM(C62:C64)/C13)*10^-2 -> 2878.194894 | D65: =(SUM(D62:D64)/D13)*10^-2 -> 2873.424 | E65: =(SUM(E62:E64)/E13)*10^-2 -> 3367.786415
B67: Operation and Maintainance ( Rs. Lakh/MW) | C67: =(C58/C13)*10^-2 -> 31.94946809 | D67: =(D58/D13)*10^-2 -> 38.25 | E67: =(E58/E13)*10^-2 -> 44.88061798
B68: PLF | C68: =C17 -> 0.133643617 | D68: =D17 -> 0.4568181818 | E68: =E17 -> 0.513278856
B70: Percentage of Distribution of Total Cost | C70: =C63/SUM(C62:C64) -> 0.2258297828 | D70: =D63/SUM(D62:D64) -> 0.386604464 | E70: =E63/SUM(E62:E64) -> 0.3706227139

Sheet Load_Profiling
C3: Electrical load demand | D3: User | E3: Watt | F3: Day Time Use | G3: Night Time Use | H3: Total Watt Hr
C5: Domestic
C6: Light (type 1) | D6: =Lookup_Tables!C3 -> 100 | E6: 4 | F6: 2 | G6: =IF(Lookup_Tables!C4>2, 5, 3) -> 3 | H6: =(D6*E6*F6)+(D6*E6*G6) -> 2000
C7: Light (type 2) | D7: =ROUNDUP(0.5*Lookup_Tables!C3,0) -> 50 | E7: 2 | F7: 0 | G7: 4 | H7: 400
C8: Mobile charger | D8: =IF(Lookup_Tables!C6>5.5,ROUNDUP(0.5*Lookup_Tables!C3,0),0.1*Lookup_Tables!C3) -> 10 | E8: 3 | F8: 3 | G8: 3 | H8: 180
C9: Fan | D9: =ROUNDUP(0.5*Lookup_Tables!C3,0) -> 50 | E9: 40 | F9: =IF(Lookup_Tables!C63>5,4,2) -> 2 | G9: =IF(Lookup_Tables!C63>5,4,2) -> 2 | H9: 8000
C10: Mixer | D10: =IF(Lookup_Tables!C4 = 1,0,ROUNDUP(0.2*Lookup_Tables!C3,0)) -> 0 | E10: 500 | F10: 0.5 | G10: 0 | H10: 0
C11: TV set | D11: =ROUNDUP(IF(Lookup_Tables!C4=1, 0.1*Lookup_Tables!C3,IF(Lookup_Tables!C4=2,0.2*Lookup_Tables!C3, IF(Lookup_Tables!C4=3,0.3*Lookup_Tables!C3,0))),0) -> 10 | E11: 60 | F11: =IF(Lookup_Tables!C4>2, 2, 1) -> 1 | G11: =IF(Lookup_Tables!C4>2, 3, 1) -> 1 | H11: 1200
C13: Community (school/panchayat office/community hall/temple)
C14: Light | D14: =ROUNDUP(IF(Lookup_Tables!C4=1, 0.01*Lookup_Tables!C3,IF(Lookup_Tables!C4=2,0.02*Lookup_Tables!C3, IF(Lookup_Tables!C4=3,0.03*Lookup_Tables!C3,0))),0) -> 1 | E14: 4 | F14: 4 | G14: 0 | H14: =(D14*E14*F14)+(D14*E14*G14) -> 16
C15: Fan | D15: =ROUNDUP(IF(Lookup_Tables!C4=1, 1,IF(Lookup_Tables!C4=2,2, IF(Lookup_Tables!C4=3,3,0))),0) -> 1 | E15: 40 | F15: 4 | G15: 0 | H15: =(D15*E15*F15)+(D15*E15*G15) -> 160
C16: Computer | D16: =IF(Lookup_Tables!C3>75,1,IF(Lookup_Tables!C3>150,2,0)) -> 1 | E16: 100 | F16: 4 | G16: 0 | H16: =(D16*E16*F16)+(D16*E16*G16) -> 400
C17: Street light | D17: =Lookup_Tables!C3/5 -> 20 | E17: 12 | F17: 0 | G17: 8 | H17: =(D17*E17*F17)+(D17*E17*G17) -> 1920
C19: Commercial
C20: Water pump (domestic + agriculture-partially) | D20: =ROUNDUP(IF(Lookup_Tables!C4=1, 1,IF(Lookup_Tables!C4=2,2, IF(Lookup_Tables!C4=3,3,0))),0) -> 1 | E20: =ROUNDUP((((((Lookup_Tables!C3*5*80)+((Lookup_Tables!C3/7)*10000))/4)/3600)*30*1000)/50,0) -> 7620 | F20: 4 | G20: 0 | H20: =(D20*E20*F20)+(D20*E20*G20) -> 30480
C21: Flour mill | D21: =ROUNDUP(IF(Lookup_Tables!C4=1, 1,2),0) -> 1 | E21: =ROUNDUP(((Lookup_Tables!C3*5*5)/20/4)*100,0) -> 3125 | F21: 4 | G21: 0 | H21: =(D21*E21*F21)+(D21*E21*G21) -> 12500
C22: Rice mill | D22: =IF(Lookup_Tables!C3<=60,1,IF(Lookup_Tables!C3>60,2)) -> 2 | E22: 750 | F22: 2 | G22: 0 | H22: =(D22*E22*F22)+(D22*E22*G22) -> 3000
C23: Other | D23: 0 | F23: 0 | G23: 0 | H23: =(D23*E23*F23)+(D23*E23*G23) -> 0
C25: Total Demand | H25: =SUM(H6:H23) -> 60256
C26: Single Phase Demand | H26: =SUM(H6:H11,H14:H17) -> 14276
C27: Day Time Demand | H27: =SUMPRODUCT(D6:D11,E6:E11,F6:F11)+ SUMPRODUCT(D14:D17,E14:E17,F14:F17)+SUMPRODUCT(D20:D23,E20:E23,F20:F23) -> 52046
C28: Night Time Demand | H28: =H25-H27 -> 8210
C29: Total Connected Load | H29: =SUMPRODUCT(D6:D11,E6:E11)+SUMPRODUCT(D14:D17,E14:E17)+SUMPRODUCT(D20:D23,E20:E23) -> 15759

Sheet Inputs-REC
C2: Saved APPC Inputs | D2: ='Inputs&Summary'!D105 -> 2013 | F2: ='Inputs&Summary'!F105 -> 2018 | H2: ='Inputs&Summary'!H105 -> 2023 | J2: ='Inputs&Summary'!J105 -> 2028 | M2: State | N2: ='Inputs&Summary'!$D$15 -> CERC
C3: State | D3: APPC | E3: Rate of Change | F3: APPC | G3: Rate of Change | H3: APPC | I3: Rate of Change | J3: APPC | K3: Rate of Change | M3: Technology | N3: ='Inputs&Summary'!$D$16 -> Solar PV
C4: CERC | D4: 3.38 | E4: 0.04 | F4: 4.11228681 | G4: 0.03 | H4: 4.767267485 | I4: 0.03 | J4: 5.526569601 | K4: 0.03 | M4: Project Year | N4: ='Inputs&Summary'!$D$14 -> 2014
C5: Andhra Pradesh | D5: 3.5 | E5: 0.04 | F5: =D5*(1+E5)^(F$2-D$2) -> 4.258285158 | G5: 0.03 | H5: =F5*(1+G5)^(H$2-F$2) -> 4.936519585 | I5: 0.03 | J5: =H5*(1+I5)^(J$2-H$2) -> 5.722779172 | K5: 0.03
C6: Bihar | D6: 3.38 | E6: 0.04 | F6: 4.11228681 | G6: 0.03 | H6: 4.767267485 | I6: 0.03 | J6: 5.526569601 | K6: 0.03 | M6: Solar | N6: Solar PV | O6: Solar Thermal
C7: Chhattisgarh | D7: 3 | E7: 0.04 | F7: 3.649958707 | G7: 0.03 | H7: 4.231302502 | I7: 0.03 | J7: 4.905239291 | K7: 0.03 | M7: Non-Solar | N7: Wind | O7: Small Hydro | P7: Biogas | Q7: Bagasse | R7: Biomass Gasifier | S7: Biomass Rankine Cycle
C8: Gujarat | D8: 2.98 | E8: 0.04 | F8: 3.625625649 | G8: 0.03 | H8: 4.203093818 | I8: 0.03 | J8: 4.872537695 | K8: 0.03
C9: Haryana | D9: 2.5 | E9: 0.04 | F9: 3.041632256 | G9: 0.03 | H9: 3.526085418 | I9: 0.03 | J9: 4.087699409 | K9: 0.03
C10: Himachal Pradesh | D10: 3.38 | E10: 0.04 | F10: 4.11228681 | G10: 0.03 | H10: 4.767267485 | I10: 0.03 | J10: 5.526569601 | K10: 0.03
C11: Karnataka | D11: 2.66 | E11: 0.04 | F11: 3.23629672 | G11: 0.03 | H11: 3.751754885 | I11: 0.03 | J11: 4.349312171 | K11: 0.03
C12: Kerala | D12: 2.43 | E12: 0.04 | F12: 2.956466553 | G12: 0.03 | H12: 3.427355026 | I12: 0.03 | J12: 3.973243825 | K12: 0.03
C13: Madhya Pradesh | D13: 2.09 | E13: 0.04 | F13: =D13*(1+E13)^(F$2-D$2) -> 2.542804566 | G13: 0.03 | H13: =F13*(1+G13)^(H$2-F$2) -> 2.947807409 | I13: 0.03 | J13: 3.417316706 | K13: 0.03
C14: Maharashtra | D14: 2.6 | E14: 0.04 | F14: 3.163297546 | G14: 0.03 | H14: 3.667128835 | I14: 0.03 | J14: 4.251207385 | K14: 0.03
C15: North Eastern States | D15: 3.38 | E15: 0.04 | F15: 4.11228681 | G15: 0.03 | H15: 4.767267485 | I15: 0.03 | J15: 5.526569601 | K15: 0.03
C16: Orissa | D16: 3.38 | E16: 0.04 | F16: 4.11228681 | G16: 0.03 | H16: 4.767267485 | I16: 0.03 | J16: 5.526569601 | K16: 0.03
C17: Punjab | D17: 2.62 | E17: 0.04 | F17: =D17*(1+E17)^(F$2-D$2) -> 3.187630604 | G17: 0.03 | H17: =F17*(1+G17)^(H$2-F$2) -> 3.695337518 | I17: 0.03 | J17: 4.28390898 | K17: 0.03
C18: Rajasthan | D18: 2.71 | E18: 0.04 | F18: 3.297129366 | G18: 0.03 | H18: 3.822276593 | I18: 0.03 | J18: 4.431066159 | K18: 0.03
C19: Tamil Nadu | D19: 1.99 | E19: 0.03 | F19: 2.306955408 | G19: 0.03 | H19: 2.674393595 | I19: 0.03 | J19: 3.100355159 | K19: 0.03
C20: Uttarakhand | D20: 2.77 | E20: 0.04 | F20: 3.37012854 | G20: 0.03 | H20: 3.906902643 | I20: 0.03 | J20: =H20*(1+I20)^(J$2-H$2) -> 4.529170945 | K20: 0.03
C21: Uttar Pradesh | D21: 2.05 | E21: 0.04 | F21: 2.49413845 | G21: 0.03 | H21: 2.891390043 | I21: 0.03 | J21: =H21*(1+I21)^(J$2-H$2) -> 3.351913515 | K21: 0.03
C22: West Bengal | D22: 2.34 | E22: 0.04 | F22: 2.846967792 | G22: 0.03 | H22: 3.300415951 | I22: 0.03 | J22: =H22*(1+I22)^(J$2-H$2) -> 3.826086647 | K22: 0.03
C25: Saved REC Inputs | D25: Tranche Begin Year → | E25: 2013 | G25: 2018 | I25: 2023 | K25: 2028
C26: Technology | D26: Input | E26: Value | F26: % Sold | G26: Value | H26: % Sold | I26: Value | J26: % Sold | K26: Value | L26: % Sold
C27: Non-Solar | D27: REC Floor | E27: 1.5 | F27: 0.3 | G27: 1 | H27: 0.4 | I27: 0.5 | J27: 0.4 | K27: 0.1 | L27: 0.4
C28: Non-Solar | D28: REC Forbearance | E28: 3.4 | F28: 0 | G28: 2.5 | H28: 0.2 | I28: 1.5 | J28: 0.2 | K28: 1 | L28: 0.2
C29: Non-Solar | D29: REC Other Price | E29: 2.5 | F29: 0.4 | G29: 1.5 | H29: 0.25 | I29: 1 | J29: 0.4 | K29: 0.5 | L29: 0.4
C30: Solar | D30: REC Floor | E30: 9.8 | F30: 0.2 | G30: 4 | H30: 0.3 | I30: 2 | J30: 0.3 | K30: 1 | L30: 0.3
C31: Solar | D31: REC Forbearance | E31: 13.4 | F31: 0 | G31: 8 | H31: 0.2 | I31: 6 | J31: 0.3 | K31: 4 | L31: 0.2
C32: Solar | D32: REC Other Price | E32: 10 | F32: 0.4 | G32: 6 | H32: 0.25 | I32: 4 | J32: 0.4 | K32: 2 | L32: 0.4
C35: Saved FIT Inputs
C36: State | D36: Solar PV | E36: Solar Thermal | F36: Wind | G36: Small Hydro | H36: Biogas | I36: Bagasse | J36: Biomass Gasifier | K36: Biomass Rankine Cycle
C37: CERC | D37: 11.16 | E37: 12.46 | F37: 3.73 | G37: 4.88 | H37: 5.42 | I37: 5.2 | J37: 5.42 | K37: 5.42
C38: Andhra Pradesh | D38: 17.91 | E38: 15.31 | F38: 3.5 | H38: 5.18 | I38: 5.06 | J38: 5.18 | K38: 5.18
C39: Bihar | D39: 10.9 | E39: 13.11 | G39: 4.88
C40: Chhattisgarh
C41: Gujarat | D41: 10.37 | E41: 12.91 | F41: 4.23 | H41: 4.49 | I41: 4.71 | J41: 4.49 | K41: 4.49
C42: Haryana | D42: 9.18 | E42: 12.17 | F42: 3.84 | G42: 4.88 | H42: 5.59 | I42: 3.83 | J42: 5.59 | K42: 5.59
C43: Himachal Pradesh | G43: 4.88
C44: Karnataka | D44: 14.5 | E44: 11.35 | F44: 3.7 | G44: 3.4
C45: Kerala | D45: 15.18 | F45: 3.64 | G45: 2.94
C46: Madhya Pradesh | D46: 10.44 | E46: 12.65 | F46: 4.35 | G46: 5.4 | I46: 3.9
C47: Maharashtra | D47: 11.16 | E47: 13.44 | F47: 3.78 | H47: 5.41 | I47: 5.42 | J47: 5.41 | K47: 5.41
C48: North Eastern States
C49: Orissa | D49: 17.8 | E49: 14.73 | F49: 5.31 | G49: 3.64 | H49: 4.09 | I49: 4.4 | J49: 4.09 | K49: 4.09
C50: Punjab | D50: 10.39 | E50: 12.46 | F50: 5.96 | G50: 4.16 | H50: 5.83 | I50: 5.32 | J50: 5.83 | K50: 5.83
C51: Rajasthan | D51: 9.63 | E51: 11.95 | F51: 5.44 | H51: 4.77 | J51: 4.77 | K51: 4.77
C52: Tamil Nadu | D52: 18.45 | E52: 15.51 | F52: 3.51 | H52: 4.694 | I52: 4.61 | J52: 4.694 | K52: 4.694
C53: Uttarakhand | D53: 17.7 | E53: 12.95 | F53: 3.2
C54: Uttar Pradesh | D54: 15 | E54: 13 | F54: 3.21 | H54: 5.02 | I54: 5.35 | J54: 5.02 | K54: 5.02
C55: West Bengal | D55: 10 | F55: 5.7 | G55: 4.4 | H55: 5 | I55: 3.3 | J55: 5 | K55: 5
C59: Data compiled early 2013 | E59: Feed-in Tariffs
C60: State | D60: APPC | E60: Solar PV | F60: Solar Thermal | G60: Wind | H60: Small Hydro | I60: Biogas | J60: Bagasse | K60: Biomass Gasifier | L60: Biomass Rankine Cycle
C61: CERC | D61: 3.38 | E61: 10.39 | F61: 12.46 | G61: 3.73 | H61: 4.88 | I61: 5.42 | J61: 5.2 | K61: 5.42 | L61: 5.42
C62: Andhra Pradesh | D62: 3.38 | E62: 17.91 | F62: 15.31 | G62: 3.5 | I62: 5.18 | J62: 5.06 | K62: 5.18 | L62: 5.18
C63: Bihar | E63: 10.9 | F63: 13.11
C64: Chhattisgarh | D64: 2.62
C65: Gujarat | D65: 2.98 | E65: 10.37 | F65: 12.91 | G65: 4.23 | I65: 4.49 | J65: 4.71 | K65: 4.49 | L65: 4.49
C66: Haryana | D66: 2.5 | E66: 9.18 | F66: 12.17 | G66: 3.84 | I66: 5.59 | J66: 3.83 | K66: 5.59 | L66: 5.59
C67: Karnataka | D67: 2.66 | E67: 14.5 | F67: 11.35 | G67: 3.7 | H67: 3.4
C68: Kerala | D68: 2.43 | E68: 15.18 | G68: 3.64 | H68: 2.94
C69: Madhya Pradesh | D69: 2.09 | E69: 10.44 | F69: 12.65 | G69: 4.35 | H69: 5.4 | J69: 3.9
C70: Maharashtra | D70: 2.6 | E70: 11.16 | F70: 13.44 | G70: 3.78 | I70: 5.41 | J70: 4.79 | K70: 5.41 | L70: 5.41
C71: Orissa | E71: 17.8 | F71: 14.73 | G71: 5.31 | H71: 3.64 | I71: 4.09 | J71: 4.4 | K71: 4.09 | L71: 4.09
C72: Punjab | D72: 2.62 | E72: 10.39 | F72: 12.46 | G72: 5.96 | H72: 4.16 | I72: 5.83 | J72: 5.32 | K72: 5.83 | L72: 5.83
C73: Rajasthan | D73: 2.71 | E73: 9.63 | F73: 11.95 | G73: 5.44 | I73: 4.77 | K73: 4.77 | L73: 4.77
C74: Tamil Nadu | D74: 1.99 | E74: 18.45 | F74: 15.51 | G74: 3.51 | I74: 4.694 | J74: 4.61 | K74: 4.694 | L74: 4.694
C75: Uttarakhand | D75: 2.77 | E75: 17.7 | F75: 12.95 | G75: 3.2
C76: Uttar Pradesh | D76: 2.05 | E76: 15 | F76: 13 | G76: 3.21 | I76: 5.02 | J76: 5.35 | K76: 5.02 | L76: 5.02
C77: West Bengal | D77: 2.34 | E77: 10 | G77: 5.7 | H77: 4.4 | I77: 5 | J77: 3.3 | K77: 5 | L77: 5

Sheet Inputs
C1: Default Project Start Year | D1: 2014 | E1: Solar PV | G1: Solar-Thermal | I1: Wind | K1: Small Hydro | M1: Biogas | O1: Bagasse | Q1: Biomass Gasifier | S1: Biomass Rankine Cycle | U1: Off-grid Solar PV | W1: Off-grid Small Hydro | Y1: Off-grid Biomass Gasifier
C2: Power Generation
B3: No | C3: Input | D3: Unit | E3: Value | F3: Default | G3: Value | H3: Default | I3: Value | J3: Default | K3: Value | L3: Default | M3: Value | N3: Default | O3: Value | P3: Default | Q3: Value | R3: Default | S3: Value | T3: Default | U3: Value | V3: Default | W3: Value | X3: Default | Y3: Value | Z3: Default
B4: 1 | C4: Capacity | D4: MW | E4: 1 | F4: =E4 -> 1 | G4: 10 | H4: =G4 -> 10 | I4: 1 | J4: =I4 -> 1 | K4: 1 | L4: =K4 -> 1 | M4: 1 | N4: =M4 -> 1 | O4: 1 | P4: =O4 -> 1 | Q4: 1 | R4: =Q4 -> 1 | S4: 1 | T4: =S4 -> 1 | U4: =Generation_Distribution!$C$61 -> 0.0188 | V4: 0.01 | W4: =Generation_Distribution!$E$61 -> 0.00979 | X4: 0.01 | Y4: =Generation_Distribution!$D$61 -> 0.011 | Z4: 0.032
B5: =B4+1 -> 2 | C5: Capacity Utilization Factor (CUF)/Plant Load Factor (PLF) | D5: % | E5: 0.19 | F5: 0.19 | G5: 0.23 | H5: 0.23 | I5: 0.25 | J5: 0.25 | K5: =IF(OR('Inputs&Summary'!$D$15="Himachal Pradesh",'Inputs&Summary'!$D$15="Uttarakhand",'Inputs&Summary'!$D$15="North Eastern States"),45%,30%) -> 0.3 | L5: =IF(OR('Inputs&Summary'!$D$15="Himachal Pradesh",'Inputs&Summary'!$D$15="Uttarakhand",'Inputs&Summary'!$D$15="North Eastern States"),45%,30%) -> 0.3 | M5: 0.9 | N5: 0.9 | O5: =IF(OR(StateIP="Uttar Pradesh",StateIP="Andhra Pradesh"),45%,IF(OR(StateIP="Tamil Nadu",StateIP="Maharashtra"),60%,53%)) -> 0.53 | P5: =IF(OR(StateIP="Uttar Pradesh",StateIP="Andhra Pradesh"),45%,IF(OR(StateIP="Tamil Nadu",StateIP="Maharashtra"),60%,53%)) -> 0.53 | Q5: 0.85 | R5: 0.85 | S5: 0.65 | T5: 0.65 | U5: =Generation_Distribution!$C$68 -> 0.133643617 | V5: 0.17 | W5: =Generation_Distribution!$E$68 -> 0.513278856 | X5: 0.3 | Y5: =Generation_Distribution!$D$68 -> 0.4568181818 | Z5: 0.19
B6: 3 | C6: Annual Gross Generation | D6: Lakh kWhs | E6: =(E4*1000*8760*E5)/10^5 -> 16.644 | F6: =(F4*1000*8760*F5)/10^5 -> 16.644 | G6: =(G4*1000*8760*G5)/10^5 -> 201.48 | H6: 201.48 | I6: =(I4*1000*8760*I5)/10^5 -> 21.9 | J6: 21.9 | K6: =(K4*1000*8760*K5)/10^5 -> 26.28 | L6: =(L4*1000*8760*L5)/10^5 -> 26.28 | M6: =(M4*1000*8760*M5)/10^5 -> 78.84 | N6: 78.84 | O6: =(O4*1000*8760*O5)/10^5 -> 46.428 | P6: =(P4*1000*8760*P5)/10^5 -> 46.428 | Q6: =(Q4*1000*8760*Q5)/10^5 -> 74.46 | R6: 74.46 | S6: 56.94 | T6: 56.94 | U6: =(U4*1000*8760*U5)/10^5 -> 0.220095 | V6: 0.14892 | W6: =(W4*1000*8760*W5)/10^5 -> 0.44019 | X6: 0.2628 | Y6: =(Y4*1000*8760*Y5)/10^5 -> 0.44019 | Z6: 0.532608
B7: 4 | C7: Auxiliary consumption | D7: % | E7: 0 | F7: 0 | G7: 0.1 | H7: 0.1 | I7: 0 | J7: 0 | K7: 0.01 | L7: 0.01 | M7: 0.12 | N7: 0.12 | O7: 0.085 | P7: 0.085 | Q7: 0.1 | R7: 0.1 | S7: 0.1 | T7: 0.1 | U7: 0 | V7: 0 | W7: 0.01 | X7: 0.01 | Y7: 0.1 | Z7: 0.1
B8: 5 | C8: Annual Net Generation | D8: Lakh kWhs | E8: =E6*(1-E7) -> 16.644 | F8: =F6*(1-F7) -> 16.644 | G8: =G6*(1-G7) -> 181.332 | H8: 181.332 | I8: =I6*(1-I7) -> 21.9 | J8: 21.9 | K8: =K6*(1-K7) -> 26.0172 | L8: =L6*(1-L7) -> 26.0172 | M8: =M6*(1-M7) -> 69.3792 | N8: 69.3792 | O8: =O6*(1-O7) -> 42.48162 | P8: =P6*(1-P7) -> 42.48162 | Q8: =Q6*(1-Q7) -> 67.014 | R8: 67.014 | S8: 51.246 | T8: 51.246 | U8: =U6*(1-U7) -> 0.220095 | V8: 0.14892 | W8: =W6*(1-W7) -> 0.4357881 | X8: 0.260172 | Y8: =Y6*(1-Y7) -> 0.396171 | Z8: 0.4793472
B9: 6 | C9: Annual Derated Capacity | D9: % | E9: 0 | F9: 0 | G9: 0 | H9: 0 | I9: 0 | J9: 0 | K9: 0 | L9: 0 | M9: 0 | N9: 0 | O9: 0 | P9: 0 | Q9: 0 | R9: 0 | S9: 0 | T9: 0 | U9: 0 | V9: 0 | W9: 0 | X9: 0 | Y9: 0 | Z9: 0
B10: 7 | C10: Life of Plant and Machinery / Project Life | D10: years | E10: 25 | F10: 25 | G10: 25 | H10: 25 | I10: 25 | J10: 25 | K10: 35 | L10: 35 | M10: 20 | N10: 20 | O10: 20 | P10: 20 | Q10: 20 | R10: 20 | S10: 20 | T10: 20 | U10: 20 | V10: 20 | W10: 25 | X10: 25 | Y10: 20 | Z10: 20
B11: 8 | C11: CapEx per MW | D11: Rs Lacs/MW | E11: 691 | F11: 691 | G11: 1200 | H11: 1200 | I11: 603.929 | J11: 603.929 | K11: =IF(OR('Inputs&Summary'!$D$15="Himachal Pradesh",'Inputs&Summary'!$D$15="Uttarakhand",'Inputs&Summary'!$D$15="North Eastern States"),IF(K4<5,808.739,735.217),IF(K4<5,630.186,577.671)) -> 630.186 | L11: =IF(OR('Inputs&Summary'!$D$15="Himachal Pradesh",'Inputs&Summary'!$D$15="Uttarakhand",'Inputs&Summary'!$D$15="North Eastern States"),IF(L4<5,808.739,735.217),IF(L4<5,630.186,577.671)) -> 630.186 | M11: 854.236 | N11: 854.236 | O11: 440.708 | P11: 440.708 | Q11: 427.118 | R11: 427.118 | S11: 544.187 | T11: 544.187 | U11: =Generation_Distribution!$C$65 -> 2878.194894 | V11: 3405.6618 | W11: =Generation_Distribution!$E$65 -> 3367.786415 | X11: 2818.1618 | Y11: =Generation_Distribution!$D$65 -> 2873.424 | Z11: 1553.644313
B12: 9 | C12: O&M cost | D12: Rs Lacs / MW | E12: 12.3 | F12: 12.3 | G12: 16.77 | H12: 16.77 | I12: 10.05 | J12: 10.05 | K12: =IF(OR('Inputs&Summary'!$D$15="Himachal Pradesh",'Inputs&Summary'!$D$15="Uttarakhand",'Inputs&Summary'!$D$15="North Eastern States"),IF(K4<5,27.94,20.12),IF(K4<5,22.35,15.65)) -> 22.35 | L12: =IF(OR('Inputs&Summary'!$D$15="Himachal Pradesh",'Inputs&Summary'!$D$15="Uttarakhand",'Inputs&Summary'!$D$15="North Eastern States"),IF(L4<5,27.94,20.12),IF(L4<5,22.35,15.65)) -> 22.35 | M12: 44.71 | N12: 44.71 | O12: 17.89 | P12: 17.89 | Q12: 44.71 | R12: 44.71 | S12: 42.29 | T12: 42.29 | U12: =Generation_Distribution!$C$67 -> 31.94946809 | V12: 75.215 | W12: =Generation_Distribution!$E$67 -> 44.88061798 | X12: 70.925 | Y12: =Generation_Distribution!$D$67 -> 38.25 | Z12: 26.890625
B13: 10 | C13: O&M Cost Esclation | D13: % | E13: 0.0572 | F13: 0.0572 | G13: 0.0572 | H13: 0.0572 | I13: 0.0572 | J13: 0.0572 | K13: 0.0572 | L13: 0.0572 | M13: 0.0572 | N13: 0.0572 | O13: 0.0572 | P13: 0.0572 | Q13: 0.0572 | R13: 0.0572 | S13: 0.0572 | T13: 0.0572 | U13: 0.0572 | V13: 0.0572 | W13: 0.0572 | X13: 0.0572 | Y13: 0.0572 | Z13: 0.0572
B14: 11 | C14: Maintenance spares | D14: of yearly O&M Cost | E14: 0.15 | F14: 0.15 | G14: 0.15 | H14: 0.15 | I14: 0.15 | J14: 0.15 | K14: 0.15 | L14: 0.15 | M14: 0.15 | N14: 0.15 | O14: 0.15 | P14: 0.15 | Q14: 0.15 | R14: 0.15 | S14: 0.15 | T14: 0.15 | U14: 0.2 | V14: 0.15 | W14: 0.15 | X14: 0.15 | Y14: 0.15 | Z14: 0.15
C15: Loan Details
B16: No | E16: Value | F16: Default | G16: Value | H16: Default | I16: Value | J16: Default | K16: Value | L16: Default | M16: Value | N16: Default | O16: Value | P16: Default | Q16: Value | R16: Default | S16: Value | T16: Default | U16: Value | V16: Default | W16: Value | X16: Default | Y16: Value | Z16: Default
B17: =B14+1 -> 12 | C17: Debt Fraction | D17: % | E17: 0.7 | F17: 0.7 | G17: 0.7 | H17: 0.7 | I17: 0.7 | J17: 0.7 | K17: 0.7 | L17: 0.7 | M17: 0.7 | N17: 0.7 | O17: 0.7 | P17: 0.7 | Q17: 0.7 | R17: 0.7 | S17: 0.7 | T17: 0.7 | U17: 0.7 | V17: 0.7 | W17: 0.7 | X17: 0.7 | Y17: 0.7 | Z17: 0.7
B18: =B17+1 -> 13 | C18: Debt | D18: lacs | E18: =E11*E4*E17 -> 483.7 | F18: =F11*F4*F17 -> 483.7 | G18: =G11*G17*G4 -> 8400 | H18: =H11*H17*H4 -> 8400 | I18: =I11*I17*I4 -> 422.7503 | J18: 422.7503 | K18: =K11*K17*K4 -> 441.1302 | L18: 441.1302 | M18: =M11*M17*M4 -> 597.9652 | N18: 597.9652 | O18: =O11*O17*O4 -> 308.4956 | P18: =P11*P17*P4 -> 308.4956 | Q18: =Q11*Q17*Q4 -> 298.9826 | R18: 298.9826 | S18: 380.9309 | T18: 380.9309 | U18: =U11*U4*U17 -> 37.8770448 | V18: =V11*V4*V17 -> 23.8396326 | W18: =W11*W17*W4 -> 23.0794403 | X18: =X11*X17*X4 -> 19.7271326 | Y18: =Y11*Y17*Y4 -> 22.1253648 | Z18: =Z11*Z17*Z4 -> 34.8016326
B19: 14 | C19: Equity | D19: lacs | E19: =E11*E4-E18 -> 207.3 | F19: =F11*F4-F18 -> 207.3 | G19: =G11*G4-G18 -> 3600 | H19: 3600 | I19: =I11*I4-I18 -> 181.1787 | J19: 181.1787 | K19: =K11*K4-K18 -> 189.0558 | L19: 189.0558 | M19: =M11*M4-M18 -> 256.2708 | N19: 256.2708 | O19: =O11*O4-O18 -> 132.2124 | P19: =P11*P4-P18 -> 132.2124 | Q19: =Q11*Q4-Q18 -> 128.1354 | R19: 128.1354 | S19: 163.2561 | T19: 163.2561 | U19: =U11*U4-U18 -> 16.2330192 | V19: =V11*V4-V18 -> 10.2169854 | W19: =W11*W4-W18 -> 9.8911887 | X19: 8.4544854 | Y19: =Y11*Y4-Y18 -> 9.4822992 | Z19: 14.9149854
B20: 15 | C20: Loan 1 Interest Rate | D20: % | E20: =Inputs!$E$85 -> 0.127 | F20: =Inputs!$E$85 -> 0.127 | G20: =Inputs!$E$85 -> 0.127 | H20: =Inputs!$E$85 -> 0.127 | I20: =Inputs!$E$85 -> 0.127 | J20: =Inputs!$E$85 -> 0.127 | K20: =Inputs!$E$85 -> 0.127 | L20: =Inputs!$E$85 -> 0.127 | M20: =Inputs!$E$85 -> 0.127 | N20: =Inputs!$E$85 -> 0.127 | O20: =Inputs!$E$85 -> 0.127 | P20: =Inputs!$E$85 -> 0.127 | Q20: =Inputs!$E$85 -> 0.127 | R20: =Inputs!$E$85 -> 0.127 | S20: =Inputs!$E$85 -> 0.127 | T20: =Inputs!$E$85 -> 0.127 | U20: =Inputs!$E$85 -> 0.127 | V20: =Inputs!$E$85 -> 0.127 | W20: =Inputs!$E$85 -> 0.127 | X20: =Inputs!$E$85 -> 0.127 | Y20: =Inputs!$E$85 -> 0.127 | Z20: =Inputs!$E$85 -> 0.127
B21: 16 | C21: Loan 1 Term | D21: years | E21: 12 | F21: 12 | G21: 12 | H21: 12 | I21: 12 | J21: 12 | K21: 12 | L21: 12 | M21: 12 | N21: 12 | O21: 12 | P21: 12 | Q21: 12 | R21: 12 | S21: 12 | T21: 12 | U21: 12 | V21: 12 | W21: 12 | X21: 12 | Y21: 12 | Z21: 12
B22: 17 | C22: Loan 1 Moratorium | D22: years | E22: 0 | F22: 0 | G22: 0 | H22: 0 | I22: 0 | J22: 0 | K22: 0 | L22: 0 | M22: 0 | N22: 0 | O22: 0 | P22: 0 | Q22: 0 | R22: 0 | S22: 0 | T22: 0 | U22: 0 | V22: 0 | W22: 0 | X22: 0 | Y22: 0 | Z22: 0
B23: 18 | C23: Loan 1 EMI | D23: True/False | E23: 0 | F23: 0 | G23: 0 | H23: 0 | I23: 0 | J23: 0 | K23: 0 | L23: 0 | M23: 0 | N23: 0 | O23: 0 | P23: 0 | Q23: 0 | R23: 0 | S23: 0 | T23: 0 | U23: 0 | V23: 0 | W23: 0 | X23: 0 | Y23: 0 | Z23: 0
B24: 19 | C24: Loan 2 Principal (0 for single loan) | D24: lacs | E24: 0 | F24: 0 | G24: 0 | H24: 0 | I24: 0 | J24: 0 | K24: 0 | L24: 0 | M24: 0 | N24: 0 | O24: 0 | P24: 0 | Q24: 0 | R24: 0 | S24: 0 | T24: 0 | U24: 0 | V24: 0 | W24: 0 | X24: 0 | Y24: 0 | Z24: 0
B25: 20 | C25: Loan 2 Interest Rate | D25: % | E25: 0.1 | F25: 0.1 | G25: 0.1 | H25: 0.1 | I25: 0.1 | J25: 0.1 | K25: 0.1 | L25: 0.1 | M25: 0.1 | N25: 0.1 | O25: 0.1 | P25: 0.1 | Q25: 0.1 | R25: 0.1 | S25: 0.1 | T25: 0.1 | U25: 0.1 | V25: 0.1 | W25: 0.1 | X25: 0.1 | Y25: 0.1 | Z25: 0.1
B26: 21 | C26: Loan 2 Term | D26: years | E26: 20 | F26: 20 | G26: 20 | H26: 20 | I26: 20 | J26: 20 | K26: 20 | L26: 20 | M26: 20 | N26: 20 | O26: 20 | P26: 20 | Q26: 20 | R26: 20 | S26: 20 | T26: 20 | U26: 20 | V26: 20 | W26: 20 | X26: 20 | Y26: 20 | Z26: 20
B27: 22 | C27: Loan 2 Moratorium | D27: years | E27: 0 | F27: 0 | G27: 0 | H27: 0 | I27: 0 | J27: 0 | K27: 0 | L27: 0 | M27: 0 | N27: 0 | O27: 0 | P27: 0 | Q27: 0 | R27: 0 | S27: 0 | T27: 0 | U27: 0 | V27: 0 | W27: 0 | X27: 0 | Y27: 0 | Z27: 0
B28: 23 | C28: Loan 2 EMI | D28: True/False | E28: 1 | F28: 1 | G28: 1 | H28: 1 | I28: 1 | J28: 1 | K28: 1 | L28: 1 | M28: 1 | N28: 1 | O28: 1 | P28: 1 | Q28: 1 | R28: 1 | S28: 1 | T28: 1 | U28: 1 | V28: 1 | W28: 1 | X28: 1 | Y28: 1 | Z28: 1
B29: 24 | C29: Loan 2 Currency Conversion Factor (1 if domestic) | D29: Rs/Foreign Currency | E29: 1 | F29: 1 | G29: 1 | H29: 1 | I29: 1 | J29: 1 | K29: 1 | L29: 1 | M29: 1 | N29: 1 | O29: 1 | P29: 1 | Q29: 1 | R29: 1 | S29: 1 | T29: 1 | U29: 1 | V29: 1 | W29: 1 | X29: 1 | Y29: 1 | Z29: 1
B30: 25 | C30: Currency Conversion Escalation Rate | D30: % | E30: 0 | F30: 0 | G30: 0.001 | H30: 0 | I30: 0 | J30: 0 | K30: 0 | L30: 0 | M30: 0.01 | N30: 0 | O30: 0 | P30: 0 | Q30: 0 | R30: 0 | S30: 0 | T30: 0 | U30: 0 | V30: 0 | W30: 0 | X30: 0 | Y30: 0 | Z30: 0
B31: 26 | C31: Interest on working capital | D31: % | E31: =E20+0.5% -> 0.132 | F31: =F20+0.5% -> 0.132 | G31: =G20+0.5% -> 0.132 | H31: 0.132 | I31: =I20+0.5% -> 0.132 | J31: 0.132 | K31: =K20+0.5% -> 0.132 | L31: =L20+0.5% -> 0.132 | M31: =M20+0.5% -> 0.132 | N31: 0.132 | O31: =O20+0.5% -> 0.132 | P31: =P20+0.5% -> 0.132 | Q31: =Q20+0.5% -> 0.132 | R31: 0.132 | S31: 0.132 | T31: 0.132 | U31: =U20+0.5% -> 0.132 | V31: =V20+0.5% -> 0.132 | W31: =W20+0.5% -> 0.132 | X31: 0.132 | Y31: =Y20+0.5% -> 0.132 | Z31: 0.132
C32: Depreciation
B33: No | E33: Value | F33: Default | G33: Value | H33: Default | I33: Value | J33: Default | K33: Value | L33: Default | M33: Value | N33: Default | O33: Value | P33: Default | Q33: Value | R33: Default | S33: Value | T33: Default | U33: Value | V33: Default | W33: Value | X33: Default | Y33: Value | Z33: Default
B34: =B31+1 -> 27 | C34: Non - Depreciable Amount | D34: % of Capital Cost | E34: 0.1 | F34: 0.1 | G34: 0.1 | H34: 0.1 | I34: 0.1 | J34: 0.1 | K34: 0.1 | L34: 0.1 | M34: 0.1 | N34: 0.1 | O34: 0.1 | P34: 0.1 | Q34: 0.1 | R34: 0.1 | S34: 0.1 | T34: 0.1 | U34: 0.1 | V34: 0.1 | W34: 0.1 | X34: 0.1 | Y34: 0.1 | Z34: 0.1
B35: =B34+1 -> 28 | C35: Depreciable Amount | D35: lacs | E35: =E11*E4*(100%-E34) -> 621.9 | F35: =F11*F4*(100%-F34) -> 621.9 | G35: =G11*(100%-G34)*G4 -> 10800 | H35: =H11*(100%-H34)*H4 -> 10800 | I35: =I11*(100%-I34)*I4 -> 543.5361 | J35: 543.5361 | K35: =K11*(100%-K34)*K4 -> 567.1674 | L35: 567.1674 | M35: =M11*(100%-M34)*M4 -> 768.8124 | N35: 768.8124 | O35: =O11*(100%-O34)*O4 -> 396.6372 | P35: =P11*(100%-P34)*P4 -> 396.6372 | Q35: =Q11*(100%-Q34)*Q4 -> 384.4062 | R35: 384.4062 | S35: 489.7683 | T35: 489.7683 | U35: =U11*U4*(100%-U34) -> 48.6990576 | V35: =V11*V4*(100%-V34) -> 30.6509562 | W35: =W11*(100%-W34)*W4 -> 29.6735661 | X35: =X11*(100%-X34)*X4 -> 25.3634562 | Y35: =Y11*(100%-Y34)*Y4 -> 28.4468976 | Z35: =Z11*(100%-Z34)*Z4 -> 44.7449562
B36: 29 | C36: Depreciation (SLM, Company Law) - initial years | D36: % | E36: 0.0583 | F36: 0.0583 | G36: 0.0583 | H36: 0.0583 | I36: 0.0583 | J36: 0.0583 | K36: 0.0583 | L36: 0.0583 | M36: 0.0583 | N36: 0.0583 | O36: 0.0583 | P36: 0.0583 | Q36: 0.0583 | R36: 0.0583 | S36: 0.0583 | T36: 0.0583 | U36: 0.0583 | V36: 0.0583 | W36: 0.0583 | X36: 0.0583 | Y36: 0.0583 | Z36: 0.0583
B37: 30 | C37: Depreciation (SLM, Company Law) - later years | D37: % | E37: =(90%-E36*E38)/E39 -> 0.01541538462 | F37: =(90%-F36*F38)/F39 -> 0.01541538462 | G37: =(90%-G36*G38)/G39 -> 0.01541538462 | H37: =(90%-H36*H38)/H39 -> 0.01541538462 | I37: 0.01541538462 | J37: =(90%-J36*J38)/J39 -> 0.01541538462 | K37: =(90%-K36*K38)/K39 -> 0.008713043478 | L37: =(90%-L36*L38)/L39 -> 0.008713043478 | M37: =(90%-M36*M38)/M39 -> 0.02505 | N37: 0.02505 | O37: =(90%-O36*O38)/O39 -> 0.02505 | P37: =(90%-P36*P38)/P39 -> 0.02505 | Q37: =(90%-Q36*Q38)/Q39 -> 0.02505 | R37: 0.02505 | S37: 0.02505 | T37: 0.02505 | U37: =(90%-U36*U38)/U39 -> 0.02505 | V37: =(90%-V36*V38)/V39 -> 0.02505 | W37: =(90%-W36*W38)/W39 -> 0.01541538462 | X37: 0.01541538462 | Y37: =(90%-Y36*Y38)/Y39 -> 0.02505 | Z37: 0.02505
B38: 31 | C38: Number of years for initial depreciation rate | D38: years | E38: 12 | F38: 12 | G38: 12 | H38: 12 | I38: 12 | J38: 12 | K38: 12 | L38: 12 | M38: 12 | N38: 12 | O38: 12 | P38: 12 | Q38: 12 | R38: 12 | S38: 12 | T38: 12 | U38: 12 | V38: 12 | W38: 12 | X38: 12 | Y38: 12 | Z38: 12
B39: 32 | C39: Number of years for later depreciation rate | D39: years | E39: =E10-E38 -> 13 | F39: =F10-F38 -> 13 | G39: =G10-G38 -> 13 | H39: 13 | I39: =I10-I38 -> 13 | J39: 13 | K39: =K10-K38 -> 23 | L39: 23 | M39: =M10-M38 -> 8 | N39: 8 | O39: =O10-O38 -> 8 | P39: =P10-P38 -> 8 | Q39: =Q10-Q38 -> 8 | R39: 8 | S39: 8 | T39: 8 | U39: =U10-U38 -> 8 | V39: =V10-V38 -> 8 | W39: =W10-W38 -> 13 | X39: 13 | Y39: =Y10-Y38 -> 8 | Z39: 8
B40: 33 | C40: Book depreciation first year | D40: % | E40: 0.0264 | F40: 0.0264 | G40: 0.0264 | H40: 0.0264 | I40: 0.0264 | J40: 0.0264 | K40: 0.0264 | L40: 0.0264 | M40: 0.0264 | N40: 0.0264 | O40: 0.0264 | P40: 0.0264 | Q40: 0.0264 | R40: 0.0264 | S40: 0.0264 | T40: 0.0264 | U40: 0.0264 | V40: 0.0264 | W40: 0.0264 | X40: 0.0264 | Y40: 0.0264 | Z40: 0.0264
B41: 34 | C41: Book depreciation from second year | D41: % | E41: 0.0528 | F41: 0.0528 | G41: 0.0528 | H41: 0.0528 | I41: 0.0528 | J41: 0.0528 | K41: 0.0528 | L41: 0.0528 | M41: 0.0528 | N41: 0.0528 | O41: 0.0528 | P41: 0.0528 | Q41: 0.0528 | R41: 0.0528 | S41: 0.0528 | T41: 0.0528 | U41: 0.0528 | V41: 0.0528 | W41: 0.0528 | X41: 0.0528 | Y41: 0.0528 | Z41: 0.0528
B42: 35 | C42: Accelerated Depreciation (AD) first year | D42: % | E42: 0.4 | F42: 0.4 | G42: 0.4 | H42: 0.4 | I42: 0.075 | J42: 0.075 | K42: 0.4 | L42: 0.4 | M42: 0.4 | N42: 0.4 | O42: 0.4 | P42: 0.4 | Q42: 0.4 | R42: 0.4 | S42: 0.4 | T42: 0.4 | U42: 0.4 | V42: 0.4 | W42: 0.4 | X42: 0.4 | Y42: 0.4 | Z42: 0.4
B43: 36 | C43: AD from second year | D43: % | E43: 0.8 | F43: 0.8 | G43: 0.8 | H43: 0.8 | I43: 0.15 | J43: 0.15 | K43: 0.8 | L43: 0.8 | M43: 0.8 | N43: 0.8 | O43: 0.8 | P43: 0.8 | Q43: 0.8 | R43: 0.8 | S43: 0.8 | T43: 0.8 | U43: 0.8 | V43: 0.8 | W43: 0.8 | X43: 0.8 | Y43: 0.8 | Z43: 0.8
C44: Tax
B45: No | E45: Value | F45: Default | G45: Value | H45: Default | I45: Value | J45: Default | K45: Value | L45: Default | M45: Value | N45: Default | O45: Value | P45: Default | Q45: Value | R45: Default | S45: Value | T45: Default | U45: Value | V45: Default | W45: Value | X45: Default | Y45: Value | Z45: Default
B46: =B43+1 -> 37 | C46: Corporate Tax Rate | D46: % | E46: 0.3399 | F46: 0.3399 | G46: 0.3399 | H46: 0.3399 | I46: 0.3399 | J46: 0.3399 | K46: 0.3399 | L46: 0.3399 | M46: 0.3399 | N46: 0.3399 | O46: 0.3399 | P46: 0.3399 | Q46: 0.3399 | R46: 0.3399 | S46: 0.3399 | T46: 0.3399 | U46: 0.3399 | V46: 0.3399 | W46: 0.3399 | X46: 0.3399 | Y46: 0.3399 | Z46: 0.3399
B47: =B46+1 -> 38 | C47: MAT | D47: % | E47: 0.20008 | F47: 0.20008 | G47: 0.2 | H47: 0.2 | I47: 0.2 | J47: 0.2 | K47: 0.2 | L47: 0.2 | M47: 0.2 | N47: 0.2 | O47: 0.2 | P47: 0.2 | Q47: 0.2 | R47: 0.2 | S47: 0.2 | T47: 0.2 | U47: 0.20008 | V47: 0.20008 | W47: 0.2 | X47: 0.2 | Y47: 0.2 | Z47: 0.2
B48: =B47+1 -> 39 | C48: Tax Holiday Duration | D48: years | E48: 10 | F48: 10 | G48: 10 | H48: 10 | I48: 10 | J48: 10 | K48: 10 | L48: 10 | M48: 10 | N48: 10 | O48: 10 | P48: 10 | Q48: 10 | R48: 10 | S48: 10 | T48: 10 | U48: 10 | V48: 10 | W48: 10 | X48: 10 | Y48: 10 | Z48: 10
B49: 40 | C49: Tax Holiday Start Year | D49: year | E49: 6 | F49: 6 | G49: 6 | H49: 6 | I49: 6 | J49: 6 | K49: 6 | L49: 6 | M49: 6 | N49: 6 | O49: 6 | P49: 6 | Q49: 6 | R49: 6 | S49: 6 | T49: 6 | U49: 6 | V49: 6 | W49: 6 | X49: 6 | Y49: 6 | Z49: 6
B50: 41 | C50: MAT set off allowed u/s 115JAA (3A) | D50: years | E50: 10 | F50: 10 | G50: 10 | H50: 10 | I50: 10 | J50: 10 | K50: 10 | L50: 10 | M50: 10 | N50: 10 | O50: 10 | P50: 10 | Q50: 10 | R50: 10 | S50: 10 | T50: 10 | U50: 10 | V50: 10 | W50: 10 | X50: 10 | Y50: 10 | Z50: 10
B51: 42 | C51: MAT Setoff Duration | D51: years | E51: 5 | F51: 5 | G51: 5 | H51: 5 | I51: 5 | J51: 5 | K51: 5 | L51: 5 | M51: 5 | N51: 5 | O51: 5 | P51: 5 | Q51: 5 | R51: 5 | S51: 5 | T51: 5 | U51: 5 | V51: 5 | W51: 5 | X51: 5 | Y51: 5 | Z51: 5
B52: 43 | C52: MAT Setoff Start Year | D52: year | E52: 16 | F52: 16 | G52: 16 | H52: 16 | I52: 16 | J52: 16 | K52: 16 | L52: 16 | M52: 16 | N52: 16 | O52: 16 | P52: 16 | Q52: 16 | R52: 16 | S52: 16 | T52: 16 | U52: 16 | V52: 16 | W52: 16 | X52: 16 | Y52: 16 | Z52: 16
C53: ROE/Discount Rate
B54: No | E54: Value | F54: Default | G54: Value | H54: Default | I54: Value | J54: Default | K54: Value | L54: Default | M54: Value | N54: Default | O54: Value | P54: Default | Q54: Value | R54: Default | S54: Value | T54: Default | U54: Value | V54: Default | W54: Value | X54: Default | Y54: Value | Z54: Default
B55: =B52+1 -> 44 | C55: Return on Equity - pretax (initial years) | D55: % | E55: 0.2 | F55: 0.2 | G55: 0.2 | H55: 0.2 | I55: 0.2 | J55: 0.2 | K55: 0.2 | L55: 0.2 | M55: 0.2 | N55: 0.2 | O55: 0.2 | P55: 0.2 | Q55: 0.2 | R55: 0.2 | S55: 0.2 | T55: 0.2 | U55: 0.2 | V55: 0.2 | W55: 0.2 | X55: 0.2 | Y55: 0.2 | Z55: 0.2
B56: =B55+1 -> 45 | C56: Number of years for initial return on equity | D56: years | E56: 10 | F56: 10 | G56: 10 | H56: 10 | I56: 10 | J56: 10 | K56: 10 | L56: 10 | M56: 10 | N56: 10 | O56: 10 | P56: 10 | Q56: 10 | R56: 10 | S56: 10 | T56: 10 | U56: 10 | V56: 10 | W56: 10 | X56: 10 | Y56: 10 | Z56: 10
B57: =B56+1 -> 46 | C57: Return on Equity - pretax (later years) | D57: % | E57: 0.24 | F57: 0.24 | G57: 0.24 | H57: 0.24 | I57: 0.24 | J57: 0.24 | K57: 0.24 | L57: 0.24 | M57: 0.24 | N57: 0.24 | O57: 0.24 | P57: 0.24 | Q57: 0.24 | R57: 0.24 | S57: 0.24 | T57: 0.24 | U57: 0.24 | V57: 0.24 | W57: 0.24 | X57: 0.24 | Y57: 0.24 | Z57: 0.24
B58: =B57+1 -> 47 | C58: Post Tax ROE | D58: % | E58: 0.16 | F58: 0.16 | G58: 0.16 | H58: 0.16 | I58: 0.16 | J58: 0.16 | K58: 0.16 | L58: 0.16 | M58: 0.16 | N58: 0.16 | O58: 0.16 | P58: 0.16 | Q58: 0.16 | R58: 0.16 | S58: 0.16 | T58: 0.16 | U58: 0.16 | V58: 0.16 | W58: 0.16 | X58: 0.16 | Y58: 0.16 | Z58: 0.16
B59: =B58+1 -> 48 | C59: Discount Rate | D59: % | E59: =(E17*E20*(1-E46))+((1-E17)*E58) -> 0.10668289 | F59: =(F17*F20*(1-F46))+((1-F17)*F58) -> 0.10668289 | G59: =(G17*G20*(1-G46))+((1-G17)*G58) -> 0.10668289 | H59: =(H17*H20*(1-H46))+((1-H17)*H58) -> 0.10668289 | I59: =(I17*I20*(1-I46))+((1-I17)*I58) -> 0.10668289 | J59: =(J17*J20*(1-J46))+((1-J17)*J58) -> 0.10668289 | K59: 0.10668289 | L59: 0.10668289 | M59: 0.10668289 | N59: 0.10668289 | O59: =(O17*O20*(1-O46))+((1-O17)*O58) -> 0.10668289 | P59: 0.10668289 | Q59: 0.10668289 | R59: 0.10668289 | S59: 0.10668289 | T59: 0.10668289 | U59: =(U17*U20*(1-U46))+((1-U17)*U58) -> 0.10668289 | V59: 0.10668289 | W59: 0.10668289 | X59: 0.10668289 | Y59: 0.10668289 | Z59: 0.10668289
B60: =B59+1 -> 49 | C60: Annuity Factor | E60: =(((1+E59)^E10-1)/(E59*(1+E59)^E10)) -> 8.62999838 | F60: 8.62999838 | G60: 8.62999838 | H60: 8.62999838 | I60: 8.62999838 | J60: 8.62999838 | K60: 9.10374238 | L60: 9.10374238 | M60: 8.139215823 | N60: 8.139215823 | O60: =(((1+O59)^O10-1)/(O59*(1+O59)^O10)) -> 8.139215823 | P60: 8.139215823 | Q60: 8.139215823 | R60: 8.139215823 | S60: 8.139215823 | T60: 8.139215823 | U60: =(((1+U59)^U10-1)/(U59*(1+U59)^U10)) -> 8.139215823 | V60: 8.139215823 | W60: 8.62999838 | X60: 8.62999838 | Y60: 8.139215823 | Z60: 8.139215823
C61: Fuel
B62: No | E62: Value | F62: Default | G62: Value | H62: Default | I62: Value | J62: Default | K62: Value | L62: Default | M62: Value | N62: Default | O62: Value | P62: Default | Q62: Value | R62: Default | S62: Value | T62: Default | U62: Value | V62: Default | W62: Value | X62: Default | Y62: Value | Z62: Default
B63: =B60+1 -> 50 | C63: Duration of initial CUF | D63: years | E63: =E10 -> 25 | F63: =F10 -> 25 | G63: =G10 -> 25 | H63: =H10 -> 25 | I63: 25 | J63: =J10 -> 25 | K63: 35 | L63: =L10 -> 35 | M63: =M10 -> 20 | N63: =N10 -> 20 | O63: 20 | P63: =P10 -> 20 | Q63: 20 | R63: =R10 -> 20 | S63: 2 | T63: 2 | U63: =U10 -> 20 | V63: =V10 -> 20 | W63: 35 | X63: =X10 -> 25 | Y63: 20 | Z63: =Z10 -> 20
B64: =B63+1 -> 51 | C64: CUF for subsequent years | D64: % | M64: 0.9 | N64: 0.9 | O64: =IF(OR(StateIP="Uttar Pradesh",StateIP="Andhra Pradesh"),45%,IF(OR(StateIP="Tamil Nadu",StateIP="Maharashtra"),60%,53%)) -> 0.53 | P64: =IF(OR(StateIP="Uttar Pradesh",StateIP="Andhra Pradesh"),45%,IF(OR(StateIP="Tamil Nadu",StateIP="Maharashtra"),60%,53%)) -> 0.53 | Q64: 0.85 | R64: 0.85 | S64: 0.8 | T64: 0.8
B65: =B64+1 -> 52 | C65: Fuel requirement/kWh | D65: kg/kWh | E65: 0 | F65: 0 | G65: 0 | H65: 0 | I65: 0 | J65: 0 | K65: 0 | L65: 0 | M65: =Inputs!$N$85 -> 3 | N65: =Inputs!$N$85 -> 3 | O65: =Inputs!$P$85 -> 1.6 | P65: =Inputs!$P$85 -> 1.6 | Q65: =Inputs!$R$85 -> 1.25 | R65: =Inputs!$R$85 -> 1.25 | S65: =Inputs!$T$85 -> 1.35483871 | T65: =Inputs!$T$85 -> 1.35483871 | U65: 0 | V65: 0 | W65: 0 | X65: 0 | Y65: 1.5 | Z65: 1.5
B66: =B65+1 -> 53 | C66: Feedstock Price | D66: Rs/MT | I66: 0 | J66: 0 | M66: 1176.54 | N66: 1176.54 | O66: =IF(COUNTIF(Inputs!$O$76:$O$81,'Inputs&Summary'!$D$15),VLOOKUP('Inputs&Summary'!$D$15,Inputs!$O$76:$P$81,2,FALSE),Inputs!$P$82) -> 1881.27 | P66: =IF(COUNTIF(Inputs!$O$76:$O$81,'Inputs&Summary'!$D$15),VLOOKUP('Inputs&Summary'!$D$15,Inputs!$O$76:$P$81,2,FALSE),Inputs!$P$82) -> 1881.27 | Q66: =IF(COUNTIF(Inputs!$Q$76:$Q$82,'Inputs&Summary'!$D$15),VLOOKUP('Inputs&Summary'!$D$15,Inputs!$Q$76:$R$82,2,FALSE),Inputs!$R$83) -> 2942.54 | R66: =IF(COUNTIF(Inputs!$Q$76:$Q$82,'Inputs&Summary'!$D$15),VLOOKUP('Inputs&Summary'!$D$15,Inputs!$Q$76:$R$82,2,FALSE),Inputs!$R$83) -> 2942.54 | S66: =IF(COUNTIF(Inputs!$S$76:$S$82,'Inputs&Summary'!$D$15),VLOOKUP('Inputs&Summary'!$D$15,Inputs!$S$76:$T$82,2,FALSE),Inputs!$T$83) -> 2942.54 | T66: =IF(COUNTIF(Inputs!$S$76:$S$82,'Inputs&Summary'!$D$15),VLOOKUP('Inputs&Summary'!$D$15,Inputs!$S$76:$T$82,2,FALSE),Inputs!$T$83) -> 2942.54 | Y66: =IF(COUNTIF(Inputs!$Q$76:$Q$82,'Inputs&Summary'!$D$15),VLOOKUP('Inputs&Summary'!$D$15,Inputs!$Q$76:$R$82,2,FALSE),$R$83) -> 2942.54 | Z66: =IF(COUNTIF(Inputs!$Q$76:$Q$82,'Inputs&Summary'!$D$15),VLOOKUP('Inputs&Summary'!$D$15,Inputs!$Q$76:$R$82,2,FALSE),$R$83) -> 2942.54
B67: =B66+1 -> 54 | C67: Fuel Cost Escalation | D67: % | M67: 0.05 | N67: 0.05 | O67: 0.05 | P67: 0.05 | Q67: 0.05 | R67: 0.05 | S67: 0.05 | T67: 0.05 | Y67: 0.05 | Z67: 0.05
C68: Clean Energy Benefits
B69: No | E69: Value | F69: Default | G69: Value | H69: Default | I69: Value | J69: Default | K69: Value | L69: Default | M69: Value | N69: Default | O69: Value | P69: Default | Q69: Value | R69: Default | S69: Value | T69: Default | U69: Value | V69: Default | W69: Value | X69: Default | Y69: Value | Z69: Default
B70: =B67+1 -> 55 | C70: Input FIT (depends on state and technology) | D70: Rs | E70: 17.8 | F70: 10.39 | G70: 12.46 | H70: 12.46 | I70: 3.73 | J70: 3.7 | K70: 4.88 | L70: 4.88 | M70: 5.42 | N70: 5.42 | O70: 5.42 | P70: 5.42 | Q70: 3.83 | R70: 5.2 | S70: 5.42 | T70: 5.42 | U70: 11.16 | V70: 10.39 | W70: 2.94 | X70: 4.88 | Y70: 5.2 | Z70: 5.2
B71: =B70+1 -> 56 | C71: Emission Factor | D71: tons of CO2/MWh | E71: 0.9 | F71: 0.9 | G71: 0.9 | H71: 0.9 | I71: 0.9 | J71: 0.9 | K71: 0.9 | L71: 0.9 | M71: 0.9 | N71: 0.9 | O71: 0.9 | P71: 0.9 | Q71: 0.9 | R71: 0.9 | S71: 0.9 | T71: 0.9 | U71: 0.9 | V71: 0.9 | W71: 0.9 | X71: 0.9 | Y71: 0.9 | Z71: 0.9
B72: =B71+1 -> 57 | C72: Price of one CER | D72: $/ton | E72: 0 | F72: 0 | G72: 0 | H72: 0 | I72: 0 | J72: 0 | K72: 0 | L72: 0 | M72: 0 | N72: 0 | O72: 0 | P72: 0 | Q72: 0 | R72: 0 | S72: 0 | T72: 0 | U72: 0 | V72: 0 | W72: 0 | X72: 0 | Y72: 0 | Z72: 0
B73: =B72+1 -> 58 | C73: Exchange Rate | D73: Rs/US$ | E73: 50 | F73: 50 | G73: 50 | H73: 50 | I73: 50 | J73: 50 | K73: 50 | L73: 50 | M73: 50 | N73: 50 | O73: 50 | P73: 50 | Q73: 50 | R73: 50 | S73: 50 | T73: 50 | U73: 50 | V73: 50 | W73: 50 | X73: 50 | Y73: 50 | Z73: 50
D75: Interest rates | O75: State | P75: Bagasse Price (Rs / tonne) | Q75: State | R75: FY 14-15 | S75: State | T75: FY 14-15
D76: Effective Date | E76: Rate | O76: Andhra Pradesh | P76: 1553.27 | Q76: Andhra Pradesh | R76: 2751.2 | S76: Andhra Pradesh | T76: 2751.2
O77: Haryana | P77: 2209.27 | Q77: Haryana | R77: 3131.5 | S77: Haryana | T77: 3131.5
D78: 2013-02-04 | E78: 0.097 | O78: Maharashtra | P78: 2177.19 | Q78: Maharashtra | R78: 3202.8 | S78: Maharashtra | T78: 3202.8
D79: 2012-10-01 | E79: 0.0975 | O79: Punjab | P79: 1944.26 | Q79: Punjab | R79: 3275.29 | S79: Punjab | T79: 3275.29
D80: 2012-09-20 | E80: 0.0975 | O80: Tamil Nadu | P80: 1673.3 | Q80: Rajasthan | R80: 2733.37 | S80: Rajasthan | T80: 2733.37
D81: 2012-04-01 | E81: 0.1 | O81: Uttar Pradesh | P81: 1732.72 | Q81: Tamil Nadu | R81: 2706.03 | S81: Tamil Nadu | T81: 2706.03
D82: 2011-08-13 | E82: 0.1 | O82: Other States | P82: 1881.27 | Q82: Uttar Pradesh | R82: 2798.73 | S82: Uttar Pradesh | T82: 2798.73
Q83: Other States | R83: 2942.54 | S83: Other States | T83: 2942.54
C84: Manually calculated base rate (weighted avg of last 6 months SBI base rate) | E84: =E78 -> 0.097
C85: Interest rate | E85: =ROUND(E84+3%, 4) -> 0.127 | M85: Fuel requirement | N85: 3 | O85: Fuel requirement/kWh | P85: =P86/P87 -> 1.6 | Q85: Fuel requirement | R85: 1.25 | S85: Fuel requirement/kWh | T85: =T86/T87 -> 1.35483871 | U85: kg/kWh
O86: Station Heat Rate | P86: 3600 | S86: Station Heat Rate | T86: 4200 | U86: kCal/kWh
O87: Calorific value of Biomass | P87: 2250 | S87: Calorific value of Biomass | T87: 3100 | U87: kCal/kg
C88: Regulation 14.2(b)
C89: the normative interest rate shall be considered as average State Bank of India (SBI) Base rate prevalent during the first six months of the previous year plus 300 basis points | Q89: Fuel Cost
O90: State | P90: Bagasse Price (Rs / tonne) | Q90: State | R90: FY12-13 | S90: State | T90: FY2012-13 | V90: Biomass Price Increase | W90: Bagasse Price Increase
O91: Andhra Pradesh | P91: 1307 | Q91: Andhra Pradesh | R91: 2315 | S91: Andhra Pradesh | T91: 2315
O92: Haryana | P92: 1859 | Q92: Haryana | R92: 2635 | S92: Haryana | T92: 2635
O93: Maharashtra | P93: 1832 | Q93: Maharashtra | R93: 2116 | S93: Maharashtra | T93: 2695
O94: Punjab | P94: 1636 | Q94: Madhya Pradesh | R94: 1507 | S94: Punjab | T94: 2756
O95: Tamilnadu | P95: 1408 | Q95: Punjab | R95: 2756 | S95: Rajasthan | T95: 2300
O96: Uttar Pradesh | P96: 1458 | Q96: Rajasthan | R96: 2300 | S96: Tamil Nadu | T96: 2277
O97: Other States | P97: 1583 | Q97: Tamil Nadu | R97: 2277 | S97: Uttar Pradesh | T97: 2355
Q98: Uttar Pradesh | R98: 2355 | S98: Other States | T98: 2476
Q99: Other States | R99: 2283
O100: State | P100: Bagasse Price (Rs / tonne) | Q100: State | R100: FY 13-14 | S100: State | T100: FY 13-14
O101: Andhra Pradesh | P101: 1400.47 | Q101: Andhra Pradesh | R101: 2480.55 | S101: Andhra Pradesh | T101: 2480.55 | V101: =(R101-R91)/R91 -> 0.07151187905 | W101: =(P101-P91)/P91 -> 0.07151491966
O102: Haryana | P102: 1991.94 | Q102: Haryana | R102: 2823.44 | S102: Haryana | T102: 2823.44 | V102: =(R102-R92)/R92 -> 0.0715142315 | W102: 0.07151156536
O103: Maharashtra | P103: 1963.01 | Q103: Maharashtra | R103: 2887.73 | S103: Maharashtra | T103: 2887.73 | V103: =(R103-R93)/R93 -> 0.3647117202 | W103: 0.07151200873
O104: Punjab | P104: 1753 | Q104: Punjab | R104: 2953.09 | S104: Punjab | T104: 2953.09 | V104: =(R104-R95)/R95 -> 0.07151306241 | W104: 0.07151589242
O105: Tamilnadu | P105: 1508.69 | Q105: Rajasthan | R105: 2464.48 | S105: Rajasthan | T105: 2464.48 | V105: =(R105-R96)/R96 -> 0.07151304348 | W105: 0.07151278409
O106: Uttar Pradesh | P106: 1562.27 | Q106: Tamil Nadu | R106: 2439.83 | S106: Tamil Nadu | T106: 2439.83 | V106: =(R106-R97)/R97 -> 0.07151075977 | W106: 0.07151577503
O107: Other States | P107: 1696.2 | Q107: Uttar Pradesh | R107: 2523.41 | S107: Uttar Pradesh | T107: 2523.41 | V107: =(R107-R98)/R98 -> 0.07151167728 | W107: 0.07150979154
Q108: Other States | R108: 2653.07 | S108: Other States | T108: 2653.07 | V108: =(R108-R99)/R99 -> 0.1620981165
O109: State | P109: Bagasse Price (Rs / tonne) | Q109: State | R109: FY 14-15 | S109: State | T109: FY 14-15
O110: Andhra Pradesh | P110: 1551.24 | Q110: Andhra Pradesh | R110: 2747.59 | S110: Andhra Pradesh | T110: 2747.59 | V110: =(R110-R101)/R101 -> 0.1076535446 | W110: =(P110-P101)/P101 -> 0.1076567152
O111: Haryana | P111: 2206.38 | Q111: Haryana | R111: 3127.4 | S111: Haryana | T111: 3127.4 | V111: =(R111-R102)/R102 -> 0.1076559091 | W111: 0.107653845
O112: Maharashtra | P112: 2174.34 | Q112: Maharashtra | R112: 3198.61 | S112: Maharashtra | T112: 3198.61 | V112: 0.1076554941 | W112: 0.1076560996
O113: Punjab | P113: 1941.72 | Q113: Punjab | R113: 3271.01 | S113: Punjab | T113: 3271.01 | V113: 0.1076567257 | W113: 0.1076554478
O114: Tamilnadu | P114: 1671.11 | Q114: Rajasthan | R114: 2729.79 | S114: Rajasthan | T114: 2729.79 | V114: 0.1076535415 | W114: 0.1076563111
O115: Uttar Pradesh | P115: 1730.46 | Q115: Tamil Nadu | R115: 2702.49 | S115: Tamil Nadu | T115: 2702.49 | V115: 0.1076550415 | W115: 0.1076574472
O116: Other States | P116: 1878.81 | Q116: Uttar Pradesh | R116: 2795.07 | S116: Uttar Pradesh | T116: 2795.07 | V116: 0.1076559101 | W116: 0.107658295
Q117: Other States | R117: 2938.69 | S117: Other States | T117: 2938.69 | V117: 0.1076564131
Q119: CERC Tariff
O120: State | P120: FY 14-15 | Q120: State | R120: FY 14-15 | S120: State | T120: FY 14-15
O121: Andhra Pradesh | P121: 5.72 | Q121: Andhra Pradesh | R121: 6.26 | S121: Andhra Pradesh | T121: 5.97
O122: Haryana | P122: 6.57 | Q122: Haryana | R122: 6.83 | S122: Haryana | T122: 6.53
O123: Maharashtra | P123: 6.23 | Q123: Maharashtra | R123: 6.94 | S123: Maharashtra | T123: 6.64
O124: Punjab | P124: 6.06 | Q124: Punjab | R124: 7.05 | S124: Punjab | T124: 6.74
O125: Tamilnadu | P125: 5.26 | Q125: Rajasthan | R125: 6.23 | S125: Rajasthan | T125: 5.95
O126: Uttar Pradesh | P126: 6.07 | Q126: Tamil Nadu | R126: 6.18 | S126: Tamil Nadu | T126: 5.9
O127: Other States | P127: 5.94 | Q127: Uttar Pradesh | R127: 6.33 | S127: Uttar Pradesh | T127: 6.03
Q128: Other States | R128: 6.55 | S128: Other States | T128: 6.25

Sheet Introduction
O24: Technologies Supported:
O25: Solar PV
O26: Solar Thermal
O27: Wind
O28: Small Hydro
O29: Biogas
O30: Bagasse
O31: Biomass Gasifier
O32: Biomass Rankine Cycle
O33: Off-grid Solar PV
O34: Off-grid Small Hydro
O35: Off-grid Biomass Gasifier

Sheet Inputs&Summary
A1: Renewable Energy Tariff and Financial Analysis Tool | I1: Developed by Prayas Energy Group
I3: Outputs | J3: =IF($D$19=Lookup_Tables!F35,"CERC Cost of Generation","Delivered cost of Off-grid Power ") -> CERC Cost of Generation | K3: =IF($D$19=Lookup_Tables!F35,"CERC Cost of Generation with AD","Delivered cost of Off-grid power With AD") -> CERC Cost of Generation with AD | L3: =IF($D$19=Lookup_Tables!F35,"FIT Provided by User","Grid Extension: Single Phase") -> FIT Provided by User | M3: =IF($D$19=Lookup_Tables!F35,"Based on RECs","Grid Extension: Three Phase") -> Based on RECs
D4: 0.25 | I4: =Tariff!B45 -> Levelized Tariff | J4: =Tariff!$C$45 -> 7.718094379 | K4: =Tariff!$C$46 -> 6.968073338 | L4: =IF($D$19=Lookup_Tables!F35,Tariff!$C$61,Grid_Extension_Cost!C56) -> 11.16 | M4: =IF($D$19=Lookup_Tables!F35,Tariff!$C$63,Grid_Extension_Cost!C40) -> 8.99523159
I5: =IF($D$19=Lookup_Tables!F35,DSCR!$B$19,"") -> Average DSCR | J5: =IF($D$19=Lookup_Tables!F35,DSCR!$C$19,"") -> 1.476435253 | K5: =IF($D$19=Lookup_Tables!F35,DSCR!$C$23,"") -> 1.326028889 | L5: =IF($D$19=Lookup_Tables!F35,DSCR!$C$28,"") -> 2.156388475 | M5: =IF($D$19=Lookup_Tables!F35,DSCR!$C$33,"") -> 1.735892971
I6: =IF($D$19=Lookup_Tables!F35,DSCR!$B$18,"") -> MINIMUM DSCR (after 1st year) | J6: =IF($D$19=Lookup_Tables!F35,DSCR!$C$18,"") -> 1.061581593 | K6: =IF($D$19=Lookup_Tables!F35,DSCR!$C$22,"") -> 0.9608974903 | L6: =IF($D$19=Lookup_Tables!F35,DSCR!$C$27,"") -> 1.523628869 | M6: =IF($D$19=Lookup_Tables!F35,DSCR!$C$32,"") -> 1.297458446
I7: =IF($D$19=Lookup_Tables!F35,"Project IRR-Post Tax","") -> Project IRR-Post Tax | J7: =IF($D$19=Lookup_Tables!F35,IRR!$C$42,"") -> 0.1349026377 | K7: =IF($D$19=Lookup_Tables!F35,IRR!$C$51,"") -> 0.1346300747 | L7: =IF($D$19=Lookup_Tables!F35,IRR!$C$58,"") -> 0.2085675002 | M7: =IF($D$19=Lookup_Tables!F35,IRR!$C$65,"") -> 0.1662212828
I8: =IF($D$19=Lookup_Tables!F35,"Equity IRR-Post Tax","") -> Equity IRR-Post Tax | J8: =IF($D$19=Lookup_Tables!F35,IRR!$C$75,"") -> 0.1489364535 | K8: =IF($D$19=Lookup_Tables!F35,IRR!$C$82,"") -> 0.154311586 | L8: =IF($D$19=Lookup_Tables!F35,IRR!$C$88,"") -> 0.3160313825 | M8: =IF($D$19=Lookup_Tables!F35,IRR!$C$94,"") -> 0.2179404036
C13: Inputs
C14: Project Start Year → | D14: 2014
C15: State → | D15: CERC
C16: Technology → | D16: Solar PV
C17: Location → | D17: Hilly, Tribal, Desert
C18: Density → | D18: Less Scattered
C19: Project Type → | D19: =IF(IFERROR(SEARCH("Off-grid",D16),0),"Off-grid","Grid-based") -> Grid-based
C22: Off-grid Parameters
B23: No | C23: Input | D23: Value | E23: Default | F23: Unit
B24: 1A | C24: Number of Households | D24: 100 | E24: 50 | F24: -
B25: 2A | C25: Distance from the Grid | D25: 3 | E25: 3 | F25: kms
B26: 3A | C26: Battery Cost at Project Start | D26: 11 | E26: 11 | F26: Rs/Wh
B27: 4A | C27: Battery Life | D27: 5 | E27: 5 | F27: years
C28: Grid Extension Parameters
B29: 5A | C29: Power Purchase Cost | D29: =AVERAGE(D107,F107,H107,J107) -> 4.446530974 | E29: =AVERAGE(D107,F107,H107,J107) -> 4.446530974 | F29: Rs./kWh
B30: 6A | C30: Debt Ratio | D30: 70 | E30: 70 | F30: %
B31: 7A | C31: Grid Life | D31: 30 | E31: 30 | F31: Years
C32: Power Generation
B33: No | C33: Input | D33: Value | E33: Default | F33: Unit
B34: 1 | C34: Capacity | D34: 1 | E34: =D34 -> 1 | F34: MW
B35: =B34+1 -> 2 | C35: Capacity Utilization Factor (CUF)/Plant Load Factor (PLF) | D35: 0.19 | E35: 0.19 | F35: %
B36: 3 | C36: Annual Gross Generation | D36: =(D34*1000*8760*D35)/10^5 -> 16.644 | E36: =(E34*1000*8760*E35)/10^5 -> 16.644 | F36: Lakh kWhs
B37: 4 | C37: Auxiliary consumption | D37: 0 | E37: 0 | F37: %
B38: 5 | C38: Annual Net Generation | D38: =D36*(1-D37) -> 16.644 | E38: =E36*(1-E37) -> 16.644 | F38: Lakh kWhs
B39: =B38+1 -> 6 | C39: Annual Derated Capacity | D39: 0 | E39: 0 | F39: %
B40: 7 | C40: Life of Plant and Machinery / Project Life | D40: 25 | E40: 25 | F40: years
B41: 8 | C41: CapEx per MW | D41: 691 | E41: 691 | F41: Rs Lacs/MW
B42: 9 | C42: O&M cost | D42: 12.3 | E42: 12.3 | F42: Rs Lacs / MW
B43: 10 | C43: O&M Cost Esclation | D43: 0.0572 | E43: 0.0572 | F43: %
B44: 11 | C44: Maintenance spares | D44: 0.15 | E44: 0.15 | F44: % of yearly O&M Cost
C45: Loan Details
B46: No | C46: Input | D46: Value | E46: Default | F46: Unit
B47: =B44+1 -> 12 | C47: Debt Fraction | D47: 0.7 | E47: 0.7 | F47: %
B48: =B47+1 -> 13 | C48: Debt | D48: =D41*D34*D47 -> 483.7 | E48: =E41*E34*E47 -> 483.7 | F48: Rs lacs
B49: 14 | C49: Equity | D49: =D41*D34-D48 -> 207.3 | E49: =E41*E34-E48 -> 207.3 | F49: Rs lacs
B50: 15 | C50: Loan 1 Interest Rate | D50: =Inputs!$E$85 -> 0.127 | E50: =Inputs!$E$85 -> 0.127 | F50: %
B51: 16 | C51: Loan 1 Term | D51: 12 | E51: 12 | F51: years
B52: 17 | C52: Loan 1 Moratorium | D52: 0 | E52: 0 | F52: years
B53: 18 | C53: Loan 1 EMI (True - 1, False - 0) | D53: 0 | E53: 0 | F53: True/False
B54: 19 | C54: Loan 2 Principal (0 for single loan) | D54: 0 | E54: 0 | F54: Rs lacs
B55: 20 | C55: Loan 2 Interest Rate | D55: 0.1 | E55: 0.1 | F55: %
B56: 21 | C56: Loan 2 Term | D56: 20 | E56: 20 | F56: years
B57: 22 | C57: Loan 2 Moratorium | D57: 0 | E57: 0 | F57: years
B58: 23 | C58: Loan 2 EMI (True - 1, False - 0) | D58: 1 | E58: 1 | F58: True/False
B59: 24 | C59: Loan 2 Currency Conversion Factor (1 if domestic) | D59: 1 | E59: 1 | F59: Rs/Foreign Currency
B60: 25 | C60: Currency Conversion Escalation Rate | D60: 0 | E60: 0 | F60: %/yr
B61: 26 | C61: Interest on working capital | D61: =D50+0.5% -> 0.132 | E61: =E50+0.5% -> 0.132 | F61: %
C62: Depreciation
B63: No | C63: Input | D63: Value | E63: Default | F63: Unit
B64: =B61+1 -> 27 | C64: Non - Depreciable Amount | D64: 0.1 | E64: 0.1 | F64: % of Capital Cost
B65: =B64+1 -> 28 | C65: Depreciable Amount | D65: =D41*D34*(100%-D64) -> 621.9 | E65: =E41*E34*(100%-E64) -> 621.9 | F65: Rs lacs
B66: 29 | C66: Depreciation (SLM, Company Law) - initial years | D66: 0.0583 | E66: 0.0583 | F66: %
B67: 30 | C67: Depreciation (SLM, Company Law) - later years | D67: =(90%-D66*D68)/D69 -> 0.01541538462 | E67: =(90%-E66*E68)/E69 -> 0.01541538462 | F67: %
B68: 31 | C68: Number of years for initial depreciation rate | D68: 12 | E68: 12 | F68: years
B69: 32 | C69: Number of years for later depreciation rate | D69: =D40-D68 -> 13 | E69: =E40-E68 -> 13 | F69: years
B70: 33 | C70: Book depreciation first year | D70: 0.0264 | E70: 0.0264 | F70: %
B71: 34 | C71: Book depreciation from second year | D71: 0.0528 | E71: 0.0528 | F71: %
B72: 35 | C72: Accelerated Depreciation (AD) first year | D72: 0.4 | E72: 0.4 | F72: %
B73: 36 | C73: AD from second year | D73: 0.8 | E73: 0.8 | F73: %
C74: Tax
B75: No | C75: Input | D75: Value | E75: Default | F75: Unit
B76: =B73+1 -> 37 | C76: Corporate Tax Rate | D76: 0.3399 | E76: 0.3399 | F76: %
B77: =B76+1 -> 38 | C77: MAT | D77: 0.20008 | E77: 0.20008 | F77: %
B78: =B77+1 -> 39 | C78: Tax Holiday Duration | D78: 10 | E78: 10 | F78: years
B79: 40 | C79: Tax Holiday Start Year | D79: 6 | E79: 6 | F79: year
B80: 41 | C80: MAT set off allowed u/s 115JAA (3A) | D80: 10 | E80: 10 | F80: years
B81: 42 | C81: MAT Setoff Duration | D81: 5 | E81: 5 | F81: years
B82: 43 | C82: MAT Setoff Start Year | D82: 16 | E82: 16 | F82: year
C83: ROE/Discount Rate
B84: No | C84: Input | D84: Value | E84: Default | F84: Unit
B85: =B82+1 -> 44 | C85: Return on Equity - pretax (initial years) | D85: 0.2 | E85: 0.2 | F85: %
B86: =B85+1 -> 45 | C86: Number of years for initial return on equity | D86: 10 | E86: 10 | F86: years
B87: =B86+1 -> 46 | C87: Return on Equity - pretax (later years) | D87: 0.24 | E87: 0.24 | F87: %
B88: =B87+1 -> 47 | C88: Post Tax ROE | D88: 0.16 | E88: 0.16 | F88: %
B89: =B88+1 -> 48 | C89: Discount Rate | D89: =(D47*D50*(1-D76))+((1-D47)*D88) -> 0.10668289 | E89: =(E47*E50*(1-E76))+((1-E47)*E88) -> 0.10668289 | F89: %
B90: =B89+1 -> 49 | C90: Annuity Factor | D90: =(((1+D89)^D40-1)/(D89*(1+D89)^D40)) -> 8.62999838 | E90: =(((1+E89)^E40-1)/(E89*(1+E89)^E40)) -> 8.62999838
C91: Fuel
B92: No | C92: Input | D92: Value | E92: Default | F92: Unit
B93: =B90+1 -> 50 | C93: Duration of initial CUF | D93: =D40 -> 25 | E93: =E40 -> 25 | F93: years
B94: =B93+1 -> 51 | C94: CUF for subsequent years | F94: %
B95: =B94+1 -> 52 | C95: Fuel requirement/kWh | D95: 0 | E95: 0 | F95: kg/kWh
B96: =B95+1 -> 53 | C96: Feedstock Price | F96: Rs/MT
B97: =B96+1 -> 54 | C97: Fuel Cost Escalation | F97: %/yr
C98: Clean Energy Benefits
B99: No | C99: Input | D99: Value | E99: Default
B100: =B97+1 -> 55 | C100: Input FIT (depends on state and technology) | D100: 11.16 | E100: 10.39
B101: =B100+1 -> 56 | C101: Emission Factor | D101: 0.9 | E101: 0.9 | F101: tons of CO2/MWh
B102: =B101+1 -> 57 | C102: Price of one CER | D102: 0 | E102: 0 | F102: $/ton
B103: =B102+1 -> 58 | C103: Exchange Rate | D103: 50 | E103: 50 | F103: Rs/US$
C104: REC Inputs
C105: Tranche Start Year → | D105: 2013 | F105: 2018 | H105: 2023 | J105: 2028
D106: Value | E106: % Change | F106: Value | G106: %Change | H106: Value | I106: % Change | J106: Value | K106: %Change
B107: =B103+1 -> 59 | C107: APPC | D107: 3.38 | E107: 0.04 | F107: 4.11228681 | G107: 0.03 | H107: 4.767267485 | I107: 0.03 | J107: 5.526569601 | K107: 0.03
D108: Value | E108: % Sold | F108: Value | G108: % Sold | H108: Value | I108: % Sold | J108: Value | K108: % Sold
B109: =B107+1 -> 60 | C109: REC Floor | D109: 9.8 | E109: 0.2 | F109: 4 | G109: 0.3 | H109: 2 | I109: 0.3 | J109: 1 | K109: 0.3
B110: =B109+1 -> 61 | C110: REC Forbearance | D110: 13.4 | E110: 0 | F110: 8 | G110: 0.2 | H110: 6 | I110: 0.3 | J110: 4 | K110: 0.2
B111: =B110+1 -> 62 | C111: REC Other Price | D111: 10 | E111: 0.4 | F111: 6 | G111: 0.25 | H111: 4 | I111: 0.4 | J111: 2 | K111: 0.4
B112: =B111+1 -> 63 | C112: REC Unsold | D112: 0 | E112: =1-SUM(E109:E111) -> 0.4 | F112: 0 | G112: =1-SUM(G109:G111) -> 0.25 | H112: 0 | I112: =1-SUM(I109:I111) -> 0 | J112: 0 | K112: =1-SUM(K109:K111) -> 0.1
B113: =B112+1 -> 64 | C113: REC Average Price | D113: =SUMPRODUCT(D109:D112,E109:E112) -> 5.96 | E113: =SUM(E109:E112) -> 1 | F113: =SUMPRODUCT(F109:F112,G109:G112) -> 4.3 | G113: =SUM(G109:G112) -> 1 | H113: =SUMPRODUCT(H109:H112,I109:I112) -> 4 | I113: =SUM(I109:I112) -> 1 | J113: =SUMPRODUCT(J109:J112,K109:K112) -> 1.9 | K113: =SUM(K109:K112) -> 1
C124: Off Grid Sensitivity Analysis
C126: No. of HH | D126: Off-grid Solar PV | E126: Grid Extension: Single Phase | F126: Grid Extension: Three Phase | I126: No. Of households/ Distance from Grid
D127: =IF(D19=Lookup_Tables!F34,J4,"") ->  | E127: =IF(D19=Lookup_Tables!F34,L4,"") ->  | F127: =IF(D19=Lookup_Tables!F34,M4,"") ->  | I127: =IF(D19=Lookup_Tables!F34,L4,"") ->  | J127: 2 | K127: 4 | L127: 6 | M127: 8 | N127: 10 | O127: 12 | P127: 14
C128: 25 | D128: 44.49471945 | E128: 58.08815096 | F128: 20.78884854 | I128: 25 | J128: 45.27996291 | K128: 70.896339 | L128: 96.51271509 | M128: 122.1290912 | N128: 147.7454673 | O128: 173.3618434 | P128: 198.9782195
C129: 50 | D129: 40.4005759 | E129: 40.05130192 | F129: 16.11932579 | I129: 50 | J129: 33.2202683 | K129: 46.88233554 | L129: 60.54440279 | M129: 74.20647004 | N129: 87.86853729 | O129: 101.5306045 | P129: 115.1926718
C130: 75 | D130: 38.95919387 | E130: 32.96083806 | F130: 14.53946992 | I130: 75 | J130: 28.30331513 | K130: 37.61836098 | L130: 46.93340684 | M130: 56.24845269 | N130: 65.56349854 | O130: 74.87854439 | P130: 84.19359024
C131: 100 | D131: 38.60604679 | E131: 28.36812858 | F131: 13.51247874 | I131: 100 | J131: 24.83483533 | K131: 31.90142183 | L131: 38.96800834 | M131: 46.03459485 | N131: 53.10118136 | O131: 60.16776787 | P131: 67.23435437
C132: 125 | D132: 39.07939631 | E132: 25.74363368 | F132: 12.92299385 | I132: 125 | J132: 22.89736967 | K132: 28.58989769 | L132: 34.28242571 | M132: 39.97495373 | N132: 45.66748175 | O132: 51.36000978 | P132: 57.0525378
C133: 150 | D133: 38.95006128 | E133: 24.08535148 | F133: 11.90418623 | I133: 150 | J133: 21.64569661 | K133: 26.52500634 | L133: 31.40431608 | M133: 36.28362581 | N133: 41.16293554 | O133: 46.04224527 | P133: 50.921555
C134: 175 | D134: 39.45138322 | E134: 22.7020602 | F134: 11.69385191 | I134: 175 | J134: 20.61092746 | K134: 24.79319294 | L134: 28.97545843 | M134: 33.15772391 | N134: 37.33998939 | O134: 41.52225488 | P134: 45.70452036
C135: 200 | D135: 40.29285849 | E135: 21.90611757 | F135: 13.86261107 | I135: 200 | J135: 20.07637642 | K135: 23.73585872 | L135: 27.39534102 | M135: 31.05482332 | N135: 34.71430562 | O135: 38.37378792 | P135: 42.03327021
C136: 225 | D136: 41.16716149 | E136: 21.12440742 | F136: 13.49349527 | I136: 225 | J136: 19.49797085 | K136: 22.750844 | L136: 26.00371716 | M136: 29.25659031 | N136: 32.50946347 | O136: 35.76233662 | P136: 39.01520977
C137: 250 | D137: 41.78495076 | E137: 20.45219793 | F137: 13.18838342 | I137: 250 | J137: 18.98840501 | K137: 21.91599085 | L137: 24.84357669 | M137: 27.77116253 | N137: 30.69874837 | O137: 33.62633421 | P137: 36.55392005
C138: 275 | D138: 42.73418274 | E138: 19.94479142 | F138: 12.94638895 | I138: 275 | J138: 18.61407058 | K138: 21.27551225 | L138: 23.93695393 | M138: 26.5983956 | N138: 29.25983727 | O138: 31.92127894 | P138: 34.58272061
C139: 300 | D139: 43.37861634 | E139: 20.12236377 | F139: 12.73683647 | I139: 300 | J139: 18.88783962 | K139: 21.35688792 | L139: 23.82593622 | M139: 26.29498451 | N139: 28.76403281 | O139: 31.23308111 | P139: 33.70212941

Sheet Scenarios
E2: Scenario 1 | F2: Scenario 2 | G2: Scenario 3 | H2: Scenario 4 | I2: Scenario 5 | J2: Scenario 6 | K2: Scenario 7 | L2: Scenario 8 | M2: Scenario 9 | N2: Scenario 10
D3: Year →
B4: No | C4: Output | D4: State →
C5: RoE-based FIT w/o AD | D5: Tech →
B6: 1 | C6: Levelized Tariff | D6: Rs/unit
B7: =B6+1 -> 2 | C7: Average DSCR | D7: Rs
B8: =B7+1 -> 3 | C8: MINIMUM DSCR (after 1st year) | D8: Rs
B9: =B8+1 -> 4 | C9: Project IRR-Post Tax | D9: %
B10: =B9+1 -> 5 | C10: Equity IRR (Post Tax) | D10: %
C11: RoE-based FIT with AD
B12: =B10+1 -> 6 | C12: Levelized Tariff | D12: Rs/unit
B13: =B12+1 -> 7 | C13: Average DSCR | D13: Rs
B14: =B13+1 -> 8 | C14: MINIMUM DSCR (after 1st year) | D14: Rs
B15: =B14+1 -> 9 | C15: Project IRR-Post Tax | D15: %
B16: =B15+1 -> 10 | C16: Equity IRR (Post Tax) | D16: %
C17: Input FIT Based
B18: =B16+1 -> 11 | C18: Levelized Tariff | D18: Rs/unit
B19: =B18+1 -> 12 | C19: Average DSCR | D19: Rs
B20: =B19+1 -> 13 | C20: MINIMUM DSCR (after 1st year) | D20: Rs
B21: =B20+1 -> 14 | C21: Project IRR-Post Tax | D21: %
B22: =B21+1 -> 15 | C22: Equity IRR (Post Tax) | D22: %
C23: Based on RECs
B24: =B22+1 -> 16 | C24: Levelized Tariff | D24: Rs/unit
B25: =B24+1 -> 17 | C25: Average DSCR | D25: Rs
B26: =B25+1 -> 18 | C26: MINIMUM DSCR (after 1st year) | D26: Rs
B27: =B26+1 -> 19 | C27: Project IRR-Post Tax | D27: %
B28: =B27+1 -> 20 | C28: Equity IRR (Post Tax) | D28: %
B29: No | C29: Inputs and Assumptions | D29: Unit
B30: 1A | C30: ='Inputs&Summary'!C24 -> Number of Households | D30: ='Inputs&Summary'!F24 -> -
B31: 2A | C31: ='Inputs&Summary'!C25 -> Distance from the Grid | D31: ='Inputs&Summary'!F25 -> kms
B32: 1 | C32: ='Inputs&Summary'!C34 -> Capacity | D32: ='Inputs&Summary'!F34 -> MW
B33: =B32+1 -> 2 | C33: ='Inputs&Summary'!C35 -> Capacity Utilization Factor (CUF)/Plant Load Factor (PLF) | D33: ='Inputs&Summary'!F35 -> %
B34: 3 | C34: ='Inputs&Summary'!C36 -> Annual Gross Generation | D34: ='Inputs&Summary'!F36 -> Lakh kWhs
B35: 4 | C35: ='Inputs&Summary'!C37 -> Auxiliary consumption | D35: ='Inputs&Summary'!F37 -> %
B36: 5 | C36: ='Inputs&Summary'!C38 -> Annual Net Generation | D36: ='Inputs&Summary'!F38 -> Lakh kWhs
B37: 6 | C37: ='Inputs&Summary'!C39 -> Annual Derated Capacity | D37: ='Inputs&Summary'!F39 -> %
B38: 7 | C38: ='Inputs&Summary'!C40 -> Life of Plant and Machinery / Project Life | D38: ='Inputs&Summary'!F40 -> years
B39: 8 | C39: ='Inputs&Summary'!C41 -> CapEx per MW | D39: ='Inputs&Summary'!F41 -> Rs Lacs/MW
B40: 9 | C40: ='Inputs&Summary'!C42 -> O&M cost | D40: ='Inputs&Summary'!F42 -> Rs Lacs / MW
B41: 10 | C41: ='Inputs&Summary'!C43 -> O&M Cost Esclation | D41: ='Inputs&Summary'!F43 -> %
B42: 11 | C42: ='Inputs&Summary'!C44 -> Maintenance spares | D42: ='Inputs&Summary'!F44 -> % of yearly O&M Cost
B43: 12 | C43: ='Inputs&Summary'!C47 -> Debt Fraction | D43: ='Inputs&Summary'!F47 -> %
B44: 13 | C44: ='Inputs&Summary'!C48 -> Debt | D44: ='Inputs&Summary'!F48 -> Rs lacs
B45: 14 | C45: ='Inputs&Summary'!C49 -> Equity | D45: ='Inputs&Summary'!F49 -> Rs lacs
B46: 15 | C46: ='Inputs&Summary'!C50 -> Loan 1 Interest Rate | D46: ='Inputs&Summary'!F50 -> %
B47: 16 | C47: ='Inputs&Summary'!C51 -> Loan 1 Term | D47: ='Inputs&Summary'!F51 -> years
B48: 17 | C48: ='Inputs&Summary'!C52 -> Loan 1 Moratorium | D48: ='Inputs&Summary'!F52 -> years
B49: 18 | C49: ='Inputs&Summary'!C53 -> Loan 1 EMI (True - 1, False - 0) | D49: ='Inputs&Summary'!F53 -> True/False
B50: 19 | C50: ='Inputs&Summary'!C54 -> Loan 2 Principal (0 for single loan) | D50: ='Inputs&Summary'!F54 -> Rs lacs
B51: 20 | C51: ='Inputs&Summary'!C55 -> Loan 2 Interest Rate | D51: ='Inputs&Summary'!F55 -> %
B52: 21 | C52: ='Inputs&Summary'!C56 -> Loan 2 Term | D52: ='Inputs&Summary'!F56 -> years
B53: 22 | C53: ='Inputs&Summary'!C57 -> Loan 2 Moratorium | D53: ='Inputs&Summary'!F57 -> years
B54: 23 | C54: ='Inputs&Summary'!C58 -> Loan 2 EMI (True - 1, False - 0) | D54: ='Inputs&Summary'!F58 -> True/False
B55: 24 | C55: ='Inputs&Summary'!C59 -> Loan 2 Currency Conversion Factor (1 if domestic) | D55: ='Inputs&Summary'!F59 -> Rs/Foreign Currency
B56: 25 | C56: ='Inputs&Summary'!C60 -> Currency Conversion Escalation Rate | D56: ='Inputs&Summary'!F60 -> %/yr
B57: 26 | C57: ='Inputs&Summary'!C61 -> Interest on working capital | D57: ='Inputs&Summary'!F61 -> %
B58: 27 | C58: ='Inputs&Summary'!C64 -> Non - Depreciable Amount | D58: ='Inputs&Summary'!F64 -> % of Capital Cost
B59: 28 | C59: ='Inputs&Summary'!C65 -> Depreciable Amount | D59: ='Inputs&Summary'!F65 -> Rs lacs
B60: 29 | C60: ='Inputs&Summary'!C66 -> Depreciation (SLM, Company Law) - initial years | D60: ='Inputs&Summary'!F66 -> %
B61: 30 | C61: ='Inputs&Summary'!C67 -> Depreciation (SLM, Company Law) - later years | D61: ='Inputs&Summary'!F67 -> %
B62: 31 | C62: ='Inputs&Summary'!C68 -> Number of years for initial depreciation rate | D62: ='Inputs&Summary'!F68 -> years
B63: 32 | C63: ='Inputs&Summary'!C69 -> Number of years for later depreciation rate | D63: ='Inputs&Summary'!F69 -> years
B64: 33 | C64: ='Inputs&Summary'!C70 -> Book depreciation first year | D64: ='Inputs&Summary'!F70 -> %
B65: 34 | C65: ='Inputs&Summary'!C71 -> Book depreciation from second year | D65: ='Inputs&Summary'!F71 -> %
B66: 35 | C66: ='Inputs&Summary'!C72 -> Accelerated Depreciation (AD) first year | D66: ='Inputs&Summary'!F72 -> %
B67: 36 | C67: ='Inputs&Summary'!C73 -> AD from second year | D67: ='Inputs&Summary'!F73 -> %
B68: 37 | C68: ='Inputs&Summary'!C76 -> Corporate Tax Rate | D68: ='Inputs&Summary'!F76 -> %
B69: 38 | C69: ='Inputs&Summary'!C77 -> MAT | D69: ='Inputs&Summary'!F77 -> %
B70: =B69+1 -> 39 | C70: ='Inputs&Summary'!C78 -> Tax Holiday Duration | D70: ='Inputs&Summary'!F78 -> years
B71: 40 | C71: ='Inputs&Summary'!C79 -> Tax Holiday Start Year | D71: ='Inputs&Summary'!F79 -> year
B72: 41 | C72: ='Inputs&Summary'!C80 -> MAT set off allowed u/s 115JAA (3A) | D72: ='Inputs&Summary'!F80 -> years
B73: 42 | C73: ='Inputs&Summary'!C81 -> MAT Setoff Duration | D73: ='Inputs&Summary'!F81 -> years
B74: 43 | C74: ='Inputs&Summary'!C82 -> MAT Setoff Start Year | D74: ='Inputs&Summary'!F82 -> year
B75: 44 | C75: ='Inputs&Summary'!C85 -> Return on Equity - pretax (initial years) | D75: ='Inputs&Summary'!F85 -> %
B76: 45 | C76: ='Inputs&Summary'!C86 -> Number of years for initial return on equity | D76: ='Inputs&Summary'!F86 -> years
B77: 46 | C77: ='Inputs&Summary'!C87 -> Return on Equity - pretax (later years) | D77: ='Inputs&Summary'!F87 -> %
B78: =B77+1 -> 47 | C78: ='Inputs&Summary'!C88 -> Post Tax ROE | D78: ='Inputs&Summary'!F88 -> %
B79: =B78+1 -> 48 | C79: ='Inputs&Summary'!C89 -> Discount Rate | D79: ='Inputs&Summary'!F89 -> %
B80: 49 | C80: ='Inputs&Summary'!C90 -> Annuity Factor | D80: ='Inputs&Summary'!F90 -> 0
B81: =B80+1 -> 50 | C81: ='Inputs&Summary'!C93 -> Duration of initial CUF | D81: ='Inputs&Summary'!F93 -> years
B82: 51 | C82: ='Inputs&Summary'!C94 -> CUF for subsequent years | D82: ='Inputs&Summary'!F94 -> %
B83: 52 | C83: ='Inputs&Summary'!C95 -> Fuel requirement/kWh | D83: ='Inputs&Summary'!F95 -> kg/kWh
B84: 53 | C84: ='Inputs&Summary'!C96 -> Feedstock Price | D84: ='Inputs&Summary'!F96 -> Rs/MT
B85: =B84+1 -> 54 | C85: ='Inputs&Summary'!C97 -> Fuel Cost Escalation | D85: ='Inputs&Summary'!F97 -> %/yr
B86: =B85+1 -> 55 | C86: ='Inputs&Summary'!C100 -> Input FIT (depends on state and technology) | D86: ='Inputs&Summary'!F100 -> 0
B87: =B86+1 -> 56 | C87: ='Inputs&Summary'!C101 -> Emission Factor | D87: ='Inputs&Summary'!F101 -> tons of CO2/MWh
B88: =B87+1 -> 57 | C88: ='Inputs&Summary'!C102 -> Price of one CER | D88: ='Inputs&Summary'!F102 -> $/ton
B89: =B88+1 -> 58 | C89: ='Inputs&Summary'!C103 -> Exchange Rate | D89: ='Inputs&Summary'!F103 -> Rs/US$
B90: =B89+1 -> 59 | C90: Tranche 1 Start Year
B91: 60 | C91: APPC | D91: Rs
B92: 61 | C92: REC Average Price | D92: Rs
B93: =B92+1 -> 62 | C93: Tranche 2 Start Year
B94: 63 | C94: APPC | D94: Rs
B95: 64 | C95: REC Average Price | D95: Rs
B96: =B95+1 -> 65 | C96: Tranche 3 Start Year
B97: 66 | C97: APPC | D97: Rs
B98: 67 | C98: REC Average Price | D98: Rs
B99: =B98+1 -> 68 | C99: Tranche 4 Start Year
B100: =B99+1 -> 69 | C100: APPC | D100: Rs
B101: =B100+1 -> 70 | C101: REC Average Price | D101: Rs

Sheet Off-Grid Sensitivity
A36: Tariff Distribution | D36: Grid 3 Phase | E36: Grid 1 Phase | F36: =TechnologyIP -> Solar PV
A37: Equipment + Distribution Cost | F37: =SUM(Tariff!C52:C54,Tariff!C50)/Tariff!C56 -> 0.8472344542
A38: Distribution Network | D38: =(Grid_Extension_Cost!C40)*(Grid_Extension_Cost!C30+Grid_Extension_Cost!C29)/Grid_Extension_Cost!C38 -> 9.23430706 | E38: =(Grid_Extension_Cost!C56)*(Grid_Extension_Cost!C45+Grid_Extension_Cost!C46)/Grid_Extension_Cost!C54 -> 29.55726864 | F38: =IF(F36="Off-Grid Solar PV",Generation_Distribution!C70,IF(F36="Off-grid Biomass Gasifier", Generation_Distribution!D70,IF(F36="Off-grid Small Hydro",Generation_Distribution!E70,0)))*F37*Tariff!C56 -> 0
A39: O&M | D39: =(Grid_Extension_Cost!C40)*Grid_Extension_Cost!C33/Grid_Extension_Cost!C38 -> 3.476200363 | E39: =(Grid_Extension_Cost!C56)*Grid_Extension_Cost!C49/Grid_Extension_Cost!C54 -> 11.12665924 | F39: =((Tariff!C49+Tariff!C51)/Tariff!C56)*Tariff!C56 -> 1.179058901
A40: Energy Cost | D40: =(Grid_Extension_Cost!C40)*Grid_Extension_Cost!C37/Grid_Extension_Cost!C38 -> 6.083898956 | E40: =(Grid_Extension_Cost!C56)*Grid_Extension_Cost!C53/Grid_Extension_Cost!C54 -> 5.021283953 | F40: =(Tariff!C56*Tariff!C55/Tariff!C56 )+(Tariff!C56*F37-F38) -> 6.539035478

Sheet Sensitivity
C2: Sensitivity of Tariff Outcome with Change in different inputs
B4: Input | C4: Units | D4: Enabled | E4: Base | F4: Min | G4: Max | H4: Min % | I4: Max %
B5: ='Inputs&Summary'!C41 -> CapEx per MW | C5: ='Inputs&Summary'!F41 -> Rs Lacs/MW | D5: N | E5: ='Inputs&Summary'!D41 -> 691 | F5: 587.35 | G5: 794.65 | H5: =IF(D5="Y",(F5-E5)/E5,"") ->  | I5: =IF(D5="Y",(G5-E5)/E5,"") -> 
B6: ='Inputs&Summary'!C42 -> O&M cost | C6: ='Inputs&Summary'!F42 -> Rs Lacs / MW | D6: Y | E6: ='Inputs&Summary'!D42 -> 12.3 | F6: 10.455 | G6: 14.145 | H6: =IF(D6="Y",(F6-E6)/E6,"") -> -0.15 | I6: =IF(D6="Y",(G6-E6)/E6,"") -> 0.15 | J6: 7.244682258 | K6: 7.320539865 | L6: 7.396397472 | M6: 7.47225508 | N6: 7.548112687
B7: PLF/CUF | C7: ='Inputs&Summary'!F35 -> % | D7: Y | E7: ='Inputs&Summary'!D35 -> 0.19 | F7: 0.1615 | G7: 0.2185 | H7: -0.15 | I7: 0.15 | J7: 7.459896847 | K7: 7.425572861 | L7: 7.396397472 | M7: 7.377459062 | N7: 7.360414493
B8: ='Inputs&Summary'!C50 -> Loan 1 Interest Rate | C8: ='Inputs&Summary'!F50 -> % | D8: N | E8: ='Inputs&Summary'!D50 -> 0.127 | F8: 0.10795 | G8: 0.14605
B9: ='Inputs&Summary'!C89 -> Discount Rate | C9: ='Inputs&Summary'!F89 -> % | D9: N | E9: ='Inputs&Summary'!D89 -> 0.10668289 | F9: 0.0906804565 | G9: 0.1226853235
B10: RoE | C10: ='Inputs&Summary'!F85 -> % | D10: N | E10: ='Inputs&Summary'!D85 -> 0.2 | F10: 0.17 | G10: 0.23
B11: ='Inputs&Summary'!C96 -> Feedstock Price | C11: ='Inputs&Summary'!F96 -> Rs/MT | D11: N | E11: ='Inputs&Summary'!D96 -> 0 | F11: 0 | G11: 0 | H11: =IF(D11="Y",IF(E11=0,0,(F11-E11)/E11),"") ->  | I11: =IF(D11="Y",IF(E11=0,1,(G11-E11)/E11),"") -> 
B12: ='Inputs&Summary'!C97 -> Fuel Cost Escalation | C12: ='Inputs&Summary'!F97 -> %/yr | D12: N | E12: ='Inputs&Summary'!D97 -> 0 | F12: 0 | G12: 0 | H12: =IF(D12="Y",IF(E12=0,0,(F12-E12)/E12),"") ->  | I12: =IF(D12="Y",IF(E12=0,1,(G12-E12)/E12),"") -> 
B13: ='Inputs&Summary'!C55 -> Loan 2 Interest Rate | C13: ='Inputs&Summary'!F55 -> % | D13: N | E13: ='Inputs&Summary'!D55 -> 0.1 | F13: 0.085 | G13: 0.115 | H13: =IF(D13="Y",(F13-E13)/E13,"") ->  | I13: =IF(D13="Y",(G13-E13)/E13,"") -> 
B14: PLF/CUF 2 | C14: ='Inputs&Summary'!F94 -> % | D14: N | E14: ='Inputs&Summary'!D94 -> 0 | F14: 0.9 | G14: 0.9 | H14: =IF(D14="Y",(F14-E14)/E14,"") ->  | I14: =IF(D14="Y",(G14-E14)/E14,"") -> 
B15: RoE 2 | C15: ='Inputs&Summary'!F87 -> % | D15: N | E15: ='Inputs&Summary'!D87 -> 0.24 | F15: 0.24 | G15: 0.24
B16: Min Tariff | C16: =MIN(J5:P15) -> 7.244682258 | H16: =MIN(H5:H15) -> -0.15 | I16: =MAX(I5:I15) -> 0.15
B17: Max Tariff | C17: =MAX(J5:P15) -> 7.548112687
B19: Sensitivity Width | C19: 2

Sheet REC-FIT
B2: Renewable Energy Certificates
B4: User Input | C4: Value | D4: Units
B5: State | C5: =StateIP -> CERC
B6: Technology | C6: =TechnologyIP -> Solar PV
B7: Project Start Year | C7: ='Inputs&Summary'!D14 -> 2014 | D7: -
B8: ='Inputs&Summary'!C40 -> Life of Plant and Machinery / Project Life | C8: ='Inputs&Summary'!D40 -> 25 | D8: ='Inputs&Summary'!F40 -> years
B9: ='Inputs&Summary'!C89 -> Discount Rate | C9: ='Inputs&Summary'!D89 -> 0.10668289 | D9: ='Inputs&Summary'!F89 -> %
B10: Annuity Factor for Plant Life | C10: ='Inputs&Summary'!$D$90 -> 8.62999838
B11: FIT at Project Start Year | C11: ='Inputs&Summary'!D100 -> 11.16 | D11: Rs
B12: Tranche Begin Year → | C12: ='Inputs&Summary'!D105 -> 2013 | E12: ='Inputs&Summary'!F105 -> 2018 | G12: ='Inputs&Summary'!H105 -> 2023 | I12: ='Inputs&Summary'!J105 -> 2028
C13: Value | D13: Rate of Change | E13: Value | F13: Rate of Change | G13: Value | H13: Rate of Change | I13: Value | J13: Rate of Change
B14: APPC | C14: ='Inputs&Summary'!D107 -> 3.38 | D14: ='Inputs&Summary'!E107 -> 0.04 | E14: ='Inputs&Summary'!F107 -> 4.11228681 | F14: ='Inputs&Summary'!G107 -> 0.03 | G14: ='Inputs&Summary'!H107 -> 4.767267485 | H14: ='Inputs&Summary'!I107 -> 0.03 | I14: ='Inputs&Summary'!J107 -> 5.526569601 | J14: ='Inputs&Summary'!K107 -> 0.03
C15: Value | D15: % Sold | E15: Value | F15: % Sold | G15: Value | H15: % Sold | I15: Value | J15: % Sold
B16: REC Average Price | C16: ='Inputs&Summary'!D113 -> 5.96 | D16: ='Inputs&Summary'!E113 -> 1 | E16: ='Inputs&Summary'!F113 -> 4.3 | F16: ='Inputs&Summary'!G113 -> 1 | G16: ='Inputs&Summary'!H113 -> 4 | H16: ='Inputs&Summary'!I113 -> 1 | I16: ='Inputs&Summary'!J113 -> 1.9 | J16: ='Inputs&Summary'!K113 -> 1
C19: =C7 -> 2014 | D19: =C19+1 -> 2015 | E19: 2016 | F19: 2017 | G19: 2018 | H19: 2019 | I19: 2020 | J19: 2021 | K19: 2022 | L19: 2023 | M19: 2024 | N19: 2025 | O19: 2026 | P19: 2027 | Q19: 2028 | R19: 2029 | S19: 2030 | T19: 2031 | U19: 2032 | V19: 2033 | W19: 2034 | X19: 2035 | Y19: 2036 | Z19: 2037 | AA19: 2038 | AB19: 2039 | AC19: 2040 | AD19: 2041 | AE19: 2042 | AF19: 2043 | AG19: 2044 | AH19: 2045 | AI19: 2046 | AJ19: 2047 | AK19: 2048 | AL19: 2049 | AM19: 2050 | AN19: 2051 | AO19: 2052 | AP19: 2053
B20: APPC | C20: =IF($C$7+$C$8>C$19,IF(C19<$E$12,$C$14*(1+$D$14)^(C19-$C$12),IF(C19<$G$12,$E$14*(1+$F$14)^(C19-$E$12),IF(C19<$I$12,$G$14*(1+$H$14)^(C19-$G$12),$I$14*(1+$J$14)^(C19-$I$12)))),0) -> 3.5152 | D20: 3.655808 | E20: 3.80204032 | F20: 3.954121933 | G20: 4.11228681 | H20: 4.235655414 | I20: 4.362725077 | J20: 4.493606829 | K20: 4.628415034 | L20: 4.767267485 | M20: 4.91028551 | N20: 5.057594075 | O20: 5.209321897 | P20: 5.365601554 | Q20: 5.526569601 | R20: 5.692366689 | S20: 5.863137689 | T20: 6.03903182 | U20: 6.220202775 | V20: 6.406808858 | W20: 6.599013124 | X20: 6.796983517 | Y20: 7.000893023 | Z20: 7.210919814 | AA20: 7.427247408 | AB20: 0 | AC20: 0 | AD20: 0 | AE20: 0 | AF20: 0 | AG20: 0 | AH20: 0 | AI20: 0 | AJ20: 0 | AK20: 0 | AL20: 0 | AM20: 0 | AN20: 0 | AO20: 0 | AP20: 0
B21: Feed-in Tariff | C21: =IF($C$7+$C$8>C$19,$C$11,0) -> 11.16 | D21: 11.16 | E21: 11.16 | F21: 11.16 | G21: 11.16 | H21: 11.16 | I21: 11.16 | J21: 11.16 | K21: 11.16 | L21: 11.16 | M21: 11.16 | N21: 11.16 | O21: 11.16 | P21: 11.16 | Q21: 11.16 | R21: 11.16 | S21: 11.16 | T21: 11.16 | U21: 11.16 | V21: 11.16 | W21: 11.16 | X21: 11.16 | Y21: 11.16 | Z21: 11.16 | AA21: 11.16 | AB21: 0 | AC21: 0 | AD21: 0 | AE21: 0 | AF21: 0 | AG21: 0 | AH21: 0 | AI21: 0 | AJ21: 0 | AK21: 0 | AL21: 0 | AM21: 0 | AN21: 0 | AO21: 0 | AP21: 0
B22: REC Price | C22: =IF($C$7+$C$8>C$19,IF(C19<$E$12,$C$16*$D$16,IF(C19<$G$12,$E$16*$F$16,IF(C19<$I$12,$G$16*$H$16,$I$16*$J$16))),0) -> 5.96 | D22: 5.96 | E22: 5.96 | F22: 5.96 | G22: 4.3 | H22: 4.3 | I22: 4.3 | J22: 4.3 | K22: 4.3 | L22: =IF($C$7+$C$8>L$19,IF(L19<$E$12,$C$16*$D$16,IF(L19<$G$12,$E$16*$F$16,IF(L19<$I$12,$G$16*$H$16,$I$16*$J$16))),0) -> 4 | M22: 4 | N22: 4 | O22: 4 | P22: 4 | Q22: 1.9 | R22: 1.9 | S22: 1.9 | T22: 1.9 | U22: 1.9 | V22: 1.9 | W22: 1.9 | X22: 1.9 | Y22: 1.9 | Z22: 1.9 | AA22: 1.9 | AB22: 0 | AC22: 0 | AD22: 0 | AE22: 0 | AF22: 0 | AG22: 0 | AH22: 0 | AI22: 0 | AJ22: 0 | AK22: 0 | AL22: 0 | AM22: 0 | AN22: 0 | AO22: 0 | AP22: 0
B23: APPC+REC Price | C23: =C20+C22 -> 9.4752 | D23: 9.615808 | E23: 9.76204032 | F23: 9.914121933 | G23: 8.41228681 | H23: 8.535655414 | I23: 8.662725077 | J23: 8.793606829 | K23: 8.928415034 | L23: 8.767267485 | M23: 8.91028551 | N23: 9.057594075 | O23: 9.209321897 | P23: 9.365601554 | Q23: 7.426569601 | R23: 7.592366689 | S23: 7.763137689 | T23: 7.93903182 | U23: 8.120202775 | V23: 8.306808858 | W23: 8.499013124 | X23: 8.696983517 | Y23: 8.900893023 | Z23: 9.110919814 | AA23: 9.327247408 | AB23: 0 | AC23: 0 | AD23: 0 | AE23: 0 | AF23: 0 | AG23: 0 | AH23: 0 | AI23: 0 | AJ23: 0 | AK23: 0 | AL23: 0 | AM23: 0 | AN23: 0 | AO23: 0 | AP23: 0
B25: Base Year Average NPV
B26: Feed-in Tariff | C26: =NPV($C$9,C21:AP21)/$C$10 -> 11.16
B27: APPC+REC Price | C27: =NPV($C$9,C23:AP23)/$C$10 -> 8.99523159
B47: Other

Sheet Term Loan 1
I2: Term Loan Payments
B3: Inputs | C3: Value | D3: Units
B4: State | C4: =StateIP -> CERC
B5: Technology | C5: =TechnologyIP -> Solar PV
B6: Project Start Year | C6: ='Inputs&Summary'!D14 -> 2014 | D6: -
B7: Loan amount | C7: ='Inputs&Summary'!D48-'Inputs&Summary'!D54 -> 483.7 | D7: ='Inputs&Summary'!F48 -> Rs lacs
B8: Interest Rate | C8: ='Inputs&Summary'!D50 -> 0.127 | D8: ='Inputs&Summary'!F50 -> %
B9: ='Inputs&Summary'!C51 -> Loan 1 Term | C9: ='Inputs&Summary'!D51 -> 12 | D9: ='Inputs&Summary'!F51 -> years
B10: Moratorium | C10: ='Inputs&Summary'!D52 -> 0 | D10: ='Inputs&Summary'!F52 -> years
B11: EMI? | C11: ='Inputs&Summary'!D53 -> 0 | D11: ='Inputs&Summary'!F53 -> True/False
B12: No of installments for principal payment | C12: =(C9-C10)*12 -> 144 | D12: Months
B13: Equal Monthly Principal payment | C13: =C7/C12 -> 3.359027778 | D13: =D7 -> Rs lacs
B14: EMI (Equal Monthly Installment) | C14: =-PMT($C$8/12,$C$12,$C$7,0,0) -> 6.559577656 | D14: =D7 -> Rs lacs
B16: TERM LOAN REPAYMENT Details | C16: =C6 -> 2014 | D16: =C16+1 -> 2015 | E16: =D16+1 -> 2016 | F16: 2017 | G16: 2018 | H16: 2019 | I16: 2020 | J16: 2021 | K16: 2022 | L16: 2023 | M16: 2024 | N16: 2025 | O16: 2026 | P16: 2027 | Q16: 2028 | R16: 2029 | S16: 2030 | T16: 2031 | U16: 2032 | V16: 2033 | W16: 2034 | X16: 2035 | Y16: 2036 | Z16: 2037 | AA16: 2038 | AB16: 2039 | AC16: 2040 | AD16: 2041 | AE16: 2042 | AF16: 2043 | AG16: 2044 | AH16: 2045 | AI16: 2046 | AJ16: 2047 | AK16: 2048 | AL16: 2049 | AM16: =AL16+1 -> 2050 | AN16: 2051 | AO16: 2052 | AP16: 2053
B17: Instalment-Month 1 | C17: =IF($C$6+$C$10>C$16,0,IF($C$11,$C$14-C45,$C$13)) -> 3.359027778 | D17: =IF(OR($C$6+$C$10>D$16,C$30+0.001>=$C$7),0,IF($C$11,$C$14-D45,$C$13)) -> 3.359027778 | E17: =IF(OR($C$6+$C$10>E$16,D$30+0.001>=$C$7),0,IF($C$11,$C$14-E45,$C$13)) -> 3.359027778 | F17: 3.359027778 | G17: 3.359027778 | H17: 3.359027778 | I17: 3.359027778 | J17: 3.359027778 | K17: 3.359027778 | L17: 3.359027778 | M17: 3.359027778 | N17: 3.359027778 | O17: 0 | P17: 0 | Q17: 0 | R17: 0 | S17: 0 | T17: 0 | U17: 0 | V17: 0 | W17: 0 | X17: 0 | Y17: 0 | Z17: 0 | AA17: 0 | AB17: 0 | AC17: 0 | AD17: 0 | AE17: 0 | AF17: 0 | AG17: 0 | AH17: 0 | AI17: 0 | AJ17: 0 | AK17: 0 | AL17: 0 | AM17: 0 | AN17: 0 | AO17: 0 | AP17: 0
B18: Instalment-Month 2 | C18: =IF($C$6+$C$10>C$16,0,IF($C$11,$C$14-C46,$C$13)) -> 3.359027778 | D18: 3.359027778 | E18: =IF(OR($C$6+$C$10>E$16,D$30+0.001>=$C$7),0,IF($C$11,$C$14-E46,$C$13)) -> 3.359027778 | F18: 3.359027778 | G18: 3.359027778 | H18: 3.359027778 | I18: 3.359027778 | J18: 3.359027778 | K18: 3.359027778 | L18: 3.359027778 | M18: 3.359027778 | N18: 3.359027778 | O18: 0 | P18: 0 | Q18: 0 | R18: 0 | S18: 0 | T18: 0 | U18: 0 | V18: 0 | W18: 0 | X18: 0 | Y18: 0 | Z18: 0 | AA18: 0 | AB18: 0 | AC18: 0 | AD18: 0 | AE18: 0 | AF18: 0 | AG18: 0 | AH18: 0 | AI18: 0 | AJ18: 0 | AK18: 0 | AL18: 0 | AM18: 0 | AN18: 0 | AO18: 0 | AP18: 0
B19: Instalment-Month 3 | C19: 3.359027778 | D19: 3.359027778 | E19: 3.359027778 | F19: 3.359027778 | G19: 3.359027778 | H19: 3.359027778 | I19: 3.359027778 | J19: 3.359027778 | K19: 3.359027778 | L19: 3.359027778 | M19: 3.359027778 | N19: 3.359027778 | O19: 0 | P19: 0 | Q19: 0 | R19: 0 | S19: 0 | T19: 0 | U19: 0 | V19: 0 | W19: 0 | X19: 0 | Y19: 0 | Z19: 0 | AA19: 0 | AB19: 0 | AC19: 0 | AD19: 0 | AE19: 0 | AF19: 0 | AG19: 0 | AH19: 0 | AI19: 0 | AJ19: 0 | AK19: 0 | AL19: 0 | AM19: 0 | AN19: 0 | AO19: 0 | AP19: 0
B20: Instalment-Month 4 | C20: 3.359027778 | D20: 3.359027778 | E20: 3.359027778 | F20: 3.359027778 | G20: 3.359027778 | H20: 3.359027778 | I20: 3.359027778 | J20: 3.359027778 | K20: 3.359027778 | L20: 3.359027778 | M20: 3.359027778 | N20: 3.359027778 | O20: 0 | P20: 0 | Q20: 0 | R20: 0 | S20: 0 | T20: 0 | U20: 0 | V20: 0 | W20: 0 | X20: 0 | Y20: 0 | Z20: 0 | AA20: 0 | AB20: 0 | AC20: 0 | AD20: 0 | AE20: 0 | AF20: 0 | AG20: 0 | AH20: 0 | AI20: 0 | AJ20: 0 | AK20: 0 | AL20: 0 | AM20: 0 | AN20: 0 | AO20: 0 | AP20: 0
B21: Instalment-Month 5 | C21: 3.359027778 | D21: 3.359027778 | E21: 3.359027778 | F21: 3.359027778 | G21: 3.359027778 | H21: 3.359027778 | I21: 3.359027778 | J21: 3.359027778 | K21: 3.359027778 | L21: 3.359027778 | M21: 3.359027778 | N21: 3.359027778 | O21: 0 | P21: 0 | Q21: 0 | R21: 0 | S21: 0 | T21: 0 | U21: 0 | V21: 0 | W21: 0 | X21: 0 | Y21: 0 | Z21: 0 | AA21: 0 | AB21: 0 | AC21: 0 | AD21: 0 | AE21: 0 | AF21: 0 | AG21: 0 | AH21: 0 | AI21: 0 | AJ21: 0 | AK21: 0 | AL21: 0 | AM21: 0 | AN21: 0 | AO21: 0 | AP21: 0
B22: Instalment-Month 6 | C22: 3.359027778 | D22: 3.359027778 | E22: 3.359027778 | F22: 3.359027778 | G22: 3.359027778 | H22: 3.359027778 | I22: 3.359027778 | J22: 3.359027778 | K22: 3.359027778 | L22: 3.359027778 | M22: 3.359027778 | N22: 3.359027778 | O22: 0 | P22: 0 | Q22: 0 | R22: 0 | S22: 0 | T22: 0 | U22: 0 | V22: 0 | W22: 0 | X22: 0 | Y22: 0 | Z22: 0 | AA22: 0 | AB22: 0 | AC22: 0 | AD22: 0 | AE22: 0 | AF22: 0 | AG22: 0 | AH22: 0 | AI22: 0 | AJ22: 0 | AK22: 0 | AL22: 0 | AM22: 0 | AN22: 0 | AO22: 0 | AP22: 0
B23: Instalment-Month 7 | C23: 3.359027778 | D23: 3.359027778 | E23: 3.359027778 | F23: 3.359027778 | G23: 3.359027778 | H23: 3.359027778 | I23: 3.359027778 | J23: 3.359027778 | K23: 3.359027778 | L23: 3.359027778 | M23: 3.359027778 | N23: 3.359027778 | O23: 0 | P23: 0 | Q23: 0 | R23: 0 | S23: 0 | T23: 0 | U23: 0 | V23: 0 | W23: 0 | X23: 0 | Y23: 0 | Z23: 0 | AA23: 0 | AB23: 0 | AC23: 0 | AD23: 0 | AE23: 0 | AF23: 0 | AG23: 0 | AH23: 0 | AI23: 0 | AJ23: 0 | AK23: 0 | AL23: 0 | AM23: 0 | AN23: 0 | AO23: 0 | AP23: 0
B24: Instalment-Month 8 | C24: 3.359027778 | D24: 3.359027778 | E24: 3.359027778 | F24: 3.359027778 | G24: 3.359027778 | H24: 3.359027778 | I24: =IF(OR($C$6+$C$10>I$16,H$30+0.001>=$C$7),0,IF($C$11,$C$14-I52,$C$13)) -> 3.359027778 | J24: 3.359027778 | K24: 3.359027778 | L24: 3.359027778 | M24: 3.359027778 | N24: 3.359027778 | O24: 0 | P24: 0 | Q24: 0 | R24: 0 | S24: 0 | T24: 0 | U24: 0 | V24: 0 | W24: 0 | X24: 0 | Y24: 0 | Z24: 0 | AA24: 0 | AB24: 0 | AC24: 0 | AD24: 0 | AE24: 0 | AF24: 0 | AG24: 0 | AH24: 0 | AI24: 0 | AJ24: 0 | AK24: 0 | AL24: 0 | AM24: 0 | AN24: 0 | AO24: 0 | AP24: 0
B25: Instalment-Month 9 | C25: 3.359027778 | D25: 3.359027778 | E25: 3.359027778 | F25: 3.359027778 | G25: 3.359027778 | H25: 3.359027778 | I25: 3.359027778 | J25: 3.359027778 | K25: 3.359027778 | L25: 3.359027778 | M25: 3.359027778 | N25: 3.359027778 | O25: 0 | P25: 0 | Q25: 0 | R25: 0 | S25: 0 | T25: 0 | U25: 0 | V25: 0 | W25: 0 | X25: 0 | Y25: 0 | Z25: 0 | AA25: 0 | AB25: 0 | AC25: 0 | AD25: 0 | AE25: 0 | AF25: 0 | AG25: 0 | AH25: 0 | AI25: 0 | AJ25: 0 | AK25: 0 | AL25: 0 | AM25: 0 | AN25: 0 | AO25: 0 | AP25: 0
B26: Instalment-Month 10 | C26: 3.359027778 | D26: 3.359027778 | E26: 3.359027778 | F26: 3.359027778 | G26: 3.359027778 | H26: 3.359027778 | I26: 3.359027778 | J26: 3.359027778 | K26: 3.359027778 | L26: 3.359027778 | M26: 3.359027778 | N26: 3.359027778 | O26: 0 | P26: 0 | Q26: 0 | R26: 0 | S26: 0 | T26: 0 | U26: 0 | V26: 0 | W26: 0 | X26: 0 | Y26: 0 | Z26: 0 | AA26: 0 | AB26: 0 | AC26: 0 | AD26: 0 | AE26: 0 | AF26: 0 | AG26: 0 | AH26: 0 | AI26: 0 | AJ26: 0 | AK26: 0 | AL26: 0 | AM26: 0 | AN26: 0 | AO26: 0 | AP26: 0
B27: Instalment-Month 11 | C27: 3.359027778 | D27: 3.359027778 | E27: 3.359027778 | F27: 3.359027778 | G27: 3.359027778 | H27: 3.359027778 | I27: 3.359027778 | J27: 3.359027778 | K27: 3.359027778 | L27: 3.359027778 | M27: 3.359027778 | N27: 3.359027778 | O27: 0 | P27: 0 | Q27: 0 | R27: 0 | S27: 0 | T27: 0 | U27: 0 | V27: 0 | W27: 0 | X27: 0 | Y27: 0 | Z27: 0 | AA27: 0 | AB27: 0 | AC27: 0 | AD27: 0 | AE27: 0 | AF27: 0 | AG27: 0 | AH27: 0 | AI27: 0 | AJ27: 0 | AK27: 0 | AL27: 0 | AM27: 0 | AN27: 0 | AO27: 0 | AP27: 0
B28: Instalment-Month 12 | C28: 3.359027778 | D28: 3.359027778 | E28: 3.359027778 | F28: 3.359027778 | G28: 3.359027778 | H28: 3.359027778 | I28: 3.359027778 | J28: 3.359027778 | K28: 3.359027778 | L28: 3.359027778 | M28: 3.359027778 | N28: 3.359027778 | O28: 0 | P28: 0 | Q28: 0 | R28: 0 | S28: 0 | T28: 0 | U28: 0 | V28: 0 | W28: 0 | X28: 0 | Y28: 0 | Z28: 0 | AA28: 0 | AB28: 0 | AC28: 0 | AD28: 0 | AE28: 0 | AF28: 0 | AG28: 0 | AH28: 0 | AI28: 0 | AJ28: 0 | AK28: 0 | AL28: 0 | AM28: 0 | AN28: 0 | AO28: 0 | AP28: 0
B29: Total installment | C29: =SUM(C17:C28) -> 40.30833333 | D29: =SUM(D17:D28) -> 40.30833333 | E29: =SUM(E17:E28) -> 40.30833333 | F29: 40.30833333 | G29: 40.30833333 | H29: 40.30833333 | I29: 40.30833333 | J29: 40.30833333 | K29: 40.30833333 | L29: 40.30833333 | M29: =SUM(M17:M28) -> 40.30833333 | N29: 40.30833333 | O29: 0 | P29: 0 | Q29: 0 | R29: 0 | S29: 0 | T29: 0 | U29: 0 | V29: 0 | W29: 0 | X29: 0 | Y29: 0 | Z29: 0 | AA29: 0 | AB29: 0 | AC29: 0 | AD29: 0 | AE29: 0 | AF29: 0 | AG29: 0 | AH29: 0 | AI29: 0 | AJ29: 0 | AK29: 0 | AL29: 0 | AM29: 0 | AN29: 0 | AO29: 0 | AP29: 0
B30: Cumulative Principal Payment | C30: =C29 -> 40.30833333 | D30: =C30+D29 -> 80.61666667 | E30: 120.925 | F30: 161.2333333 | G30: 201.5416667 | H30: 241.85 | I30: 282.1583333 | J30: 322.4666667 | K30: 362.775 | L30: 403.0833333 | M30: =L30+M29 -> 443.3916667 | N30: 483.7 | O30: 483.7 | P30: 483.7 | Q30: 483.7 | R30: 483.7 | S30: 483.7 | T30: 483.7 | U30: 483.7 | V30: 483.7 | W30: 483.7 | X30: =W30+X29 -> 483.7 | Y30: 483.7 | Z30: 483.7 | AA30: 483.7 | AB30: 483.7 | AC30: 483.7 | AD30: 483.7 | AE30: 483.7 | AF30: 483.7 | AG30: 483.7 | AH30: 483.7 | AI30: 483.7 | AJ30: 483.7 | AK30: 483.7 | AL30: 483.7 | AM30: 483.7 | AN30: 483.7 | AO30: 483.7 | AP30: 483.7
B31: Outstanding Principal
B32: Outstanding-Month 1 | C32: =$C$7 -> 483.7 | D32: =IF(C43-C28>0.001,C43-C28,0) -> 443.3916667 | E32: =IF(D43-D28>0.001,D43-D28,0) -> 403.0833333 | F32: 362.775 | G32: 322.4666667 | H32: 282.1583333 | I32: 241.85 | J32: 201.5416667 | K32: 161.2333333 | L32: 120.925 | M32: 80.61666667 | N32: 40.30833333 | O32: 0 | P32: 0 | Q32: 0 | R32: 0 | S32: 0 | T32: 0 | U32: 0 | V32: 0 | W32: 0 | X32: 0 | Y32: 0 | Z32: 0 | AA32: 0 | AB32: 0 | AC32: 0 | AD32: 0 | AE32: 0 | AF32: 0 | AG32: 0 | AH32: 0 | AI32: 0 | AJ32: 0 | AK32: 0 | AL32: 0 | AM32: 0 | AN32: 0 | AO32: 0 | AP32: 0
B33: Outstanding-Month 2 | C33: =MAX(C32-C17,0) -> 480.3409722 | D33: =MAX(D32-D17,0) -> 440.0326389 | E33: 399.7243056 | F33: 359.4159722 | G33: 319.1076389 | H33: 278.7993056 | I33: 238.4909722 | J33: 198.1826389 | K33: 157.8743056 | L33: 117.5659722 | M33: 77.25763889 | N33: 36.94930556 | O33: 0 | P33: 0 | Q33: 0 | R33: 0 | S33: 0 | T33: 0 | U33: 0 | V33: 0 | W33: 0 | X33: 0 | Y33: 0 | Z33: 0 | AA33: 0 | AB33: 0 | AC33: 0 | AD33: 0 | AE33: 0 | AF33: 0 | AG33: 0 | AH33: 0 | AI33: 0 | AJ33: 0 | AK33: 0 | AL33: 0 | AM33: 0 | AN33: 0 | AO33: 0 | AP33: 0
B34: Outstanding-Month 3 | C34: 476.9819444 | D34: =MAX(D33-D18,0) -> 436.6736111 | E34: 396.3652778 | F34: 356.0569444 | G34: 315.7486111 | H34: 275.4402778 | I34: 235.1319444 | J34: 194.8236111 | K34: 154.5152778 | L34: 114.2069444 | M34: 73.89861111 | N34: 33.59027778 | O34: 0 | P34: 0 | Q34: 0 | R34: 0 | S34: 0 | T34: 0 | U34: 0 | V34: 0 | W34: 0 | X34: 0 | Y34: 0 | Z34: 0 | AA34: 0 | AB34: 0 | AC34: 0 | AD34: 0 | AE34: 0 | AF34: 0 | AG34: 0 | AH34: 0 | AI34: 0 | AJ34: 0 | AK34: 0 | AL34: 0 | AM34: 0 | AN34: 0 | AO34: 0 | AP34: 0
B35: Outstanding-Month 4 | C35: 473.6229167 | D35: =MAX(D34-D19,0) -> 433.3145833 | E35: 393.00625 | F35: 352.6979167 | G35: 312.3895833 | H35: 272.08125 | I35: 231.7729167 | J35: 191.4645833 | K35: 151.15625 | L35: 110.8479167 | M35: 70.53958333 | N35: 30.23125 | O35: 0 | P35: 0 | Q35: 0 | R35: 0 | S35: 0 | T35: 0 | U35: 0 | V35: 0 | W35: 0 | X35: 0 | Y35: 0 | Z35: 0 | AA35: 0 | AB35: 0 | AC35: 0 | AD35: 0 | AE35: 0 | AF35: 0 | AG35: 0 | AH35: 0 | AI35: 0 | AJ35: 0 | AK35: 0 | AL35: 0 | AM35: 0 | AN35: 0 | AO35: 0 | AP35: 0
B36: Outstanding-Month 5 | C36: 470.2638889 | D36: =MAX(D35-D20,0) -> 429.9555556 | E36: 389.6472222 | F36: 349.3388889 | G36: 309.0305556 | H36: 268.7222222 | I36: 228.4138889 | J36: 188.1055556 | K36: 147.7972222 | L36: 107.4888889 | M36: 67.18055556 | N36: 26.87222222 | O36: 0 | P36: 0 | Q36: 0 | R36: 0 | S36: 0 | T36: 0 | U36: 0 | V36: 0 | W36: 0 | X36: 0 | Y36: 0 | Z36: 0 | AA36: 0 | AB36: 0 | AC36: 0 | AD36: 0 | AE36: 0 | AF36: 0 | AG36: 0 | AH36: 0 | AI36: 0 | AJ36: 0 | AK36: 0 | AL36: 0 | AM36: 0 | AN36: 0 | AO36: 0 | AP36: 0
B37: Outstanding-Month 6 | C37: 466.9048611 | D37: =MAX(D36-D21,0) -> 426.5965278 | E37: 386.2881944 | F37: 345.9798611 | G37: 305.6715278 | H37: 265.3631944 | I37: 225.0548611 | J37: 184.7465278 | K37: 144.4381944 | L37: 104.1298611 | M37: 63.82152778 | N37: 23.51319444 | O37: 0 | P37: 0 | Q37: 0 | R37: 0 | S37: 0 | T37: 0 | U37: 0 | V37: 0 | W37: 0 | X37: 0 | Y37: 0 | Z37: 0 | AA37: 0 | AB37: 0 | AC37: 0 | AD37: 0 | AE37: 0 | AF37: 0 | AG37: 0 | AH37: 0 | AI37: 0 | AJ37: 0 | AK37: 0 | AL37: 0 | AM37: 0 | AN37: 0 | AO37: 0 | AP37: 0
B38: Outstanding-Month 7 | C38: 463.5458333 | D38: =MAX(D37-D22,0) -> 423.2375 | E38: 382.9291667 | F38: 342.6208333 | G38: 302.3125 | H38: 262.0041667 | I38: 221.6958333 | J38: 181.3875 | K38: 141.0791667 | L38: 100.7708333 | M38: 60.4625 | N38: 20.15416667 | O38: 0 | P38: 0 | Q38: 0 | R38: 0 | S38: 0 | T38: 0 | U38: 0 | V38: 0 | W38: 0 | X38: 0 | Y38: 0 | Z38: 0 | AA38: 0 | AB38: 0 | AC38: 0 | AD38: 0 | AE38: 0 | AF38: 0 | AG38: 0 | AH38: 0 | AI38: 0 | AJ38: 0 | AK38: 0 | AL38: 0 | AM38: 0 | AN38: 0 | AO38: 0 | AP38: 0
B39: Outstanding-Month 8 | C39: 460.1868056 | D39: =MAX(D38-D23,0) -> 419.8784722 | E39: 379.5701389 | F39: 339.2618056 | G39: 298.9534722 | H39: 258.6451389 | I39: 218.3368056 | J39: 178.0284722 | K39: 137.7201389 | L39: 97.41180556 | M39: 57.10347222 | N39: 16.79513889 | O39: 0 | P39: 0 | Q39: 0 | R39: 0 | S39: 0 | T39: 0 | U39: 0 | V39: 0 | W39: 0 | X39: 0 | Y39: 0 | Z39: 0 | AA39: 0 | AB39: 0 | AC39: 0 | AD39: 0 | AE39: 0 | AF39: 0 | AG39: 0 | AH39: 0 | AI39: 0 | AJ39: 0 | AK39: 0 | AL39: 0 | AM39: 0 | AN39: 0 | AO39: 0 | AP39: 0
B40: Outstanding-Month 9 | C40: 456.8277778 | D40: =MAX(D39-D24,0) -> 416.5194444 | E40: 376.2111111 | F40: 335.9027778 | G40: 295.5944444 | H40: 255.2861111 | I40: 214.9777778 | J40: 174.6694444 | K40: 134.3611111 | L40: 94.05277778 | M40: 53.74444444 | N40: 13.43611111 | O40: 0 | P40: 0 | Q40: 0 | R40: 0 | S40: 0 | T40: 0 | U40: 0 | V40: 0 | W40: 0 | X40: 0 | Y40: 0 | Z40: 0 | AA40: 0 | AB40: 0 | AC40: 0 | AD40: 0 | AE40: 0 | AF40: 0 | AG40: 0 | AH40: 0 | AI40: 0 | AJ40: 0 | AK40: 0 | AL40: 0 | AM40: 0 | AN40: 0 | AO40: 0 | AP40: 0
B41: Outstanding-Month 10 | C41: 453.46875 | D41: =MAX(D40-D25,0) -> 413.1604167 | E41: 372.8520833 | F41: 332.54375 | G41: 292.2354167 | H41: 251.9270833 | I41: 211.61875 | J41: 171.3104167 | K41: 131.0020833 | L41: 90.69375 | M41: 50.38541667 | N41: 10.07708333 | O41: 0 | P41: 0 | Q41: 0 | R41: 0 | S41: 0 | T41: 0 | U41: 0 | V41: 0 | W41: 0 | X41: 0 | Y41: 0 | Z41: 0 | AA41: 0 | AB41: 0 | AC41: 0 | AD41: 0 | AE41: 0 | AF41: 0 | AG41: 0 | AH41: 0 | AI41: 0 | AJ41: 0 | AK41: 0 | AL41: 0 | AM41: 0 | AN41: 0 | AO41: 0 | AP41: 0
B42: Outstanding-Month 11 | C42: 450.1097222 | D42: =MAX(D41-D26,0) -> 409.8013889 | E42: 369.4930556 | F42: 329.1847222 | G42: 288.8763889 | H42: 248.5680556 | I42: 208.2597222 | J42: 167.9513889 | K42: 127.6430556 | L42: 87.33472222 | M42: 47.02638889 | N42: 6.718055556 | O42: 0 | P42: 0 | Q42: 0 | R42: 0 | S42: 0 | T42: 0 | U42: 0 | V42: 0 | W42: 0 | X42: 0 | Y42: 0 | Z42: 0 | AA42: 0 | AB42: 0 | AC42: 0 | AD42: 0 | AE42: 0 | AF42: 0 | AG42: 0 | AH42: 0 | AI42: 0 | AJ42: 0 | AK42: 0 | AL42: 0 | AM42: 0 | AN42: 0 | AO42: 0 | AP42: 0
B43: Outstanding-Month 12 | C43: 446.7506944 | D43: =MAX(D42-D27,0) -> 406.4423611 | E43: 366.1340278 | F43: 325.8256944 | G43: 285.5173611 | H43: 245.2090278 | I43: 204.9006944 | J43: 164.5923611 | K43: 124.2840278 | L43: 83.97569444 | M43: 43.66736111 | N43: 3.359027778 | O43: 0 | P43: 0 | Q43: 0 | R43: 0 | S43: 0 | T43: 0 | U43: 0 | V43: 0 | W43: 0 | X43: 0 | Y43: 0 | Z43: 0 | AA43: 0 | AB43: 0 | AC43: 0 | AD43: 0 | AE43: 0 | AF43: 0 | AG43: 0 | AH43: 0 | AI43: 0 | AJ43: 0 | AK43: 0 | AL43: 0 | AM43: 0 | AN43: 0 | AO43: 0 | AP43: 0
B44: Interest payments
B45: interest-Month 1 | C45: =IF($C$11,C32*$C$8/12,AVERAGE(C32,C33)*$C$8/12) -> 5.101383478 | D45: =IF($C$11,D32*$C$8/12,AVERAGE(D32,D33)*$C$8/12) -> 4.67478695 | E45: 4.248190422 | F45: 3.821593895 | G45: 3.394997367 | H45: 2.968400839 | I45: 2.541804311 | J45: 2.115207784 | K45: 1.688611256 | L45: 1.262014728 | M45: 0.8354182002 | N45: 0.4088216725 | O45: 0 | P45: 0 | Q45: 0 | R45: 0 | S45: 0 | T45: 0 | U45: 0 | V45: 0 | W45: 0 | X45: 0 | Y45: 0 | Z45: 0 | AA45: 0 | AB45: 0 | AC45: 0 | AD45: 0 | AE45: 0 | AF45: 0 | AG45: 0 | AH45: 0 | AI45: 0 | AJ45: 0 | AK45: 0 | AL45: 0 | AM45: 0 | AN45: 0 | AO45: 0 | AP45: 0
B46: interest-Month 2 | C46: 5.065833767 | D46: =IF($C$11,D33*$C$8/12,AVERAGE(D33,D34)*$C$8/12) -> 4.63923724 | E46: 4.212640712 | F46: 3.786044184 | G46: 3.359447656 | H46: 2.932851128 | I46: 2.506254601 | J46: 2.079658073 | K46: 1.653061545 | L46: 1.226465017 | M46: 0.7998684896 | N46: 0.3732719618 | O46: 0 | P46: 0 | Q46: 0 | R46: 0 | S46: 0 | T46: 0 | U46: 0 | V46: 0 | W46: 0 | X46: 0 | Y46: 0 | Z46: 0 | AA46: 0 | AB46: 0 | AC46: 0 | AD46: 0 | AE46: 0 | AF46: 0 | AG46: 0 | AH46: 0 | AI46: 0 | AJ46: 0 | AK46: 0 | AL46: 0 | AM46: 0 | AN46: 0 | AO46: 0 | AP46: 0
B47: interest-Month 3 | C47: 5.030284057 | D47: 4.603687529 | E47: 4.177091001 | F47: 3.750494473 | G47: 3.323897946 | H47: 2.897301418 | I47: 2.47070489 | J47: 2.044108362 | K47: 1.617511834 | L47: 1.190915307 | M47: 0.7643187789 | N47: 0.3377222512 | O47: 0 | P47: 0 | Q47: 0 | R47: 0 | S47: 0 | T47: 0 | U47: 0 | V47: 0 | W47: 0 | X47: 0 | Y47: 0 | Z47: 0 | AA47: 0 | AB47: 0 | AC47: 0 | AD47: 0 | AE47: 0 | AF47: 0 | AG47: 0 | AH47: 0 | AI47: 0 | AJ47: 0 | AK47: 0 | AL47: 0 | AM47: 0 | AN47: 0 | AO47: 0 | AP47: 0
B48: interest-Month 4 | C48: 4.994734346 | D48: 4.568137818 | E48: 4.141541291 | F48: 3.714944763 | G48: 3.288348235 | H48: 2.861751707 | I48: 2.435155179 | J48: 2.008558652 | K48: 1.581962124 | L48: 1.155365596 | M48: 0.7287690683 | N48: 0.3021725405 | O48: 0 | P48: 0 | Q48: 0 | R48: 0 | S48: 0 | T48: 0 | U48: 0 | V48: 0 | W48: 0 | X48: 0 | Y48: 0 | Z48: 0 | AA48: 0 | AB48: 0 | AC48: 0 | AD48: 0 | AE48: 0 | AF48: 0 | AG48: 0 | AH48: 0 | AI48: 0 | AJ48: 0 | AK48: 0 | AL48: 0 | AM48: 0 | AN48: 0 | AO48: 0 | AP48: 0
B49: interest-Month 5 | C49: 4.959184635 | D49: 4.532588108 | E49: 4.10599158 | F49: 3.679395052 | G49: 3.252798524 | H49: 2.826201997 | I49: 2.399605469 | J49: 1.973008941 | K49: 1.546412413 | L49: 1.119815885 | M49: 0.6932193576 | N49: 0.2666228299 | O49: 0 | P49: 0 | Q49: 0 | R49: 0 | S49: 0 | T49: 0 | U49: 0 | V49: 0 | W49: 0 | X49: 0 | Y49: 0 | Z49: 0 | AA49: 0 | AB49: 0 | AC49: 0 | AD49: 0 | AE49: 0 | AF49: 0 | AG49: 0 | AH49: 0 | AI49: 0 | AJ49: 0 | AK49: 0 | AL49: 0 | AM49: 0 | AN49: 0 | AO49: 0 | AP49: 0
B50: interest-Month 6 | C50: 4.923634925 | D50: 4.497038397 | E50: 4.070441869 | F50: 3.643845341 | G50: 3.217248814 | H50: 2.790652286 | I50: 2.364055758 | J50: 1.93745923 | K50: 1.510862703 | L50: 1.084266175 | M50: 0.657669647 | N50: 0.2310731192 | O50: 0 | P50: 0 | Q50: 0 | R50: 0 | S50: 0 | T50: 0 | U50: 0 | V50: 0 | W50: 0 | X50: 0 | Y50: 0 | Z50: 0 | AA50: 0 | AB50: 0 | AC50: 0 | AD50: 0 | AE50: 0 | AF50: 0 | AG50: 0 | AH50: 0 | AI50: 0 | AJ50: 0 | AK50: 0 | AL50: 0 | AM50: 0 | AN50: 0 | AO50: 0 | AP50: 0
B51: interest-Month 7 | C51: 4.888085214 | D51: 4.461488686 | E51: 4.034892159 | F51: 3.608295631 | G51: 3.181699103 | H51: 2.755102575 | I51: 2.328506047 | J51: 1.90190952 | K51: 1.475312992 | L51: 1.048716464 | M51: 0.6221199363 | N51: 0.1955234086 | O51: 0 | P51: 0 | Q51: 0 | R51: 0 | S51: 0 | T51: 0 | U51: 0 | V51: 0 | W51: 0 | X51: 0 | Y51: 0 | Z51: 0 | AA51: 0 | AB51: 0 | AC51: 0 | AD51: 0 | AE51: 0 | AF51: 0 | AG51: 0 | AH51: 0 | AI51: 0 | AJ51: 0 | AK51: 0 | AL51: 0 | AM51: 0 | AN51: =IF($C$11,AN38*$C$8/12,AVERAGE(AN38,AN39)*$C$8/12) -> 0 | AO51: 0 | AP51: 0
B52: interest-Month 8 | C52: 4.852535503 | D52: 4.425938976 | E52: 3.999342448 | F52: 3.57274592 | G52: 3.146149392 | H52: 2.719552865 | I52: 2.292956337 | J52: 1.866359809 | K52: 1.439763281 | L52: 1.013166753 | M52: 0.5865702257 | N52: 0.1599736979 | O52: 0 | P52: 0 | Q52: 0 | R52: 0 | S52: 0 | T52: 0 | U52: 0 | V52: 0 | W52: 0 | X52: 0 | Y52: 0 | Z52: 0 | AA52: 0 | AB52: 0 | AC52: 0 | AD52: 0 | AE52: 0 | AF52: 0 | AG52: 0 | AH52: 0 | AI52: 0 | AJ52: 0 | AK52: 0 | AL52: 0 | AM52: 0 | AN52: 0 | AO52: 0 | AP52: 0
B53: interest-Month 9 | C53: 4.816985793 | D53: 4.390389265 | E53: 3.963792737 | F53: 3.537196209 | G53: 3.110599682 | H53: 2.684003154 | I53: 2.257406626 | J53: 1.830810098 | K53: 1.404213571 | L53: 0.9776170428 | M53: 0.551020515 | N53: 0.1244239873 | O53: 0 | P53: 0 | Q53: 0 | R53: 0 | S53: 0 | T53: 0 | U53: 0 | V53: 0 | W53: 0 | X53: 0 | Y53: 0 | Z53: 0 | AA53: 0 | AB53: 0 | AC53: 0 | AD53: 0 | AE53: 0 | AF53: 0 | AG53: 0 | AH53: 0 | AI53: 0 | AJ53: 0 | AK53: 0 | AL53: 0 | AM53: 0 | AN53: 0 | AO53: 0 | AP53: 0
B54: interest-Month 10 | C54: 4.781436082 | D54: 4.354839554 | E54: 3.928243027 | F54: 3.501646499 | G54: 3.075049971 | H54: 2.648453443 | I54: 2.221856916 | J54: 1.795260388 | K54: 1.36866386 | L54: 0.9420673322 | M54: 0.5154708044 | N54: 0.08887427662 | O54: 0 | P54: 0 | Q54: 0 | R54: 0 | S54: 0 | T54: 0 | U54: 0 | V54: 0 | W54: 0 | X54: 0 | Y54: 0 | Z54: 0 | AA54: 0 | AB54: 0 | AC54: 0 | AD54: 0 | AE54: 0 | AF54: 0 | AG54: 0 | AH54: 0 | AI54: 0 | AJ54: 0 | AK54: 0 | AL54: 0 | AM54: 0 | AN54: 0 | AO54: 0 | AP54: 0
B55: interest-Month 11 | C55: 4.745886372 | D55: 4.319289844 | E55: 3.892693316 | F55: 3.466096788 | G55: 3.03950026 | H55: 2.612903733 | I55: 2.186307205 | J55: 1.759710677 | K55: 1.333114149 | L55: 0.9065176215 | M55: 0.4799210937 | N55: 0.05332456597 | O55: 0 | P55: 0 | Q55: 0 | R55: 0 | S55: 0 | T55: 0 | U55: 0 | V55: 0 | W55: 0 | X55: 0 | Y55: 0 | Z55: 0 | AA55: 0 | AB55: 0 | AC55: 0 | AD55: 0 | AE55: 0 | AF55: 0 | AG55: 0 | AH55: 0 | AI55: 0 | AJ55: 0 | AK55: 0 | AL55: 0 | AM55: 0 | AN55: 0 | AO55: 0 | AP55: 0
B56: interest-Month 12 | C56: =IF($C$11,C43*$C$8/12,AVERAGE(C43,D32)*$C$8/12) -> 4.710336661 | D56: =IF($C$11,D43*$C$8/12,AVERAGE(D43,E32)*$C$8/12) -> 4.283740133 | E56: 3.857143605 | F56: 3.430547078 | G56: 3.00395055 | H56: 2.577354022 | I56: 2.150757494 | J56: 1.724160966 | K56: 1.297564439 | L56: 0.8709679109 | M56: 0.4443713831 | N56: 0.01777485532 | O56: 0 | P56: 0 | Q56: 0 | R56: 0 | S56: 0 | T56: 0 | U56: 0 | V56: 0 | W56: 0 | X56: 0 | Y56: 0 | Z56: 0 | AA56: 0 | AB56: 0 | AC56: 0 | AD56: 0 | AE56: 0 | AF56: 0 | AG56: 0 | AH56: 0 | AI56: 0 | AJ56: 0 | AK56: 0 | AL56: 0 | AM56: 0 | AN56: 0 | AO56: 0 | AP56: =IF($C$11,AP43*$C$8/12,AVERAGE(AP43,0)*$C$8/12) -> 0
B57: Total interest | C57: =ROUND(SUM(C45:C56),2) -> 58.87 | D57: =ROUND(SUM(D45:D56),2) -> 53.75 | E57: 48.63 | F57: 43.51 | G57: 38.39 | H57: 33.27 | I57: 28.16 | J57: 23.04 | K57: 17.92 | L57: 12.8 | M57: 7.68 | N57: 2.56 | O57: 0 | P57: 0 | Q57: 0 | R57: 0 | S57: 0 | T57: 0 | U57: 0 | V57: 0 | W57: 0 | X57: 0 | Y57: 0 | Z57: 0 | AA57: 0 | AB57: 0 | AC57: 0 | AD57: 0 | AE57: 0 | AF57: 0 | AG57: 0 | AH57: 0 | AI57: 0 | AJ57: 0 | AK57: 0 | AL57: 0 | AM57: 0 | AN57: 0 | AO57: 0 | AP57: 0

Sheet Term Loan 2
I2: Term Loan Payments
B3: Inputs | C3: Value | D3: Units
B4: State | C4: =StateIP -> CERC
B5: Technology | C5: =TechnologyIP -> Solar PV
B6: Project Start Year | C6: ='Inputs&Summary'!D14 -> 2014 | D6: -
B7: Loan amount | C7: ='Inputs&Summary'!D54 -> 0 | D7: ='Inputs&Summary'!F54 -> Rs lacs
B8: Interest Rate | C8: ='Inputs&Summary'!D55 -> 0.1 | D8: ='Inputs&Summary'!F55 -> %
B9: ='Inputs&Summary'!C51 -> Loan 1 Term | C9: ='Inputs&Summary'!D56 -> 20 | D9: ='Inputs&Summary'!F51 -> years
B10: Moratorium | C10: ='Inputs&Summary'!D57 -> 0 | D10: ='Inputs&Summary'!F52 -> years
B11: EMI? | C11: ='Inputs&Summary'!D58 -> 1 | D11: ='Inputs&Summary'!F58 -> True/False
B12: Currency Conversion Factor | C12: ='Inputs&Summary'!D59 -> 1 | D12: ='Inputs&Summary'!F59 -> Rs/Foreign Currency
B13: Currency Conversion Escalation Rate | C13: ='Inputs&Summary'!D60 -> 0 | D13: ='Inputs&Summary'!F60 -> %/yr
B14: Loan amount (in foreign currency) | C14: =$C$7/$C$12 -> 0 | D14: lacs
B15: No of installments for principal payment | C15: =(C9-C10)*12 -> 240 | D15: Months
B16: Equal Monthly Principal repayment | C16: =IF($C$15>0,$C$14/$C$15,0) -> 0 | D16: lacs
B17: EMI (Equal Monthly Installment) | C17: =IF($C$14>0,-PMT($C$8/12,$C$15,$C$14,0,0),0) -> 0 | D17: lacs
B19: TERM LOAN REPAYMENT Details (Rs lacs) | C19: =C6 -> 2014 | D19: =C19+1 -> 2015 | E19: =D19+1 -> 2016 | F19: 2017 | G19: 2018 | H19: 2019 | I19: 2020 | J19: 2021 | K19: 2022 | L19: 2023 | M19: 2024 | N19: 2025 | O19: 2026 | P19: 2027 | Q19: 2028 | R19: 2029 | S19: 2030 | T19: 2031 | U19: 2032 | V19: 2033 | W19: 2034 | X19: 2035 | Y19: 2036 | Z19: 2037 | AA19: 2038 | AB19: 2039 | AC19: 2040 | AD19: 2041 | AE19: 2042 | AF19: 2043 | AG19: 2044 | AH19: 2045 | AI19: 2046 | AJ19: 2047 | AK19: 2048 | AL19: 2049 | AM19: =AL19+1 -> 2050 | AN19: 2051 | AO19: 2052 | AP19: 2053
B20: Instalment-Month 1 | C20: =C64*C108 -> 0 | D20: =D64*D108 -> 0 | E20: 0 | F20: 0 | G20: 0 | H20: 0 | I20: 0 | J20: 0 | K20: 0 | L20: 0 | M20: 0 | N20: 0 | O20: 0 | P20: 0 | Q20: 0 | R20: 0 | S20: 0 | T20: 0 | U20: 0 | V20: 0 | W20: 0 | X20: 0 | Y20: 0 | Z20: 0 | AA20: 0 | AB20: 0 | AC20: 0 | AD20: 0 | AE20: 0 | AF20: 0 | AG20: 0 | AH20: 0 | AI20: 0 | AJ20: 0 | AK20: 0 | AL20: 0 | AM20: 0 | AN20: 0 | AO20: 0 | AP20: 0
B21: Instalment-Month 2 | C21: 0 | D21: =D65*D109 -> 0 | E21: 0 | F21: 0 | G21: 0 | H21: 0 | I21: 0 | J21: 0 | K21: 0 | L21: 0 | M21: 0 | N21: 0 | O21: 0 | P21: 0 | Q21: 0 | R21: 0 | S21: 0 | T21: 0 | U21: 0 | V21: 0 | W21: 0 | X21: 0 | Y21: 0 | Z21: 0 | AA21: 0 | AB21: 0 | AC21: 0 | AD21: 0 | AE21: 0 | AF21: 0 | AG21: 0 | AH21: 0 | AI21: 0 | AJ21: 0 | AK21: 0 | AL21: 0 | AM21: 0 | AN21: 0 | AO21: 0 | AP21: 0
B22: Instalment-Month 3 | C22: 0 | D22: 0 | E22: 0 | F22: 0 | G22: 0 | H22: 0 | I22: 0 | J22: 0 | K22: 0 | L22: 0 | M22: 0 | N22: 0 | O22: 0 | P22: 0 | Q22: 0 | R22: 0 | S22: 0 | T22: 0 | U22: 0 | V22: 0 | W22: 0 | X22: 0 | Y22: 0 | Z22: 0 | AA22: 0 | AB22: 0 | AC22: 0 | AD22: 0 | AE22: 0 | AF22: 0 | AG22: 0 | AH22: 0 | AI22: 0 | AJ22: 0 | AK22: 0 | AL22: 0 | AM22: 0 | AN22: 0 | AO22: 0 | AP22: 0
B23: Instalment-Month 4 | C23: 0 | D23: 0 | E23: 0 | F23: 0 | G23: 0 | H23: 0 | I23: 0 | J23: 0 | K23: 0 | L23: 0 | M23: 0 | N23: 0 | O23: 0 | P23: 0 | Q23: 0 | R23: 0 | S23: 0 | T23: 0 | U23: 0 | V23: 0 | W23: 0 | X23: 0 | Y23: 0 | Z23: 0 | AA23: 0 | AB23: 0 | AC23: 0 | AD23: 0 | AE23: 0 | AF23: 0 | AG23: 0 | AH23: 0 | AI23: 0 | AJ23: 0 | AK23: 0 | AL23: 0 | AM23: 0 | AN23: 0 | AO23: 0 | AP23: 0
B24: Instalment-Month 5 | C24: 0 | D24: 0 | E24: 0 | F24: 0 | G24: 0 | H24: 0 | I24: 0 | J24: 0 | K24: 0 | L24: 0 | M24: 0 | N24: 0 | O24: 0 | P24: 0 | Q24: 0 | R24: 0 | S24: 0 | T24: 0 | U24: 0 | V24: 0 | W24: 0 | X24: 0 | Y24: 0 | Z24: 0 | AA24: 0 | AB24: 0 | AC24: 0 | AD24: 0 | AE24: 0 | AF24: 0 | AG24: 0 | AH24: 0 | AI24: 0 | AJ24: 0 | AK24: 0 | AL24: 0 | AM24: 0 | AN24: 0 | AO24: 0 | AP24: 0
B25: Instalment-Month 6 | C25: 0 | D25: 0 | E25: 0 | F25: 0 | G25: 0 | H25: 0 | I25: 0 | J25: 0 | K25: 0 | L25: 0 | M25: 0 | N25: 0 | O25: 0 | P25: 0 | Q25: 0 | R25: 0 | S25: 0 | T25: 0 | U25: 0 | V25: 0 | W25: 0 | X25: 0 | Y25: 0 | Z25: 0 | AA25: 0 | AB25: 0 | AC25: 0 | AD25: 0 | AE25: 0 | AF25: 0 | AG25: 0 | AH25: 0 | AI25: 0 | AJ25: 0 | AK25: 0 | AL25: 0 | AM25: 0 | AN25: 0 | AO25: 0 | AP25: 0
B26: Instalment-Month 7 | C26: 0 | D26: 0 | E26: 0 | F26: 0 | G26: 0 | H26: 0 | I26: 0 | J26: 0 | K26: 0 | L26: 0 | M26: 0 | N26: 0 | O26: 0 | P26: 0 | Q26: 0 | R26: 0 | S26: 0 | T26: 0 | U26: 0 | V26: 0 | W26: 0 | X26: 0 | Y26: 0 | Z26: 0 | AA26: 0 | AB26: 0 | AC26: 0 | AD26: 0 | AE26: 0 | AF26: 0 | AG26: 0 | AH26: 0 | AI26: 0 | AJ26: 0 | AK26: 0 | AL26: 0 | AM26: 0 | AN26: =AN70*AN114 -> 0 | AO26: 0 | AP26: 0
B27: Instalment-Month 8 | C27: 0 | D27: 0 | E27: 0 | F27: 0 | G27: 0 | H27: 0 | I27: 0 | J27: 0 | K27: 0 | L27: 0 | M27: 0 | N27: 0 | O27: 0 | P27: 0 | Q27: 0 | R27: 0 | S27: 0 | T27: 0 | U27: 0 | V27: 0 | W27: 0 | X27: 0 | Y27: 0 | Z27: 0 | AA27: 0 | AB27: 0 | AC27: 0 | AD27: 0 | AE27: 0 | AF27: 0 | AG27: 0 | AH27: 0 | AI27: 0 | AJ27: 0 | AK27: 0 | AL27: 0 | AM27: 0 | AN27: 0 | AO27: 0 | AP27: 0
B28: Instalment-Month 9 | C28: 0 | D28: 0 | E28: 0 | F28: 0 | G28: 0 | H28: 0 | I28: 0 | J28: 0 | K28: 0 | L28: 0 | M28: 0 | N28: 0 | O28: 0 | P28: 0 | Q28: 0 | R28: 0 | S28: 0 | T28: 0 | U28: 0 | V28: 0 | W28: 0 | X28: 0 | Y28: 0 | Z28: 0 | AA28: 0 | AB28: 0 | AC28: 0 | AD28: 0 | AE28: 0 | AF28: 0 | AG28: 0 | AH28: 0 | AI28: 0 | AJ28: 0 | AK28: 0 | AL28: 0 | AM28: 0 | AN28: 0 | AO28: 0 | AP28: 0
B29: Instalment-Month 10 | C29: 0 | D29: 0 | E29: 0 | F29: 0 | G29: 0 | H29: 0 | I29: 0 | J29: 0 | K29: 0 | L29: 0 | M29: 0 | N29: 0 | O29: 0 | P29: 0 | Q29: 0 | R29: 0 | S29: 0 | T29: 0 | U29: 0 | V29: 0 | W29: 0 | X29: 0 | Y29: 0 | Z29: 0 | AA29: 0 | AB29: 0 | AC29: 0 | AD29: 0 | AE29: 0 | AF29: 0 | AG29: 0 | AH29: 0 | AI29: 0 | AJ29: 0 | AK29: 0 | AL29: 0 | AM29: 0 | AN29: 0 | AO29: 0 | AP29: 0
B30: Instalment-Month 11 | C30: 0 | D30: 0 | E30: 0 | F30: 0 | G30: 0 | H30: 0 | I30: 0 | J30: 0 | K30: 0 | L30: 0 | M30: 0 | N30: 0 | O30: 0 | P30: 0 | Q30: 0 | R30: 0 | S30: 0 | T30: 0 | U30: 0 | V30: 0 | W30: 0 | X30: 0 | Y30: 0 | Z30: 0 | AA30: 0 | AB30: 0 | AC30: 0 | AD30: 0 | AE30: 0 | AF30: 0 | AG30: 0 | AH30: 0 | AI30: 0 | AJ30: 0 | AK30: 0 | AL30: 0 | AM30: 0 | AN30: 0 | AO30: 0 | AP30: 0
B31: Instalment-Month 12 | C31: 0 | D31: 0 | E31: 0 | F31: 0 | G31: 0 | H31: 0 | I31: 0 | J31: 0 | K31: 0 | L31: 0 | M31: 0 | N31: 0 | O31: 0 | P31: 0 | Q31: 0 | R31: 0 | S31: 0 | T31: 0 | U31: 0 | V31: 0 | W31: 0 | X31: 0 | Y31: 0 | Z31: 0 | AA31: 0 | AB31: 0 | AC31: 0 | AD31: 0 | AE31: 0 | AF31: 0 | AG31: 0 | AH31: 0 | AI31: 0 | AJ31: 0 | AK31: 0 | AL31: 0 | AM31: 0 | AN31: 0 | AO31: 0 | AP31: 0
B32: Total installment | C32: =SUM(C20:C31) -> 0 | D32: =SUM(D20:D31) -> 0 | E32: =SUM(E20:E31) -> 0 | F32: 0 | G32: 0 | H32: 0 | I32: 0 | J32: 0 | K32: 0 | L32: 0 | M32: 0 | N32: 0 | O32: 0 | P32: 0 | Q32: 0 | R32: 0 | S32: 0 | T32: 0 | U32: 0 | V32: 0 | W32: 0 | X32: 0 | Y32: 0 | Z32: 0 | AA32: 0 | AB32: 0 | AC32: 0 | AD32: 0 | AE32: 0 | AF32: 0 | AG32: 0 | AH32: 0 | AI32: 0 | AJ32: 0 | AK32: 0 | AL32: 0 | AM32: 0 | AN32: 0 | AO32: 0 | AP32: 0
B33: Cumulative Principal Payment | C33: =C32 -> 0 | D33: =C33+D32 -> 0 | E33: 0 | F33: 0 | G33: 0 | H33: 0 | I33: 0 | J33: 0 | K33: 0 | L33: 0 | M33: 0 | N33: 0 | O33: 0 | P33: 0 | Q33: 0 | R33: 0 | S33: 0 | T33: 0 | U33: 0 | V33: 0 | W33: 0 | X33: 0 | Y33: 0 | Z33: 0 | AA33: 0 | AB33: 0 | AC33: 0 | AD33: 0 | AE33: 0 | AF33: 0 | AG33: 0 | AH33: 0 | AI33: 0 | AJ33: 0 | AK33: 0 | AL33: 0 | AM33: 0 | AN33: 0 | AO33: 0 | AP33: 0
B34: Outstanding Principal
B35: Outstanding-Month 1 | C35: =C79*C108 -> 0 | D35: =D79*D108 -> 0 | E35: 0 | F35: 0 | G35: 0 | H35: 0 | I35: 0 | J35: 0 | K35: 0 | L35: 0 | M35: 0 | N35: 0 | O35: 0 | P35: 0 | Q35: 0 | R35: 0 | S35: 0 | T35: 0 | U35: 0 | V35: 0 | W35: 0 | X35: 0 | Y35: 0 | Z35: 0 | AA35: 0 | AB35: 0 | AC35: 0 | AD35: 0 | AE35: 0 | AF35: 0 | AG35: 0 | AH35: 0 | AI35: 0 | AJ35: 0 | AK35: 0 | AL35: 0 | AM35: 0 | AN35: 0 | AO35: 0 | AP35: 0
B36: Outstanding-Month 2 | C36: 0 | D36: =D80*D109 -> 0 | E36: 0 | F36: 0 | G36: 0 | H36: 0 | I36: 0 | J36: 0 | K36: 0 | L36: 0 | M36: 0 | N36: 0 | O36: 0 | P36: 0 | Q36: 0 | R36: 0 | S36: 0 | T36: 0 | U36: 0 | V36: 0 | W36: 0 | X36: 0 | Y36: 0 | Z36: 0 | AA36: 0 | AB36: 0 | AC36: 0 | AD36: 0 | AE36: 0 | AF36: 0 | AG36: 0 | AH36: 0 | AI36: 0 | AJ36: 0 | AK36: 0 | AL36: 0 | AM36: 0 | AN36: 0 | AO36: 0 | AP36: 0
B37: Outstanding-Month 3 | C37: 0 | D37: 0 | E37: 0 | F37: 0 | G37: 0 | H37: 0 | I37: 0 | J37: 0 | K37: 0 | L37: 0 | M37: 0 | N37: 0 | O37: 0 | P37: 0 | Q37: 0 | R37: 0 | S37: 0 | T37: 0 | U37: 0 | V37: 0 | W37: 0 | X37: 0 | Y37: 0 | Z37: 0 | AA37: 0 | AB37: 0 | AC37: 0 | AD37: 0 | AE37: 0 | AF37: 0 | AG37: 0 | AH37: 0 | AI37: 0 | AJ37: 0 | AK37: 0 | AL37: 0 | AM37: 0 | AN37: 0 | AO37: 0 | AP37: 0
B38: Outstanding-Month 4 | C38: 0 | D38: 0 | E38: 0 | F38: 0 | G38: 0 | H38: 0 | I38: 0 | J38: 0 | K38: 0 | L38: 0 | M38: 0 | N38: 0 | O38: 0 | P38: 0 | Q38: 0 | R38: 0 | S38: 0 | T38: 0 | U38: 0 | V38: 0 | W38: 0 | X38: 0 | Y38: 0 | Z38: 0 | AA38: 0 | AB38: 0 | AC38: 0 | AD38: 0 | AE38: 0 | AF38: 0 | AG38: 0 | AH38: 0 | AI38: 0 | AJ38: 0 | AK38: 0 | AL38: 0 | AM38: 0 | AN38: 0 | AO38: 0 | AP38: 0
B39: Outstanding-Month 5 | C39: 0 | D39: 0 | E39: 0 | F39: 0 | G39: 0 | H39: 0 | I39: 0 | J39: 0 | K39: 0 | L39: 0 | M39: 0 | N39: 0 | O39: 0 | P39: 0 | Q39: 0 | R39: 0 | S39: 0 | T39: 0 | U39: 0 | V39: 0 | W39: 0 | X39: 0 | Y39: 0 | Z39: 0 | AA39: 0 | AB39: 0 | AC39: 0 | AD39: 0 | AE39: 0 | AF39: 0 | AG39: 0 | AH39: 0 | AI39: 0 | AJ39: 0 | AK39: 0 | AL39: 0 | AM39: 0 | AN39: 0 | AO39: 0 | AP39: 0
B40: Outstanding-Month 6 | C40: 0 | D40: 0 | E40: 0 | F40: 0 | G40: 0 | H40: 0 | I40: 0 | J40: 0 | K40: 0 | L40: 0 | M40: 0 | N40: 0 | O40: 0 | P40: 0 | Q40: 0 | R40: 0 | S40: 0 | T40: 0 | U40: 0 | V40: 0 | W40: 0 | X40: 0 | Y40: 0 | Z40: 0 | AA40: 0 | AB40: 0 | AC40: 0 | AD40: 0 | AE40: 0 | AF40: 0 | AG40: 0 | AH40: 0 | AI40: 0 | AJ40: 0 | AK40: 0 | AL40: 0 | AM40: 0 | AN40: 0 | AO40: 0 | AP40: 0
B41: Outstanding-Month 7 | C41: 0 | D41: 0 | E41: 0 | F41: 0 | G41: 0 | H41: 0 | I41: 0 | J41: 0 | K41: 0 | L41: 0 | M41: 0 | N41: 0 | O41: 0 | P41: 0 | Q41: 0 | R41: 0 | S41: 0 | T41: 0 | U41: 0 | V41: 0 | W41: 0 | X41: 0 | Y41: 0 | Z41: 0 | AA41: 0 | AB41: 0 | AC41: 0 | AD41: 0 | AE41: 0 | AF41: 0 | AG41: 0 | AH41: 0 | AI41: 0 | AJ41: 0 | AK41: 0 | AL41: 0 | AM41: 0 | AN41: =AN85*AN114 -> 0 | AO41: 0 | AP41: 0
B42: Outstanding-Month 8 | C42: 0 | D42: 0 | E42: 0 | F42: 0 | G42: 0 | H42: 0 | I42: 0 | J42: 0 | K42: 0 | L42: 0 | M42: 0 | N42: 0 | O42: 0 | P42: 0 | Q42: 0 | R42: 0 | S42: 0 | T42: 0 | U42: 0 | V42: 0 | W42: 0 | X42: 0 | Y42: 0 | Z42: 0 | AA42: 0 | AB42: 0 | AC42: 0 | AD42: 0 | AE42: 0 | AF42: 0 | AG42: 0 | AH42: 0 | AI42: 0 | AJ42: 0 | AK42: 0 | AL42: 0 | AM42: 0 | AN42: 0 | AO42: 0 | AP42: 0
B43: Outstanding-Month 9 | C43: 0 | D43: 0 | E43: 0 | F43: 0 | G43: 0 | H43: 0 | I43: 0 | J43: 0 | K43: 0 | L43: 0 | M43: 0 | N43: 0 | O43: 0 | P43: 0 | Q43: 0 | R43: 0 | S43: 0 | T43: 0 | U43: 0 | V43: 0 | W43: 0 | X43: 0 | Y43: 0 | Z43: 0 | AA43: 0 | AB43: 0 | AC43: 0 | AD43: 0 | AE43: 0 | AF43: 0 | AG43: 0 | AH43: 0 | AI43: 0 | AJ43: 0 | AK43: 0 | AL43: 0 | AM43: 0 | AN43: 0 | AO43: 0 | AP43: 0
B44: Outstanding-Month 10 | C44: 0 | D44: 0 | E44: 0 | F44: 0 | G44: 0 | H44: 0 | I44: 0 | J44: 0 | K44: 0 | L44: 0 | M44: 0 | N44: 0 | O44: 0 | P44: 0 | Q44: 0 | R44: 0 | S44: 0 | T44: 0 | U44: 0 | V44: 0 | W44: 0 | X44: 0 | Y44: 0 | Z44: 0 | AA44: 0 | AB44: 0 | AC44: 0 | AD44: 0 | AE44: 0 | AF44: 0 | AG44: 0 | AH44: 0 | AI44: 0 | AJ44: 0 | AK44: 0 | AL44: 0 | AM44: 0 | AN44: 0 | AO44: 0 | AP44: 0
B45: Outstanding-Month 11 | C45: 0 | D45: 0 | E45: 0 | F45: 0 | G45: 0 | H45: 0 | I45: 0 | J45: 0 | K45: 0 | L45: 0 | M45: 0 | N45: 0 | O45: 0 | P45: 0 | Q45: 0 | R45: 0 | S45: 0 | T45: 0 | U45: 0 | V45: 0 | W45: 0 | X45: 0 | Y45: 0 | Z45: 0 | AA45: 0 | AB45: 0 | AC45: 0 | AD45: 0 | AE45: 0 | AF45: 0 | AG45: 0 | AH45: 0 | AI45: 0 | AJ45: 0 | AK45: 0 | AL45: 0 | AM45: 0 | AN45: 0 | AO45: 0 | AP45: 0
B46: Outstanding-Month 12 | C46: 0 | D46: 0 | E46: 0 | F46: 0 | G46: 0 | H46: 0 | I46: 0 | J46: 0 | K46: 0 | L46: 0 | M46: 0 | N46: 0 | O46: 0 | P46: 0 | Q46: 0 | R46: 0 | S46: 0 | T46: 0 | U46: 0 | V46: 0 | W46: 0 | X46: 0 | Y46: 0 | Z46: 0 | AA46: 0 | AB46: 0 | AC46: 0 | AD46: 0 | AE46: 0 | AF46: 0 | AG46: 0 | AH46: 0 | AI46: 0 | AJ46: 0 | AK46: 0 | AL46: 0 | AM46: 0 | AN46: 0 | AO46: 0 | AP46: 0
B47: Interest payments
B48: interest-Month 1 | C48: =C92*C108 -> 0 | D48: =D92*D108 -> 0 | E48: 0 | F48: 0 | G48: 0 | H48: 0 | I48: 0 | J48: 0 | K48: 0 | L48: 0 | M48: 0 | N48: 0 | O48: 0 | P48: 0 | Q48: 0 | R48: 0 | S48: 0 | T48: 0 | U48: 0 | V48: 0 | W48: 0 | X48: 0 | Y48: 0 | Z48: 0 | AA48: 0 | AB48: 0 | AC48: 0 | AD48: 0 | AE48: 0 | AF48: 0 | AG48: 0 | AH48: 0 | AI48: 0 | AJ48: 0 | AK48: 0 | AL48: 0 | AM48: 0 | AN48: 0 | AO48: 0 | AP48: 0
B49: interest-Month 2 | C49: 0 | D49: =D93*D109 -> 0 | E49: 0 | F49: 0 | G49: 0 | H49: 0 | I49: 0 | J49: 0 | K49: 0 | L49: 0 | M49: 0 | N49: 0 | O49: 0 | P49: 0 | Q49: 0 | R49: 0 | S49: 0 | T49: 0 | U49: 0 | V49: 0 | W49: 0 | X49: 0 | Y49: 0 | Z49: 0 | AA49: 0 | AB49: 0 | AC49: 0 | AD49: 0 | AE49: 0 | AF49: 0 | AG49: 0 | AH49: 0 | AI49: 0 | AJ49: 0 | AK49: 0 | AL49: 0 | AM49: 0 | AN49: 0 | AO49: 0 | AP49: 0
B50: interest-Month 3 | C50: 0 | D50: 0 | E50: 0 | F50: 0 | G50: 0 | H50: 0 | I50: 0 | J50: 0 | K50: 0 | L50: 0 | M50: 0 | N50: 0 | O50: 0 | P50: 0 | Q50: 0 | R50: 0 | S50: 0 | T50: 0 | U50: 0 | V50: 0 | W50: 0 | X50: 0 | Y50: 0 | Z50: 0 | AA50: 0 | AB50: 0 | AC50: 0 | AD50: 0 | AE50: 0 | AF50: 0 | AG50: 0 | AH50: 0 | AI50: 0 | AJ50: 0 | AK50: 0 | AL50: 0 | AM50: 0 | AN50: 0 | AO50: 0 | AP50: 0
B51: interest-Month 4 | C51: 0 | D51: 0 | E51: 0 | F51: 0 | G51: 0 | H51: 0 | I51: 0 | J51: 0 | K51: 0 | L51: 0 | M51: 0 | N51: 0 | O51: 0 | P51: 0 | Q51: 0 | R51: 0 | S51: 0 | T51: 0 | U51: 0 | V51: 0 | W51: 0 | X51: 0 | Y51: 0 | Z51: 0 | AA51: 0 | AB51: 0 | AC51: 0 | AD51: 0 | AE51: 0 | AF51: 0 | AG51: 0 | AH51: 0 | AI51: 0 | AJ51: 0 | AK51: 0 | AL51: 0 | AM51: 0 | AN51: 0 | AO51: 0 | AP51: 0
B52: interest-Month 5 | C52: 0 | D52: 0 | E52: 0 | F52: 0 | G52: 0 | H52: 0 | I52: 0 | J52: 0 | K52: 0 | L52: 0 | M52: 0 | N52: 0 | O52: 0 | P52: 0 | Q52: 0 | R52: 0 | S52: 0 | T52: 0 | U52: 0 | V52: 0 | W52: 0 | X52: 0 | Y52: 0 | Z52: 0 | AA52: 0 | AB52: 0 | AC52: 0 | AD52: 0 | AE52: 0 | AF52: 0 | AG52: 0 | AH52: 0 | AI52: 0 | AJ52: 0 | AK52: 0 | AL52: 0 | AM52: 0 | AN52: 0 | AO52: 0 | AP52: 0
B53: interest-Month 6 | C53: 0 | D53: 0 | E53: 0 | F53: 0 | G53: 0 | H53: 0 | I53: 0 | J53: 0 | K53: 0 | L53: 0 | M53: 0 | N53: 0 | O53: 0 | P53: 0 | Q53: 0 | R53: 0 | S53: 0 | T53: 0 | U53: 0 | V53: 0 | W53: 0 | X53: 0 | Y53: 0 | Z53: 0 | AA53: 0 | AB53: 0 | AC53: 0 | AD53: 0 | AE53: 0 | AF53: 0 | AG53: 0 | AH53: 0 | AI53: 0 | AJ53: 0 | AK53: 0 | AL53: 0 | AM53: 0 | AN53: 0 | AO53: 0 | AP53: 0
B54: interest-Month 7 | C54: 0 | D54: 0 | E54: 0 | F54: 0 | G54: 0 | H54: 0 | I54: 0 | J54: 0 | K54: 0 | L54: 0 | M54: 0 | N54: 0 | O54: 0 | P54: 0 | Q54: 0 | R54: 0 | S54: 0 | T54: 0 | U54: 0 | V54: 0 | W54: 0 | X54: 0 | Y54: 0 | Z54: 0 | AA54: 0 | AB54: 0 | AC54: 0 | AD54: 0 | AE54: 0 | AF54: 0 | AG54: 0 | AH54: 0 | AI54: 0 | AJ54: 0 | AK54: 0 | AL54: 0 | AM54: 0 | AN54: =AN98*AN114 -> 0 | AO54: 0 | AP54: 0
B55: interest-Month 8 | C55: 0 | D55: 0 | E55: 0 | F55: 0 | G55: 0 | H55: 0 | I55: 0 | J55: 0 | K55: 0 | L55: 0 | M55: 0 | N55: 0 | O55: 0 | P55: 0 | Q55: 0 | R55: 0 | S55: 0 | T55: 0 | U55: 0 | V55: 0 | W55: 0 | X55: 0 | Y55: 0 | Z55: 0 | AA55: 0 | AB55: 0 | AC55: 0 | AD55: 0 | AE55: 0 | AF55: 0 | AG55: 0 | AH55: 0 | AI55: 0 | AJ55: 0 | AK55: 0 | AL55: 0 | AM55: 0 | AN55: 0 | AO55: 0 | AP55: 0
B56: interest-Month 9 | C56: 0 | D56: 0 | E56: 0 | F56: 0 | G56: 0 | H56: 0 | I56: 0 | J56: 0 | K56: 0 | L56: 0 | M56: 0 | N56: 0 | O56: 0 | P56: 0 | Q56: 0 | R56: 0 | S56: 0 | T56: 0 | U56: 0 | V56: 0 | W56: 0 | X56: 0 | Y56: 0 | Z56: 0 | AA56: 0 | AB56: 0 | AC56: 0 | AD56: 0 | AE56: 0 | AF56: 0 | AG56: 0 | AH56: 0 | AI56: 0 | AJ56: 0 | AK56: 0 | AL56: 0 | AM56: 0 | AN56: 0 | AO56: 0 | AP56: 0
B57: interest-Month 10 | C57: 0 | D57: 0 | E57: 0 | F57: 0 | G57: 0 | H57: 0 | I57: 0 | J57: 0 | K57: 0 | L57: 0 | M57: 0 | N57: 0 | O57: 0 | P57: 0 | Q57: 0 | R57: 0 | S57: 0 | T57: 0 | U57: 0 | V57: 0 | W57: 0 | X57: 0 | Y57: 0 | Z57: 0 | AA57: 0 | AB57: 0 | AC57: 0 | AD57: 0 | AE57: 0 | AF57: 0 | AG57: 0 | AH57: 0 | AI57: 0 | AJ57: 0 | AK57: 0 | AL57: 0 | AM57: 0 | AN57: 0 | AO57: 0 | AP57: 0
B58: interest-Month 11 | C58: 0 | D58: 0 | E58: 0 | F58: 0 | G58: 0 | H58: 0 | I58: 0 | J58: 0 | K58: 0 | L58: 0 | M58: 0 | N58: 0 | O58: 0 | P58: 0 | Q58: 0 | R58: 0 | S58: 0 | T58: 0 | U58: 0 | V58: 0 | W58: 0 | X58: 0 | Y58: 0 | Z58: 0 | AA58: 0 | AB58: 0 | AC58: 0 | AD58: 0 | AE58: 0 | AF58: 0 | AG58: 0 | AH58: 0 | AI58: 0 | AJ58: 0 | AK58: 0 | AL58: 0 | AM58: 0 | AN58: 0 | AO58: 0 | AP58: 0
B59: interest-Month 12 | C59: 0 | D59: 0 | E59: 0 | F59: 0 | G59: 0 | H59: 0 | I59: 0 | J59: 0 | K59: 0 | L59: 0 | M59: 0 | N59: 0 | O59: 0 | P59: 0 | Q59: 0 | R59: 0 | S59: 0 | T59: 0 | U59: 0 | V59: 0 | W59: 0 | X59: 0 | Y59: 0 | Z59: 0 | AA59: 0 | AB59: 0 | AC59: 0 | AD59: 0 | AE59: 0 | AF59: 0 | AG59: 0 | AH59: 0 | AI59: 0 | AJ59: 0 | AK59: 0 | AL59: 0 | AM59: 0 | AN59: 0 | AO59: 0 | AP59: 0
B60: Total interest | C60: =ROUND(SUM(C48:C59),2) -> 0 | D60: =ROUND(SUM(D48:D59),2) -> 0 | E60: 0 | F60: 0 | G60: 0 | H60: 0 | I60: 0 | J60: 0 | K60: 0 | L60: 0 | M60: 0 | N60: 0 | O60: 0 | P60: 0 | Q60: 0 | R60: 0 | S60: 0 | T60: 0 | U60: 0 | V60: 0 | W60: 0 | X60: 0 | Y60: 0 | Z60: 0 | AA60: 0 | AB60: 0 | AC60: 0 | AD60: 0 | AE60: 0 | AF60: 0 | AG60: 0 | AH60: 0 | AI60: 0 | AJ60: 0 | AK60: 0 | AL60: 0 | AM60: 0 | AN60: 0 | AO60: 0 | AP60: 0
B62: Calculations in Foreign Currency
B63: TERM LOAN REPAYMENT Details | C63: =C6 -> 2014 | D63: =C63+1 -> 2015 | E63: 2016 | F63: 2017 | G63: 2018 | H63: 2019 | I63: 2020 | J63: 2021 | K63: 2022 | L63: 2023 | M63: 2024 | N63: 2025 | O63: 2026 | P63: 2027 | Q63: 2028 | R63: 2029 | S63: 2030 | T63: 2031 | U63: 2032 | V63: 2033 | W63: 2034 | X63: 2035 | Y63: 2036 | Z63: 2037 | AA63: 2038 | AB63: 2039 | AC63: 2040 | AD63: 2041 | AE63: 2042 | AF63: 2043 | AG63: 2044 | AH63: 2045 | AI63: 2046 | AJ63: 2047 | AK63: 2048 | AL63: 2049 | AM63: 2050 | AN63: 2051 | AO63: 2052 | AP63: 2053
B64: Instalment-Month 1 | C64: =IF($C$6+$C$10>C$63,0,IF($C$11,$C$17-C92,$C$16)) -> 0 | D64: =IF(OR($C$6+$C$10>D$63,C$77-$C$14>=-10^-3),0,IF($C$11,$C$17-D92,$C$16)) -> 0 | E64: =IF(OR($C$6+$C$10>E$63,D$77-$C$14>=-10^-3),0,IF($C$11,$C$17-E92,$C$16)) -> 0 | F64: 0 | G64: 0 | H64: 0 | I64: 0 | J64: 0 | K64: 0 | L64: 0 | M64: 0 | N64: 0 | O64: 0 | P64: 0 | Q64: 0 | R64: 0 | S64: 0 | T64: 0 | U64: 0 | V64: 0 | W64: 0 | X64: 0 | Y64: 0 | Z64: 0 | AA64: 0 | AB64: 0 | AC64: 0 | AD64: 0 | AE64: 0 | AF64: 0 | AG64: 0 | AH64: 0 | AI64: 0 | AJ64: 0 | AK64: 0 | AL64: 0 | AM64: 0 | AN64: 0 | AO64: 0 | AP64: 0
B65: Instalment-Month 2 | C65: =IF($C$6+$C$10>C$63,0,IF($C$11,$C$17-C93,$C$16)) -> 0 | D65: 0 | E65: =IF(OR($C$6+$C$10>E$63,D$77-$C$14>=-10^-3),0,IF($C$11,$C$17-E93,$C$16)) -> 0 | F65: 0 | G65: 0 | H65: 0 | I65: 0 | J65: 0 | K65: 0 | L65: 0 | M65: 0 | N65: 0 | O65: 0 | P65: 0 | Q65: 0 | R65: 0 | S65: 0 | T65: 0 | U65: 0 | V65: 0 | W65: 0 | X65: 0 | Y65: 0 | Z65: 0 | AA65: 0 | AB65: 0 | AC65: 0 | AD65: 0 | AE65: 0 | AF65: 0 | AG65: 0 | AH65: 0 | AI65: 0 | AJ65: 0 | AK65: 0 | AL65: 0 | AM65: 0 | AN65: 0 | AO65: 0 | AP65: 0
B66: Instalment-Month 3 | C66: =IF($C$6+$C$10>C$63,0,IF($C$11,$C$17-C94,$C$16)) -> 0 | D66: 0 | E66: 0 | F66: 0 | G66: 0 | H66: 0 | I66: 0 | J66: 0 | K66: 0 | L66: 0 | M66: 0 | N66: 0 | O66: 0 | P66: 0 | Q66: 0 | R66: 0 | S66: 0 | T66: 0 | U66: 0 | V66: 0 | W66: 0 | X66: 0 | Y66: 0 | Z66: 0 | AA66: 0 | AB66: 0 | AC66: 0 | AD66: 0 | AE66: 0 | AF66: 0 | AG66: 0 | AH66: 0 | AI66: 0 | AJ66: 0 | AK66: 0 | AL66: 0 | AM66: 0 | AN66: 0 | AO66: 0 | AP66: 0
B67: Instalment-Month 4 | C67: 0 | D67: 0 | E67: 0 | F67: 0 | G67: 0 | H67: 0 | I67: 0 | J67: 0 | K67: 0 | L67: 0 | M67: 0 | N67: 0 | O67: 0 | P67: 0 | Q67: 0 | R67: 0 | S67: 0 | T67: 0 | U67: 0 | V67: 0 | W67: 0 | X67: 0 | Y67: 0 | Z67: 0 | AA67: 0 | AB67: 0 | AC67: 0 | AD67: 0 | AE67: 0 | AF67: 0 | AG67: 0 | AH67: 0 | AI67: 0 | AJ67: 0 | AK67: 0 | AL67: 0 | AM67: 0 | AN67: 0 | AO67: 0 | AP67: 0
B68: Instalment-Month 5 | C68: 0 | D68: 0 | E68: 0 | F68: 0 | G68: 0 | H68: 0 | I68: 0 | J68: 0 | K68: 0 | L68: 0 | M68: 0 | N68: 0 | O68: 0 | P68: 0 | Q68: 0 | R68: 0 | S68: 0 | T68: 0 | U68: 0 | V68: 0 | W68: 0 | X68: 0 | Y68: 0 | Z68: 0 | AA68: 0 | AB68: 0 | AC68: 0 | AD68: 0 | AE68: 0 | AF68: 0 | AG68: 0 | AH68: 0 | AI68: 0 | AJ68: 0 | AK68: 0 | AL68: 0 | AM68: 0 | AN68: 0 | AO68: 0 | AP68: 0
B69: Instalment-Month 6 | C69: 0 | D69: 0 | E69: 0 | F69: 0 | G69: 0 | H69: 0 | I69: 0 | J69: 0 | K69: 0 | L69: 0 | M69: 0 | N69: 0 | O69: 0 | P69: 0 | Q69: 0 | R69: 0 | S69: 0 | T69: 0 | U69: 0 | V69: 0 | W69: 0 | X69: 0 | Y69: 0 | Z69: 0 | AA69: 0 | AB69: 0 | AC69: 0 | AD69: 0 | AE69: 0 | AF69: 0 | AG69: 0 | AH69: 0 | AI69: 0 | AJ69: 0 | AK69: 0 | AL69: 0 | AM69: 0 | AN69: 0 | AO69: 0 | AP69: 0
B70: Instalment-Month 7 | C70: 0 | D70: 0 | E70: 0 | F70: 0 | G70: 0 | H70: 0 | I70: 0 | J70: 0 | K70: 0 | L70: 0 | M70: 0 | N70: 0 | O70: 0 | P70: 0 | Q70: 0 | R70: 0 | S70: 0 | T70: 0 | U70: 0 | V70: 0 | W70: 0 | X70: 0 | Y70: 0 | Z70: 0 | AA70: 0 | AB70: 0 | AC70: 0 | AD70: 0 | AE70: 0 | AF70: 0 | AG70: 0 | AH70: 0 | AI70: 0 | AJ70: 0 | AK70: 0 | AL70: 0 | AM70: 0 | AN70: 0 | AO70: 0 | AP70: 0
B71: Instalment-Month 8 | C71: 0 | D71: 0 | E71: 0 | F71: 0 | G71: 0 | H71: 0 | I71: =IF(OR($C$6+$C$10>I$63,H$77-$C$14>=-10^-3),0,IF($C$11,$C$17-I99,$C$16)) -> 0 | J71: 0 | K71: 0 | L71: 0 | M71: 0 | N71: 0 | O71: 0 | P71: 0 | Q71: 0 | R71: 0 | S71: 0 | T71: 0 | U71: 0 | V71: 0 | W71: 0 | X71: 0 | Y71: 0 | Z71: 0 | AA71: 0 | AB71: 0 | AC71: 0 | AD71: 0 | AE71: 0 | AF71: 0 | AG71: 0 | AH71: 0 | AI71: 0 | AJ71: 0 | AK71: 0 | AL71: 0 | AM71: 0 | AN71: 0 | AO71: 0 | AP71: 0
B72: Instalment-Month 9 | C72: 0 | D72: 0 | E72: 0 | F72: 0 | G72: 0 | H72: 0 | I72: 0 | J72: 0 | K72: 0 | L72: 0 | M72: 0 | N72: 0 | O72: 0 | P72: 0 | Q72: 0 | R72: 0 | S72: 0 | T72: 0 | U72: 0 | V72: 0 | W72: 0 | X72: 0 | Y72: 0 | Z72: 0 | AA72: 0 | AB72: 0 | AC72: 0 | AD72: 0 | AE72: 0 | AF72: 0 | AG72: 0 | AH72: 0 | AI72: 0 | AJ72: 0 | AK72: 0 | AL72: 0 | AM72: 0 | AN72: 0 | AO72: 0 | AP72: 0
B73: Instalment-Month 10 | C73: 0 | D73: 0 | E73: 0 | F73: 0 | G73: 0 | H73: 0 | I73: 0 | J73: 0 | K73: 0 | L73: 0 | M73: 0 | N73: 0 | O73: 0 | P73: 0 | Q73: 0 | R73: 0 | S73: 0 | T73: 0 | U73: 0 | V73: 0 | W73: 0 | X73: 0 | Y73: 0 | Z73: 0 | AA73: 0 | AB73: 0 | AC73: 0 | AD73: 0 | AE73: 0 | AF73: 0 | AG73: 0 | AH73: 0 | AI73: 0 | AJ73: 0 | AK73: 0 | AL73: 0 | AM73: 0 | AN73: 0 | AO73: 0 | AP73: 0
B74: Instalment-Month 11 | C74: 0 | D74: 0 | E74: 0 | F74: 0 | G74: 0 | H74: 0 | I74: 0 | J74: 0 | K74: 0 | L74: 0 | M74: 0 | N74: 0 | O74: 0 | P74: 0 | Q74: 0 | R74: 0 | S74: 0 | T74: 0 | U74: 0 | V74: 0 | W74: 0 | X74: 0 | Y74: 0 | Z74: 0 | AA74: 0 | AB74: 0 | AC74: 0 | AD74: 0 | AE74: 0 | AF74: 0 | AG74: 0 | AH74: 0 | AI74: 0 | AJ74: 0 | AK74: 0 | AL74: 0 | AM74: 0 | AN74: 0 | AO74: 0 | AP74: 0
B75: Instalment-Month 12 | C75: 0 | D75: 0 | E75: 0 | F75: 0 | G75: 0 | H75: 0 | I75: 0 | J75: 0 | K75: 0 | L75: 0 | M75: 0 | N75: 0 | O75: 0 | P75: 0 | Q75: 0 | R75: 0 | S75: 0 | T75: 0 | U75: 0 | V75: 0 | W75: 0 | X75: 0 | Y75: 0 | Z75: 0 | AA75: 0 | AB75: 0 | AC75: 0 | AD75: 0 | AE75: 0 | AF75: 0 | AG75: 0 | AH75: 0 | AI75: 0 | AJ75: 0 | AK75: 0 | AL75: 0 | AM75: 0 | AN75: 0 | AO75: 0 | AP75: 0
B76: Total installment | C76: =SUM(C64:C75) -> 0 | D76: =SUM(D64:D75) -> 0 | E76: =SUM(E64:E75) -> 0 | F76: 0 | G76: 0 | H76: 0 | I76: 0 | J76: 0 | K76: 0 | L76: 0 | M76: 0 | N76: 0 | O76: 0 | P76: 0 | Q76: 0 | R76: 0 | S76: 0 | T76: 0 | U76: 0 | V76: 0 | W76: 0 | X76: 0 | Y76: 0 | Z76: 0 | AA76: 0 | AB76: 0 | AC76: 0 | AD76: 0 | AE76: 0 | AF76: 0 | AG76: 0 | AH76: 0 | AI76: 0 | AJ76: 0 | AK76: 0 | AL76: 0 | AM76: 0 | AN76: 0 | AO76: 0 | AP76: 0
B77: Cumulative Principal Payment | C77: =C76 -> 0 | D77: =C77+D76 -> 0 | E77: 0 | F77: 0 | G77: 0 | H77: 0 | I77: 0 | J77: 0 | K77: 0 | L77: 0 | M77: 0 | N77: 0 | O77: 0 | P77: 0 | Q77: 0 | R77: 0 | S77: 0 | T77: 0 | U77: 0 | V77: 0 | W77: 0 | X77: 0 | Y77: 0 | Z77: 0 | AA77: 0 | AB77: 0 | AC77: 0 | AD77: 0 | AE77: 0 | AF77: 0 | AG77: 0 | AH77: 0 | AI77: 0 | AJ77: 0 | AK77: 0 | AL77: 0 | AM77: 0 | AN77: 0 | AO77: 0 | AP77: 0
B78: Outstanding Principal (foreign currency)
B79: Outstanding-Month 1 | C79: =$C$14 -> 0 | D79: =IF(C90-C75>0.001,C90-C75,0) -> 0 | E79: =IF(D90-D75>0.001,D90-D75,0) -> 0 | F79: 0 | G79: 0 | H79: 0 | I79: 0 | J79: 0 | K79: 0 | L79: 0 | M79: 0 | N79: 0 | O79: 0 | P79: 0 | Q79: 0 | R79: 0 | S79: 0 | T79: 0 | U79: 0 | V79: 0 | W79: 0 | X79: 0 | Y79: 0 | Z79: 0 | AA79: 0 | AB79: 0 | AC79: 0 | AD79: 0 | AE79: 0 | AF79: 0 | AG79: 0 | AH79: 0 | AI79: 0 | AJ79: 0 | AK79: 0 | AL79: 0 | AM79: 0 | AN79: 0 | AO79: 0 | AP79: 0
B80: Outstanding-Month 2 | C80: =MAX(C79-C64,0) -> 0 | D80: 0 | E80: 0 | F80: 0 | G80: 0 | H80: 0 | I80: 0 | J80: 0 | K80: 0 | L80: 0 | M80: 0 | N80: 0 | O80: 0 | P80: 0 | Q80: 0 | R80: 0 | S80: 0 | T80: 0 | U80: 0 | V80: 0 | W80: 0 | X80: 0 | Y80: 0 | Z80: 0 | AA80: 0 | AB80: 0 | AC80: 0 | AD80: 0 | AE80: 0 | AF80: 0 | AG80: 0 | AH80: 0 | AI80: 0 | AJ80: 0 | AK80: 0 | AL80: 0 | AM80: 0 | AN80: 0 | AO80: 0 | AP80: 0
B81: Outstanding-Month 3 | C81: 0 | D81: 0 | E81: 0 | F81: 0 | G81: 0 | H81: 0 | I81: 0 | J81: 0 | K81: 0 | L81: 0 | M81: 0 | N81: 0 | O81: 0 | P81: 0 | Q81: 0 | R81: 0 | S81: 0 | T81: 0 | U81: 0 | V81: 0 | W81: 0 | X81: 0 | Y81: 0 | Z81: 0 | AA81: 0 | AB81: 0 | AC81: 0 | AD81: 0 | AE81: 0 | AF81: 0 | AG81: 0 | AH81: 0 | AI81: 0 | AJ81: 0 | AK81: 0 | AL81: 0 | AM81: 0 | AN81: 0 | AO81: 0 | AP81: 0
B82: Outstanding-Month 4 | C82: 0 | D82: 0 | E82: 0 | F82: 0 | G82: 0 | H82: 0 | I82: 0 | J82: 0 | K82: 0 | L82: 0 | M82: 0 | N82: 0 | O82: 0 | P82: 0 | Q82: 0 | R82: 0 | S82: 0 | T82: 0 | U82: 0 | V82: 0 | W82: 0 | X82: 0 | Y82: 0 | Z82: 0 | AA82: 0 | AB82: 0 | AC82: 0 | AD82: 0 | AE82: 0 | AF82: 0 | AG82: 0 | AH82: 0 | AI82: 0 | AJ82: 0 | AK82: 0 | AL82: 0 | AM82: 0 | AN82: 0 | AO82: 0 | AP82: 0
B83: Outstanding-Month 5 | C83: 0 | D83: 0 | E83: 0 | F83: 0 | G83: 0 | H83: 0 | I83: 0 | J83: 0 | K83: 0 | L83: 0 | M83: 0 | N83: 0 | O83: 0 | P83: 0 | Q83: 0 | R83: 0 | S83: 0 | T83: 0 | U83: 0 | V83: 0 | W83: 0 | X83: 0 | Y83: 0 | Z83: 0 | AA83: 0 | AB83: 0 | AC83: 0 | AD83: 0 | AE83: 0 | AF83: 0 | AG83: 0 | AH83: 0 | AI83: 0 | AJ83: 0 | AK83: 0 | AL83: 0 | AM83: 0 | AN83: 0 | AO83: 0 | AP83: 0
B84: Outstanding-Month 6 | C84: 0 | D84: 0 | E84: 0 | F84: 0 | G84: 0 | H84: 0 | I84: 0 | J84: 0 | K84: 0 | L84: 0 | M84: 0 | N84: 0 | O84: 0 | P84: 0 | Q84: 0 | R84: 0 | S84: 0 | T84: 0 | U84: 0 | V84: 0 | W84: 0 | X84: 0 | Y84: 0 | Z84: 0 | AA84: 0 | AB84: 0 | AC84: 0 | AD84: 0 | AE84: 0 | AF84: 0 | AG84: 0 | AH84: 0 | AI84: 0 | AJ84: 0 | AK84: 0 | AL84: 0 | AM84: 0 | AN84: 0 | AO84: 0 | AP84: 0
B85: Outstanding-Month 7 | C85: 0 | D85: 0 | E85: 0 | F85: 0 | G85: 0 | H85: 0 | I85: 0 | J85: 0 | K85: 0 | L85: 0 | M85: 0 | N85: 0 | O85: 0 | P85: 0 | Q85: 0 | R85: 0 | S85: 0 | T85: 0 | U85: 0 | V85: 0 | W85: 0 | X85: 0 | Y85: 0 | Z85: 0 | AA85: 0 | AB85: 0 | AC85: 0 | AD85: 0 | AE85: 0 | AF85: 0 | AG85: 0 | AH85: 0 | AI85: 0 | AJ85: 0 | AK85: 0 | AL85: 0 | AM85: 0 | AN85: 0 | AO85: 0 | AP85: 0
B86: Outstanding-Month 8 | C86: 0 | D86: 0 | E86: 0 | F86: 0 | G86: 0 | H86: 0 | I86: 0 | J86: 0 | K86: 0 | L86: 0 | M86: 0 | N86: 0 | O86: 0 | P86: 0 | Q86: 0 | R86: =MAX(R85-R70,0) -> 0 | S86: 0 | T86: 0 | U86: 0 | V86: 0 | W86: 0 | X86: 0 | Y86: 0 | Z86: 0 | AA86: 0 | AB86: 0 | AC86: 0 | AD86: 0 | AE86: 0 | AF86: 0 | AG86: 0 | AH86: 0 | AI86: 0 | AJ86: 0 | AK86: 0 | AL86: 0 | AM86: 0 | AN86: 0 | AO86: 0 | AP86: 0
B87: Outstanding-Month 9 | C87: =MAX(C86-C71,0) -> 0 | D87: 0 | E87: 0 | F87: 0 | G87: 0 | H87: 0 | I87: 0 | J87: 0 | K87: 0 | L87: 0 | M87: 0 | N87: 0 | O87: 0 | P87: 0 | Q87: 0 | R87: 0 | S87: 0 | T87: 0 | U87: 0 | V87: 0 | W87: 0 | X87: 0 | Y87: 0 | Z87: 0 | AA87: 0 | AB87: 0 | AC87: 0 | AD87: 0 | AE87: 0 | AF87: 0 | AG87: 0 | AH87: 0 | AI87: 0 | AJ87: 0 | AK87: 0 | AL87: 0 | AM87: 0 | AN87: 0 | AO87: 0 | AP87: 0
B88: Outstanding-Month 10 | C88: =MAX(C87-C72,0) -> 0 | D88: 0 | E88: 0 | F88: 0 | G88: 0 | H88: 0 | I88: 0 | J88: 0 | K88: 0 | L88: 0 | M88: 0 | N88: 0 | O88: 0 | P88: 0 | Q88: 0 | R88: 0 | S88: 0 | T88: 0 | U88: 0 | V88: 0 | W88: 0 | X88: 0 | Y88: 0 | Z88: 0 | AA88: 0 | AB88: 0 | AC88: 0 | AD88: 0 | AE88: 0 | AF88: 0 | AG88: 0 | AH88: 0 | AI88: 0 | AJ88: 0 | AK88: 0 | AL88: 0 | AM88: 0 | AN88: 0 | AO88: 0 | AP88: 0
B89: Outstanding-Month 11 | C89: =MAX(C88-C73,0) -> 0 | D89: 0 | E89: 0 | F89: 0 | G89: 0 | H89: 0 | I89: 0 | J89: 0 | K89: 0 | L89: 0 | M89: 0 | N89: 0 | O89: 0 | P89: 0 | Q89: 0 | R89: 0 | S89: 0 | T89: 0 | U89: 0 | V89: 0 | W89: 0 | X89: 0 | Y89: 0 | Z89: 0 | AA89: 0 | AB89: 0 | AC89: 0 | AD89: 0 | AE89: 0 | AF89: 0 | AG89: 0 | AH89: 0 | AI89: 0 | AJ89: 0 | AK89: 0 | AL89: 0 | AM89: 0 | AN89: 0 | AO89: 0 | AP89: 0
B90: Outstanding-Month 12 | C90: =MAX(C89-C74,0) -> 0 | D90: 0 | E90: 0 | F90: 0 | G90: 0 | H90: 0 | I90: 0 | J90: 0 | K90: 0 | L90: 0 | M90: 0 | N90: 0 | O90: 0 | P90: 0 | Q90: 0 | R90: 0 | S90: 0 | T90: 0 | U90: 0 | V90: 0 | W90: 0 | X90: 0 | Y90: 0 | Z90: 0 | AA90: 0 | AB90: 0 | AC90: 0 | AD90: 0 | AE90: 0 | AF90: 0 | AG90: 0 | AH90: 0 | AI90: 0 | AJ90: 0 | AK90: 0 | AL90: 0 | AM90: 0 | AN90: 0 | AO90: 0 | AP90: 0
B91: Interest payments (foreign currency)
B92: interest-Month 1 | C92: =IF($C$11,C79*$C$8/12,AVERAGE(C79,C80)*$C$8/12) -> 0 | D92: =IF($C$11,D79*$C$8/12,AVERAGE(D79,D80)*$C$8/12) -> 0 | E92: 0 | F92: 0 | G92: 0 | H92: 0 | I92: 0 | J92: 0 | K92: 0 | L92: 0 | M92: 0 | N92: 0 | O92: 0 | P92: 0 | Q92: 0 | R92: 0 | S92: 0 | T92: 0 | U92: 0 | V92: 0 | W92: 0 | X92: 0 | Y92: 0 | Z92: 0 | AA92: 0 | AB92: 0 | AC92: 0 | AD92: 0 | AE92: 0 | AF92: 0 | AG92: 0 | AH92: 0 | AI92: 0 | AJ92: 0 | AK92: 0 | AL92: 0 | AM92: 0 | AN92: 0 | AO92: 0 | AP92: 0
B93: interest-Month 2 | C93: 0 | D93: =IF($C$11,D80*$C$8/12,AVERAGE(D80,D81)*$C$8/12) -> 0 | E93: 0 | F93: 0 | G93: 0 | H93: 0 | I93: 0 | J93: 0 | K93: 0 | L93: 0 | M93: 0 | N93: 0 | O93: 0 | P93: 0 | Q93: 0 | R93: 0 | S93: 0 | T93: 0 | U93: 0 | V93: 0 | W93: 0 | X93: 0 | Y93: 0 | Z93: 0 | AA93: 0 | AB93: 0 | AC93: 0 | AD93: 0 | AE93: 0 | AF93: 0 | AG93: 0 | AH93: 0 | AI93: 0 | AJ93: 0 | AK93: 0 | AL93: 0 | AM93: 0 | AN93: 0 | AO93: 0 | AP93: 0
B94: interest-Month 3 | C94: 0 | D94: 0 | E94: 0 | F94: 0 | G94: 0 | H94: 0 | I94: 0 | J94: 0 | K94: 0 | L94: 0 | M94: 0 | N94: 0 | O94: 0 | P94: 0 | Q94: 0 | R94: 0 | S94: 0 | T94: 0 | U94: 0 | V94: 0 | W94: 0 | X94: 0 | Y94: 0 | Z94: 0 | AA94: 0 | AB94: 0 | AC94: 0 | AD94: 0 | AE94: 0 | AF94: 0 | AG94: 0 | AH94: 0 | AI94: 0 | AJ94: 0 | AK94: 0 | AL94: 0 | AM94: 0 | AN94: 0 | AO94: 0 | AP94: 0
B95: interest-Month 4 | C95: 0 | D95: 0 | E95: 0 | F95: 0 | G95: 0 | H95: 0 | I95: 0 | J95: 0 | K95: 0 | L95: 0 | M95: 0 | N95: 0 | O95: 0 | P95: 0 | Q95: 0 | R95: 0 | S95: 0 | T95: 0 | U95: 0 | V95: 0 | W95: 0 | X95: 0 | Y95: 0 | Z95: 0 | AA95: 0 | AB95: 0 | AC95: 0 | AD95: 0 | AE95: 0 | AF95: 0 | AG95: 0 | AH95: 0 | AI95: 0 | AJ95: 0 | AK95: 0 | AL95: 0 | AM95: 0 | AN95: 0 | AO95: 0 | AP95: 0
B96: interest-Month 5 | C96: 0 | D96: 0 | E96: 0 | F96: 0 | G96: 0 | H96: 0 | I96: 0 | J96: 0 | K96: 0 | L96: 0 | M96: 0 | N96: 0 | O96: 0 | P96: 0 | Q96: 0 | R96: 0 | S96: 0 | T96: 0 | U96: 0 | V96: 0 | W96: 0 | X96: 0 | Y96: 0 | Z96: 0 | AA96: 0 | AB96: 0 | AC96: 0 | AD96: 0 | AE96: 0 | AF96: 0 | AG96: 0 | AH96: 0 | AI96: 0 | AJ96: 0 | AK96: 0 | AL96: 0 | AM96: 0 | AN96: 0 | AO96: 0 | AP96: 0
B97: interest-Month 6 | C97: 0 | D97: 0 | E97: 0 | F97: 0 | G97: 0 | H97: 0 | I97: 0 | J97: 0 | K97: 0 | L97: 0 | M97: 0 | N97: 0 | O97: 0 | P97: 0 | Q97: 0 | R97: 0 | S97: 0 | T97: 0 | U97: 0 | V97: 0 | W97: 0 | X97: 0 | Y97: 0 | Z97: 0 | AA97: 0 | AB97: 0 | AC97: 0 | AD97: 0 | AE97: 0 | AF97: 0 | AG97: 0 | AH97: 0 | AI97: 0 | AJ97: 0 | AK97: 0 | AL97: 0 | AM97: 0 | AN97: 0 | AO97: 0 | AP97: 0
B98: interest-Month 7 | C98: 0 | D98: 0 | E98: 0 | F98: 0 | G98: 0 | H98: 0 | I98: 0 | J98: 0 | K98: 0 | L98: 0 | M98: 0 | N98: 0 | O98: 0 | P98: 0 | Q98: 0 | R98: 0 | S98: 0 | T98: 0 | U98: 0 | V98: 0 | W98: 0 | X98: 0 | Y98: 0 | Z98: 0 | AA98: 0 | AB98: 0 | AC98: 0 | AD98: 0 | AE98: 0 | AF98: 0 | AG98: 0 | AH98: 0 | AI98: 0 | AJ98: 0 | AK98: 0 | AL98: 0 | AM98: 0 | AN98: =IF($C$11,AN85*$C$8/12,AVERAGE(AN85,AN86)*$C$8/12) -> 0 | AO98: 0 | AP98: 0
B99: interest-Month 8 | C99: 0 | D99: 0 | E99: 0 | F99: 0 | G99: 0 | H99: 0 | I99: 0 | J99: 0 | K99: 0 | L99: 0 | M99: 0 | N99: 0 | O99: 0 | P99: 0 | Q99: 0 | R99: 0 | S99: 0 | T99: 0 | U99: 0 | V99: 0 | W99: 0 | X99: 0 | Y99: 0 | Z99: 0 | AA99: 0 | AB99: 0 | AC99: 0 | AD99: 0 | AE99: 0 | AF99: 0 | AG99: 0 | AH99: 0 | AI99: 0 | AJ99: 0 | AK99: 0 | AL99: 0 | AM99: 0 | AN99: 0 | AO99: 0 | AP99: 0
B100: interest-Month 9 | C100: 0 | D100: 0 | E100: 0 | F100: 0 | G100: 0 | H100: 0 | I100: 0 | J100: 0 | K100: 0 | L100: 0 | M100: 0 | N100: 0 | O100: 0 | P100: 0 | Q100: 0 | R100: 0 | S100: 0 | T100: 0 | U100: 0 | V100: 0 | W100: 0 | X100: 0 | Y100: 0 | Z100: 0 | AA100: 0 | AB100: 0 | AC100: 0 | AD100: 0 | AE100: 0 | AF100: 0 | AG100: 0 | AH100: 0 | AI100: 0 | AJ100: 0 | AK100: 0 | AL100: 0 | AM100: 0 | AN100: 0 | AO100: 0 | AP100: 0
B101: interest-Month 10 | C101: 0 | D101: 0 | E101: 0 | F101: 0 | G101: 0 | H101: 0 | I101: 0 | J101: 0 | K101: 0 | L101: 0 | M101: 0 | N101: 0 | O101: 0 | P101: 0 | Q101: 0 | R101: 0 | S101: 0 | T101: 0 | U101: 0 | V101: 0 | W101: 0 | X101: 0 | Y101: 0 | Z101: 0 | AA101: 0 | AB101: 0 | AC101: 0 | AD101: 0 | AE101: 0 | AF101: 0 | AG101: 0 | AH101: 0 | AI101: 0 | AJ101: 0 | AK101: 0 | AL101: 0 | AM101: 0 | AN101: 0 | AO101: 0 | AP101: 0
B102: interest-Month 11 | C102: 0 | D102: 0 | E102: 0 | F102: 0 | G102: 0 | H102: 0 | I102: 0 | J102: 0 | K102: 0 | L102: 0 | M102: 0 | N102: 0 | O102: 0 | P102: 0 | Q102: 0 | R102: 0 | S102: 0 | T102: 0 | U102: 0 | V102: 0 | W102: 0 | X102: 0 | Y102: 0 | Z102: 0 | AA102: 0 | AB102: 0 | AC102: 0 | AD102: 0 | AE102: 0 | AF102: 0 | AG102: 0 | AH102: 0 | AI102: 0 | AJ102: 0 | AK102: 0 | AL102: 0 | AM102: 0 | AN102: 0 | AO102: 0 | AP102: 0
B103: interest-Month 12 | C103: =IF($C$11,C90*$C$8/12,AVERAGE(C90,D79)*$C$8/12) -> 0 | D103: =IF($C$11,D90*$C$8/12,AVERAGE(D90,E79)*$C$8/12) -> 0 | E103: 0 | F103: 0 | G103: 0 | H103: 0 | I103: 0 | J103: 0 | K103: 0 | L103: 0 | M103: 0 | N103: 0 | O103: 0 | P103: 0 | Q103: 0 | R103: 0 | S103: 0 | T103: 0 | U103: 0 | V103: 0 | W103: 0 | X103: 0 | Y103: 0 | Z103: 0 | AA103: 0 | AB103: 0 | AC103: 0 | AD103: 0 | AE103: 0 | AF103: 0 | AG103: 0 | AH103: 0 | AI103: 0 | AJ103: 0 | AK103: 0 | AL103: 0 | AM103: 0 | AN103: 0 | AO103: 0 | AP103: =IF($C$11,AP90*$C$8/12,AVERAGE(AP90,0)*$C$8/12) -> 0
B104: Total interest | C104: =ROUND(SUM(C92:C103),2) -> 0 | D104: =ROUND(SUM(D92:D103),2) -> 0 | E104: 0 | F104: 0 | G104: 0 | H104: 0 | I104: 0 | J104: 0 | K104: 0 | L104: 0 | M104: 0 | N104: 0 | O104: 0 | P104: 0 | Q104: 0 | R104: 0 | S104: 0 | T104: 0 | U104: 0 | V104: 0 | W104: 0 | X104: 0 | Y104: 0 | Z104: 0 | AA104: 0 | AB104: 0 | AC104: 0 | AD104: 0 | AE104: 0 | AF104: 0 | AG104: 0 | AH104: 0 | AI104: 0 | AJ104: 0 | AK104: 0 | AL104: 0 | AM104: 0 | AN104: 0 | AO104: 0 | AP104: 0
B107: Currency Conversion (Rs/Foreign Currency) | C107: 1 | D107: =C107+1 -> 2 | E107: 3 | F107: 4 | G107: 5 | H107: 6 | I107: 7 | J107: 8 | K107: 9 | L107: 10 | M107: 11 | N107: 12 | O107: 13 | P107: 14 | Q107: 15 | R107: 16 | S107: 17 | T107: 18 | U107: 19 | V107: 20 | W107: 21 | X107: 22 | Y107: 23 | Z107: 24 | AA107: 25 | AB107: 26 | AC107: 27 | AD107: 28 | AE107: 29 | AF107: 30 | AG107: 31 | AH107: 32 | AI107: 33 | AJ107: 34 | AK107: 35 | AL107: 36 | AM107: 37 | AN107: 38 | AO107: 39 | AP107: 40
B108: Instalment-Month 1 | C108: =$C$12 -> 1 | D108: =C119*(1+$C$13/12) -> 1 | E108: =D119*(1+$C$13/12) -> 1 | F108: 1 | G108: 1 | H108: 1 | I108: 1 | J108: 1 | K108: 1 | L108: 1 | M108: 1 | N108: 1 | O108: 1 | P108: 1 | Q108: 1 | R108: 1 | S108: 1 | T108: 1 | U108: 1 | V108: 1 | W108: 1 | X108: 1 | Y108: 1 | Z108: 1 | AA108: 1 | AB108: 1 | AC108: 1 | AD108: 1 | AE108: 1 | AF108: 1 | AG108: 1 | AH108: 1 | AI108: 1 | AJ108: 1 | AK108: 1 | AL108: 1 | AM108: 1 | AN108: 1 | AO108: 1 | AP108: 1
B109: Instalment-Month 2 | C109: =C108*(1+$C$13/12) -> 1 | D109: =D108*(1+$C$13/12) -> 1 | E109: 1 | F109: 1 | G109: 1 | H109: 1 | I109: 1 | J109: 1 | K109: 1 | L109: 1 | M109: 1 | N109: 1 | O109: 1 | P109: 1 | Q109: 1 | R109: 1 | S109: 1 | T109: 1 | U109: 1 | V109: 1 | W109: 1 | X109: 1 | Y109: 1 | Z109: 1 | AA109: 1 | AB109: 1 | AC109: 1 | AD109: 1 | AE109: 1 | AF109: 1 | AG109: 1 | AH109: 1 | AI109: 1 | AJ109: 1 | AK109: 1 | AL109: 1 | AM109: 1 | AN109: 1 | AO109: 1 | AP109: 1
B110: Instalment-Month 3 | C110: =C109*(1+$C$13/12) -> 1 | D110: 1 | E110: 1 | F110: 1 | G110: 1 | H110: 1 | I110: 1 | J110: 1 | K110: 1 | L110: 1 | M110: 1 | N110: 1 | O110: 1 | P110: 1 | Q110: 1 | R110: 1 | S110: 1 | T110: 1 | U110: 1 | V110: 1 | W110: 1 | X110: 1 | Y110: 1 | Z110: 1 | AA110: 1 | AB110: 1 | AC110: 1 | AD110: 1 | AE110: 1 | AF110: 1 | AG110: 1 | AH110: 1 | AI110: 1 | AJ110: 1 | AK110: 1 | AL110: 1 | AM110: 1 | AN110: 1 | AO110: 1 | AP110: 1
B111: Instalment-Month 4 | C111: 1 | D111: 1 | E111: 1 | F111: 1 | G111: 1 | H111: 1 | I111: 1 | J111: 1 | K111: 1 | L111: 1 | M111: 1 | N111: 1 | O111: 1 | P111: 1 | Q111: 1 | R111: 1 | S111: 1 | T111: 1 | U111: 1 | V111: 1 | W111: 1 | X111: 1 | Y111: 1 | Z111: 1 | AA111: 1 | AB111: 1 | AC111: 1 | AD111: 1 | AE111: 1 | AF111: 1 | AG111: 1 | AH111: 1 | AI111: 1 | AJ111: 1 | AK111: 1 | AL111: 1 | AM111: 1 | AN111: 1 | AO111: 1 | AP111: 1
B112: Instalment-Month 5 | C112: 1 | D112: 1 | E112: 1 | F112: 1 | G112: 1 | H112: 1 | I112: 1 | J112: 1 | K112: 1 | L112: 1 | M112: 1 | N112: 1 | O112: 1 | P112: 1 | Q112: 1 | R112: 1 | S112: 1 | T112: 1 | U112: 1 | V112: 1 | W112: 1 | X112: 1 | Y112: 1 | Z112: 1 | AA112: 1 | AB112: 1 | AC112: 1 | AD112: 1 | AE112: 1 | AF112: 1 | AG112: 1 | AH112: 1 | AI112: 1 | AJ112: 1 | AK112: 1 | AL112: 1 | AM112: 1 | AN112: 1 | AO112: 1 | AP112: 1
B113: Instalment-Month 6 | C113: 1 | D113: 1 | E113: 1 | F113: 1 | G113: 1 | H113: 1 | I113: 1 | J113: 1 | K113: 1 | L113: 1 | M113: 1 | N113: 1 | O113: 1 | P113: 1 | Q113: 1 | R113: 1 | S113: 1 | T113: 1 | U113: 1 | V113: 1 | W113: 1 | X113: 1 | Y113: 1 | Z113: 1 | AA113: 1 | AB113: 1 | AC113: 1 | AD113: 1 | AE113: 1 | AF113: 1 | AG113: 1 | AH113: 1 | AI113: 1 | AJ113: 1 | AK113: 1 | AL113: 1 | AM113: 1 | AN113: 1 | AO113: 1 | AP113: 1
B114: Instalment-Month 7 | C114: 1 | D114: 1 | E114: 1 | F114: 1 | G114: 1 | H114: 1 | I114: 1 | J114: 1 | K114: 1 | L114: 1 | M114: 1 | N114: 1 | O114: 1 | P114: 1 | Q114: 1 | R114: 1 | S114: 1 | T114: 1 | U114: 1 | V114: 1 | W114: 1 | X114: 1 | Y114: 1 | Z114: 1 | AA114: 1 | AB114: 1 | AC114: 1 | AD114: 1 | AE114: 1 | AF114: 1 | AG114: 1 | AH114: 1 | AI114: 1 | AJ114: 1 | AK114: 1 | AL114: 1 | AM114: 1 | AN114: 1 | AO114: 1 | AP114: 1
B115: Instalment-Month 8 | C115: 1 | D115: 1 | E115: 1 | F115: 1 | G115: 1 | H115: 1 | I115: 1 | J115: 1 | K115: 1 | L115: 1 | M115: 1 | N115: 1 | O115: 1 | P115: 1 | Q115: 1 | R115: 1 | S115: 1 | T115: 1 | U115: 1 | V115: 1 | W115: 1 | X115: 1 | Y115: =Y114*(1+$C$13/12) -> 1 | Z115: 1 | AA115: 1 | AB115: 1 | AC115: 1 | AD115: 1 | AE115: 1 | AF115: 1 | AG115: 1 | AH115: 1 | AI115: =AI114*(1+$C$13/12) -> 1 | AJ115: 1 | AK115: 1 | AL115: 1 | AM115: 1 | AN115: 1 | AO115: 1 | AP115: 1
B116: Instalment-Month 9 | C116: 1 | D116: =D115*(1+$C$13/12) -> 1 | E116: 1 | F116: 1 | G116: 1 | H116: 1 | I116: 1 | J116: 1 | K116: 1 | L116: 1 | M116: 1 | N116: =N115*(1+$C$13/12) -> 1 | O116: 1 | P116: 1 | Q116: 1 | R116: 1 | S116: 1 | T116: 1 | U116: 1 | V116: 1 | W116: 1 | X116: =X115*(1+$C$13/12) -> 1 | Y116: 1 | Z116: 1 | AA116: 1 | AB116: 1 | AC116: 1 | AD116: 1 | AE116: 1 | AF116: 1 | AG116: 1 | AH116: 1 | AI116: 1 | AJ116: 1 | AK116: 1 | AL116: 1 | AM116: 1 | AN116: 1 | AO116: 1 | AP116: 1
B117: Instalment-Month 10 | C117: 1 | D117: 1 | E117: 1 | F117: 1 | G117: 1 | H117: 1 | I117: 1 | J117: 1 | K117: 1 | L117: 1 | M117: 1 | N117: 1 | O117: 1 | P117: 1 | Q117: 1 | R117: 1 | S117: 1 | T117: 1 | U117: 1 | V117: 1 | W117: 1 | X117: 1 | Y117: 1 | Z117: 1 | AA117: 1 | AB117: 1 | AC117: 1 | AD117: 1 | AE117: 1 | AF117: 1 | AG117: 1 | AH117: 1 | AI117: 1 | AJ117: 1 | AK117: 1 | AL117: 1 | AM117: 1 | AN117: 1 | AO117: 1 | AP117: 1
B118: Instalment-Month 11 | C118: 1 | D118: 1 | E118: 1 | F118: 1 | G118: 1 | H118: 1 | I118: 1 | J118: 1 | K118: 1 | L118: 1 | M118: 1 | N118: 1 | O118: 1 | P118: 1 | Q118: 1 | R118: 1 | S118: 1 | T118: 1 | U118: 1 | V118: 1 | W118: 1 | X118: 1 | Y118: 1 | Z118: 1 | AA118: 1 | AB118: 1 | AC118: 1 | AD118: 1 | AE118: 1 | AF118: 1 | AG118: 1 | AH118: 1 | AI118: 1 | AJ118: 1 | AK118: 1 | AL118: 1 | AM118: 1 | AN118: 1 | AO118: 1 | AP118: 1
B119: Instalment-Month 12 | C119: 1 | D119: 1 | E119: 1 | F119: 1 | G119: 1 | H119: 1 | I119: 1 | J119: 1 | K119: 1 | L119: 1 | M119: 1 | N119: 1 | O119: 1 | P119: 1 | Q119: 1 | R119: 1 | S119: 1 | T119: 1 | U119: 1 | V119: 1 | W119: 1 | X119: 1 | Y119: 1 | Z119: 1 | AA119: 1 | AB119: 1 | AC119: 1 | AD119: 1 | AE119: 1 | AF119: 1 | AG119: 1 | AH119: 1 | AI119: 1 | AJ119: 1 | AK119: 1 | AL119: 1 | AM119: 1 | AN119: 1 | AO119: 1 | AP119: 1

Sheet Fuel
K2: Fuel
B3: Inputs | C3: Value | D3: Units
B4: State | C4: =StateIP -> CERC
B5: Technology | C5: =TechnologyIP -> Solar PV
B6: Project Start Year | C6: ='Inputs&Summary'!D14 -> 2014 | D6: -
B7: Annual Derated Capacity | C7: ='Inputs&Summary'!D39 -> 0 | D7: ='Inputs&Summary'!F39 -> %
B8: 1st Year Gross Generation | C8: ='Inputs&Summary'!D36 -> 16.644 | D8: ='Inputs&Summary'!F36 -> Lakh kWhs
B9: CUF 2nd Year onwards | C9: =IF('Inputs&Summary'!$D$94=0,'Inputs&Summary'!$D$35,'Inputs&Summary'!$D$94) -> 0.19
B10: Gross Generation 2nd Year onwards (no derating) | C10: =('Inputs&Summary'!$D$34*8760*1000*$C$9)/10^5 -> 16.644 | D10: Lakh kWhs
B11: Project Capitalized during 2nd half of Financial Year | C11: No | D11: =Depreciation!D8 -> Yes/No
B12: ='Inputs&Summary'!C40 -> Life of Plant and Machinery / Project Life | C12: ='Inputs&Summary'!D40 -> 25 | D12: ='Inputs&Summary'!F40 -> years
B13: ='Inputs&Summary'!C95 -> Fuel requirement/kWh | C13: ='Inputs&Summary'!D95 -> 0 | D13: ='Inputs&Summary'!F95 -> kg/kWh
B14: ='Inputs&Summary'!C96 -> Feedstock Price | C14: ='Inputs&Summary'!D96 -> 0 | D14: ='Inputs&Summary'!F96 -> Rs/MT
B15: ='Inputs&Summary'!C97 -> Fuel Cost Escalation | C15: ='Inputs&Summary'!D97 -> 0 | D15: ='Inputs&Summary'!F97 -> %/yr
B18: Year | D18: =C6 -> 2014 | E18: =D18+1 -> 2015 | F18: =E18+1 -> 2016 | G18: =F18+1 -> 2017 | H18: 2018 | I18: 2019 | J18: 2020 | K18: 2021 | L18: 2022 | M18: 2023 | N18: 2024 | O18: 2025 | P18: 2026 | Q18: 2027 | R18: 2028 | S18: 2029 | T18: 2030 | U18: 2031 | V18: 2032 | W18: 2033 | X18: 2034 | Y18: 2035 | Z18: 2036 | AA18: 2037 | AB18: 2038 | AC18: =AB18+1 -> 2039 | AD18: 2040 | AE18: 2041 | AF18: 2042 | AG18: 2043 | AH18: 2044 | AI18: 2045 | AJ18: 2046 | AK18: 2047 | AL18: 2048 | AM18: 2049 | AN18: 2050 | AO18: 2051 | AP18: 2052 | AQ18: 2053
B19: Gross Generation | C19: Lakh kWhs | D19: =IF($C$11="Yes",$C$8/2,$C$8) -> 16.644 | E19: =IF(E18<$C$6+$C$12,$C$10*(1-$C$7),0) -> 16.644 | F19: =IF(F18<$C$6+$C$12,E19*(1-$C$7),0) -> 16.644 | G19: =IF(G18<$C$6+$C$12,F19*(1-$C$7),0) -> 16.644 | H19: 16.644 | I19: 16.644 | J19: 16.644 | K19: 16.644 | L19: 16.644 | M19: 16.644 | N19: 16.644 | O19: 16.644 | P19: 16.644 | Q19: 16.644 | R19: 16.644 | S19: 16.644 | T19: 16.644 | U19: 16.644 | V19: 16.644 | W19: 16.644 | X19: 16.644 | Y19: 16.644 | Z19: 16.644 | AA19: 16.644 | AB19: 16.644 | AC19: 0 | AD19: 0 | AE19: 0 | AF19: 0 | AG19: 0 | AH19: 0 | AI19: 0 | AJ19: 0 | AK19: 0 | AL19: 0 | AM19: 0 | AN19: 0 | AO19: 0 | AP19: 0 | AQ19: 0
B20: Fuel requirement | C20: MT | D20: =IF(D18<$C$6+$C$12,D19*$C$13*100,0) -> 0 | E20: =IF(E18<$C$6+$C$12,E19*$C$13*100,0) -> 0 | F20: 0 | G20: 0 | H20: 0 | I20: 0 | J20: 0 | K20: 0 | L20: 0 | M20: 0 | N20: 0 | O20: 0 | P20: 0 | Q20: 0 | R20: 0 | S20: 0 | T20: 0 | U20: 0 | V20: 0 | W20: 0 | X20: 0 | Y20: 0 | Z20: 0 | AA20: 0 | AB20: 0 | AC20: 0 | AD20: 0 | AE20: 0 | AF20: 0 | AG20: 0 | AH20: 0 | AI20: 0 | AJ20: 0 | AK20: 0 | AL20: 0 | AM20: 0 | AN20: 0 | AO20: 0 | AP20: 0 | AQ20: 0
B21: Feedstock Price | C21: Rs/MT | D21: =C14 -> 0 | E21: =IF(E18<$C$6+$C$12,D21*(1+$C$15),0) -> 0 | F21: =IF(F18<$C$6+$C$12,E21*(1+$C$15),0) -> 0 | G21: 0 | H21: 0 | I21: 0 | J21: 0 | K21: 0 | L21: 0 | M21: 0 | N21: 0 | O21: 0 | P21: 0 | Q21: 0 | R21: 0 | S21: 0 | T21: 0 | U21: 0 | V21: 0 | W21: 0 | X21: 0 | Y21: 0 | Z21: 0 | AA21: 0 | AB21: 0 | AC21: 0 | AD21: 0 | AE21: 0 | AF21: 0 | AG21: 0 | AH21: 0 | AI21: 0 | AJ21: 0 | AK21: 0 | AL21: 0 | AM21: 0 | AN21: 0 | AO21: 0 | AP21: 0 | AQ21: 0
B22: Fuel Cost | C22: Rs lakhs | D22: =D21*D20/10^5 -> 0 | E22: =E21*E20/10^5 -> 0 | F22: 0 | G22: 0 | H22: 0 | I22: 0 | J22: 0 | K22: 0 | L22: 0 | M22: 0 | N22: 0 | O22: 0 | P22: 0 | Q22: 0 | R22: 0 | S22: 0 | T22: 0 | U22: 0 | V22: 0 | W22: 0 | X22: 0 | Y22: 0 | Z22: 0 | AA22: 0 | AB22: 0 | AC22: 0 | AD22: 0 | AE22: 0 | AF22: 0 | AG22: 0 | AH22: 0 | AI22: 0 | AJ22: 0 | AK22: 0 | AL22: 0 | AM22: 0 | AN22: 0 | AO22: 0 | AP22: 0 | AQ22: 0

Sheet Depreciation
E2: Depreciation
B3: Inputs | C3: Value | D3: Unit
B4: State | C4: =StateIP -> CERC
B5: Technology | C5: =TechnologyIP -> Solar PV
B6: Project Start Year | C6: ='Inputs&Summary'!D14 -> 2014 | D6: -
B7: CapEx | C7: ='Inputs&Summary'!D41*'Inputs&Summary'!D34 -> 691 | D7: Rs Lacs
B8: Project Capitalized during 2nd half of Financial Year | C8: Yes | D8: Yes/No
B9: Auxiliary Consumption 1st Year | C9: =IF($C$5="Biomass Rankine Cycle",'Inputs&Summary'!$D$37+0.01,'Inputs&Summary'!$D$37) -> 0 | D9: %
B10: Auxiliary Consumption 2nd Year onwards | C10: ='Inputs&Summary'!D37 -> 0 | D10: %
B11: ='Inputs&Summary'!C40 -> Life of Plant and Machinery / Project Life | C11: ='Inputs&Summary'!D40 -> 25 | D11: ='Inputs&Summary'!F40 -> years
B12: Annual Depreciation for period of term loan | C12: =C7*'Inputs&Summary'!D66 -> 40.2853 | D12: Lakhs/yr
B13: Advance Against Depreciation | C13: 0 | D13: Lakhs/yr
B14: Amount remaining to be depreciated post-term loan | C14: ='Inputs&Summary'!D65-('Inputs&Summary'!D68*$C$12) -> 138.4764 | D14: Lakhs
B15: Depreciation for remaining years (post-term loan) | C15: =C14/'Inputs&Summary'!D69 -> 10.65203077 | D15: Lakhs/yr
B16: ='Inputs&Summary'!C70 -> Book depreciation first year | C16: ='Inputs&Summary'!D70 -> 0.0264 | D16: %
B17: ='Inputs&Summary'!C71 -> Book depreciation from second year | C17: ='Inputs&Summary'!D71 -> 0.0528 | D17: %
B18: Depreciable Amount | C18: ='Inputs&Summary'!D65 -> 621.9 | D18: Rs Lacs
B19: ='Inputs&Summary'!C72 -> Accelerated Depreciation (AD) first year | C19: ='Inputs&Summary'!D72 -> 0.4 | D19: %
B20: ='Inputs&Summary'!C73 -> AD from second year | C20: ='Inputs&Summary'!D73 -> 0.8 | D20: %
B21: Adjusted AD 1st Year | C21: =$C$19+10% -> 0.5 | D21: %
B22: Adjusted AD 2nd Year | C22: =C20+10% -> 0.9 | D22: %
B23: Discount Rate | C23: ='Inputs&Summary'!D89 -> 0.10668289 | D23: %
B24: Plant&Machinery Income Tax Depreciation | C24: 0.15 | D24: %
B25: ='Inputs&Summary'!C76 -> Corporate Tax Rate | C25: ='Inputs&Summary'!D76 -> 0.3399 | D25: ='Inputs&Summary'!F76 -> %
B27: Year | C27: =$C$6 -> 2014 | D27: =C27+1 -> 2015 | E27: =D27+1 -> 2016 | F27: 2017 | G27: 2018 | H27: 2019 | I27: 2020 | J27: 2021 | K27: 2022 | L27: 2023 | M27: 2024 | N27: 2025 | O27: 2026 | P27: 2027 | Q27: 2028 | R27: 2029 | S27: 2030 | T27: 2031 | U27: 2032 | V27: 2033 | W27: 2034 | X27: 2035 | Y27: 2036 | Z27: 2037 | AA27: 2038 | AB27: 2039 | AC27: 2040 | AD27: 2041 | AE27: 2042 | AF27: 2043 | AG27: 2044 | AH27: 2045 | AI27: 2046 | AJ27: 2047 | AK27: 2048 | AL27: 2049 | AM27: 2050 | AN27: 2051 | AO27: 2052 | AP27: 2053
B28: Net Energy sold (lakh kWhs) | C28: =Fuel!D19*(1-Depreciation!$C$9) -> 16.644 | D28: =Fuel!E19*(1-Depreciation!$C$10) -> 16.644 | E28: =Fuel!F19*(1-Depreciation!$C$10) -> 16.644 | F28: =Fuel!G19*(1-Depreciation!$C$10) -> 16.644 | G28: =Fuel!H19*(1-Depreciation!$C$10) -> 16.644 | H28: =Fuel!I19*(1-Depreciation!$C$10) -> 16.644 | I28: =Fuel!J19*(1-Depreciation!$C$10) -> 16.644 | J28: =Fuel!K19*(1-Depreciation!$C$10) -> 16.644 | K28: =Fuel!L19*(1-Depreciation!$C$10) -> 16.644 | L28: =Fuel!M19*(1-Depreciation!$C$10) -> 16.644 | M28: =Fuel!N19*(1-Depreciation!$C$10) -> 16.644 | N28: =Fuel!O19*(1-Depreciation!$C$10) -> 16.644 | O28: =Fuel!P19*(1-Depreciation!$C$10) -> 16.644 | P28: =Fuel!Q19*(1-Depreciation!$C$10) -> 16.644 | Q28: =Fuel!R19*(1-Depreciation!$C$10) -> 16.644 | R28: =Fuel!S19*(1-Depreciation!$C$10) -> 16.644 | S28: =Fuel!T19*(1-Depreciation!$C$10) -> 16.644 | T28: =Fuel!U19*(1-Depreciation!$C$10) -> 16.644 | U28: =Fuel!V19*(1-Depreciation!$C$10) -> 16.644 | V28: =Fuel!W19*(1-Depreciation!$C$10) -> 16.644 | W28: =Fuel!X19*(1-Depreciation!$C$10) -> 16.644 | X28: =Fuel!Y19*(1-Depreciation!$C$10) -> 16.644 | Y28: =Fuel!Z19*(1-Depreciation!$C$10) -> 16.644 | Z28: =Fuel!AA19*(1-Depreciation!$C$10) -> 16.644 | AA28: =Fuel!AB19*(1-Depreciation!$C$10) -> 16.644 | AB28: =Fuel!AC19*(1-Depreciation!$C$10) -> 0 | AC28: =Fuel!AD19*(1-Depreciation!$C$10) -> 0 | AD28: =Fuel!AE19*(1-Depreciation!$C$10) -> 0 | AE28: =Fuel!AF19*(1-Depreciation!$C$10) -> 0 | AF28: =Fuel!AG19*(1-Depreciation!$C$10) -> 0 | AG28: =Fuel!AH19*(1-Depreciation!$C$10) -> 0 | AH28: =Fuel!AI19*(1-Depreciation!$C$10) -> 0 | AI28: =Fuel!AJ19*(1-Depreciation!$C$10) -> 0 | AJ28: =Fuel!AK19*(1-Depreciation!$C$10) -> 0 | AK28: =Fuel!AL19*(1-Depreciation!$C$10) -> 0 | AL28: =Fuel!AM19*(1-Depreciation!$C$10) -> 0 | AM28: =Fuel!AN19*(1-Depreciation!$C$10) -> 0 | AN28: =Fuel!AO19*(1-Depreciation!$C$10) -> 0 | AO28: =Fuel!AP19*(1-Depreciation!$C$10) -> 0 | AP28: =Fuel!AQ19*(1-Depreciation!$C$10) -> 0
B29: SLM and Accelerated Depreciation Benefit Calculations
B30: Book depreciation | C30: =C16*C7 -> 18.2424 | D30: =IF(D27<$C$6+$C$11,IF(($C$17*$C$7+C31)<$C$18, $C$17*$C$7, ($C$18-C31)),0) -> 36.4848 | E30: 36.4848 | F30: 36.4848 | G30: 36.4848 | H30: 36.4848 | I30: 36.4848 | J30: 36.4848 | K30: 36.4848 | L30: 36.4848 | M30: 36.4848 | N30: 36.4848 | O30: 36.4848 | P30: 36.4848 | Q30: 36.4848 | R30: 36.4848 | S30: 36.4848 | T30: 19.9008 | U30: 0 | V30: 0 | W30: 0 | X30: 0 | Y30: 0 | Z30: 0 | AA30: 0 | AB30: 0 | AC30: 0 | AD30: 0 | AE30: 0 | AF30: 0 | AG30: 0 | AH30: 0 | AI30: 0 | AJ30: 0 | AK30: 0 | AL30: 0 | AM30: 0 | AN30: 0 | AO30: 0 | AP30: 0
B31: Cumulative Book Depreciation | C31: =C30 -> 18.2424 | D31: =IF(D27<$C$6+$C$11,C31+D30,0) -> 54.7272 | E31: 91.212 | F31: 127.6968 | G31: 164.1816 | H31: 200.6664 | I31: 237.1512 | J31: 273.636 | K31: 310.1208 | L31: 346.6056 | M31: 383.0904 | N31: 419.5752 | O31: 456.06 | P31: 492.5448 | Q31: 529.0296 | R31: 565.5144 | S31: 601.9992 | T31: 621.9 | U31: 621.9 | V31: 621.9 | W31: 621.9 | X31: 621.9 | Y31: 621.9 | Z31: 621.9 | AA31: 621.9 | AB31: 0 | AC31: 0 | AD31: 0 | AE31: 0 | AF31: 0 | AG31: 0 | AH31: 0 | AI31: 0 | AJ31: 0 | AK31: 0 | AL31: 0 | AM31: 0 | AN31: 0 | AO31: 0 | AP31: 0
B32: Plant & Machinery Depreciation | C32: =$C$24*$C$7 -> 103.65 | D32: =IF(D27<$C$6+$C$11,($C$7-C33)*$C$24,0) -> 88.1025 | E32: 74.887125 | F32: 63.65405625 | G32: 54.10594781 | H32: 45.99005564 | I32: 39.09154729 | J32: 33.2278152 | K32: 28.24364292 | L32: 24.00709648 | M32: 20.40603201 | N32: 17.34512721 | O32: 14.74335813 | P32: 12.53185441 | Q32: 10.65207625 | R32: 9.05426481 | S32: 7.696125088 | T32: 6.541706325 | U32: 5.560450376 | V32: 4.72638282 | W32: 4.017425397 | X32: 3.414811587 | Y32: 2.902589849 | Z32: 2.467201372 | AA32: 2.097121166 | AB32: 0 | AC32: 0 | AD32: 0 | AE32: 0 | AF32: 0 | AG32: 0 | AH32: 0 | AI32: 0 | AJ32: 0 | AK32: 0 | AL32: 0 | AM32: 0 | AN32: 0 | AO32: 0 | AP32: 0
B33: Cumulative Plant & Machinery Depreciation | C33: =$C$32 -> 103.65 | D33: =IF(D27<$C$6+$C$11,C33+D32,0) -> 191.7525 | E33: 266.639625 | F33: 330.2936813 | G33: 384.3996291 | H33: 430.3896847 | I33: 469.481232 | J33: 502.7090472 | K33: 530.9526901 | L33: 554.9597866 | M33: 575.3658186 | N33: 592.7109458 | O33: 607.4543039 | P33: 619.9861584 | Q33: 630.6382346 | R33: 639.6924994 | S33: 647.3886245 | T33: 653.9303308 | U33: 659.4907812 | V33: 664.217164 | W33: 668.2345894 | X33: 671.649401 | Y33: 674.5519909 | Z33: 677.0191922 | AA33: 679.1163134 | AB33: 0 | AC33: 0 | AD33: 0 | AE33: 0 | AF33: 0 | AG33: 0 | AH33: 0 | AI33: 0 | AJ33: 0 | AK33: 0 | AL33: 0 | AM33: 0 | AN33: 0 | AO33: 0 | AP33: 0
B34: Opening AD beginning of year | C34: 1 | D34: =IF(D27<$C$6+$C$11,C34-C35,"-") -> 0.5 | E34: =IF(E27<$C$6+$C$11,D34-D35,"-") -> 0.05 | F34: 0.01 | G34: 0.002 | H34: 0.0004 | I34: 8e-05 | J34: 1.6e-05 | K34: 3.2e-06 | L34: 6.4e-07 | M34: 1.28e-07 | N34: 2.56e-08 | O34: 5.12e-09 | P34: 1.024e-09 | Q34: 2.048e-10 | R34: 4.096e-11 | S34: 8.192e-12 | T34: 1.6384e-12 | U34: 3.2768e-13 | V34: 6.5536e-14 | W34: 1.31072e-14 | X34: 2.62144e-15 | Y34: 5.24288e-16 | Z34: 1.048576e-16 | AA34: 2.097152e-17 | AB34: - | AC34: - | AD34: - | AE34: - | AF34: - | AG34: - | AH34: - | AI34: - | AJ34: - | AK34: - | AL34: - | AM34: - | AN34: - | AO34: - | AP34: -
B35: Allowed AD during year | C35: =C21 -> 0.5 | D35: =$C$22*D34 -> 0.45 | E35: =IF(E27<$C$6+$C$11,$C$20*E34,"-") -> 0.04 | F35: =IF(F27<$C$6+$C$11,$C$20*F34,"-") -> 0.008 | G35: 0.0016 | H35: 0.00032 | I35: 6.4e-05 | J35: 1.28e-05 | K35: 2.56e-06 | L35: 5.12e-07 | M35: 1.024e-07 | N35: 2.048e-08 | O35: 4.096e-09 | P35: 8.192e-10 | Q35: 1.6384e-10 | R35: 3.2768e-11 | S35: 6.5536e-12 | T35: 1.31072e-12 | U35: 2.62144e-13 | V35: 5.24288e-14 | W35: 1.048576e-14 | X35: 2.097152e-15 | Y35: 4.194304e-16 | Z35: 8.388608e-17 | AA35: 1.6777216e-17 | AB35: - | AC35: - | AD35: - | AE35: - | AF35: - | AG35: - | AH35: - | AI35: - | AJ35: - | AK35: - | AL35: - | AM35: - | AN35: - | AO35: - | AP35: -
B36: Acclerated Depreciation | C36: =C35*C7 -> 345.5 | D36: =IF(D27<$C$6+$C$11,($C$7-C37)*$C$22,0) -> 310.95 | E36: =IF(E27<$C$6+$C$11,($C$7-D37)*$C$20,0) -> 27.64 | F36: 5.528 | G36: 1.1056 | H36: 0.22112 | I36: 0.044224 | J36: 0.0088448 | K36: 0.00176896 | L36: 0.000353792 | M36: 7.075840003e-05 | N36: 1.415167999e-05 | O36: 2.830335961e-06 | P36: 5.660672286e-07 | Q36: 1.132134457e-07 | R36: 2.264268915e-08 | S36: 4.528556019e-09 | T36: 9.05674824e-10 | U36: 1.811713446e-10 | V36: 3.619788913e-11 | W36: 7.275957614e-12 | X36: 1.455191523e-12 | Y36: 2.728484105e-13 | Z36: 9.094947018e-14 | AA36: 0 | AB36: 0 | AC36: 0 | AD36: 0 | AE36: 0 | AF36: 0 | AG36: 0 | AH36: 0 | AI36: 0 | AJ36: 0 | AK36: 0 | AL36: 0 | AM36: 0 | AN36: 0 | AO36: 0 | AP36: 0
B37: Cumulative Accelerated Depreciation | C37: =C36 -> 345.5 | D37: =IF(D27<$C$6+$C$11,C37+D36,0) -> 656.45 | E37: 684.09 | F37: 689.618 | G37: 690.7236 | H37: 690.94472 | I37: 690.988944 | J37: 690.9977888 | K37: 690.9995578 | L37: 690.9999116 | M37: 690.9999823 | N37: 690.9999965 | O37: 690.9999993 | P37: 690.9999999 | Q37: 691 | R37: 691 | S37: 691 | T37: 691 | U37: 691 | V37: 691 | W37: 691 | X37: 691 | Y37: 691 | Z37: 691 | AA37: 691 | AB37: 0 | AC37: 0 | AD37: 0 | AE37: 0 | AF37: 0 | AG37: 0 | AH37: 0 | AI37: 0 | AJ37: 0 | AK37: 0 | AL37: 0 | AM37: 0 | AN37: 0 | AO37: 0 | AP37: 0
B38: Net depreciation benefit (AD-Book Depreciation) | C38: =C36-C30 -> 327.2576 | D38: 274.4652 | E38: -8.8448 | F38: -30.9568 | G38: -35.3792 | H38: -36.26368 | I38: -36.440576 | J38: -36.4759552 | K38: -36.48303104 | L38: -36.48444621 | M38: -36.48472924 | N38: -36.48478585 | O38: -36.48479717 | P38: -36.48479943 | Q38: -36.48479989 | R38: -36.48479998 | S38: -36.4848 | T38: -19.9008 | U38: 1.811713446e-10 | V38: 3.619788913e-11 | W38: 7.275957614e-12 | X38: 1.455191523e-12 | Y38: 2.728484105e-13 | Z38: 9.094947018e-14 | AA38: 0 | AB38: 0 | AC38: 0 | AD38: 0 | AE38: 0 | AF38: 0 | AG38: 0 | AH38: 0 | AI38: 0 | AJ38: 0 | AK38: 0 | AL38: 0 | AM38: 0 | AN38: 0 | AO38: 0 | AP38: 0
B39: Net tax benefit (AD-Book Depreciation) | C39: =$C$25*C38 -> 111.2348582 | D39: 93.29072148 | E39: -3.00634752 | F39: -10.52221632 | G39: -12.02539008 | H39: -12.32602483 | I39: -12.38615178 | J39: -12.39817717 | K39: -12.40058225 | L39: -12.40106327 | M39: -12.40115947 | N39: -12.40117871 | O39: -12.40118256 | P39: -12.40118333 | Q39: -12.40118348 | R39: -12.40118351 | S39: -12.40118352 | T39: -6.76428192 | U39: 6.158014003e-11 | V39: 1.230366252e-11 | W39: 2.473097993e-12 | X39: 4.946195986e-13 | Y39: 9.274117474e-14 | Z39: 3.091372491e-14 | AA39: 0 | AB39: 0 | AC39: 0 | AD39: 0 | AE39: 0 | AF39: 0 | AG39: 0 | AH39: 0 | AI39: 0 | AJ39: 0 | AK39: 0 | AL39: 0 | AM39: 0 | AN39: 0 | AO39: 0 | AP39: 0
B40: Benefit/kWh | C40: =IF(C28>0,IF($C$8="Yes",C39/(C28/2),C39/C28),0) -> 13.36636124 | D40: =IF(D28>0,D39/D28,0) -> 5.605066179 | E40: -0.1806265032 | F40: -0.6321927614 | G40: -0.722506013 | H40: -0.7405686633 | I40: -0.7441811934 | J40: -0.7449036994 | K40: -0.7450482006 | L40: -0.7450771008 | M40: -0.7450828809 | N40: -0.7450840369 | O40: -0.7450842681 | P40: -0.7450843143 | Q40: -0.7450843236 | R40: -0.7450843254 | S40: -0.7450843258 | T40: -0.4064096323 | U40: 3.699840184e-12 | V40: 7.392250971e-13 | W40: 1.485879592e-13 | X40: 2.971759184e-14 | Y40: 5.57204847e-15 | Z40: 1.85734949e-15 | AA40: 0 | AB40: 0 | AC40: 0 | AD40: 0 | AE40: 0 | AF40: 0 | AG40: 0 | AH40: 0 | AI40: 0 | AJ40: 0 | AK40: 0 | AL40: 0 | AM40: 0 | AN40: 0 | AO40: 0 | AP40: 0
B41: Discounting Factor for AD (CERC Method - Capitalized 2nd half of year) | C41: 1 | D41: =C41/(1+'Inputs&Summary'!$D$89/2) -> 0.9493597776 | E41: =D41/(1+'Inputs&Summary'!$D$89) -> 0.8578426451 | F41: =E41/(1+'Inputs&Summary'!$D$89) -> 0.7751476533 | G41: =F41/(1+'Inputs&Summary'!$D$89) -> 0.7004243585 | H41: =G41/(1+'Inputs&Summary'!$D$89) -> 0.6329042988 | I41: =H41/(1+'Inputs&Summary'!$D$89) -> 0.5718930911 | J41: =I41/(1+'Inputs&Summary'!$D$89) -> 0.5167632899 | K41: =J41/(1+'Inputs&Summary'!$D$89) -> 0.4669479347 | L41: =K41/(1+'Inputs&Summary'!$D$89) -> 0.4219347194 | M41: =L41/(1+'Inputs&Summary'!$D$89) -> 0.3812607236 | N41: =M41/(1+'Inputs&Summary'!$D$89) -> 0.3445076517 | O41: =N41/(1+'Inputs&Summary'!$D$89) -> 0.3112975314 | P41: =O41/(1+'Inputs&Summary'!$D$89) -> 0.2812888265 | Q41: =P41/(1+'Inputs&Summary'!$D$89) -> 0.2541729243 | R41: =Q41/(1+'Inputs&Summary'!$D$89) -> 0.2296709623 | S41: =R41/(1+'Inputs&Summary'!$D$89) -> 0.2075309598 | T41: =S41/(1+'Inputs&Summary'!$D$89) -> 0.1875252266 | U41: =T41/(1+'Inputs&Summary'!$D$89) -> 0.169448022 | V41: =U41/(1+'Inputs&Summary'!$D$89) -> 0.1531134379 | W41: =V41/(1+'Inputs&Summary'!$D$89) -> 0.138353488 | X41: =W41/(1+'Inputs&Summary'!$D$89) -> 0.1250163793 | Y41: =X41/(1+'Inputs&Summary'!$D$89) -> 0.1129649518 | Z41: =Y41/(1+'Inputs&Summary'!$D$89) -> 0.1020752673 | AA41: =Z41/(1+'Inputs&Summary'!$D$89) -> 0.09223533517 | AB41: =AA41/(1+'Inputs&Summary'!$D$89) -> 0.08334396059 | AC41: =AB41/(1+'Inputs&Summary'!$D$89) -> 0.07530970375 | AD41: =AC41/(1+'Inputs&Summary'!$D$89) -> 0.06804993953 | AE41: =AD41/(1+'Inputs&Summary'!$D$89) -> 0.0614900078 | AF41: =AE41/(1+'Inputs&Summary'!$D$89) -> 0.05556244553 | AG41: =AF41/(1+'Inputs&Summary'!$D$89) -> 0.05020629309 | AH41: =AG41/(1+'Inputs&Summary'!$D$89) -> 0.04536646725 | AI41: =AH41/(1+'Inputs&Summary'!$D$89) -> 0.04099319477 | AJ41: =AI41/(1+'Inputs&Summary'!$D$89) -> 0.03704150045 | AK41: =AJ41/(1+'Inputs&Summary'!$D$89) -> 0.03347074468 | AL41: =AK41/(1+'Inputs&Summary'!$D$89) -> 0.03024420543 | AM41: =AL41/(1+'Inputs&Summary'!$D$89) -> 0.02732870067 | AN41: =AM41/(1+'Inputs&Summary'!$D$89) -> 0.02469424703 | AO41: =AN41/(1+'Inputs&Summary'!$D$89) -> 0.02231375153 | AP41: =AO41/(1+'Inputs&Summary'!$D$89) -> 0.02016273291
B42: Annuity Factor (CERC Method - Capitalized 2nd half of year) | C42: =(1+1/(1+C23/2)+(1/(1+C23/2)*((1+C23)^(C11-2)-1)/(C23*(1+C23)^(C11-2)))) -> 9.983679456 | D42: =SUMIFS(C41:AP41,C28:AP28,"<>0") -> 9.983679456
B43: Levelized benefit-AD over Book Depreciation (CERC Method) | C43: =SUMPRODUCT(C39:AP39,C41:AP41)/C42/(SUM(C28/2,D28:AP28)/COUNTIF(C28:AP28,"<>0")) -> 0.7500210412 | D43: Rs/kWh
B44: Levelized benefit-AD over Book Depreciation (Std Method) | C44: =(NPV($C$23,C39:AP39))/'Inputs&Summary'!$D$90/(SUM(C28/2,D28:AP28)/COUNTIF(C28:AP28,"<>0")) -> 0.7806522571
B48: Accelerated Depreciation Benefit considering tax depreciation instead of book depreciation (for comparison) | C48: =$C$6 -> 2014 | D48: =C48+1 -> 2015 | E48: 2016 | F48: 2017 | G48: 2018 | H48: 2019 | I48: 2020 | J48: 2021 | K48: 2022 | L48: 2023 | M48: 2024 | N48: 2025 | O48: 2026 | P48: 2027 | Q48: 2028 | R48: 2029 | S48: 2030 | T48: 2031 | U48: 2032 | V48: 2033 | W48: 2034 | X48: 2035 | Y48: 2036 | Z48: 2037 | AA48: 2038 | AB48: 2039 | AC48: 2040 | AD48: 2041 | AE48: 2042 | AF48: 2043 | AG48: 2044 | AH48: 2045 | AI48: 2046 | AJ48: 2047 | AK48: 2048 | AL48: 2049 | AM48: 2050 | AN48: 2051 | AO48: 2052 | AP48: 2053
B49: Net depreciation benefit (AD-Tax Depreciation) | C49: =C36-C32 -> 241.85 | D49: 222.8475 | E49: -47.247125 | F49: -58.12605625 | G49: -53.00034781 | H49: -45.76893564 | I49: -39.04732329 | J49: -33.2189704 | K49: -28.24187396 | L49: -24.00674269 | M49: -20.40596125 | N49: -17.34511306 | O49: -14.7433553 | P49: -12.53185384 | Q49: -10.65207613 | R49: -9.054264787 | S49: -7.696125084 | T49: -6.541706324 | U49: -5.560450376 | V49: -4.72638282 | W49: -4.017425397 | X49: -3.414811587 | Y49: -2.902589849 | Z49: -2.467201372 | AA49: -2.097121166 | AB49: 0 | AC49: 0 | AD49: 0 | AE49: 0 | AF49: 0 | AG49: 0 | AH49: 0 | AI49: 0 | AJ49: 0 | AK49: 0 | AL49: 0 | AM49: 0 | AN49: 0 | AO49: 0 | AP49: 0
B50: Net tax benefit (AD-Tax Depreciation) | C50: =C49*$C$25 -> 82.204815 | D50: 75.74586525 | E50: -16.05929779 | F50: -19.75704652 | G50: -18.01481822 | H50: -15.55686122 | I50: -13.27218519 | J50: -11.29112804 | K50: -9.599412959 | L50: -8.15989184 | M50: -6.935986229 | N50: -5.895603928 | O50: -5.011266465 | P50: -4.259577121 | Q50: -3.620640678 | R50: -3.077544601 | S50: -2.615912916 | T50: -2.22352598 | U50: -1.889997083 | V50: -1.60649752 | W50: -1.365522892 | X50: -1.160694459 | Y50: -0.9865902898 | Z50: -0.8386017463 | AA50: -0.7128114844 | AB50: 0 | AC50: 0 | AD50: 0 | AE50: 0 | AF50: 0 | AG50: 0 | AH50: 0 | AI50: 0 | AJ50: 0 | AK50: 0 | AL50: 0 | AM50: 0 | AN50: 0 | AO50: 0 | AP50: 0
B51: Benefit (AD-Tax Depreciation)/kWh | C51: =IF(C28>0,C50/C28,0) -> 4.939005948 | D51: 4.550941195 | E51: -0.9648700906 | F51: -1.187037162 | G51: -1.082361104 | H51: -0.9346828421 | I51: -0.7974155965 | J51: -0.6783902931 | K51: -0.5767491564 | L51: -0.4902602644 | M51: -0.416725921 | N51: -0.3542179721 | O51: -0.3010854642 | P51: -0.2559226821 | Q51: -0.2175342873 | R51: -0.1849041457 | S51: -0.1571685242 | T51: -0.1335932456 | U51: -0.1135542588 | V51: -0.09652111995 | W51: -0.08204295196 | X51: -0.06973650917 | Y51: -0.05927603279 | Z51: -0.05038462787 | AA51: -0.04282693369 | AB51: 0 | AC51: 0 | AD51: 0 | AE51: 0 | AF51: 0 | AG51: 0 | AH51: 0 | AI51: 0 | AJ51: 0 | AK51: 0 | AL51: 0 | AM51: 0 | AN51: 0 | AO51: 0 | AP51: 0
B52: Levelized benefit-AD over Tax Depreciation | C52: =(NPV($C$23,C51:AP51))/'Inputs&Summary'!$D$90 -> 0.444213368 | D52: Rs/kWh

Sheet W Capital
J2: Working Capital
B3: Inputs | C3: Value | D3: Units
B4: State | C4: =StateIP -> CERC
B5: Technology | C5: =TechnologyIP -> Solar PV
B6: Project Start Year | C6: ='Inputs&Summary'!D14 -> 2014 | D6: -
B7: ='Inputs&Summary'!C34 -> Capacity | C7: ='Inputs&Summary'!D34 -> 1 | D7: ='Inputs&Summary'!F34 -> MW
B8: ='Inputs&Summary'!C40 -> Life of Plant and Machinery / Project Life | C8: ='Inputs&Summary'!D40 -> 25 | D8: ='Inputs&Summary'!F40 -> years
B9: ='Inputs&Summary'!C42 -> O&M cost | C9: ='Inputs&Summary'!D42 -> 12.3 | D9: ='Inputs&Summary'!F42 -> Rs Lacs / MW
B10: ='Inputs&Summary'!C43 -> O&M Cost Esclation | C10: ='Inputs&Summary'!D43 -> 0.0572 | D10: ='Inputs&Summary'!F43 -> %
B11: ='Inputs&Summary'!C44 -> Maintenance spares | C11: ='Inputs&Summary'!D44 -> 0.15 | D11: ='Inputs&Summary'!F44 -> % of yearly O&M Cost
B12: ='Inputs&Summary'!C61 -> Interest on working capital | C12: ='Inputs&Summary'!D61 -> 0.132 | D12: ='Inputs&Summary'!F61 -> %
B14: Working Capital | C14: =C6 -> 2014 | D14: =C14+1 -> 2015 | E14: =D14+1 -> 2016 | F14: 2017 | G14: 2018 | H14: 2019 | I14: 2020 | J14: 2021 | K14: 2022 | L14: 2023 | M14: 2024 | N14: 2025 | O14: 2026 | P14: 2027 | Q14: 2028 | R14: 2029 | S14: 2030 | T14: 2031 | U14: 2032 | V14: 2033 | W14: 2034 | X14: 2035 | Y14: 2036 | Z14: 2037 | AA14: 2038 | AB14: 2039 | AC14: 2040 | AD14: 2041 | AE14: 2042 | AF14: 2043 | AG14: 2044 | AH14: 2045 | AI14: 2046 | AJ14: 2047 | AK14: 2048 | AL14: 2049 | AM14: 2050 | AN14: 2051 | AO14: 2052 | AP14: 2053
B15: Fuel Cost (4 months equivalent) | C15: =Fuel!D22/3 -> 0 | D15: =Fuel!E22/3 -> 0 | E15: =Fuel!F22/3 -> 0 | F15: =Fuel!G22/3 -> 0 | G15: =Fuel!H22/3 -> 0 | H15: =Fuel!I22/3 -> 0 | I15: =Fuel!J22/3 -> 0 | J15: =Fuel!K22/3 -> 0 | K15: =Fuel!L22/3 -> 0 | L15: =Fuel!M22/3 -> 0 | M15: =Fuel!N22/3 -> 0 | N15: =Fuel!O22/3 -> 0 | O15: =Fuel!P22/3 -> 0 | P15: =Fuel!Q22/3 -> 0 | Q15: =Fuel!R22/3 -> 0 | R15: =Fuel!S22/3 -> 0 | S15: =Fuel!T22/3 -> 0 | T15: =Fuel!U22/3 -> 0 | U15: =Fuel!V22/3 -> 0 | V15: =Fuel!W22/3 -> 0 | W15: =Fuel!X22/3 -> 0 | X15: =Fuel!Y22/3 -> 0 | Y15: =Fuel!Z22/3 -> 0 | Z15: =Fuel!AA22/3 -> 0 | AA15: =Fuel!AB22/3 -> 0 | AB15: =Fuel!AC22/3 -> 0 | AC15: =Fuel!AD22/3 -> 0 | AD15: =Fuel!AE22/3 -> 0 | AE15: =Fuel!AF22/3 -> 0 | AF15: =Fuel!AG22/3 -> 0 | AG15: =Fuel!AH22/3 -> 0 | AH15: =Fuel!AI22/3 -> 0 | AI15: =Fuel!AJ22/3 -> 0 | AJ15: =Fuel!AK22/3 -> 0 | AK15: =Fuel!AL22/3 -> 0 | AL15: =Fuel!AM22/3 -> 0 | AM15: =Fuel!AN22/3 -> 0 | AN15: =Fuel!AO22/3 -> 0 | AO15: =Fuel!AP22/3 -> 0 | AP15: =Fuel!AQ22/3 -> 0
B16: O&M expenses for 1 month | C16: =$C$7*$C$9/12 -> 1.025 | D16: =IF(D14<$C$6+$C$8,C16*(1+$C$10),0) -> 1.08363 | E16: =IF(E14<$C$6+$C$8,D16*(1+$C$10),0) -> 1.145613636 | F16: 1.211142736 | G16: 1.2804201 | H16: 1.35366013 | I16: 1.43108949 | J16: 1.512947808 | K16: 1.599488423 | L16: 1.690979161 | M16: 1.787703169 | N16: 1.88995979 | O16: 1.99806549 | P16: 2.112354836 | Q16: 2.233181533 | R16: 2.360919517 | S16: 2.495964113 | T16: 2.63873326 | U16: 2.789668803 | V16: 2.949237858 | W16: 3.117934264 | X16: 3.296280104 | Y16: 3.484827325 | Z16: 3.684159448 | AA16: 3.894893369 | AB16: 0 | AC16: 0 | AD16: 0 | AE16: 0 | AF16: 0 | AG16: 0 | AH16: 0 | AI16: 0 | AJ16: 0 | AK16: 0 | AL16: 0 | AM16: 0 | AN16: 0 | AO16: 0 | AP16: 0
B17: Receivables (2 months of energy charges) | C17: =IF(C14<$C$6+$C$8,Depreciation!C28*(Tariff!C37+Tariff!C41)/6,0) -> 26.12374574 | D17: =IF(D14<$C$6+$C$8,Depreciation!D28*(Tariff!D37+Tariff!D41)/6,0) -> 25.37480737 | E17: =IF(E14<$C$6+$C$8,Depreciation!E28*(Tariff!E37+Tariff!E41)/6,0) -> 24.63293838 | F17: =IF(F14<$C$6+$C$8,Depreciation!F28*(Tariff!F37+Tariff!F41)/6,0) -> 23.89854315 | G17: =IF(G14<$C$6+$C$8,Depreciation!G28*(Tariff!G37+Tariff!G41)/6,0) -> 23.17204916 | H17: =IF(H14<$C$6+$C$8,Depreciation!H28*(Tariff!H37+Tariff!H41)/6,0) -> 22.45390838 | I17: =IF(I14<$C$6+$C$8,Depreciation!I28*(Tariff!I37+Tariff!I41)/6,0) -> 21.74630275 | J17: =IF(J14<$C$6+$C$8,Depreciation!J28*(Tariff!J37+Tariff!J41)/6,0) -> 21.04632911 | K17: =IF(K14<$C$6+$C$8,Depreciation!K28*(Tariff!K37+Tariff!K41)/6,0) -> 20.35622563 | L17: =IF(L14<$C$6+$C$8,Depreciation!L28*(Tariff!L37+Tariff!L41)/6,0) -> 19.67655689 | M17: =IF(M14<$C$6+$C$8,Depreciation!M28*(Tariff!M37+Tariff!M41)/6,0) -> 20.42100769 | N17: =IF(N14<$C$6+$C$8,Depreciation!N28*(Tariff!N37+Tariff!N41)/6,0) -> 19.76403317 | O17: =IF(O14<$C$6+$C$8,Depreciation!O28*(Tariff!O37+Tariff!O41)/6,0) -> 14.50567513 | P17: =IF(P14<$C$6+$C$8,Depreciation!P28*(Tariff!P37+Tariff!P41)/6,0) -> 14.74659427 | Q17: =IF(Q14<$C$6+$C$8,Depreciation!Q28*(Tariff!Q37+Tariff!Q41)/6,0) -> 15.00129398 | R17: =IF(R14<$C$6+$C$8,Depreciation!R28*(Tariff!R37+Tariff!R41)/6,0) -> 15.27056251 | S17: =IF(S14<$C$6+$C$8,Depreciation!S28*(Tariff!S37+Tariff!S41)/6,0) -> 15.55523321 | T17: =IF(T14<$C$6+$C$8,Depreciation!T28*(Tariff!T37+Tariff!T41)/6,0) -> 15.85618707 | U17: =IF(U14<$C$6+$C$8,Depreciation!U28*(Tariff!U37+Tariff!U41)/6,0) -> 16.17435549 | V17: =IF(V14<$C$6+$C$8,Depreciation!V28*(Tariff!V37+Tariff!V41)/6,0) -> 16.51072314 | W17: =IF(W14<$C$6+$C$8,Depreciation!W28*(Tariff!W37+Tariff!W41)/6,0) -> 16.86633102 | X17: =IF(X14<$C$6+$C$8,Depreciation!X28*(Tariff!X37+Tariff!X41)/6,0) -> 17.24227968 | Y17: =IF(Y14<$C$6+$C$8,Depreciation!Y28*(Tariff!Y37+Tariff!Y41)/6,0) -> 17.63973259 | Z17: =IF(Z14<$C$6+$C$8,Depreciation!Z28*(Tariff!Z37+Tariff!Z41)/6,0) -> 18.05991982 | AA17: =IF(AA14<$C$6+$C$8,Depreciation!AA28*(Tariff!AA37+Tariff!AA41)/6,0) -> 18.50414175 | AB17: =IF(AB14<$C$6+$C$8,Depreciation!AB28*(Tariff!AB37+Tariff!AB41)/6,0) -> 0 | AC17: =IF(AC14<$C$6+$C$8,Depreciation!AC28*(Tariff!AC37+Tariff!AC41)/6,0) -> 0 | AD17: =IF(AD14<$C$6+$C$8,Depreciation!AD28*(Tariff!AD37+Tariff!AD41)/6,0) -> 0 | AE17: =IF(AE14<$C$6+$C$8,Depreciation!AE28*(Tariff!AE37+Tariff!AE41)/6,0) -> 0 | AF17: =IF(AF14<$C$6+$C$8,Depreciation!AF28*(Tariff!AF37+Tariff!AF41)/6,0) -> 0 | AG17: =IF(AG14<$C$6+$C$8,Depreciation!AG28*(Tariff!AG37+Tariff!AG41)/6,0) -> 0 | AH17: =IF(AH14<$C$6+$C$8,Depreciation!AH28*(Tariff!AH37+Tariff!AH41)/6,0) -> 0 | AI17: =IF(AI14<$C$6+$C$8,Depreciation!AI28*(Tariff!AI37+Tariff!AI41)/6,0) -> 0 | AJ17: =IF(AJ14<$C$6+$C$8,Depreciation!AJ28*(Tariff!AJ37+Tariff!AJ41)/6,0) -> 0 | AK17: =IF(AK14<$C$6+$C$8,Depreciation!AK28*(Tariff!AK37+Tariff!AK41)/6,0) -> 0 | AL17: =IF(AL14<$C$6+$C$8,Depreciation!AL28*(Tariff!AL37+Tariff!AL41)/6,0) -> 0 | AM17: =IF(AM14<$C$6+$C$8,Depreciation!AM28*(Tariff!AM37+Tariff!AM41)/6,0) -> 0 | AN17: =IF(AN14<$C$6+$C$8,Depreciation!AN28*(Tariff!AN37+Tariff!AN41)/6,0) -> 0 | AO17: =IF(AO14<$C$6+$C$8,Depreciation!AO28*(Tariff!AO37+Tariff!AO41)/6,0) -> 0 | AP17: =IF(AP14<$C$6+$C$8,Depreciation!AP28*(Tariff!AP37+Tariff!AP41)/6,0) -> 0
B18: Maintenance spare | C18: =C16*$C$11*12 -> 1.845 | D18: =D16*$C$11*12 -> 1.950534 | E18: 2.062104545 | F18: 2.180056925 | G18: 2.304756181 | H18: 2.436588234 | I18: 2.575961081 | J18: 2.723306055 | K18: 2.879079162 | L18: 3.04376249 | M18: 3.217865704 | N18: 3.401927622 | O18: 3.596517882 | P18: 3.802238705 | Q18: 4.019726759 | R18: 4.24965513 | S18: 4.492735403 | T18: 4.749719868 | U18: 5.021403845 | V18: 5.308628145 | W18: 5.612281675 | X18: 5.933304186 | Y18: 6.272689186 | Z18: 6.631487007 | AA18: 7.010808064 | AB18: 0 | AC18: 0 | AD18: 0 | AE18: 0 | AF18: 0 | AG18: 0 | AH18: 0 | AI18: 0 | AJ18: 0 | AK18: 0 | AL18: 0 | AM18: 0 | AN18: 0 | AO18: 0 | AP18: 0
B19: Total working capital | C19: =SUM(C15:C18) -> 28.99374574 | D19: 28.40897137 | E19: 27.84065656 | F19: 27.28974281 | G19: 26.75722544 | H19: 26.24415674 | I19: 25.75335332 | J19: 25.28258297 | K19: 24.83479322 | L19: 24.41129854 | M19: 25.42657656 | N19: 25.05592058 | O19: 20.1002585 | P19: 20.66118781 | Q19: 21.25420227 | R19: 21.88113716 | S19: 22.54393272 | T19: 23.24464019 | U19: 23.98542813 | V19: 24.76858914 | W19: 25.59654696 | X19: 26.47186397 | Y19: 27.3972491 | Z19: 28.37556627 | AA19: 29.40984318 | AB19: 0 | AC19: 0 | AD19: 0 | AE19: 0 | AF19: 0 | AG19: 0 | AH19: 0 | AI19: 0 | AJ19: 0 | AK19: 0 | AL19: 0 | AM19: 0 | AN19: 0 | AO19: 0 | AP19: 0
B20: Interest on working capital | C20: =C19*$C$12 -> 3.827174438 | D20: =D19*$C$12 -> 3.749984221 | E20: 3.674966666 | F20: 3.602246051 | G20: 3.531953758 | H20: 3.46422869 | I20: 3.399442639 | J20: 3.337300952 | K20: 3.278192704 | L20: 3.222291407 | M20: 3.356308106 | N20: 3.307381516 | O20: 2.653234122 | P20: 2.727276791 | Q20: 2.8055547 | R20: 2.888310105 | S20: 2.975799119 | T20: 3.068292506 | U20: 3.166076514 | V20: 3.269453767 | W20: 3.378744199 | X20: 3.494286043 | Y20: 3.616436882 | Z20: 3.745574748 | AA20: 3.8820993 | AB20: 0 | AC20: 0 | AD20: 0 | AE20: 0 | AF20: 0 | AG20: 0 | AH20: 0 | AI20: 0 | AJ20: 0 | AK20: 0 | AL20: 0 | AM20: 0 | AN20: 0 | AO20: 0 | AP20: 0

Sheet Tariff
J2: Tariff Calculations
B3: Inputs | C3: Value | D3: Units
B4: State | C4: =StateIP -> CERC
B5: Technology | C5: =TechnologyIP -> Solar PV
B6: Project Start Year | C6: ='Inputs&Summary'!D14 -> 2014 | D6: -
B7: ='Inputs&Summary'!C34 -> Capacity | C7: ='Inputs&Summary'!D34 -> 1 | D7: ='Inputs&Summary'!F34 -> MW
B8: ='Inputs&Summary'!C38 -> Annual Net Generation | C8: ='Inputs&Summary'!D38 -> 16.644 | D8: ='Inputs&Summary'!F38 -> Lakh kWhs
B9: ='Inputs&Summary'!C39 -> Annual Derated Capacity | C9: ='Inputs&Summary'!D39 -> 0 | D9: ='Inputs&Summary'!F39 -> %
B10: ='Inputs&Summary'!C40 -> Life of Plant and Machinery / Project Life | C10: ='Inputs&Summary'!D40 -> 25 | D10: ='Inputs&Summary'!F40 -> years
B11: ='Inputs&Summary'!C68 -> Number of years for initial depreciation rate | C11: ='Inputs&Summary'!D68 -> 12 | D11: ='Inputs&Summary'!F68 -> years
B12: ='Inputs&Summary'!C49 -> Equity | C12: ='Inputs&Summary'!D49 -> 207.3 | D12: ='Inputs&Summary'!F49 -> Rs lacs
B13: ='Inputs&Summary'!C85 -> Return on Equity - pretax (initial years) | C13: ='Inputs&Summary'!D85 -> 0.2 | D13: ='Inputs&Summary'!F85 -> %
B14: ='Inputs&Summary'!C87 -> Return on Equity - pretax (later years) | C14: ='Inputs&Summary'!D87 -> 0.24 | D14: ='Inputs&Summary'!F87 -> %
B15: ='Inputs&Summary'!C86 -> Number of years for initial return on equity | C15: ='Inputs&Summary'!D86 -> 10 | D15: ='Inputs&Summary'!F86 -> years
B16: ='Inputs&Summary'!C42 -> O&M cost | C16: ='Inputs&Summary'!D42 -> 12.3 | D16: ='Inputs&Summary'!F42 -> Rs Lacs / MW
B17: ='Inputs&Summary'!C43 -> O&M Cost Esclation | C17: ='Inputs&Summary'!D43 -> 0.0572 | D17: ='Inputs&Summary'!F43 -> %
B18: ='Inputs&Summary'!C89 -> Discount Rate | C18: ='Inputs&Summary'!D89 -> 0.10668289 | D18: ='Inputs&Summary'!F89 -> %
B19: ='Inputs&Summary'!C90 -> Annuity Factor | C19: ='Inputs&Summary'!D90 -> 8.62999838
B20: ='Inputs&Summary'!C26 -> Battery Cost at Project Start | C20: =IF('Inputs&Summary'!$D$16="Off-grid Solar PV",'Inputs&Summary'!D26*Generation_Distribution!$C$14*10^3/10^5,0) -> 0 | D20: Rs lacs
B21: ='Inputs&Summary'!C27 -> Battery Life | C21: ='Inputs&Summary'!D27 -> 5 | D21: ='Inputs&Summary'!F27 -> years
B22: Battery Cost Escalation in real terms | C22: -0.1 | D22: %
B23: Battery Cost Escalation in nominal terms | C23: =(1+$C$22)*((1+'Inputs&Summary'!$D$43)^$C$21-1) -> 0.2885796265 | D23: %
B24: Distribution Network | C24: =IF('Inputs&Summary'!D16= "Off-grid Solar PV", Generation_Distribution!C63, IF('Inputs&Summary'!D16="Off-grid Biomass Gasifier", Generation_Distribution!D63, IF('Inputs&Summary'!D16 ="Off-grid Small Hydro",Generation_Distribution!E63,0)))*10^-5 -> 0 | D24: Rs lacs
B25: Land Lease Rate | C25: 0.05 | D25: %
B27: Year | C27: =C6 -> 2014 | D27: =C27+1 -> 2015 | E27: =D27+1 -> 2016 | F27: 2017 | G27: 2018 | H27: 2019 | I27: 2020 | J27: 2021 | K27: 2022 | L27: 2023 | M27: 2024 | N27: 2025 | O27: 2026 | P27: 2027 | Q27: 2028 | R27: 2029 | S27: 2030 | T27: 2031 | U27: 2032 | V27: 2033 | W27: 2034 | X27: 2035 | Y27: 2036 | Z27: 2037 | AA27: 2038 | AB27: 2039 | AC27: 2040 | AD27: 2041 | AE27: 2042 | AF27: 2043 | AG27: 2044 | AH27: 2045 | AI27: 2046 | AJ27: 2047 | AK27: 2048 | AL27: 2049 | AM27: 2050 | AN27: 2051 | AO27: 2052 | AP27: =AO27+1 -> 2053
B28: Net Energy sold (lakh kWhs) | C28: =Depreciation!C28 -> 16.644 | D28: =Depreciation!D28 -> 16.644 | E28: =Depreciation!E28 -> 16.644 | F28: =Depreciation!F28 -> 16.644 | G28: =Depreciation!G28 -> 16.644 | H28: =Depreciation!H28 -> 16.644 | I28: =Depreciation!I28 -> 16.644 | J28: =Depreciation!J28 -> 16.644 | K28: =Depreciation!K28 -> 16.644 | L28: =Depreciation!L28 -> 16.644 | M28: =Depreciation!M28 -> 16.644 | N28: =Depreciation!N28 -> 16.644 | O28: =Depreciation!O28 -> 16.644 | P28: =Depreciation!P28 -> 16.644 | Q28: =Depreciation!Q28 -> 16.644 | R28: =Depreciation!R28 -> 16.644 | S28: =Depreciation!S28 -> 16.644 | T28: =Depreciation!T28 -> 16.644 | U28: =Depreciation!U28 -> 16.644 | V28: =Depreciation!V28 -> 16.644 | W28: =Depreciation!W28 -> 16.644 | X28: =Depreciation!X28 -> 16.644 | Y28: =Depreciation!Y28 -> 16.644 | Z28: =Depreciation!Z28 -> 16.644 | AA28: =Depreciation!AA28 -> 16.644 | AB28: =Depreciation!AB28 -> 0 | AC28: =Depreciation!AC28 -> 0 | AD28: =Depreciation!AD28 -> 0 | AE28: =Depreciation!AE28 -> 0 | AF28: =Depreciation!AF28 -> 0 | AG28: =Depreciation!AG28 -> 0 | AH28: =Depreciation!AH28 -> 0 | AI28: =Depreciation!AI28 -> 0 | AJ28: =Depreciation!AJ28 -> 0 | AK28: =Depreciation!AK28 -> 0 | AL28: =Depreciation!AL28 -> 0 | AM28: =Depreciation!AM28 -> 0 | AN28: =Depreciation!AN28 -> 0 | AO28: =Depreciation!AO28 -> 0 | AP28: =Depreciation!AP28 -> 0
B29: Fixed Costs
B30: O&M | C30: =$C$7*$C$16 -> 12.3 | D30: =IF(D27<$C$6+$C$10,C30*(1+$C$17),0) -> 13.00356 | E30: =IF(E27<$C$6+$C$10,D30*(1+$C$17),0) -> 13.74736363 | F30: 14.53371283 | G30: 15.36504121 | H30: 16.24392156 | I30: 17.17307388 | J30: 18.1553737 | K30: 19.19386108 | L30: 20.29174993 | M30: 21.45243803 | N30: 22.67951748 | O30: 23.97678588 | P30: 25.34825803 | Q30: 26.79817839 | R30: 28.3310342 | S30: 29.95156935 | T30: 31.66479912 | U30: 33.47602563 | V30: 35.3908543 | W30: 37.41521116 | X30: 39.55536124 | Y30: 41.81792791 | Z30: 44.20991338 | AA30: 46.73872043 | AB30: 0 | AC30: 0 | AD30: 0 | AE30: 0 | AF30: 0 | AG30: 0 | AH30: 0 | AI30: 0 | AJ30: 0 | AK30: 0 | AL30: 0 | AM30: 0 | AN30: 0 | AO30: 0 | AP30: 0
B31: Depreciation (SLM) | C31: =IF(C27<$C$6+$C$10,IF(C27-$C$6<$C$11,Depreciation!$C$12,Depreciation!$C$15),0) -> 40.2853 | D31: =IF(D27<$C$6+$C$10,IF(D27-$C$6<$C$11,Depreciation!$C$12,Depreciation!$C$15),0) -> 40.2853 | E31: =IF(E27<$C$6+$C$10,IF(E27-$C$6<$C$11,Depreciation!$C$12,Depreciation!$C$15),0) -> 40.2853 | F31: =IF(F27<$C$6+$C$10,IF(F27-$C$6<$C$11,Depreciation!$C$12,Depreciation!$C$15),0) -> 40.2853 | G31: =IF(G27<$C$6+$C$10,IF(G27-$C$6<$C$11,Depreciation!$C$12,Depreciation!$C$15),0) -> 40.2853 | H31: =IF(H27<$C$6+$C$10,IF(H27-$C$6<$C$11,Depreciation!$C$12,Depreciation!$C$15),0) -> 40.2853 | I31: =IF(I27<$C$6+$C$10,IF(I27-$C$6<$C$11,Depreciation!$C$12,Depreciation!$C$15),0) -> 40.2853 | J31: =IF(J27<$C$6+$C$10,IF(J27-$C$6<$C$11,Depreciation!$C$12,Depreciation!$C$15),0) -> 40.2853 | K31: =IF(K27<$C$6+$C$10,IF(K27-$C$6<$C$11,Depreciation!$C$12,Depreciation!$C$15),0) -> 40.2853 | L31: =IF(L27<$C$6+$C$10,IF(L27-$C$6<$C$11,Depreciation!$C$12,Depreciation!$C$15),0) -> 40.2853 | M31: =IF(M27<$C$6+$C$10,IF(M27-$C$6<$C$11,Depreciation!$C$12,Depreciation!$C$15),0) -> 40.2853 | N31: =IF(N27<$C$6+$C$10,IF(N27-$C$6<$C$11,Depreciation!$C$12,Depreciation!$C$15),0) -> 40.2853 | O31: =IF(O27<$C$6+$C$10,IF(O27-$C$6<$C$11,Depreciation!$C$12,Depreciation!$C$15),0) -> 10.65203077 | P31: =IF(P27<$C$6+$C$10,IF(P27-$C$6<$C$11,Depreciation!$C$12,Depreciation!$C$15),0) -> 10.65203077 | Q31: =IF(Q27<$C$6+$C$10,IF(Q27-$C$6<$C$11,Depreciation!$C$12,Depreciation!$C$15),0) -> 10.65203077 | R31: =IF(R27<$C$6+$C$10,IF(R27-$C$6<$C$11,Depreciation!$C$12,Depreciation!$C$15),0) -> 10.65203077 | S31: =IF(S27<$C$6+$C$10,IF(S27-$C$6<$C$11,Depreciation!$C$12,Depreciation!$C$15),0) -> 10.65203077 | T31: =IF(T27<$C$6+$C$10,IF(T27-$C$6<$C$11,Depreciation!$C$12,Depreciation!$C$15),0) -> 10.65203077 | U31: =IF(U27<$C$6+$C$10,IF(U27-$C$6<$C$11,Depreciation!$C$12,Depreciation!$C$15),0) -> 10.65203077 | V31: =IF(V27<$C$6+$C$10,IF(V27-$C$6<$C$11,Depreciation!$C$12,Depreciation!$C$15),0) -> 10.65203077 | W31: =IF(W27<$C$6+$C$10,IF(W27-$C$6<$C$11,Depreciation!$C$12,Depreciation!$C$15),0) -> 10.65203077 | X31: =IF(X27<$C$6+$C$10,IF(X27-$C$6<$C$11,Depreciation!$C$12,Depreciation!$C$15),0) -> 10.65203077 | Y31: =IF(Y27<$C$6+$C$10,IF(Y27-$C$6<$C$11,Depreciation!$C$12,Depreciation!$C$15),0) -> 10.65203077 | Z31: =IF(Z27<$C$6+$C$10,IF(Z27-$C$6<$C$11,Depreciation!$C$12,Depreciation!$C$15),0) -> 10.65203077 | AA31: =IF(AA27<$C$6+$C$10,IF(AA27-$C$6<$C$11,Depreciation!$C$12,Depreciation!$C$15),0) -> 10.65203077 | AB31: =IF(AB27<$C$6+$C$10,IF(AB27-$C$6<$C$11,Depreciation!$C$12,Depreciation!$C$15),0) -> 0 | AC31: =IF(AC27<$C$6+$C$10,IF(AC27-$C$6<$C$11,Depreciation!$C$12,Depreciation!$C$15),0) -> 0 | AD31: =IF(AD27<$C$6+$C$10,IF(AD27-$C$6<$C$11,Depreciation!$C$12,Depreciation!$C$15),0) -> 0 | AE31: =IF(AE27<$C$6+$C$10,IF(AE27-$C$6<$C$11,Depreciation!$C$12,Depreciation!$C$15),0) -> 0 | AF31: =IF(AF27<$C$6+$C$10,IF(AF27-$C$6<$C$11,Depreciation!$C$12,Depreciation!$C$15),0) -> 0 | AG31: =IF(AG27<$C$6+$C$10,IF(AG27-$C$6<$C$11,Depreciation!$C$12,Depreciation!$C$15),0) -> 0 | AH31: =IF(AH27<$C$6+$C$10,IF(AH27-$C$6<$C$11,Depreciation!$C$12,Depreciation!$C$15),0) -> 0 | AI31: =IF(AI27<$C$6+$C$10,IF(AI27-$C$6<$C$11,Depreciation!$C$12,Depreciation!$C$15),0) -> 0 | AJ31: =IF(AJ27<$C$6+$C$10,IF(AJ27-$C$6<$C$11,Depreciation!$C$12,Depreciation!$C$15),0) -> 0 | AK31: =IF(AK27<$C$6+$C$10,IF(AK27-$C$6<$C$11,Depreciation!$C$12,Depreciation!$C$15),0) -> 0 | AL31: =IF(AL27<$C$6+$C$10,IF(AL27-$C$6<$C$11,Depreciation!$C$12,Depreciation!$C$15),0) -> 0 | AM31: =IF(AM27<$C$6+$C$10,IF(AM27-$C$6<$C$11,Depreciation!$C$12,Depreciation!$C$15),0) -> 0 | AN31: =IF(AN27<$C$6+$C$10,IF(AN27-$C$6<$C$11,Depreciation!$C$12,Depreciation!$C$15),0) -> 0 | AO31: =IF(AO27<$C$6+$C$10,IF(AO27-$C$6<$C$11,Depreciation!$C$12,Depreciation!$C$15),0) -> 0 | AP31: =IF(AP27<$C$6+$C$10,IF(AP27-$C$6<$C$11,Depreciation!$C$12,Depreciation!$C$15),0) -> 0
B32: Battery Replacement Cost | C32: 0 | D32: =IF(AND(D27<$C$6+$C$10,MOD(D27-$C$6,$C$21)=0),$C$20*(1+$C$23)^((D27-$C$6)/$C$21),0) -> 0 | E32: =IF(AND(E27<$C$6+$C$10,MOD(E27-$C$6,$C$21)=0),$C$20*(1+$C$23)^((E27-$C$6)/$C$21),0) -> 0 | F32: 0 | G32: 0 | H32: 0 | I32: 0 | J32: 0 | K32: 0 | L32: 0 | M32: 0 | N32: 0 | O32: 0 | P32: 0 | Q32: 0 | R32: 0 | S32: 0 | T32: 0 | U32: 0 | V32: 0 | W32: 0 | X32: 0 | Y32: 0 | Z32: 0 | AA32: 0 | AB32: 0 | AC32: 0 | AD32: 0 | AE32: 0 | AF32: 0 | AG32: 0 | AH32: 0 | AI32: 0 | AJ32: 0 | AK32: 0 | AL32: 0 | AM32: 0 | AN32: 0 | AO32: 0 | AP32: 0
B33: Interest on term loan | C33: ='Term Loan 1'!C57+'Term Loan 2'!C60 -> 58.87 | D33: ='Term Loan 1'!D57+'Term Loan 2'!D60 -> 53.75 | E33: ='Term Loan 1'!E57+'Term Loan 2'!E60 -> 48.63 | F33: ='Term Loan 1'!F57+'Term Loan 2'!F60 -> 43.51 | G33: ='Term Loan 1'!G57+'Term Loan 2'!G60 -> 38.39 | H33: ='Term Loan 1'!H57+'Term Loan 2'!H60 -> 33.27 | I33: ='Term Loan 1'!I57+'Term Loan 2'!I60 -> 28.16 | J33: ='Term Loan 1'!J57+'Term Loan 2'!J60 -> 23.04 | K33: ='Term Loan 1'!K57+'Term Loan 2'!K60 -> 17.92 | L33: ='Term Loan 1'!L57+'Term Loan 2'!L60 -> 12.8 | M33: ='Term Loan 1'!M57+'Term Loan 2'!M60 -> 7.68 | N33: ='Term Loan 1'!N57+'Term Loan 2'!N60 -> 2.56 | O33: ='Term Loan 1'!O57+'Term Loan 2'!O60 -> 0 | P33: ='Term Loan 1'!P57+'Term Loan 2'!P60 -> 0 | Q33: ='Term Loan 1'!Q57+'Term Loan 2'!Q60 -> 0 | R33: ='Term Loan 1'!R57+'Term Loan 2'!R60 -> 0 | S33: ='Term Loan 1'!S57+'Term Loan 2'!S60 -> 0 | T33: ='Term Loan 1'!T57+'Term Loan 2'!T60 -> 0 | U33: ='Term Loan 1'!U57+'Term Loan 2'!U60 -> 0 | V33: ='Term Loan 1'!V57+'Term Loan 2'!V60 -> 0 | W33: ='Term Loan 1'!W57+'Term Loan 2'!W60 -> 0 | X33: ='Term Loan 1'!X57+'Term Loan 2'!X60 -> 0 | Y33: ='Term Loan 1'!Y57+'Term Loan 2'!Y60 -> 0 | Z33: ='Term Loan 1'!Z57+'Term Loan 2'!Z60 -> 0 | AA33: ='Term Loan 1'!AA57+'Term Loan 2'!AA60 -> 0 | AB33: ='Term Loan 1'!AB57+'Term Loan 2'!AB60 -> 0 | AC33: ='Term Loan 1'!AC57+'Term Loan 2'!AC60 -> 0 | AD33: ='Term Loan 1'!AD57+'Term Loan 2'!AD60 -> 0 | AE33: ='Term Loan 1'!AE57+'Term Loan 2'!AE60 -> 0 | AF33: ='Term Loan 1'!AF57+'Term Loan 2'!AF60 -> 0 | AG33: ='Term Loan 1'!AG57+'Term Loan 2'!AG60 -> 0 | AH33: ='Term Loan 1'!AH57+'Term Loan 2'!AH60 -> 0 | AI33: ='Term Loan 1'!AI57+'Term Loan 2'!AI60 -> 0 | AJ33: ='Term Loan 1'!AJ57+'Term Loan 2'!AJ60 -> 0 | AK33: ='Term Loan 1'!AK57+'Term Loan 2'!AK60 -> 0 | AL33: ='Term Loan 1'!AL57+'Term Loan 2'!AL60 -> 0 | AM33: ='Term Loan 1'!AM57+'Term Loan 2'!AM60 -> 0 | AN33: ='Term Loan 1'!AN57+'Term Loan 2'!AN60 -> 0 | AO33: ='Term Loan 1'!AO57+'Term Loan 2'!AO60 -> 0 | AP33: ='Term Loan 1'!AP57+'Term Loan 2'!AP60 -> 0
B34: Interest on working capital | C34: ='W Capital'!C20 -> 3.827174438 | D34: ='W Capital'!D20 -> 3.749984221 | E34: ='W Capital'!E20 -> 3.674966666 | F34: ='W Capital'!F20 -> 3.602246051 | G34: ='W Capital'!G20 -> 3.531953758 | H34: ='W Capital'!H20 -> 3.46422869 | I34: ='W Capital'!I20 -> 3.399442639 | J34: ='W Capital'!J20 -> 3.337300952 | K34: ='W Capital'!K20 -> 3.278192704 | L34: ='W Capital'!L20 -> 3.222291407 | M34: ='W Capital'!M20 -> 3.356308106 | N34: ='W Capital'!N20 -> 3.307381516 | O34: ='W Capital'!O20 -> 2.653234122 | P34: ='W Capital'!P20 -> 2.727276791 | Q34: ='W Capital'!Q20 -> 2.8055547 | R34: ='W Capital'!R20 -> 2.888310105 | S34: ='W Capital'!S20 -> 2.975799119 | T34: ='W Capital'!T20 -> 3.068292506 | U34: ='W Capital'!U20 -> 3.166076514 | V34: ='W Capital'!V20 -> 3.269453767 | W34: ='W Capital'!W20 -> 3.378744199 | X34: ='W Capital'!X20 -> 3.494286043 | Y34: ='W Capital'!Y20 -> 3.616436882 | Z34: ='W Capital'!Z20 -> 3.745574748 | AA34: ='W Capital'!AA20 -> 3.8820993 | AB34: ='W Capital'!AB20 -> 0 | AC34: ='W Capital'!AC20 -> 0 | AD34: ='W Capital'!AD20 -> 0 | AE34: ='W Capital'!AE20 -> 0 | AF34: ='W Capital'!AF20 -> 0 | AG34: ='W Capital'!AG20 -> 0 | AH34: ='W Capital'!AH20 -> 0 | AI34: ='W Capital'!AI20 -> 0 | AJ34: ='W Capital'!AJ20 -> 0 | AK34: ='W Capital'!AK20 -> 0 | AL34: ='W Capital'!AL20 -> 0 | AM34: ='W Capital'!AM20 -> 0 | AN34: ='W Capital'!AN20 -> 0 | AO34: ='W Capital'!AO20 -> 0 | AP34: ='W Capital'!AP20 -> 0
B35: Return on Equity | C35: =IF(C27<$C$6+$C$10,IF(C27-$C$6<$C$15,$C$12*$C$13,$C$12*$C$14),0) -> 41.46 | D35: =IF(D27<$C$6+$C$10,IF(D27-$C$6<$C$15,$C$12*$C$13,$C$12*$C$14),0) -> 41.46 | E35: 41.46 | F35: 41.46 | G35: 41.46 | H35: 41.46 | I35: 41.46 | J35: 41.46 | K35: 41.46 | L35: 41.46 | M35: 49.752 | N35: 49.752 | O35: 49.752 | P35: 49.752 | Q35: 49.752 | R35: 49.752 | S35: 49.752 | T35: 49.752 | U35: 49.752 | V35: 49.752 | W35: 49.752 | X35: 49.752 | Y35: 49.752 | Z35: 49.752 | AA35: 49.752 | AB35: 0 | AC35: 0 | AD35: 0 | AE35: 0 | AF35: 0 | AG35: 0 | AH35: 0 | AI35: 0 | AJ35: 0 | AK35: 0 | AL35: 0 | AM35: 0 | AN35: 0 | AO35: 0 | AP35: 0
B36: Total Fixed Cost | C36: =SUM(C30:C35) -> 156.7424744 | D36: =SUM(D30:D35) -> 152.2488442 | E36: 147.7976303 | F36: 143.3912589 | G36: 139.032295 | H36: 134.7234503 | I36: 130.4778165 | J36: 126.2779747 | K36: 122.1373538 | L36: 118.0593413 | M36: 122.5260461 | N36: 118.584199 | O36: 87.03405077 | P36: 88.47956559 | Q36: 90.00776386 | R36: 91.62337507 | S36: 93.33139924 | T36: 95.1371224 | U36: 97.04613291 | V36: 99.06433883 | W36: 101.1979861 | X36: 103.4536781 | Y36: 105.8383956 | Z36: 108.3595189 | AA36: 111.0248505 | AB36: 0 | AC36: 0 | AD36: 0 | AE36: 0 | AF36: 0 | AG36: 0 | AH36: 0 | AI36: 0 | AJ36: 0 | AK36: 0 | AL36: 0 | AM36: 0 | AN36: 0 | AO36: 0 | AP36: 0
B37: Tariff based on Fixed Cost (Rs/kWh) | C37: =IF(C27<$C$6+$C$10,IF(C28>0,C36/C28,0),0) -> 9.417356071 | D37: =IF(D27<$C$6+$C$10,IF(D28>0,D36/D28,0),0) -> 9.147371078 | E37: 8.879934529 | F37: 8.615192194 | G37: 8.353298183 | H37: 8.09441542 | I37: 7.83933048 | J37: 7.586996795 | K37: 7.338221208 | L37: 7.093207242 | M37: 7.361574509 | N37: 7.124741588 | O37: 5.229154697 | P37: 5.316003701 | Q37: 5.407820468 | R37: 5.504889154 | S37: 5.607510168 | T37: 5.716001105 | U37: 5.830697724 | V37: 5.951954989 | W37: 6.080148169 | X37: 6.215674 | Y37: 6.358951908 | Z37: 6.510425312 | AA37: 6.670562995 | AB37: 0 | AC37: 0 | AD37: 0 | AE37: 0 | AF37: 0 | AG37: 0 | AH37: 0 | AI37: 0 | AJ37: 0 | AK37: 0 | AL37: 0 | AM37: 0 | AN37: 0 | AO37: 0 | AP37: 0
B38: Levelized Fixed Cost | C38: =NPV($C$18,C37:AP37)/$C$19 -> 7.718094379
B39: Variable Costs
B40: Fuel Cost | C40: =Fuel!D22 -> 0 | D40: =Fuel!E22 -> 0 | E40: =Fuel!F22 -> 0 | F40: =Fuel!G22 -> 0 | G40: =Fuel!H22 -> 0 | H40: =Fuel!I22 -> 0 | I40: =Fuel!J22 -> 0 | J40: =Fuel!K22 -> 0 | K40: =Fuel!L22 -> 0 | L40: =Fuel!M22 -> 0 | M40: =Fuel!N22 -> 0 | N40: =Fuel!O22 -> 0 | O40: =Fuel!P22 -> 0 | P40: =Fuel!Q22 -> 0 | Q40: =Fuel!R22 -> 0 | R40: =Fuel!S22 -> 0 | S40: =Fuel!T22 -> 0 | T40: =Fuel!U22 -> 0 | U40: =Fuel!V22 -> 0 | V40: =Fuel!W22 -> 0 | W40: =Fuel!X22 -> 0 | X40: =Fuel!Y22 -> 0 | Y40: =Fuel!Z22 -> 0 | Z40: =Fuel!AA22 -> 0 | AA40: =Fuel!AB22 -> 0 | AB40: =Fuel!AC22 -> 0 | AC40: =Fuel!AD22 -> 0 | AD40: =Fuel!AE22 -> 0 | AE40: =Fuel!AF22 -> 0 | AF40: =Fuel!AG22 -> 0 | AG40: =Fuel!AH22 -> 0 | AH40: =Fuel!AI22 -> 0 | AI40: =Fuel!AJ22 -> 0 | AJ40: =Fuel!AK22 -> 0 | AK40: =Fuel!AL22 -> 0 | AL40: =Fuel!AM22 -> 0 | AM40: =Fuel!AN22 -> 0 | AN40: =Fuel!AO22 -> 0 | AO40: =Fuel!AP22 -> 0 | AP40: =Fuel!AQ22 -> 0
B41: Tariff based on Variable Cost (Rs/kWh) | C41: =IF(C27<$C$6+$C$10,IF(C28>0,C40/C28,0),0) -> 0 | D41: =IF(D27<$C$6+$C$10,IF(D28>0,D40/D28,0),0) -> 0 | E41: 0 | F41: 0 | G41: 0 | H41: 0 | I41: 0 | J41: 0 | K41: 0 | L41: 0 | M41: 0 | N41: 0 | O41: 0 | P41: 0 | Q41: 0 | R41: 0 | S41: 0 | T41: 0 | U41: 0 | V41: 0 | W41: 0 | X41: 0 | Y41: 0 | Z41: 0 | AA41: 0 | AB41: 0 | AC41: 0 | AD41: 0 | AE41: 0 | AF41: 0 | AG41: 0 | AH41: 0 | AI41: 0 | AJ41: 0 | AK41: 0 | AL41: 0 | AM41: 0 | AN41: 0 | AO41: 0 | AP41: 0
B42: Total Cost | C42: =SUM(C30:C35,C40) -> 156.7424744 | D42: 152.2488442 | E42: 147.7976303 | F42: 143.3912589 | G42: 139.032295 | H42: 134.7234503 | I42: 130.4778165 | J42: 126.2779747 | K42: 122.1373538 | L42: 118.0593413 | M42: 122.5260461 | N42: 118.584199 | O42: 87.03405077 | P42: 88.47956559 | Q42: 90.00776386 | R42: 91.62337507 | S42: 93.33139924 | T42: 95.1371224 | U42: 97.04613291 | V42: 99.06433883 | W42: 101.1979861 | X42: 103.4536781 | Y42: 105.8383956 | Z42: 108.3595189 | AA42: 111.0248505 | AB42: 0 | AC42: 0 | AD42: 0 | AE42: 0 | AF42: 0 | AG42: 0 | AH42: 0 | AI42: 0 | AJ42: 0 | AK42: 0 | AL42: 0 | AM42: 0 | AN42: 0 | AO42: 0 | AP42: 0
B43: Tariff based on Generation Cost (Rs/kWh) | C43: =IF(C27<$C$6+$C$10,IF(C28>0,C42/C28,0),0) -> 9.417356071 | D43: 9.147371078 | E43: 8.879934529 | F43: 8.615192194 | G43: 8.353298183 | H43: 8.09441542 | I43: 7.83933048 | J43: 7.586996795 | K43: 7.338221208 | L43: 7.093207242 | M43: 7.361574509 | N43: 7.124741588 | O43: 5.229154697 | P43: 5.316003701 | Q43: 5.407820468 | R43: 5.504889154 | S43: 5.607510168 | T43: 5.716001105 | U43: 5.830697724 | V43: 5.951954989 | W43: 6.080148169 | X43: 6.215674 | Y43: 6.358951908 | Z43: 6.510425312 | AA43: 6.670562995 | AB43: 0 | AC43: 0 | AD43: 0 | AE43: 0 | AF43: 0 | AG43: 0 | AH43: 0 | AI43: 0 | AJ43: 0 | AK43: 0 | AL43: 0 | AM43: 0 | AN43: 0 | AO43: 0 | AP43: 0
B44: Levelized Tariff (Fixed+Variable) | C44: =NPV($C$18,C43:AP43)/$C$19 -> 7.718094379
B45: =IF(C41=0,"Levelized Tariff","Levelized Tariff 1st Year") -> Levelized Tariff | C45: =C38+C41 -> 7.718094379
B46: Levelized Tariff with AD | C46: =C45-Depreciation!$C$43 -> 6.968073338
B48: Costs in Rs/kWh | C48: Levelized | D48: =C6 -> 2014 | E48: =D48+1 -> 2015 | F48: =E48+1 -> 2016 | G48: 2017 | H48: 2018 | I48: 2019 | J48: 2020 | K48: 2021 | L48: 2022 | M48: 2023 | N48: 2024 | O48: 2025 | P48: 2026 | Q48: 2027 | R48: 2028 | S48: 2029 | T48: 2030 | U48: 2031 | V48: 2032 | W48: 2033 | X48: 2034 | Y48: 2035 | Z48: 2036 | AA48: 2037 | AB48: 2038 | AC48: 2039 | AD48: 2040 | AE48: 2041 | AF48: 2042 | AG48: 2043 | AH48: 2044 | AI48: 2045 | AJ48: 2046 | AK48: 2047 | AL48: 2048 | AM48: 2049 | AN48: 2050 | AO48: 2051 | AP48: 2052 | AQ48: 2053
B49: =B30 -> O&M | C49: =NPV($C$18,D49:AQ49)/$C$19 -> 1.179058901 | D49: =C30/$C$28 -> 0.7390050469 | E49: 0.7812761355 | F49: 0.8259651305 | G49: 0.873210336 | H49: 0.9231579672 | I49: 0.9759626029 | J49: 1.031787664 | K49: 1.090805918 | L49: 1.153200017 | M49: 1.219163058 | N49: 1.288899185 | O49: 1.362624218 | P49: 1.440566323 | Q49: 1.522966717 | R49: 1.610080413 | S49: 1.702177013 | T49: 1.799541538 | U49: 1.902475314 | V49: 2.011296902 | W49: 2.126343084 | X49: 2.247969909 | Y49: 2.376553788 | Z49: 2.512492664 | AA49: 2.656207245 | AB49: 2.808142299 | AC49: 0 | AD49: 0 | AE49: 0 | AF49: 0 | AG49: 0 | AH49: 0 | AI49: 0 | AJ49: 0 | AK49: 0 | AL49: 0 | AM49: 0 | AN49: 0 | AO49: 0 | AP49: 0 | AQ49: 0
B50: Depreciation (SLM) | C50: 2.000835582 | D50: =C31/$C$28 -> 2.420409757 | E50: 2.420409757 | F50: 2.420409757 | G50: 2.420409757 | H50: 2.420409757 | I50: 2.420409757 | J50: 2.420409757 | K50: 2.420409757 | L50: 2.420409757 | M50: 2.420409757 | N50: 2.420409757 | O50: 2.420409757 | P50: 0.6399922356 | Q50: 0.6399922356 | R50: 0.6399922356 | S50: 0.6399922356 | T50: 0.6399922356 | U50: 0.6399922356 | V50: 0.6399922356 | W50: 0.6399922356 | X50: 0.6399922356 | Y50: 0.6399922356 | Z50: 0.6399922356 | AA50: 0.6399922356 | AB50: 0.6399922356 | AC50: 0 | AD50: 0 | AE50: 0 | AF50: 0 | AG50: 0 | AH50: 0 | AI50: 0 | AJ50: 0 | AK50: 0 | AL50: 0 | AM50: 0 | AN50: 0 | AO50: 0 | AP50: 0 | AQ50: 0
B51: Battery Replacement Cost | C51: 0 | D51: =C32/$C$28 -> 0 | E51: 0 | F51: 0 | G51: 0 | H51: 0 | I51: 0 | J51: 0 | K51: 0 | L51: 0 | M51: 0 | N51: 0 | O51: 0 | P51: 0 | Q51: 0 | R51: 0 | S51: 0 | T51: 0 | U51: 0 | V51: 0 | W51: 0 | X51: 0 | Y51: 0 | Z51: 0 | AA51: 0 | AB51: 0 | AC51: 0 | AD51: 0 | AE51: 0 | AF51: 0 | AG51: 0 | AH51: 0 | AI51: 0 | AJ51: 0 | AK51: 0 | AL51: 0 | AM51: 0 | AN51: 0 | AO51: 0 | AP51: 0 | AQ51: 0
B52: Interest on term loan | C52: 1.687659618 | D52: =C33/$C$28 -> 3.537010334 | E52: 3.229391973 | F52: 2.921773612 | G52: 2.614155251 | H52: 2.30653689 | I52: 1.998918529 | J52: 1.691900985 | K52: 1.384282624 | L52: 1.076664263 | M52: 0.7690459024 | N52: 0.4614275415 | O52: 0.1538091805 | P52: 0 | Q52: 0 | R52: 0 | S52: 0 | T52: 0 | U52: 0 | V52: 0 | W52: 0 | X52: 0 | Y52: 0 | Z52: 0 | AA52: 0 | AB52: 0 | AC52: 0 | AD52: 0 | AE52: 0 | AF52: 0 | AG52: 0 | AH52: 0 | AI52: 0 | AJ52: 0 | AK52: 0 | AL52: 0 | AM52: 0 | AN52: 0 | AO52: 0 | AP52: 0 | AQ52: 0
B53: Interest on working capital | C53: 0.2061130905 | D53: =C34/$C$28 -> 0.229943189 | E53: 0.2253054687 | F53: 0.2207982857 | G53: 0.2164291066 | H53: 0.2122058254 | I53: 0.2081367874 | J53: 0.2042443306 | K53: 0.2005107518 | L53: 0.1969594271 | M53: 0.1936007815 | N53: 0.2016527341 | O53: 0.1987131409 | P53: 0.1594108461 | Q53: 0.1638594563 | R53: 0.168562527 | S53: 0.1735346134 | T53: 0.1787911031 | U53: 0.184348264 | V53: 0.1902232945 | W53: 0.1964343768 | X53: 0.2030007329 | Y53: 0.2099426847 | Z53: 0.217281716 | AA53: 0.22504054 | AB53: 0.2332431687 | AC53: 0 | AD53: 0 | AE53: 0 | AF53: 0 | AG53: 0 | AH53: 0 | AI53: 0 | AJ53: 0 | AK53: 0 | AL53: 0 | AM53: 0 | AN53: 0 | AO53: 0 | AP53: 0 | AQ53: 0
B54: Return on Equity | C54: 2.644427188 | D54: =C35/$C$28 -> 2.490987743 | E54: 2.490987743 | F54: 2.490987743 | G54: 2.490987743 | H54: 2.490987743 | I54: 2.490987743 | J54: 2.490987743 | K54: 2.490987743 | L54: 2.490987743 | M54: 2.490987743 | N54: 2.989185292 | O54: 2.989185292 | P54: 2.989185292 | Q54: 2.989185292 | R54: 2.989185292 | S54: 2.989185292 | T54: 2.989185292 | U54: 2.989185292 | V54: 2.989185292 | W54: 2.989185292 | X54: 2.989185292 | Y54: 2.989185292 | Z54: 2.989185292 | AA54: 2.989185292 | AB54: 2.989185292 | AC54: 0 | AD54: 0 | AE54: 0 | AF54: 0 | AG54: 0 | AH54: 0 | AI54: 0 | AJ54: 0 | AK54: 0 | AL54: 0 | AM54: 0 | AN54: 0 | AO54: 0 | AP54: 0 | AQ54: 0
B55: Fuel Cost | C55: 0 | D55: =C40/$C$28 -> 0 | E55: 0 | F55: 0 | G55: 0 | H55: 0 | I55: 0 | J55: 0 | K55: 0 | L55: 0 | M55: 0 | N55: 0 | O55: 0 | P55: 0 | Q55: 0 | R55: 0 | S55: 0 | T55: 0 | U55: 0 | V55: 0 | W55: 0 | X55: 0 | Y55: 0 | Z55: 0 | AA55: 0 | AB55: 0 | AC55: 0 | AD55: 0 | AE55: 0 | AF55: 0 | AG55: 0 | AH55: 0 | AI55: 0 | AJ55: 0 | AK55: 0 | AL55: 0 | AM55: 0 | AN55: 0 | AO55: 0 | AP55: 0 | AQ55: 0
B56: Levelized Tariff | C56: =SUM(C49:C55) -> 7.718094379 | D56: =$C$45 -> 7.718094379 | E56: =IF(D27<$C$6+$C$10,$C$45,0) -> 7.718094379 | F56: 7.718094379 | G56: 7.718094379 | H56: 7.718094379 | I56: 7.718094379 | J56: 7.718094379 | K56: 7.718094379 | L56: 7.718094379 | M56: 7.718094379 | N56: 7.718094379 | O56: 7.718094379 | P56: 7.718094379 | Q56: 7.718094379 | R56: 7.718094379 | S56: 7.718094379 | T56: 7.718094379 | U56: 7.718094379 | V56: 7.718094379 | W56: 7.718094379 | X56: 7.718094379 | Y56: 7.718094379 | Z56: 7.718094379 | AA56: 7.718094379 | AB56: 7.718094379 | AC56: 0 | AD56: 0 | AE56: 0 | AF56: 0 | AG56: 0 | AH56: 0 | AI56: 0 | AJ56: 0 | AK56: 0 | AL56: 0 | AM56: 0 | AN56: 0 | AO56: 0 | AP56: 0 | AQ56: 0
B57: Levelized Tariff with AD | D57: =C46 -> 6.968073338 | E57: =IF(D27<$C$6+$C$10,$C$46,0) -> 6.968073338 | F57: 6.968073338 | G57: 6.968073338 | H57: 6.968073338 | I57: 6.968073338 | J57: 6.968073338 | K57: 6.968073338 | L57: 6.968073338 | M57: 6.968073338 | N57: 6.968073338 | O57: 6.968073338 | P57: 6.968073338 | Q57: 6.968073338 | R57: 6.968073338 | S57: 6.968073338 | T57: 6.968073338 | U57: 6.968073338 | V57: 6.968073338 | W57: 6.968073338 | X57: 6.968073338 | Y57: 6.968073338 | Z57: 6.968073338 | AA57: 6.968073338 | AB57: 6.968073338 | AC57: 0 | AD57: 0 | AE57: 0 | AF57: 0 | AG57: 0 | AH57: 0 | AI57: 0 | AJ57: 0 | AK57: 0 | AL57: 0 | AM57: 0 | AN57: 0 | AO57: 0 | AP57: 0 | AQ57: 0
B59: Year | C59: =C6 -> 2014 | D59: =C59+1 -> 2015 | E59: 2016 | F59: 2017 | G59: 2018 | H59: 2019 | I59: 2020 | J59: 2021 | K59: 2022 | L59: 2023 | M59: 2024 | N59: 2025 | O59: 2026 | P59: 2027 | Q59: 2028 | R59: 2029 | S59: 2030 | T59: 2031 | U59: 2032 | V59: 2033 | W59: 2034 | X59: 2035 | Y59: 2036 | Z59: 2037 | AA59: 2038 | AB59: 2039 | AC59: 2040 | AD59: 2041 | AE59: 2042 | AF59: 2043 | AG59: 2044 | AH59: 2045 | AI59: 2046 | AJ59: 2047 | AK59: 2048 | AL59: 2049 | AM59: 2050 | AN59: 2051 | AO59: 2052 | AP59: 2053
B60: Reference Feed-in Tariff (FIT) | C60: ='REC-FIT'!C21 -> 11.16 | D60: ='REC-FIT'!D21 -> 11.16 | E60: ='REC-FIT'!E21 -> 11.16 | F60: ='REC-FIT'!F21 -> 11.16 | G60: ='REC-FIT'!G21 -> 11.16 | H60: ='REC-FIT'!H21 -> 11.16 | I60: ='REC-FIT'!I21 -> 11.16 | J60: ='REC-FIT'!J21 -> 11.16 | K60: ='REC-FIT'!K21 -> 11.16 | L60: ='REC-FIT'!L21 -> 11.16 | M60: ='REC-FIT'!M21 -> 11.16 | N60: ='REC-FIT'!N21 -> 11.16 | O60: ='REC-FIT'!O21 -> 11.16 | P60: ='REC-FIT'!P21 -> 11.16 | Q60: ='REC-FIT'!Q21 -> 11.16 | R60: ='REC-FIT'!R21 -> 11.16 | S60: ='REC-FIT'!S21 -> 11.16 | T60: ='REC-FIT'!T21 -> 11.16 | U60: ='REC-FIT'!U21 -> 11.16 | V60: ='REC-FIT'!V21 -> 11.16 | W60: ='REC-FIT'!W21 -> 11.16 | X60: ='REC-FIT'!X21 -> 11.16 | Y60: ='REC-FIT'!Y21 -> 11.16 | Z60: ='REC-FIT'!Z21 -> 11.16 | AA60: ='REC-FIT'!AA21 -> 11.16 | AB60: ='REC-FIT'!AB21 -> 0 | AC60: ='REC-FIT'!AC21 -> 0 | AD60: ='REC-FIT'!AD21 -> 0 | AE60: ='REC-FIT'!AE21 -> 0 | AF60: ='REC-FIT'!AF21 -> 0 | AG60: ='REC-FIT'!AG21 -> 0 | AH60: ='REC-FIT'!AH21 -> 0 | AI60: ='REC-FIT'!AI21 -> 0 | AJ60: ='REC-FIT'!AJ21 -> 0 | AK60: ='REC-FIT'!AK21 -> 0 | AL60: ='REC-FIT'!AL21 -> 0 | AM60: ='REC-FIT'!AM21 -> 0 | AN60: ='REC-FIT'!AN21 -> 0 | AO60: ='REC-FIT'!AO21 -> 0 | AP60: ='REC-FIT'!AP21 -> 0
B61: Levelized FIT | C61: =NPV($C$18,C60:AP60)/$C$19 -> 11.16
B62: APPC+REC Mean | C62: ='REC-FIT'!C23 -> 9.4752 | D62: ='REC-FIT'!D23 -> 9.615808 | E62: ='REC-FIT'!E23 -> 9.76204032 | F62: ='REC-FIT'!F23 -> 9.914121933 | G62: ='REC-FIT'!G23 -> 8.41228681 | H62: ='REC-FIT'!H23 -> 8.535655414 | I62: ='REC-FIT'!I23 -> 8.662725077 | J62: ='REC-FIT'!J23 -> 8.793606829 | K62: ='REC-FIT'!K23 -> 8.928415034 | L62: ='REC-FIT'!L23 -> 8.767267485 | M62: ='REC-FIT'!M23 -> 8.91028551 | N62: ='REC-FIT'!N23 -> 9.057594075 | O62: ='REC-FIT'!O23 -> 9.209321897 | P62: ='REC-FIT'!P23 -> 9.365601554 | Q62: ='REC-FIT'!Q23 -> 7.426569601 | R62: ='REC-FIT'!R23 -> 7.592366689 | S62: ='REC-FIT'!S23 -> 7.763137689 | T62: ='REC-FIT'!T23 -> 7.93903182 | U62: ='REC-FIT'!U23 -> 8.120202775 | V62: ='REC-FIT'!V23 -> 8.306808858 | W62: ='REC-FIT'!W23 -> 8.499013124 | X62: ='REC-FIT'!X23 -> 8.696983517 | Y62: ='REC-FIT'!Y23 -> 8.900893023 | Z62: ='REC-FIT'!Z23 -> 9.110919814 | AA62: ='REC-FIT'!AA23 -> 9.327247408 | AB62: ='REC-FIT'!AB23 -> 0 | AC62: ='REC-FIT'!AC23 -> 0 | AD62: ='REC-FIT'!AD23 -> 0 | AE62: ='REC-FIT'!AE23 -> 0 | AF62: ='REC-FIT'!AF23 -> 0 | AG62: ='REC-FIT'!AG23 -> 0 | AH62: ='REC-FIT'!AH23 -> 0 | AI62: ='REC-FIT'!AI23 -> 0 | AJ62: ='REC-FIT'!AJ23 -> 0 | AK62: ='REC-FIT'!AK23 -> 0 | AL62: ='REC-FIT'!AL23 -> 0 | AM62: ='REC-FIT'!AM23 -> 0 | AN62: ='REC-FIT'!AN23 -> 0 | AO62: ='REC-FIT'!AO23 -> 0 | AP62: ='REC-FIT'!AP23 -> 0
B63: Levelized APPC+REC | C63: =NPV($C$18,C62:AP62)/$C$19 -> 8.99523159
B65: Land Lease and Royalty (Lakhs/yr) | C65: =C28*$C$45*$C$25 -> 6.422998142 | D65: 6.422998142 | E65: 6.422998142 | F65: 6.422998142 | G65: 6.422998142 | H65: 6.422998142 | I65: 6.422998142 | J65: 6.422998142 | K65: 6.422998142 | L65: 6.422998142 | M65: 6.422998142 | N65: 6.422998142 | O65: 6.422998142 | P65: 6.422998142 | Q65: 6.422998142 | R65: 6.422998142 | S65: 6.422998142 | T65: 6.422998142 | U65: 6.422998142 | V65: 6.422998142 | W65: 6.422998142 | X65: 6.422998142 | Y65: 6.422998142 | Z65: 6.422998142 | AA65: 6.422998142 | AB65: 0 | AC65: 0 | AD65: 0 | AE65: 0 | AF65: 0 | AG65: 0 | AH65: 0 | AI65: 0 | AJ65: 0 | AK65: 0 | AL65: 0 | AM65: 0 | AN65: 0 | AO65: 0 | AP65: 0
B66: NPV of Lease and Royalty (lakhs/MW) | C66: =NPV($C$18,C65:AP65) -> 55.43046356

Sheet Carbon
G1: Carbon Credits
B3: Inputs | C3: Value | D3: Units
B4: State | C4: =StateIP -> CERC
B5: Technology | C5: =TechnologyIP -> Solar PV
B6: Emission factor | C6: ='Inputs&Summary'!D101 -> 0.9 | D6: Ton CO2 / MWh
B7: Discount Rate | C7: ='Inputs&Summary'!D89 -> 0.10668289 | D7: %
B8: Cumulative Generation in 10 yrs | C8: =SUM(Tariff!C28:L28)/10000 -> 0.016644 | D8: Million MWh
B9: CO2 Saved | C9: =C8*C6 -> 0.0149796 | D9: Million Tonnes
B10: Total number of CERs Generated | C10: =C9 -> 0.0149796 | D10: Million CERs
B11: Assumed Price of one CER | C11: ='Inputs&Summary'!D102 -> 0 | D11: Dollars/ton
B12: Total Income from sale of CERs | C12: =C11*C10 -> 0 | D12: Million Dollars
B13: Exchange Rate | C13: ='Inputs&Summary'!D103 -> 50 | D13: Rs/dollar
B14: Total Income from sale of CERs | C14: =SUM(C21:L21) -> 0 | D14: Rs Lakhs
B15: NPV of Carbon Credits Benefit to developer | C15: =NPV(C7,C22:L22) -> 0 | D15: Rs Lakhs
B16: NPV of Carbon Credits Benefit as a fraction of Project Cost | C16: =C15/('Inputs&Summary'!D41*'Inputs&Summary'!D34) -> 0 | D16: %
B18: Year | C18: ='Inputs&Summary'!D14 -> 2014 | D18: =C18+1 -> 2015 | E18: =D18+1 -> 2016 | F18: 2017 | G18: 2018 | H18: 2019 | I18: 2020 | J18: 2021 | K18: 2022 | L18: 2023 | M18: 2024 | N18: 2025 | O18: 2026 | P18: 2027 | Q18: 2028 | R18: 2029 | S18: 2030 | T18: 2031 | U18: 2032 | V18: 2033 | W18: 2034 | X18: 2035 | Y18: 2036 | Z18: 2037 | AA18: 2038 | AB18: 2039 | AC18: 2040 | AD18: 2041 | AE18: 2042 | AF18: 2043 | AG18: 2044 | AH18: 2045 | AI18: 2046 | AJ18: 2047 | AK18: 2048 | AL18: 2049 | AM18: 2050 | AN18: 2051 | AO18: 2052 | AP18: 2053
B19: Annual Net Generation (MWh) | C19: =Tariff!C28*100 -> 1664.4 | D19: =Tariff!D28*100 -> 1664.4 | E19: =Tariff!E28*100 -> 1664.4 | F19: =Tariff!F28*100 -> 1664.4 | G19: =Tariff!G28*100 -> 1664.4 | H19: =Tariff!H28*100 -> 1664.4 | I19: =Tariff!I28*100 -> 1664.4 | J19: =Tariff!J28*100 -> 1664.4 | K19: =Tariff!K28*100 -> 1664.4 | L19: =Tariff!L28*100 -> 1664.4 | M19: =Tariff!M28*100 -> 1664.4 | N19: =Tariff!N28*100 -> 1664.4 | O19: =Tariff!O28*100 -> 1664.4 | P19: =Tariff!P28*100 -> 1664.4 | Q19: =Tariff!Q28*100 -> 1664.4 | R19: =Tariff!R28*100 -> 1664.4 | S19: =Tariff!S28*100 -> 1664.4 | T19: =Tariff!T28*100 -> 1664.4 | U19: =Tariff!U28*100 -> 1664.4 | V19: =Tariff!V28*100 -> 1664.4 | W19: =Tariff!W28*100 -> 1664.4 | X19: =Tariff!X28*100 -> 1664.4 | Y19: =Tariff!Y28*100 -> 1664.4 | Z19: =Tariff!Z28*100 -> 1664.4 | AA19: =Tariff!AA28*100 -> 1664.4 | AB19: =Tariff!AB28*100 -> 0 | AC19: =Tariff!AC28*100 -> 0 | AD19: =Tariff!AD28*100 -> 0 | AE19: =Tariff!AE28*100 -> 0 | AF19: =Tariff!AF28*100 -> 0 | AG19: =Tariff!AG28*100 -> 0 | AH19: =Tariff!AH28*100 -> 0 | AI19: =Tariff!AI28*100 -> 0 | AJ19: =Tariff!AJ28*100 -> 0 | AK19: =Tariff!AK28*100 -> 0 | AL19: =Tariff!AL28*100 -> 0 | AM19: =Tariff!AM28*100 -> 0 | AN19: =Tariff!AN28*100 -> 0 | AO19: =Tariff!AO28*100 -> 0 | AP19: =Tariff!AP28*100 -> 0
B20: Emissions Saved per Year (tons) | C20: =C19*$C$6 -> 1497.96 | D20: =D19*$C$6 -> 1497.96 | E20: 1497.96 | F20: 1497.96 | G20: 1497.96 | H20: 1497.96 | I20: 1497.96 | J20: 1497.96 | K20: 1497.96 | L20: 1497.96 | M20: 1497.96 | N20: 1497.96 | O20: 1497.96 | P20: 1497.96 | Q20: 1497.96 | R20: 1497.96 | S20: 1497.96 | T20: 1497.96 | U20: 1497.96 | V20: 1497.96 | W20: 1497.96 | X20: 1497.96 | Y20: 1497.96 | Z20: 1497.96 | AA20: 1497.96 | AB20: 0 | AC20: 0 | AD20: 0 | AE20: 0 | AF20: 0 | AG20: 0 | AH20: 0 | AI20: 0 | AJ20: 0 | AK20: 0 | AL20: 0 | AM20: 0 | AN20: 0 | AO20: 0 | AP20: 0
B21: Income from sale of CERs (Rs Lakhs) | C21: =C20*$C$11*$C$13/10^5 -> 0 | D21: =D20*$C$11*$C$13/10^5 -> 0 | E21: 0 | F21: 0 | G21: 0 | H21: 0 | I21: 0 | J21: 0 | K21: 0 | L21: 0 | M21: 0 | N21: 0 | O21: 0 | P21: 0 | Q21: 0 | R21: 0 | S21: 0 | T21: 0 | U21: 0 | V21: 0 | W21: 0 | X21: 0 | Y21: 0 | Z21: 0 | AA21: 0 | AB21: 0 | AC21: 0 | AD21: 0 | AE21: 0 | AF21: 0 | AG21: 0 | AH21: 0 | AI21: 0 | AJ21: 0 | AK21: 0 | AL21: 0 | AM21: 0 | AN21: 0 | AO21: 0 | AP21: 0
B22: Annual Income of developer from CERS (Lakhs) | C22: =1*C21 -> 0 | D22: =0.9*D21 -> 0 | E22: =0.8*E21 -> 0 | F22: =0.7*F21 -> 0 | G22: =0.6*G21 -> 0 | H22: =0.5*H21 -> 0 | I22: =0.5*I21 -> 0 | J22: =0.5*J21 -> 0 | K22: =0.5*K21 -> 0 | L22: =0.5*L21 -> 0 | M22: =0.5*M21 -> 0 | N22: 0 | O22: 0 | P22: 0 | Q22: 0 | R22: 0 | S22: 0 | T22: 0 | U22: 0 | V22: 0 | W22: 0 | X22: 0 | Y22: 0 | Z22: 0 | AA22: 0 | AB22: 0 | AC22: 0 | AD22: 0 | AE22: 0 | AF22: 0 | AG22: 0 | AH22: 0 | AI22: 0 | AJ22: 0 | AK22: 0 | AL22: 0 | AM22: 0 | AN22: 0 | AO22: 0 | AP22: 0
B23: NPV of carbon income | C23: =NPV(C7,C22:AP22) -> 0

Sheet Profit Loss
H2: Profit Loss Statement
B3: Inputs | C3: Value | D3: Units
B4: State | C4: =StateIP -> CERC
B5: Technology | C5: =TechnologyIP -> Solar PV
B6: Project Start Year | C6: ='Inputs&Summary'!D14 -> 2014 | D6: -
B7: ='Inputs&Summary'!C49 -> Equity | C7: ='Inputs&Summary'!D49 -> 207.3 | D7: ='Inputs&Summary'!F49 -> Rs lacs
B8: ='Inputs&Summary'!C40 -> Life of Plant and Machinery / Project Life | C8: ='Inputs&Summary'!D40 -> 25 | D8: ='Inputs&Summary'!F40 -> years
B9: ='Inputs&Summary'!C76 -> Corporate Tax Rate | C9: ='Inputs&Summary'!D76 -> 0.3399 | D9: ='Inputs&Summary'!F76 -> %
B10: ='Inputs&Summary'!C77 -> MAT | C10: ='Inputs&Summary'!D77 -> 0.20008 | D10: ='Inputs&Summary'!F77 -> %
B11: ='Inputs&Summary'!C79 -> Tax Holiday Start Year | C11: ='Inputs&Summary'!D79 -> 6 | D11: ='Inputs&Summary'!F79 -> year
B12: ='Inputs&Summary'!C78 -> Tax Holiday Duration | C12: ='Inputs&Summary'!D78 -> 10 | D12: ='Inputs&Summary'!F78 -> years
B13: ='Inputs&Summary'!C82 -> MAT Setoff Start Year | C13: ='Inputs&Summary'!D82 -> 16 | D13: ='Inputs&Summary'!F82 -> year
B14: ='Inputs&Summary'!C80 -> MAT set off allowed u/s 115JAA (3A) | C14: ='Inputs&Summary'!D80 -> 10 | D14: ='Inputs&Summary'!F80 -> years
B15: ='Inputs&Summary'!C81 -> MAT Setoff Duration | C15: ='Inputs&Summary'!D81 -> 5 | D15: ='Inputs&Summary'!F81 -> years
B18: Income
B19: Year | C19: =C6 -> 2014 | D19: =C19+1 -> 2015 | E19: =D19+1 -> 2016 | F19: 2017 | G19: 2018 | H19: 2019 | I19: 2020 | J19: 2021 | K19: 2022 | L19: 2023 | M19: 2024 | N19: 2025 | O19: 2026 | P19: 2027 | Q19: 2028 | R19: 2029 | S19: 2030 | T19: 2031 | U19: 2032 | V19: 2033 | W19: 2034 | X19: 2035 | Y19: 2036 | Z19: 2037 | AA19: 2038 | AB19: 2039 | AC19: 2040 | AD19: 2041 | AE19: 2042 | AF19: 2043 | AG19: 2044 | AH19: 2045 | AI19: 2046 | AJ19: 2047 | AK19: 2048 | AL19: 2049 | AM19: 2050 | AN19: 2051 | AO19: 2052 | AP19: 2053
B20: Net Energy sold (lakh kWhs) | C20: =Tariff!C28 -> 16.644 | D20: =Tariff!D28 -> 16.644 | E20: =Tariff!E28 -> 16.644 | F20: =Tariff!F28 -> 16.644 | G20: =Tariff!G28 -> 16.644 | H20: =Tariff!H28 -> 16.644 | I20: =Tariff!I28 -> 16.644 | J20: =Tariff!J28 -> 16.644 | K20: =Tariff!K28 -> 16.644 | L20: =Tariff!L28 -> 16.644 | M20: =Tariff!M28 -> 16.644 | N20: =Tariff!N28 -> 16.644 | O20: =Tariff!O28 -> 16.644 | P20: =Tariff!P28 -> 16.644 | Q20: =Tariff!Q28 -> 16.644 | R20: =Tariff!R28 -> 16.644 | S20: =Tariff!S28 -> 16.644 | T20: =Tariff!T28 -> 16.644 | U20: =Tariff!U28 -> 16.644 | V20: =Tariff!V28 -> 16.644 | W20: =Tariff!W28 -> 16.644 | X20: =Tariff!X28 -> 16.644 | Y20: =Tariff!Y28 -> 16.644 | Z20: =Tariff!Z28 -> 16.644 | AA20: =Tariff!AA28 -> 16.644 | AB20: =Tariff!AB28 -> 0 | AC20: =Tariff!AC28 -> 0 | AD20: =Tariff!AD28 -> 0 | AE20: =Tariff!AE28 -> 0 | AF20: =Tariff!AF28 -> 0 | AG20: =Tariff!AG28 -> 0 | AH20: =Tariff!AH28 -> 0 | AI20: =Tariff!AI28 -> 0 | AJ20: =Tariff!AJ28 -> 0 | AK20: =Tariff!AK28 -> 0 | AL20: =Tariff!AL28 -> 0 | AM20: =Tariff!AM28 -> 0 | AN20: =Tariff!AN28 -> 0 | AO20: =Tariff!AO28 -> 0 | AP20: =Tariff!AP28 -> 0
B21: Income from Carbon Market | C21: =Carbon!C22 -> 0 | D21: =Carbon!D22 -> 0 | E21: =Carbon!E22 -> 0 | F21: =Carbon!F22 -> 0 | G21: =Carbon!G22 -> 0 | H21: =Carbon!H22 -> 0 | I21: =Carbon!I22 -> 0 | J21: =Carbon!J22 -> 0 | K21: =Carbon!K22 -> 0 | L21: =Carbon!L22 -> 0 | M21: =Carbon!M22 -> 0 | N21: =Carbon!N22 -> 0 | O21: =Carbon!O22 -> 0 | P21: =Carbon!P22 -> 0 | Q21: =Carbon!Q22 -> 0 | R21: =Carbon!R22 -> 0 | S21: =Carbon!S22 -> 0 | T21: =Carbon!T22 -> 0 | U21: =Carbon!U22 -> 0 | V21: =Carbon!V22 -> 0 | W21: =Carbon!W22 -> 0 | X21: =Carbon!X22 -> 0 | Y21: =Carbon!Y22 -> 0 | Z21: =Carbon!Z22 -> 0 | AA21: =Carbon!AA22 -> 0 | AB21: =Carbon!AB22 -> 0 | AC21: =Carbon!AC22 -> 0 | AD21: =Carbon!AD22 -> 0 | AE21: =Carbon!AE22 -> 0 | AF21: =Carbon!AF22 -> 0 | AG21: =Carbon!AG22 -> 0 | AH21: =Carbon!AH22 -> 0 | AI21: =Carbon!AI22 -> 0 | AJ21: =Carbon!AJ22 -> 0 | AK21: =Carbon!AK22 -> 0 | AL21: =Carbon!AL22 -> 0 | AM21: =Carbon!AM22 -> 0 | AN21: =Carbon!AN22 -> 0 | AO21: =Carbon!AO22 -> 0 | AP21: =Carbon!AP22 -> 0
B22: CERC Tariff
B23: Tariff based on Generation Cost (Rs/kWh) | C23: =Tariff!D$56 -> 7.718094379 | D23: =Tariff!E$56 -> 7.718094379 | E23: =Tariff!F$56 -> 7.718094379 | F23: =Tariff!G$56 -> 7.718094379 | G23: =Tariff!H$56 -> 7.718094379 | H23: =Tariff!I$56 -> 7.718094379 | I23: =Tariff!J$56 -> 7.718094379 | J23: =Tariff!K$56 -> 7.718094379 | K23: =Tariff!L$56 -> 7.718094379 | L23: =Tariff!M$56 -> 7.718094379 | M23: =Tariff!N$56 -> 7.718094379 | N23: =Tariff!O$56 -> 7.718094379 | O23: =Tariff!P$56 -> 7.718094379 | P23: =Tariff!Q$56 -> 7.718094379 | Q23: =Tariff!R$56 -> 7.718094379 | R23: =Tariff!S$56 -> 7.718094379 | S23: =Tariff!T$56 -> 7.718094379 | T23: =Tariff!U$56 -> 7.718094379 | U23: =Tariff!V$56 -> 7.718094379 | V23: =Tariff!W$56 -> 7.718094379 | W23: =Tariff!X$56 -> 7.718094379 | X23: =Tariff!Y$56 -> 7.718094379 | Y23: =Tariff!Z$56 -> 7.718094379 | Z23: =Tariff!AA$56 -> 7.718094379 | AA23: =Tariff!AB$56 -> 7.718094379 | AB23: =Tariff!AC$56 -> 0 | AC23: =Tariff!AD$56 -> 0 | AD23: =Tariff!AE$56 -> 0 | AE23: =Tariff!AF$56 -> 0 | AF23: =Tariff!AG$56 -> 0 | AG23: =Tariff!AH$56 -> 0 | AH23: =Tariff!AI$56 -> 0 | AI23: =Tariff!AJ$56 -> 0 | AJ23: =Tariff!AK$56 -> 0 | AK23: =Tariff!AL$56 -> 0 | AL23: =Tariff!AM$56 -> 0 | AM23: =Tariff!AN$56 -> 0 | AN23: =Tariff!AO$56 -> 0 | AO23: =Tariff!AP$56 -> 0 | AP23: =Tariff!AQ$56 -> 0
B24: Income From Sale of Electricity (Lakhs) | C24: =C23*C20 -> 128.4599628 | D24: 128.4599628 | E24: 128.4599628 | F24: 128.4599628 | G24: 128.4599628 | H24: 128.4599628 | I24: 128.4599628 | J24: 128.4599628 | K24: 128.4599628 | L24: 128.4599628 | M24: 128.4599628 | N24: 128.4599628 | O24: 128.4599628 | P24: 128.4599628 | Q24: 128.4599628 | R24: 128.4599628 | S24: 128.4599628 | T24: 128.4599628 | U24: 128.4599628 | V24: 128.4599628 | W24: 128.4599628 | X24: 128.4599628 | Y24: 128.4599628 | Z24: 128.4599628 | AA24: 128.4599628 | AB24: 0 | AC24: 0 | AD24: 0 | AE24: 0 | AF24: 0 | AG24: 0 | AH24: 0 | AI24: 0 | AJ24: 0 | AK24: 0 | AL24: 0 | AM24: 0 | AN24: 0 | AO24: 0 | AP24: 0
B25: Total Income based on Generation Cost | C25: =C24+C21 -> 128.4599628 | D25: =D24+D21 -> 128.4599628 | E25: 128.4599628 | F25: 128.4599628 | G25: 128.4599628 | H25: 128.4599628 | I25: 128.4599628 | J25: 128.4599628 | K25: 128.4599628 | L25: 128.4599628 | M25: 128.4599628 | N25: 128.4599628 | O25: 128.4599628 | P25: 128.4599628 | Q25: 128.4599628 | R25: 128.4599628 | S25: 128.4599628 | T25: 128.4599628 | U25: 128.4599628 | V25: 128.4599628 | W25: 128.4599628 | X25: 128.4599628 | Y25: 128.4599628 | Z25: 128.4599628 | AA25: 128.4599628 | AB25: 0 | AC25: 0 | AD25: 0 | AE25: 0 | AF25: 0 | AG25: 0 | AH25: 0 | AI25: 0 | AJ25: 0 | AK25: 0 | AL25: 0 | AM25: 0 | AN25: 0 | AO25: 0 | AP25: 0
B26: CERC Tariff with AD
B27: Tariff based on Generation Cost (Rs/kWh) | C27: =Tariff!D$57 -> 6.968073338 | D27: =Tariff!E$57 -> 6.968073338 | E27: =Tariff!F$57 -> 6.968073338 | F27: =Tariff!G$57 -> 6.968073338 | G27: =Tariff!H$57 -> 6.968073338 | H27: =Tariff!I$57 -> 6.968073338 | I27: =Tariff!J$57 -> 6.968073338 | J27: =Tariff!K$57 -> 6.968073338 | K27: =Tariff!L$57 -> 6.968073338 | L27: =Tariff!M$57 -> 6.968073338 | M27: =Tariff!N$57 -> 6.968073338 | N27: =Tariff!O$57 -> 6.968073338 | O27: =Tariff!P$57 -> 6.968073338 | P27: =Tariff!Q$57 -> 6.968073338 | Q27: =Tariff!R$57 -> 6.968073338 | R27: =Tariff!S$57 -> 6.968073338 | S27: =Tariff!T$57 -> 6.968073338 | T27: =Tariff!U$57 -> 6.968073338 | U27: =Tariff!V$57 -> 6.968073338 | V27: =Tariff!W$57 -> 6.968073338 | W27: =Tariff!X$57 -> 6.968073338 | X27: =Tariff!Y$57 -> 6.968073338 | Y27: =Tariff!Z$57 -> 6.968073338 | Z27: =Tariff!AA$57 -> 6.968073338 | AA27: =Tariff!AB$57 -> 6.968073338 | AB27: =Tariff!AC$57 -> 0 | AC27: =Tariff!AD$57 -> 0 | AD27: =Tariff!AE$57 -> 0 | AE27: =Tariff!AF$57 -> 0 | AF27: =Tariff!AG$57 -> 0 | AG27: =Tariff!AH$57 -> 0 | AH27: =Tariff!AI$57 -> 0 | AI27: =Tariff!AJ$57 -> 0 | AJ27: =Tariff!AK$57 -> 0 | AK27: =Tariff!AL$57 -> 0 | AL27: =Tariff!AM$57 -> 0 | AM27: =Tariff!AN$57 -> 0 | AN27: =Tariff!AO$57 -> 0 | AO27: =Tariff!AP$57 -> 0 | AP27: =Tariff!AQ$57 -> 0
B28: Income From Sale of Electricity (Lakhs) | C28: =C27*C20 -> 115.9766126 | D28: =D27*D20 -> 115.9766126 | E28: 115.9766126 | F28: 115.9766126 | G28: 115.9766126 | H28: 115.9766126 | I28: 115.9766126 | J28: 115.9766126 | K28: 115.9766126 | L28: 115.9766126 | M28: 115.9766126 | N28: 115.9766126 | O28: 115.9766126 | P28: 115.9766126 | Q28: 115.9766126 | R28: 115.9766126 | S28: 115.9766126 | T28: 115.9766126 | U28: 115.9766126 | V28: 115.9766126 | W28: 115.9766126 | X28: 115.9766126 | Y28: 115.9766126 | Z28: 115.9766126 | AA28: 115.9766126 | AB28: 0 | AC28: 0 | AD28: 0 | AE28: 0 | AF28: 0 | AG28: 0 | AH28: 0 | AI28: 0 | AJ28: 0 | AK28: 0 | AL28: 0 | AM28: 0 | AN28: 0 | AO28: 0 | AP28: 0
B29: Total Income based on Generation Cost | C29: =C28+C21 -> 115.9766126 | D29: =D28+D21 -> 115.9766126 | E29: 115.9766126 | F29: 115.9766126 | G29: 115.9766126 | H29: 115.9766126 | I29: 115.9766126 | J29: 115.9766126 | K29: 115.9766126 | L29: 115.9766126 | M29: 115.9766126 | N29: 115.9766126 | O29: 115.9766126 | P29: 115.9766126 | Q29: 115.9766126 | R29: 115.9766126 | S29: 115.9766126 | T29: 115.9766126 | U29: 115.9766126 | V29: 115.9766126 | W29: 115.9766126 | X29: 115.9766126 | Y29: 115.9766126 | Z29: 115.9766126 | AA29: 115.9766126 | AB29: 0 | AC29: 0 | AD29: 0 | AE29: 0 | AF29: 0 | AG29: 0 | AH29: 0 | AI29: 0 | AJ29: 0 | AK29: 0 | AL29: 0 | AM29: 0 | AN29: 0 | AO29: 0 | AP29: 0
B30: User Provided FIT
B31: Given Feed-in Tariff (Rs/kWh) | C31: =Tariff!C60 -> 11.16 | D31: =Tariff!D60 -> 11.16 | E31: =Tariff!E60 -> 11.16 | F31: =Tariff!F60 -> 11.16 | G31: =Tariff!G60 -> 11.16 | H31: =Tariff!H60 -> 11.16 | I31: =Tariff!I60 -> 11.16 | J31: =Tariff!J60 -> 11.16 | K31: =Tariff!K60 -> 11.16 | L31: =Tariff!L60 -> 11.16 | M31: =Tariff!M60 -> 11.16 | N31: =Tariff!N60 -> 11.16 | O31: =Tariff!O60 -> 11.16 | P31: =Tariff!P60 -> 11.16 | Q31: =Tariff!Q60 -> 11.16 | R31: =Tariff!R60 -> 11.16 | S31: =Tariff!S60 -> 11.16 | T31: =Tariff!T60 -> 11.16 | U31: =Tariff!U60 -> 11.16 | V31: =Tariff!V60 -> 11.16 | W31: =Tariff!W60 -> 11.16 | X31: =Tariff!X60 -> 11.16 | Y31: =Tariff!Y60 -> 11.16 | Z31: =Tariff!Z60 -> 11.16 | AA31: =Tariff!AA60 -> 11.16 | AB31: =Tariff!AB60 -> 0 | AC31: =Tariff!AC60 -> 0 | AD31: =Tariff!AD60 -> 0 | AE31: =Tariff!AE60 -> 0 | AF31: =Tariff!AF60 -> 0 | AG31: =Tariff!AG60 -> 0 | AH31: =Tariff!AH60 -> 0 | AI31: =Tariff!AI60 -> 0 | AJ31: =Tariff!AJ60 -> 0 | AK31: =Tariff!AK60 -> 0 | AL31: =Tariff!AL60 -> 0 | AM31: =Tariff!AM60 -> 0 | AN31: =Tariff!AN60 -> 0 | AO31: =Tariff!AO60 -> 0 | AP31: =Tariff!AP60 -> 0
B32: Income From Sale of Electricity (Lakhs) | C32: =C31*C20 -> 185.74704 | D32: =D31*D20 -> 185.74704 | E32: 185.74704 | F32: 185.74704 | G32: 185.74704 | H32: 185.74704 | I32: 185.74704 | J32: 185.74704 | K32: 185.74704 | L32: 185.74704 | M32: 185.74704 | N32: 185.74704 | O32: 185.74704 | P32: 185.74704 | Q32: 185.74704 | R32: 185.74704 | S32: 185.74704 | T32: 185.74704 | U32: 185.74704 | V32: 185.74704 | W32: 185.74704 | X32: 185.74704 | Y32: 185.74704 | Z32: 185.74704 | AA32: 185.74704 | AB32: 0 | AC32: 0 | AD32: 0 | AE32: 0 | AF32: 0 | AG32: 0 | AH32: 0 | AI32: 0 | AJ32: 0 | AK32: 0 | AL32: 0 | AM32: 0 | AN32: 0 | AO32: 0 | AP32: 0
B33: Total Income based on FIT | C33: =C32+C21 -> 185.74704 | D33: =D32+D21 -> 185.74704 | E33: 185.74704 | F33: 185.74704 | G33: 185.74704 | H33: 185.74704 | I33: 185.74704 | J33: 185.74704 | K33: 185.74704 | L33: 185.74704 | M33: 185.74704 | N33: 185.74704 | O33: 185.74704 | P33: 185.74704 | Q33: 185.74704 | R33: 185.74704 | S33: 185.74704 | T33: 185.74704 | U33: 185.74704 | V33: 185.74704 | W33: 185.74704 | X33: 185.74704 | Y33: 185.74704 | Z33: 185.74704 | AA33: 185.74704 | AB33: 0 | AC33: 0 | AD33: 0 | AE33: 0 | AF33: 0 | AG33: 0 | AH33: 0 | AI33: 0 | AJ33: 0 | AK33: 0 | AL33: 0 | AM33: 0 | AN33: 0 | AO33: 0 | AP33: 0
B34: REC
B35: APPC+Mean | C35: ='REC-FIT'!C23 -> 9.4752 | D35: ='REC-FIT'!D23 -> 9.615808 | E35: ='REC-FIT'!E23 -> 9.76204032 | F35: ='REC-FIT'!F23 -> 9.914121933 | G35: ='REC-FIT'!G23 -> 8.41228681 | H35: ='REC-FIT'!H23 -> 8.535655414 | I35: ='REC-FIT'!I23 -> 8.662725077 | J35: ='REC-FIT'!J23 -> 8.793606829 | K35: ='REC-FIT'!K23 -> 8.928415034 | L35: ='REC-FIT'!L23 -> 8.767267485 | M35: ='REC-FIT'!M23 -> 8.91028551 | N35: ='REC-FIT'!N23 -> 9.057594075 | O35: ='REC-FIT'!O23 -> 9.209321897 | P35: ='REC-FIT'!P23 -> 9.365601554 | Q35: ='REC-FIT'!Q23 -> 7.426569601 | R35: ='REC-FIT'!R23 -> 7.592366689 | S35: ='REC-FIT'!S23 -> 7.763137689 | T35: ='REC-FIT'!T23 -> 7.93903182 | U35: ='REC-FIT'!U23 -> 8.120202775 | V35: ='REC-FIT'!V23 -> 8.306808858 | W35: ='REC-FIT'!W23 -> 8.499013124 | X35: ='REC-FIT'!X23 -> 8.696983517 | Y35: ='REC-FIT'!Y23 -> 8.900893023 | Z35: ='REC-FIT'!Z23 -> 9.110919814 | AA35: ='REC-FIT'!AA23 -> 9.327247408 | AB35: ='REC-FIT'!AB23 -> 0 | AC35: ='REC-FIT'!AC23 -> 0 | AD35: ='REC-FIT'!AD23 -> 0 | AE35: ='REC-FIT'!AE23 -> 0 | AF35: ='REC-FIT'!AF23 -> 0 | AG35: ='REC-FIT'!AG23 -> 0 | AH35: ='REC-FIT'!AH23 -> 0 | AI35: ='REC-FIT'!AI23 -> 0 | AJ35: ='REC-FIT'!AJ23 -> 0 | AK35: ='REC-FIT'!AK23 -> 0 | AL35: ='REC-FIT'!AL23 -> 0 | AM35: ='REC-FIT'!AM23 -> 0 | AN35: ='REC-FIT'!AN23 -> 0 | AO35: ='REC-FIT'!AO23 -> 0 | AP35: ='REC-FIT'!AP23 -> 0
B36: Income From Sale of Electricity (Lakhs) | C36: =C35*C20 -> 157.7052288 | D36: =D35*D20 -> 160.0455084 | E36: 162.4793991 | F36: 165.0106454 | G36: 140.0141017 | H36: 142.0674487 | I36: 144.1823962 | J36: 146.3607921 | K36: 148.6045398 | L36: 145.9224 | M36: 148.302792 | N36: 150.7545958 | O36: 153.2799537 | P36: 155.8810723 | Q36: 123.6078244 | R36: 126.3673512 | S36: 129.2096637 | T36: 132.1372456 | U36: 135.152655 | V36: 138.2585266 | W36: 141.4575744 | X36: 144.7525937 | Y36: 148.1464635 | Z36: 151.6421494 | AA36: 155.2427059 | AB36: 0 | AC36: 0 | AD36: 0 | AE36: 0 | AF36: 0 | AG36: 0 | AH36: 0 | AI36: 0 | AJ36: 0 | AK36: 0 | AL36: 0 | AM36: 0 | AN36: 0 | AO36: 0 | AP36: 0
B37: Total Income based on RECs | C37: =C36+C21 -> 157.7052288 | D37: =D36+D21 -> 160.0455084 | E37: 162.4793991 | F37: 165.0106454 | G37: 140.0141017 | H37: 142.0674487 | I37: 144.1823962 | J37: 146.3607921 | K37: 148.6045398 | L37: 145.9224 | M37: 148.302792 | N37: 150.7545958 | O37: 153.2799537 | P37: 155.8810723 | Q37: 123.6078244 | R37: 126.3673512 | S37: 129.2096637 | T37: 132.1372456 | U37: 135.152655 | V37: 138.2585266 | W37: 141.4575744 | X37: 144.7525937 | Y37: 148.1464635 | Z37: 151.6421494 | AA37: 155.2427059 | AB37: 0 | AC37: 0 | AD37: 0 | AE37: 0 | AF37: 0 | AG37: 0 | AH37: 0 | AI37: 0 | AJ37: 0 | AK37: 0 | AL37: 0 | AM37: 0 | AN37: 0 | AO37: 0 | AP37: 0
B39: Expenditure
B40: Year | C40: =C6 -> 2014 | D40: =C40+1 -> 2015 | E40: 2016 | F40: 2017 | G40: 2018 | H40: 2019 | I40: 2020 | J40: 2021 | K40: 2022 | L40: 2023 | M40: 2024 | N40: 2025 | O40: 2026 | P40: 2027 | Q40: 2028 | R40: 2029 | S40: 2030 | T40: 2031 | U40: 2032 | V40: 2033 | W40: 2034 | X40: 2035 | Y40: 2036 | Z40: 2037 | AA40: 2038 | AB40: 2039 | AC40: 2040 | AD40: 2041 | AE40: 2042 | AF40: 2043 | AG40: 2044 | AH40: 2045 | AI40: 2046 | AJ40: 2047 | AK40: 2048 | AL40: 2049 | AM40: 2050 | AN40: 2051 | AO40: 2052 | AP40: 2053
B41: Fuel Cost | C41: =Fuel!D22 -> 0 | D41: =Fuel!E22 -> 0 | E41: =Fuel!F22 -> 0 | F41: =Fuel!G22 -> 0 | G41: =Fuel!H22 -> 0 | H41: =Fuel!I22 -> 0 | I41: =Fuel!J22 -> 0 | J41: =Fuel!K22 -> 0 | K41: =Fuel!L22 -> 0 | L41: =Fuel!M22 -> 0 | M41: =Fuel!N22 -> 0 | N41: =Fuel!O22 -> 0 | O41: =Fuel!P22 -> 0 | P41: =Fuel!Q22 -> 0 | Q41: =Fuel!R22 -> 0 | R41: =Fuel!S22 -> 0 | S41: =Fuel!T22 -> 0 | T41: =Fuel!U22 -> 0 | U41: =Fuel!V22 -> 0 | V41: =Fuel!W22 -> 0 | W41: =Fuel!X22 -> 0 | X41: =Fuel!Y22 -> 0 | Y41: =Fuel!Z22 -> 0 | Z41: =Fuel!AA22 -> 0 | AA41: =Fuel!AB22 -> 0 | AB41: =Fuel!AC22 -> 0 | AC41: =Fuel!AD22 -> 0 | AD41: =Fuel!AE22 -> 0 | AE41: =Fuel!AF22 -> 0 | AF41: =Fuel!AG22 -> 0 | AG41: =Fuel!AH22 -> 0 | AH41: =Fuel!AI22 -> 0 | AI41: =Fuel!AJ22 -> 0 | AJ41: =Fuel!AK22 -> 0 | AK41: =Fuel!AL22 -> 0 | AL41: =Fuel!AM22 -> 0 | AM41: =Fuel!AN22 -> 0 | AN41: =Fuel!AO22 -> 0 | AO41: =Fuel!AP22 -> 0 | AP41: =Fuel!AQ22 -> 0
B42: O&M + Insurance | C42: =Tariff!C30 -> 12.3 | D42: =Tariff!D30 -> 13.00356 | E42: =Tariff!E30 -> 13.74736363 | F42: =Tariff!F30 -> 14.53371283 | G42: =Tariff!G30 -> 15.36504121 | H42: =Tariff!H30 -> 16.24392156 | I42: =Tariff!I30 -> 17.17307388 | J42: =Tariff!J30 -> 18.1553737 | K42: =Tariff!K30 -> 19.19386108 | L42: =Tariff!L30 -> 20.29174993 | M42: =Tariff!M30 -> 21.45243803 | N42: =Tariff!N30 -> 22.67951748 | O42: =Tariff!O30 -> 23.97678588 | P42: =Tariff!P30 -> 25.34825803 | Q42: =Tariff!Q30 -> 26.79817839 | R42: =Tariff!R30 -> 28.3310342 | S42: =Tariff!S30 -> 29.95156935 | T42: =Tariff!T30 -> 31.66479912 | U42: =Tariff!U30 -> 33.47602563 | V42: =Tariff!V30 -> 35.3908543 | W42: =Tariff!W30 -> 37.41521116 | X42: =Tariff!X30 -> 39.55536124 | Y42: =Tariff!Y30 -> 41.81792791 | Z42: =Tariff!Z30 -> 44.20991338 | AA42: =Tariff!AA30 -> 46.73872043 | AB42: =Tariff!AB30 -> 0 | AC42: =Tariff!AC30 -> 0 | AD42: =Tariff!AD30 -> 0 | AE42: =Tariff!AE30 -> 0 | AF42: =Tariff!AF30 -> 0 | AG42: =Tariff!AG30 -> 0 | AH42: =Tariff!AH30 -> 0 | AI42: =Tariff!AI30 -> 0 | AJ42: =Tariff!AJ30 -> 0 | AK42: =Tariff!AK30 -> 0 | AL42: =Tariff!AL30 -> 0 | AM42: =Tariff!AM30 -> 0 | AN42: =Tariff!AN30 -> 0 | AO42: =Tariff!AO30 -> 0 | AP42: =Tariff!AP30 -> 0
B43: Book Depreciation | C43: =Depreciation!C30 -> 18.2424 | D43: =Depreciation!D30 -> 36.4848 | E43: =Depreciation!E30 -> 36.4848 | F43: =Depreciation!F30 -> 36.4848 | G43: =Depreciation!G30 -> 36.4848 | H43: =Depreciation!H30 -> 36.4848 | I43: =Depreciation!I30 -> 36.4848 | J43: =Depreciation!J30 -> 36.4848 | K43: =Depreciation!K30 -> 36.4848 | L43: =Depreciation!L30 -> 36.4848 | M43: =Depreciation!M30 -> 36.4848 | N43: =Depreciation!N30 -> 36.4848 | O43: =Depreciation!O30 -> 36.4848 | P43: =Depreciation!P30 -> 36.4848 | Q43: =Depreciation!Q30 -> 36.4848 | R43: =Depreciation!R30 -> 36.4848 | S43: =Depreciation!S30 -> 36.4848 | T43: =Depreciation!T30 -> 19.9008 | U43: =Depreciation!U30 -> 0 | V43: =Depreciation!V30 -> 0 | W43: =Depreciation!W30 -> 0 | X43: =Depreciation!X30 -> 0 | Y43: =Depreciation!Y30 -> 0 | Z43: =Depreciation!Z30 -> 0 | AA43: =Depreciation!AA30 -> 0 | AB43: =Depreciation!AB30 -> 0 | AC43: =Depreciation!AC30 -> 0 | AD43: =Depreciation!AD30 -> 0 | AE43: =Depreciation!AE30 -> 0 | AF43: =Depreciation!AF30 -> 0 | AG43: =Depreciation!AG30 -> 0 | AH43: =Depreciation!AH30 -> 0 | AI43: =Depreciation!AI30 -> 0 | AJ43: =Depreciation!AJ30 -> 0 | AK43: =Depreciation!AK30 -> 0 | AL43: =Depreciation!AL30 -> 0 | AM43: =Depreciation!AM30 -> 0 | AN43: =Depreciation!AN30 -> 0 | AO43: =Depreciation!AO30 -> 0 | AP43: =Depreciation!AP30 -> 0
B44: Interest on term loan and working capital | C44: =Tariff!C33+Tariff!C34 -> 62.69717444 | D44: =Tariff!D33+Tariff!D34 -> 57.49998422 | E44: =Tariff!E33+Tariff!E34 -> 52.30496667 | F44: =Tariff!F33+Tariff!F34 -> 47.11224605 | G44: =Tariff!G33+Tariff!G34 -> 41.92195376 | H44: =Tariff!H33+Tariff!H34 -> 36.73422869 | I44: =Tariff!I33+Tariff!I34 -> 31.55944264 | J44: =Tariff!J33+Tariff!J34 -> 26.37730095 | K44: =Tariff!K33+Tariff!K34 -> 21.1981927 | L44: =Tariff!L33+Tariff!L34 -> 16.02229141 | M44: =Tariff!M33+Tariff!M34 -> 11.03630811 | N44: =Tariff!N33+Tariff!N34 -> 5.867381516 | O44: =Tariff!O33+Tariff!O34 -> 2.653234122 | P44: =Tariff!P33+Tariff!P34 -> 2.727276791 | Q44: =Tariff!Q33+Tariff!Q34 -> 2.8055547 | R44: =Tariff!R33+Tariff!R34 -> 2.888310105 | S44: =Tariff!S33+Tariff!S34 -> 2.975799119 | T44: =Tariff!T33+Tariff!T34 -> 3.068292506 | U44: =Tariff!U33+Tariff!U34 -> 3.166076514 | V44: =Tariff!V33+Tariff!V34 -> 3.269453767 | W44: =Tariff!W33+Tariff!W34 -> 3.378744199 | X44: =Tariff!X33+Tariff!X34 -> 3.494286043 | Y44: =Tariff!Y33+Tariff!Y34 -> 3.616436882 | Z44: =Tariff!Z33+Tariff!Z34 -> 3.745574748 | AA44: =Tariff!AA33+Tariff!AA34 -> 3.8820993 | AB44: =Tariff!AB33+Tariff!AB34 -> 0 | AC44: =Tariff!AC33+Tariff!AC34 -> 0 | AD44: =Tariff!AD33+Tariff!AD34 -> 0 | AE44: =Tariff!AE33+Tariff!AE34 -> 0 | AF44: =Tariff!AF33+Tariff!AF34 -> 0 | AG44: =Tariff!AG33+Tariff!AG34 -> 0 | AH44: =Tariff!AH33+Tariff!AH34 -> 0 | AI44: =Tariff!AI33+Tariff!AI34 -> 0 | AJ44: =Tariff!AJ33+Tariff!AJ34 -> 0 | AK44: =Tariff!AK33+Tariff!AK34 -> 0 | AL44: =Tariff!AL33+Tariff!AL34 -> 0 | AM44: =Tariff!AM33+Tariff!AM34 -> 0 | AN44: =Tariff!AN33+Tariff!AN34 -> 0 | AO44: =Tariff!AO33+Tariff!AO34 -> 0 | AP44: =Tariff!AP33+Tariff!AP34 -> 0
B45: Total Expenditure | C45: =C41+C42+C43+C44 -> 93.23957444 | D45: 106.9883442 | E45: 102.5371303 | F45: 98.13075888 | G45: 93.77179496 | H45: 89.46295025 | I45: 85.21731651 | J45: 81.01747465 | K45: 76.87685378 | L45: 72.79884134 | M45: 68.97354613 | N45: 65.031699 | O45: 63.11482 | P45: 64.56033483 | Q45: 66.08853309 | R45: 67.7041443 | S45: 69.41216847 | T45: 54.63389163 | U45: 36.64210215 | V45: 38.66030806 | W45: 40.79395536 | X45: 43.04964729 | Y45: 45.43436479 | Z45: 47.95548813 | AA45: 50.62081973 | AB45: 0 | AC45: 0 | AD45: 0 | AE45: 0 | AF45: 0 | AG45: 0 | AH45: 0 | AI45: 0 | AJ45: 0 | AK45: 0 | AL45: 0 | AM45: 0 | AN45: 0 | AO45: 0 | AP45: 0
B47: Tax
B48: Year | C48: =C6 -> 2014 | D48: =C48+1 -> 2015 | E48: =D48+1 -> 2016 | F48: 2017 | G48: 2018 | H48: 2019 | I48: 2020 | J48: 2021 | K48: 2022 | L48: 2023 | M48: 2024 | N48: 2025 | O48: 2026 | P48: 2027 | Q48: 2028 | R48: 2029 | S48: 2030 | T48: 2031 | U48: 2032 | V48: 2033 | W48: 2034 | X48: 2035 | Y48: 2036 | Z48: 2037 | AA48: 2038 | AB48: 2039 | AC48: 2040 | AD48: 2041 | AE48: 2042 | AF48: 2043 | AG48: 2044 | AH48: 2045 | AI48: 2046 | AJ48: 2047 | AK48: 2048 | AL48: 2049 | AM48: 2050 | AN48: 2051 | AO48: 2052 | AP48: 2053
B49: Years for Tax Holiday | C49: =IF(AND(C$48>=$C$6+$C$11-1,C$48<$C$6+$C$11+$C$12-1,C$48<$C$6+$C$8),C$48-$C$6-$C$11+2,"") ->  | D49: =IF(AND(D$48>=$C$6+$C$11-1,D$48<$C$6+$C$11+$C$12-1,D$48<$C$6+$C$8),D$48-$C$6-$C$11+2,"") ->  | H49: 1 | I49: 2 | J49: 3 | K49: 4 | L49: 5 | M49: 6 | N49: 7 | O49: 8 | P49: 9 | Q49: 10
B50: Depreciation (IT-Written Down Value) | C50: =Depreciation!C32 -> 103.65 | D50: =Depreciation!D32 -> 88.1025 | E50: =Depreciation!E32 -> 74.887125 | F50: =Depreciation!F32 -> 63.65405625 | G50: =Depreciation!G32 -> 54.10594781 | H50: =Depreciation!H32 -> 45.99005564 | I50: =Depreciation!I32 -> 39.09154729 | J50: =Depreciation!J32 -> 33.2278152 | K50: =Depreciation!K32 -> 28.24364292 | L50: =Depreciation!L32 -> 24.00709648 | M50: =Depreciation!M32 -> 20.40603201 | N50: =Depreciation!N32 -> 17.34512721 | O50: =Depreciation!O32 -> 14.74335813 | P50: =Depreciation!P32 -> 12.53185441 | Q50: =Depreciation!Q32 -> 10.65207625 | R50: =Depreciation!R32 -> 9.05426481 | S50: =Depreciation!S32 -> 7.696125088 | T50: =Depreciation!T32 -> 6.541706325 | U50: =Depreciation!U32 -> 5.560450376 | V50: =Depreciation!V32 -> 4.72638282 | W50: =Depreciation!W32 -> 4.017425397 | X50: =Depreciation!X32 -> 3.414811587 | Y50: =Depreciation!Y32 -> 2.902589849 | Z50: =Depreciation!Z32 -> 2.467201372 | AA50: =Depreciation!AA32 -> 2.097121166 | AB50: =Depreciation!AB32 -> 0 | AC50: =Depreciation!AC32 -> 0 | AD50: =Depreciation!AD32 -> 0 | AE50: =Depreciation!AE32 -> 0 | AF50: =Depreciation!AF32 -> 0 | AG50: =Depreciation!AG32 -> 0 | AH50: =Depreciation!AH32 -> 0 | AI50: =Depreciation!AI32 -> 0 | AJ50: =Depreciation!AJ32 -> 0 | AK50: =Depreciation!AK32 -> 0 | AL50: =Depreciation!AL32 -> 0 | AM50: =Depreciation!AM32 -> 0 | AN50: =Depreciation!AN32 -> 0 | AO50: =Depreciation!AO32 -> 0 | AP50: =Depreciation!AP32 -> 0
B51: CERC Tariff
B52: PBT | C52: =C25-C45 -> 35.22038841 | D52: 21.47161862 | E52: 25.92283255 | F52: 30.32920396 | G52: 34.68816788 | H52: 38.99701259 | I52: 43.24264633 | J52: 47.44248819 | K52: 51.58310906 | L52: 55.66112151 | M52: 59.48641671 | N52: 63.42826385 | O52: 65.34514284 | P52: 63.89962802 | Q52: 62.37142975 | R52: 60.75581854 | S52: 59.04779437 | T52: 73.82607122 | U52: 91.8178607 | V52: 89.79965478 | W52: 87.66600748 | X52: 85.41031556 | Y52: 83.02559806 | Z52: 80.50447471 | AA52: 77.83914312 | AB52: 0 | AC52: 0 | AD52: 0 | AE52: 0 | AF52: 0 | AG52: 0 | AH52: 0 | AI52: 0 | AJ52: 0 | AK52: 0 | AL52: 0 | AM52: 0 | AN52: 0 | AO52: 0 | AP52: 0
B53: Gross Income | C53: =C52+C43 -> 53.46278841 | D53: 57.95641862 | E53: 62.40763255 | F53: 66.81400396 | G53: 71.17296788 | H53: 75.48181259 | I53: 79.72744633 | J53: 83.92728819 | K53: 88.06790906 | L53: 92.14592151 | M53: 95.97121671 | N53: 99.91306385 | O53: 101.8299428 | P53: 100.384428 | Q53: 98.85622975 | R53: 97.24061854 | S53: 95.53259437 | T53: 93.72687122 | U53: 91.8178607 | V53: 89.79965478 | W53: 87.66600748 | X53: 85.41031556 | Y53: 83.02559806 | Z53: 80.50447471 | AA53: 77.83914312 | AB53: 0 | AC53: 0 | AD53: 0 | AE53: 0 | AF53: 0 | AG53: 0 | AH53: 0 | AI53: 0 | AJ53: 0 | AK53: 0 | AL53: 0 | AM53: 0 | AN53: 0 | AO53: 0 | AP53: 0
B54: Taxable Income after loss carried over | C54: =IF(C$48<$C$6+$C$8,C53-C$50,0) -> -50.18721159 | D54: =IF(D$48<$C$6+$C$8,D53-D$50,0) -> -30.14608138 | E54: =IF(E$48<$C$6+$C$8,E53-E$50,0) -> -12.47949245 | F54: 3.159947712 | G54: 17.06702007 | H54: 29.49175695 | I54: 40.63589903 | J54: 50.69947299 | K54: 59.82426614 | L54: 68.13882502 | M54: 75.5651847 | N54: 82.56793664 | O54: 87.08658471 | P54: 87.85257361 | Q54: 88.2041535 | R54: 88.18635373 | S54: 87.83646928 | T54: 87.18516489 | U54: 86.25741032 | V54: 85.07327196 | W54: 83.64858208 | X54: 81.99550397 | Y54: 80.12300821 | Z54: 78.03727334 | AA54: 75.74202195 | AB54: 0 | AC54: 0 | AD54: 0 | AE54: 0 | AF54: 0 | AG54: 0 | AH54: 0 | AI54: 0 | AJ54: 0 | AK54: 0 | AL54: 0 | AM54: 0 | AN54: 0 | AO54: 0 | AP54: 0
B55: Income Tax | C55: =IF(OR(C54<=0,ISNUMBER(C$49)),0,C54*$C$9) -> 0 | D55: 0 | E55: 0 | F55: 1.074066227 | G55: 5.801080121 | H55: 0 | I55: 0 | J55: 0 | K55: 0 | L55: 0 | M55: 0 | N55: 0 | O55: 0 | P55: 0 | Q55: 0 | R55: 29.97454163 | S55: 29.85561591 | T55: 29.63423755 | U55: 29.31889377 | V55: 28.91640514 | W55: 28.43215305 | X55: 27.8702718 | Y55: 27.23381049 | Z55: 26.52486921 | AA55: 25.74471326 | AB55: 0 | AC55: 0 | AD55: 0 | AE55: 0 | AF55: 0 | AG55: 0 | AH55: 0 | AI55: 0 | AJ55: 0 | AK55: 0 | AL55: 0 | AM55: 0 | AN55: 0 | AO55: 0 | AP55: 0
B56: MAT | C56: =MAX(C52*$C$10,0) -> 7.046895312 | D56: 4.296041454 | E56: 5.186640336 | F56: 6.068267129 | G56: 6.940408629 | H56: 7.802522279 | I56: 8.651988678 | J56: 9.492293037 | K56: 10.32074846 | L56: 11.13667719 | M56: 11.90204226 | N56: 12.69072703 | O56: 13.07425618 | P56: 12.78503757 | Q56: 12.47927566 | R56: 12.15602417 | S56: 11.8142827 | T56: 14.77112033 | U56: 18.37091757 | V56: 17.96711493 | W56: 17.54021478 | X56: 17.08889594 | Y56: 16.61176166 | Z56: 16.1073353 | AA56: 15.57405575 | AB56: 0 | AC56: 0 | AD56: 0 | AE56: 0 | AF56: 0 | AG56: 0 | AH56: 0 | AI56: 0 | AJ56: 0 | AK56: 0 | AL56: 0 | AM56: 0 | AN56: 0 | AO56: 0 | AP56: 0
B57: Set off under MAT | C57: =IF(C$48>=$C$6+$C$13-1,IF(C$48<$C$6+$C$13+$C$15-1,MAX(C55-C56,0),0),0) -> 0 | D57: =IF(D$48>=$C$6+$C$13-1,IF(D$48<$C$6+$C$13+$C$15-1,MAX(D55-D56,0),0),0) -> 0 | E57: 0 | F57: 0 | G57: 0 | H57: 0 | I57: 0 | J57: 0 | K57: 0 | L57: 0 | M57: 0 | N57: 0 | O57: 0 | P57: 0 | Q57: 0 | R57: 17.81851746 | S57: 18.04133321 | T57: 14.86311722 | U57: 10.9479762 | V57: 10.94929021 | W57: 0 | X57: 0 | Y57: 0 | Z57: 0 | AA57: 0 | AB57: 0 | AC57: 0 | AD57: 0 | AE57: 0 | AF57: 0 | AG57: 0 | AH57: 0 | AI57: 0 | AJ57: 0 | AK57: 0 | AL57: 0 | AM57: 0 | AN57: 0 | AO57: 0 | AP57: 0
B58: MAT set off remaining at the end of each year | C58: =IF(C$48=$C$6+$C$13-2,SUM(OFFSET(C56,0,-$C$14+1,1,$C$14)),0) -> 0 | D58: =IF(D$48=$C$6+$C$13-2,SUM(OFFSET(D56,0,-$C$14+1,1,$C$14)),IF(AND(D$48>=$C$6+$C$13-1,D$48<$C$6+$C$13+$C$15-1),MAX(C58-D57,0),0)) -> 0 | E58: =IF(E$48=$C$6+$C$13-2,SUM(OFFSET(E56,0,-$C$14+1,1,$C$14)),IF(AND(E$48>=$C$6+$C$13-1,E$48<$C$6+$C$13+$C$15-1),MAX(D58-E57,0),0)) -> 0 | F58: 0 | G58: 0 | H58: 0 | I58: 0 | J58: 0 | K58: 0 | L58: 0 | M58: 0 | N58: 0 | O58: 0 | P58: 0 | Q58: 110.3355683 | R58: 92.51705089 | S58: 74.47571768 | T58: 59.61260046 | U58: 48.66462426 | V58: 37.71533405 | W58: 0 | X58: 0 | Y58: 0 | Z58: 0 | AA58: 0 | AB58: 0 | AC58: 0 | AD58: 0 | AE58: 0 | AF58: 0 | AG58: 0 | AH58: 0 | AI58: 0 | AJ58: 0 | AK58: 0 | AL58: 0 | AM58: 0 | AN58: 0 | AO58: 0 | AP58: 0
B59: TAX Paid (MAT or IT) | C59: =MAX(C55-C57,C56) -> 7.046895312 | D59: 4.296041454 | E59: 5.186640336 | F59: 6.068267129 | G59: 6.940408629 | H59: 7.802522279 | I59: 8.651988678 | J59: 9.492293037 | K59: 10.32074846 | L59: 11.13667719 | M59: 11.90204226 | N59: 12.69072703 | O59: 13.07425618 | P59: 12.78503757 | Q59: 12.47927566 | R59: 12.15602417 | S59: 11.8142827 | T59: 14.77112033 | U59: 18.37091757 | V59: 17.96711493 | W59: 28.43215305 | X59: 27.8702718 | Y59: 27.23381049 | Z59: 26.52486921 | AA59: 25.74471326 | AB59: 0 | AC59: 0 | AD59: 0 | AE59: 0 | AF59: 0 | AG59: 0 | AH59: 0 | AI59: 0 | AJ59: 0 | AK59: 0 | AL59: 0 | AM59: 0 | AN59: 0 | AO59: 0 | AP59: 0
B60: PAT | C60: =C52-C59 -> 28.17349309 | D60: 17.17557717 | E60: 20.73619221 | F60: 24.26093683 | G60: 27.74775925 | H60: 31.19449031 | I60: 34.59065765 | J60: 37.95019515 | K60: 41.2623606 | L60: 44.52444431 | M60: 47.58437446 | N60: 50.73753682 | O60: 52.27088666 | P60: 51.11459044 | Q60: 49.89215409 | R60: 48.59979437 | S60: 47.23351167 | T60: 59.05495089 | U60: 73.44694313 | V60: 71.83253985 | W60: 59.23385443 | X60: 57.54004376 | Y60: 55.79178757 | Z60: 53.97960551 | AA60: 52.09442986 | AB60: 0 | AC60: 0 | AD60: 0 | AE60: 0 | AF60: 0 | AG60: 0 | AH60: 0 | AI60: 0 | AJ60: 0 | AK60: 0 | AL60: 0 | AM60: 0 | AN60: 0 | AO60: 0 | AP60: 0
B61: Post-Tax ROE | C61: =IF(C60/$C$7<0,0,C60/$C$7) -> 0.1359068649 | D61: =IF(D60/$C$7<0,0,D60/$C$7) -> 0.08285372489 | E61: 0.1000298708 | F61: 0.1170329804 | G61: 0.1338531561 | H61: 0.150479934 | I61: 0.1668627962 | J61: 0.1830689588 | K61: 0.199046602 | L61: 0.2147826547 | M61: 0.2295435333 | N61: 0.2447541573 | O61: 0.2521509246 | P61: 0.2465730364 | Q61: 0.240676093 | R61: 0.2344418445 | S61: 0.227850997 | T61: 0.284876753 | U61: 0.3543026683 | V61: 0.3465149052 | W61: 0.2857397705 | X61: 0.277568952 | Y61: 0.2691354924 | Z61: 0.260393659 | AA61: 0.2512997099 | AB61: 0 | AC61: 0 | AD61: 0 | AE61: 0 | AF61: 0 | AG61: 0 | AH61: 0 | AI61: 0 | AJ61: 0 | AK61: 0 | AL61: 0 | AM61: 0 | AN61: 0 | AO61: 0 | AP61: 0
B62: CERC Tariff with AD
B63: Accelerated Depreciation | C63: =Depreciation!C36 -> 345.5 | D63: =Depreciation!D36 -> 310.95 | E63: =Depreciation!E36 -> 27.64 | F63: =Depreciation!F36 -> 5.528 | G63: =Depreciation!G36 -> 1.1056 | H63: =Depreciation!H36 -> 0.22112 | I63: =Depreciation!I36 -> 0.044224 | J63: =Depreciation!J36 -> 0.0088448 | K63: =Depreciation!K36 -> 0.00176896 | L63: =Depreciation!L36 -> 0.000353792 | M63: =Depreciation!M36 -> 7.075840003e-05 | N63: =Depreciation!N36 -> 1.415167999e-05 | O63: =Depreciation!O36 -> 2.830335961e-06 | P63: =Depreciation!P36 -> 5.660672286e-07 | Q63: =Depreciation!Q36 -> 1.132134457e-07 | R63: =Depreciation!R36 -> 2.264268915e-08 | S63: =Depreciation!S36 -> 4.528556019e-09 | T63: =Depreciation!T36 -> 9.05674824e-10 | U63: =Depreciation!U36 -> 1.811713446e-10 | V63: =Depreciation!V36 -> 3.619788913e-11 | W63: =Depreciation!W36 -> 7.275957614e-12 | X63: =Depreciation!X36 -> 1.455191523e-12 | Y63: =Depreciation!Y36 -> 2.728484105e-13 | Z63: =Depreciation!Z36 -> 9.094947018e-14 | AA63: =Depreciation!AA36 -> 0 | AB63: =Depreciation!AB36 -> 0 | AC63: =Depreciation!AC36 -> 0 | AD63: =Depreciation!AD36 -> 0 | AE63: =Depreciation!AE36 -> 0 | AF63: =Depreciation!AF36 -> 0 | AG63: =Depreciation!AG36 -> 0 | AH63: =Depreciation!AH36 -> 0 | AI63: =Depreciation!AI36 -> 0 | AJ63: =Depreciation!AJ36 -> 0 | AK63: =Depreciation!AK36 -> 0 | AL63: =Depreciation!AL36 -> 0 | AM63: =Depreciation!AM36 -> 0 | AN63: =Depreciation!AN36 -> 0 | AO63: =Depreciation!AO36 -> 0 | AP63: =Depreciation!AP36 -> 0
B64: PBT | C64: =C29-C45 -> 22.7370382 | D64: 8.988268414 | E64: 13.43948234 | F64: 17.84585375 | G64: 22.20481767 | H64: 26.51366238 | I64: 30.75929612 | J64: 34.95913798 | K64: 39.09975885 | L64: 43.1777713 | M64: 47.0030665 | N64: 50.94491364 | O64: 52.86179263 | P64: 51.41627781 | Q64: 49.88807954 | R64: 48.27246833 | S64: 46.56444416 | T64: 61.34272101 | U64: 79.33451049 | V64: 77.31630457 | W64: 75.18265727 | X64: 72.92696535 | Y64: 70.54224785 | Z64: 68.02112451 | AA64: 65.35579291 | AB64: 0 | AC64: 0 | AD64: 0 | AE64: 0 | AF64: 0 | AG64: 0 | AH64: 0 | AI64: 0 | AJ64: 0 | AK64: 0 | AL64: 0 | AM64: 0 | AN64: 0 | AO64: 0 | AP64: 0
B65: Gross Income | C65: =C64+C43 -> 40.9794382 | D65: 45.47306841 | E65: 49.92428234 | F65: 54.33065375 | G65: 58.68961767 | H65: 62.99846238 | I65: 67.24409612 | J65: 71.44393798 | K65: 75.58455885 | L65: 79.6625713 | M65: 83.4878665 | N65: 87.42971364 | O65: 89.34659263 | P65: 87.90107781 | Q65: 86.37287954 | R65: 84.75726833 | S65: 83.04924416 | T65: 81.24352101 | U65: 79.33451049 | V65: 77.31630457 | W65: 75.18265727 | X65: 72.92696535 | Y65: 70.54224785 | Z65: 68.02112451 | AA65: 65.35579291 | AB65: 0 | AC65: 0 | AD65: 0 | AE65: 0 | AF65: 0 | AG65: 0 | AH65: 0 | AI65: 0 | AJ65: 0 | AK65: 0 | AL65: 0 | AM65: 0 | AN65: 0 | AO65: 0 | AP65: 0
B66: Taxable Income after loss carried over | C66: =IF(C$48<$C$6+$C$8,C65-C63,0) -> -304.5205618 | D66: =IF(D$48<$C$6+$C$8,D65-D63+MIN(C66,0),0) -> -569.9974934 | E66: =IF(E$48<$C$6+$C$8,E65-E63+MIN(D66,0),0) -> -547.7132111 | F66: -498.9105573 | G66: -441.3265396 | H66: -378.5491972 | I66: -311.3493251 | J66: -239.9142319 | K66: -164.3314421 | L66: -84.66922455 | M66: -1.181428805 | N66: 86.24827068 | O66: 89.3465898 | P66: 87.90107724 | Q66: 86.37287943 | R66: 84.75726831 | S66: 83.04924416 | T66: 81.24352101 | U66: 79.33451049 | V66: 77.31630457 | W66: 75.18265727 | X66: 72.92696535 | Y66: 70.54224785 | Z66: 68.02112451 | AA66: 65.35579291 | AB66: 0 | AC66: 0 | AD66: 0 | AE66: 0 | AF66: 0 | AG66: 0 | AH66: 0 | AI66: 0 | AJ66: 0 | AK66: 0 | AL66: 0 | AM66: 0 | AN66: 0 | AO66: 0 | AP66: 0
B67: Income Tax | C67: =IF(OR(C66<=0,ISNUMBER(C$49)),0,C66*$C$9) -> 0 | D67: 0 | E67: 0 | F67: 0 | G67: 0 | H67: 0 | I67: 0 | J67: 0 | K67: 0 | L67: 0 | M67: 0 | N67: 0 | O67: 0 | P67: 0 | Q67: 0 | R67: 28.8089955 | S67: 28.22843809 | T67: 27.61467279 | U67: 26.96580012 | V67: 26.27981192 | W67: 25.55458521 | X67: 24.78787552 | Y67: 23.97731004 | Z67: 23.12038022 | AA67: 22.21443401 | AB67: 0 | AC67: 0 | AD67: 0 | AE67: 0 | AF67: 0 | AG67: 0 | AH67: 0 | AI67: 0 | AJ67: 0 | AK67: 0 | AL67: 0 | AM67: 0 | AN67: 0 | AO67: 0 | AP67: 0
B68: MAT | C68: =MAX(C64*$C$10,0) -> 4.549226603 | D68: 1.798372744 | E68: 2.688971626 | F68: 3.570598419 | G68: 4.44273992 | H68: 5.30485357 | I68: 6.154319968 | J68: 6.994624327 | K68: 7.823079751 | L68: 8.639008481 | M68: 9.404373546 | N68: 10.19305832 | O68: 10.57658747 | P68: 10.28736886 | Q68: 9.981606955 | R68: 9.658355464 | S68: 9.316613988 | T68: 12.27345162 | U68: 15.87324886 | V68: 15.46944622 | W68: 15.04254607 | X68: 14.59122723 | Y68: 14.11409295 | Z68: 13.60966659 | AA68: 13.07638705 | AB68: 0 | AC68: 0 | AD68: 0 | AE68: 0 | AF68: 0 | AG68: 0 | AH68: 0 | AI68: 0 | AJ68: 0 | AK68: 0 | AL68: 0 | AM68: 0 | AN68: 0 | AO68: 0 | AP68: 0
B69: Set off under MAT | C69: =IF(C$48>=$C$6+$C$13-1,IF(C$48<$C$6+$C$13+$C$15-1,MAX(C67-C68,0),0),0) -> 0 | D69: 0 | E69: 0 | F69: 0 | G69: 0 | H69: 0 | I69: 0 | J69: 0 | K69: 0 | L69: 0 | M69: 0 | N69: 0 | O69: 0 | P69: 0 | Q69: 0 | R69: 19.15064003 | S69: 18.9118241 | T69: 15.34122117 | U69: 11.09255126 | V69: 10.81036571 | W69: 0 | X69: 0 | Y69: 0 | Z69: 0 | AA69: 0 | AB69: 0 | AC69: 0 | AD69: 0 | AE69: 0 | AF69: 0 | AG69: 0 | AH69: 0 | AI69: 0 | AJ69: 0 | AK69: 0 | AL69: 0 | AM69: 0 | AN69: 0 | AO69: 0 | AP69: 0
B70: MAT set off remaining at the end of each year | C70: =IF(C$48=$C$6+$C$13-2,SUM(OFFSET(C68,0,-$C$14+1,1,$C$14)),0) -> 0 | D70: =IF(D$48=$C$6+$C$13-2,SUM(OFFSET(D68,0,-$C$14+1,1,$C$14)),IF(AND(D$48>=$C$6+$C$13-1,D$48<$C$6+$C$13+$C$15-1),MAX(C70-D69,0),0)) -> 0 | E70: 0 | F70: 0 | G70: 0 | H70: 0 | I70: 0 | J70: 0 | K70: 0 | L70: 0 | M70: 0 | N70: 0 | O70: 0 | P70: 0 | Q70: 85.35888125 | R70: 66.20824122 | S70: 47.29641712 | T70: 31.95519594 | U70: 20.86264469 | V70: 10.05227898 | W70: 0 | X70: 0 | Y70: 0 | Z70: 0 | AA70: 0 | AB70: 0 | AC70: 0 | AD70: 0 | AE70: 0 | AF70: 0 | AG70: 0 | AH70: 0 | AI70: 0 | AJ70: 0 | AK70: 0 | AL70: 0 | AM70: 0 | AN70: 0 | AO70: 0 | AP70: 0
B71: TAX Paid (MAT or IT) | C71: =MAX(C67-C69,C68) -> 4.549226603 | D71: 1.798372744 | E71: 2.688971626 | F71: 3.570598419 | G71: 4.44273992 | H71: 5.30485357 | I71: 6.154319968 | J71: 6.994624327 | K71: 7.823079751 | L71: 8.639008481 | M71: 9.404373546 | N71: 10.19305832 | O71: 10.57658747 | P71: 10.28736886 | Q71: 9.981606955 | R71: 9.658355464 | S71: 9.316613988 | T71: 12.27345162 | U71: 15.87324886 | V71: 15.46944622 | W71: 25.55458521 | X71: 24.78787552 | Y71: 23.97731004 | Z71: 23.12038022 | AA71: 22.21443401 | AB71: 0 | AC71: 0 | AD71: 0 | AE71: 0 | AF71: 0 | AG71: 0 | AH71: 0 | AI71: 0 | AJ71: 0 | AK71: 0 | AL71: 0 | AM71: 0 | AN71: 0 | AO71: 0 | AP71: 0
B72: PAT | C72: =C64-C71 -> 18.18781159 | D72: 7.18989567 | E72: 10.75051071 | F72: 14.27525533 | G72: 17.76207775 | H72: 21.20880881 | I72: 24.60497615 | J72: 27.96451365 | K72: 31.2766791 | L72: 34.53876282 | M72: 37.59869296 | N72: 40.75185532 | O72: 42.28520516 | P72: 41.12890895 | Q72: 39.90647259 | R72: 38.61411287 | S72: 37.24783017 | T72: 49.06926939 | U72: 63.46126163 | V72: 61.84685835 | W72: 49.62807207 | X72: 48.13908983 | Y72: 46.5649378 | Z72: 44.90074429 | AA72: 43.1413589 | AB72: 0 | AC72: 0 | AD72: 0 | AE72: 0 | AF72: 0 | AG72: 0 | AH72: 0 | AI72: 0 | AJ72: 0 | AK72: 0 | AL72: 0 | AM72: 0 | AN72: 0 | AO72: 0 | AP72: 0
B73: Post-Tax ROE | C73: =IF(C72/$C$7<0,0,C72/$C$7) -> 0.08773666954 | D73: =IF(D72/$C$7<0,0,D72/$C$7) -> 0.03468352952 | E73: 0.0518596754 | F73: 0.06886278502 | G73: 0.08568296069 | H73: 0.1023097386 | I73: 0.1186926008 | J73: 0.1348987634 | K73: 0.1508764067 | L73: 0.1666124593 | M73: 0.1813733379 | N73: 0.196583962 | O73: 0.2039807292 | P73: 0.198402841 | Q73: 0.1925058977 | R73: 0.1862716491 | S73: 0.1796808016 | T73: 0.2367065576 | U73: 0.3061324729 | V73: 0.2983447099 | W73: 0.2394021807 | X73: 0.2322194396 | Y73: 0.2246258457 | Z73: 0.2165978981 | AA73: 0.208110752 | AB73: 0 | AC73: 0 | AD73: 0 | AE73: 0 | AF73: 0 | AG73: 0 | AH73: 0 | AI73: 0 | AJ73: 0 | AK73: 0 | AL73: 0 | AM73: 0 | AN73: 0 | AO73: 0 | AP73: 0
B74: User Provided FIT
B75: PBT | C75: =C33-C45 -> 92.50746556 | D75: 78.75869578 | E75: 83.2099097 | F75: 87.61628112 | G75: 91.97524504 | H75: 96.28408975 | I75: 100.5297235 | J75: 104.7295653 | K75: 108.8701862 | L75: 112.9481987 | M75: 116.7734939 | N75: 120.715341 | O75: 122.63222 | P75: 121.1867052 | Q75: 119.6585069 | R75: 118.0428957 | S75: 116.3348715 | T75: 131.1131484 | U75: 149.1049379 | V75: 147.0867319 | W75: 144.9530846 | X75: 142.6973927 | Y75: 140.3126752 | Z75: 137.7915519 | AA75: 135.1262203 | AB75: 0 | AC75: 0 | AD75: 0 | AE75: 0 | AF75: 0 | AG75: 0 | AH75: 0 | AI75: 0 | AJ75: 0 | AK75: 0 | AL75: 0 | AM75: 0 | AN75: 0 | AO75: 0 | AP75: 0
B76: Gross Income | C76: =C75+C43 -> 110.7498656 | D76: 115.2434958 | E76: 119.6947097 | F76: 124.1010811 | G76: 128.460045 | H76: 132.7688897 | I76: 137.0145235 | J76: 141.2143653 | K76: 145.3549862 | L76: 149.4329987 | M76: 153.2582939 | N76: 157.200141 | O76: 159.11702 | P76: 157.6715052 | Q76: 156.1433069 | R76: 154.5276957 | S76: 152.8196715 | T76: 151.0139484 | U76: 149.1049379 | V76: 147.0867319 | W76: 144.9530846 | X76: 142.6973927 | Y76: 140.3126752 | Z76: 137.7915519 | AA76: 135.1262203 | AB76: 0 | AC76: 0 | AD76: 0 | AE76: 0 | AF76: 0 | AG76: 0 | AH76: 0 | AI76: 0 | AJ76: 0 | AK76: 0 | AL76: 0 | AM76: 0 | AN76: 0 | AO76: 0 | AP76: 0
B77: Taxable Income after loss carried over | C77: =IF(C$48<$C$6+$C$8,C76-C$50,0) -> 7.099865562 | D77: 27.14099578 | E77: 44.8075847 | F77: 60.44702487 | G77: 74.35409722 | H77: 86.77883411 | I77: 97.92297619 | J77: 107.9865501 | K77: 117.1113433 | L77: 125.4259022 | M77: 132.8522619 | N77: 139.8550138 | O77: 144.3736619 | P77: 145.1396508 | Q77: 145.4912307 | R77: 145.4734309 | S77: 145.1235464 | T77: 144.472242 | U77: 143.5444875 | V77: 142.3603491 | W77: 140.9356592 | X77: 139.2825811 | Y77: 137.4100854 | Z77: 135.3243505 | AA77: 133.0290991 | AB77: 0 | AC77: 0 | AD77: 0 | AE77: 0 | AF77: 0 | AG77: 0 | AH77: 0 | AI77: 0 | AJ77: 0 | AK77: 0 | AL77: 0 | AM77: 0 | AN77: 0 | AO77: 0 | AP77: 0
B78: Income Tax | C78: =IF(OR(C77<=0,ISNUMBER(C$49)),0,C77*$C$9) -> 2.413244305 | D78: 9.225224465 | E78: 15.23009804 | F78: 20.54594375 | G78: 25.27295765 | H78: 0 | I78: 0 | J78: 0 | K78: 0 | L78: 0 | M78: 0 | N78: 0 | O78: 0 | P78: 0 | Q78: 0 | R78: 49.44641916 | S78: 49.32749343 | T78: 49.10611507 | U78: 48.79077129 | V78: 48.38828266 | W78: 47.90403058 | X78: 47.34214933 | Y78: 46.70568802 | Z78: 45.99674673 | AA78: 45.21659079 | AB78: 0 | AC78: 0 | AD78: 0 | AE78: 0 | AF78: 0 | AG78: 0 | AH78: 0 | AI78: 0 | AJ78: 0 | AK78: 0 | AL78: 0 | AM78: 0 | AN78: 0 | AO78: 0 | AP78: 0
B79: MAT | C79: =MAX(C75*$C$10,0) -> 18.50889371 | D79: 15.75803985 | E79: 16.64863873 | F79: 17.53026553 | G79: 18.40240703 | H79: 19.26452068 | I79: 20.11398707 | J79: 20.95429143 | K79: 21.78274686 | L79: 22.59867559 | M79: 23.36404065 | N79: 24.15272543 | O79: 24.53625458 | P79: 24.24703597 | Q79: 23.94127406 | R79: 23.61802257 | S79: 23.27628109 | T79: 26.23311873 | U79: 29.83291597 | V79: 29.42911333 | W79: 29.00221317 | X79: 28.55089433 | Y79: 28.07376006 | Z79: 27.5693337 | AA79: 27.03605415 | AB79: 0 | AC79: 0 | AD79: 0 | AE79: 0 | AF79: 0 | AG79: 0 | AH79: 0 | AI79: 0 | AJ79: 0 | AK79: 0 | AL79: 0 | AM79: 0 | AN79: 0 | AO79: 0 | AP79: 0
B80: Set off under MAT | C80: =IF(C$48>=$C$6+$C$13-1,IF(C$48<$C$6+$C$13+$C$15-1,MAX(C78-C79,0),0),0) -> 0 | D80: 0 | E80: 0 | F80: 0 | G80: 0 | H80: 0 | I80: 0 | J80: 0 | K80: 0 | L80: 0 | M80: 0 | N80: 0 | O80: 0 | P80: 0 | Q80: 0 | R80: 25.82839659 | S80: 26.05121234 | T80: 22.87299635 | U80: 18.95785533 | V80: 18.95916934 | W80: 0 | X80: 0 | Y80: 0 | Z80: 0 | AA80: 0 | AB80: 0 | AC80: 0 | AD80: 0 | AE80: 0 | AF80: 0 | AG80: 0 | AH80: 0 | AI80: 0 | AJ80: 0 | AK80: 0 | AL80: 0 | AM80: 0 | AN80: 0 | AO80: 0 | AP80: 0
B81: MAT set off remaining at the end of each year | C81: =IF(C$48=$C$6+$C$13-2,SUM(OFFSET(C79,0,-$C$14+1,1,$C$14)),0) -> 0 | D81: =IF(D$48=$C$6+$C$13-2,SUM(OFFSET(D79,0,-$C$14+1,1,$C$14)),IF(AND(D$48>=$C$6+$C$13-1,D$48<$C$6+$C$13+$C$15-1),MAX(C81-D80,0),0)) -> 0 | E81: 0 | F81: 0 | G81: 0 | H81: 0 | I81: 0 | J81: 0 | K81: 0 | L81: 0 | M81: 0 | N81: 0 | O81: 0 | P81: 0 | Q81: 224.9555523 | R81: 199.1271557 | S81: 173.0759434 | T81: 150.2029471 | U81: 131.2450917 | V81: 112.2859224 | W81: 0 | X81: 0 | Y81: 0 | Z81: 0 | AA81: 0 | AB81: 0 | AC81: 0 | AD81: 0 | AE81: 0 | AF81: 0 | AG81: 0 | AH81: 0 | AI81: 0 | AJ81: 0 | AK81: 0 | AL81: 0 | AM81: 0 | AN81: 0 | AO81: 0 | AP81: 0
B82: TAX Paid (MAT or IT) | C82: =MAX(C78-C80,C79) -> 18.50889371 | D82: 15.75803985 | E82: 16.64863873 | F82: 20.54594375 | G82: 25.27295765 | H82: 19.26452068 | I82: 20.11398707 | J82: 20.95429143 | K82: 21.78274686 | L82: 22.59867559 | M82: 23.36404065 | N82: 24.15272543 | O82: 24.53625458 | P82: 24.24703597 | Q82: 23.94127406 | R82: 23.61802257 | S82: 23.27628109 | T82: 26.23311873 | U82: 29.83291597 | V82: 29.42911333 | W82: 47.90403058 | X82: 47.34214933 | Y82: 46.70568802 | Z82: 45.99674673 | AA82: 45.21659079 | AB82: 0 | AC82: 0 | AD82: 0 | AE82: 0 | AF82: 0 | AG82: 0 | AH82: 0 | AI82: 0 | AJ82: 0 | AK82: 0 | AL82: 0 | AM82: 0 | AN82: 0 | AO82: 0 | AP82: 0
B83: PAT | C83: =C75-C82 -> 73.99857185 | D83: =D75-D82 -> 63.00065593 | E83: 66.56127097 | F83: 67.07033737 | G83: 66.70228739 | H83: 77.01956907 | I83: 80.41573641 | J83: 83.77527391 | K83: 87.08743936 | L83: 90.34952307 | M83: 93.40945321 | N83: 96.56261557 | O83: 98.09596542 | P83: 96.9396692 | Q83: 95.71723284 | R83: 94.42487313 | S83: 93.05859043 | T83: 104.8800296 | U83: 119.2720219 | V83: 117.6576186 | W83: 97.04905406 | X83: 95.35524339 | Y83: 93.6069872 | Z83: 91.79480514 | AA83: 89.90962949 | AB83: 0 | AC83: 0 | AD83: 0 | AE83: 0 | AF83: 0 | AG83: 0 | AH83: 0 | AI83: 0 | AJ83: 0 | AK83: 0 | AL83: 0 | AM83: 0 | AN83: 0 | AO83: 0 | AP83: 0
B84: Post-Tax ROE | C84: =IF(C83/$C$7<0,0,C83/$C$7) -> 0.3569636848 | D84: =IF(D83/$C$7<0,0,D83/$C$7) -> 0.3039105448 | E84: 0.3210866906 | F84: 0.3235423896 | G84: 0.3217669435 | H84: 0.3715367538 | I84: 0.3879196161 | J84: 0.4041257786 | K84: 0.4201034219 | L84: 0.4358394745 | M84: 0.4506003532 | N84: 0.4658109772 | O84: 0.4732077444 | P84: 0.4676298563 | Q84: 0.4617329129 | R84: 0.4554986644 | S84: 0.4489078168 | T84: 0.5059335728 | U84: 0.5753594881 | V84: 0.5675717251 | W84: 0.4681575208 | X84: 0.4599867023 | Y84: 0.4515532426 | Z84: 0.4428114092 | AA84: 0.4337174601 | AB84: 0 | AC84: 0 | AD84: 0 | AE84: 0 | AF84: 0 | AG84: 0 | AH84: 0 | AI84: 0 | AJ84: 0 | AK84: 0 | AL84: 0 | AM84: 0 | AN84: 0 | AO84: 0 | AP84: 0
B85: Based on RECs
B86: PBT | C86: =C37-C45 -> 64.46565436 | D86: 53.05716413 | E86: 59.94226879 | F86: 66.87988657 | G86: 46.2423067 | H86: 52.60449847 | I86: 58.96507966 | J86: 65.34331741 | K86: 71.72768604 | L86: 73.12355868 | M86: 79.32924589 | N86: 85.72289678 | O86: 90.16513365 | P86: 91.32073744 | Q86: 57.51929134 | R86: 58.66320686 | S86: 59.79749523 | T86: 77.50335399 | U86: 98.51055284 | V86: 99.59821857 | W86: 100.6636191 | X86: 101.7029464 | Y86: 102.7120987 | Z86: 103.6866612 | AA86: 104.6218861 | AB86: 0 | AC86: 0 | AD86: 0 | AE86: 0 | AF86: 0 | AG86: 0 | AH86: 0 | AI86: 0 | AJ86: 0 | AK86: 0 | AL86: 0 | AM86: 0 | AN86: 0 | AO86: 0 | AP86: 0
B87: Gross Income | C87: =C86+C43 -> 82.70805436 | D87: 89.54196413 | E87: 96.42706879 | F87: 103.3646866 | G87: 82.7271067 | H87: 89.08929847 | I87: 95.44987966 | J87: 101.8281174 | K87: 108.212486 | L87: 109.6083587 | M87: 115.8140459 | N87: 122.2076968 | O87: 126.6499337 | P87: 127.8055374 | Q87: 94.00409134 | R87: 95.14800686 | S87: 96.28229523 | T87: 97.40415399 | U87: 98.51055284 | V87: 99.59821857 | W87: 100.6636191 | X87: 101.7029464 | Y87: 102.7120987 | Z87: 103.6866612 | AA87: 104.6218861 | AB87: 0 | AC87: 0 | AD87: 0 | AE87: 0 | AF87: 0 | AG87: 0 | AH87: 0 | AI87: 0 | AJ87: 0 | AK87: 0 | AL87: 0 | AM87: 0 | AN87: 0 | AO87: 0 | AP87: 0
B88: Taxable Income after loss carried over | C88: =IF(C$48<$C$6+$C$8,C87-C$50,0) -> -20.94194564 | D88: 1.439464131 | E88: 21.53994379 | F88: 39.71063032 | G88: 28.62115889 | H88: 43.09924282 | I88: 56.35833237 | J88: 68.60030221 | K88: 79.96884312 | L88: 85.6012622 | M88: 95.40801388 | N88: 104.8625696 | O88: 111.9065755 | P88: 115.273683 | Q88: 83.35201509 | R88: 86.09374205 | S88: 88.58617014 | T88: 90.86244766 | U88: 92.95010246 | V88: 94.87183575 | W88: 96.64619367 | X88: 98.28813479 | Y88: 99.80950884 | Z88: 101.2194599 | AA88: 102.524765 | AB88: 0 | AC88: 0 | AD88: 0 | AE88: 0 | AF88: 0 | AG88: 0 | AH88: 0 | AI88: 0 | AJ88: 0 | AK88: 0 | AL88: 0 | AM88: 0 | AN88: 0 | AO88: 0 | AP88: 0
B89: Income Tax | C89: =IF(OR(C88<=0,ISNUMBER(C$49)),0,C88*$C$9) -> 0 | D89: 0.4892738582 | E89: 7.321426893 | F89: 13.49764324 | G89: 9.728331907 | H89: 0 | I89: 0 | J89: 0 | K89: 0 | L89: 0 | M89: 0 | N89: 0 | O89: 0 | P89: 0 | Q89: 0 | R89: 29.26326292 | S89: 30.11043923 | T89: 30.88414596 | U89: 31.59373983 | V89: 32.24693697 | W89: 32.85004123 | X89: 33.40813701 | Y89: 33.92525205 | Z89: 34.40449441 | AA89: 34.84816761 | AB89: 0 | AC89: 0 | AD89: 0 | AE89: 0 | AF89: 0 | AG89: 0 | AH89: 0 | AI89: 0 | AJ89: 0 | AK89: 0 | AL89: 0 | AM89: 0 | AN89: 0 | AO89: 0 | AP89: 0
B90: MAT | C90: =MAX(C86*$C$10,0) -> 12.89828812 | D90: 10.6156774 | E90: 11.99324914 | F90: 13.3813277 | G90: 9.252160725 | H90: 10.52510805 | I90: 11.79773314 | J90: 13.07389095 | K90: 14.35127542 | L90: 14.63056162 | M90: 15.87219552 | N90: 17.15143719 | O90: 18.04023994 | P90: 18.27145315 | Q90: 11.50845981 | R90: 11.73733443 | S90: 11.96428285 | T90: 15.50687107 | U90: 19.70999141 | V90: 19.92761157 | W90: 20.1407769 | X90: 20.34872551 | Y90: 20.5506367 | Z90: 20.74562718 | AA90: 20.93274698 | AB90: 0 | AC90: 0 | AD90: 0 | AE90: 0 | AF90: 0 | AG90: 0 | AH90: 0 | AI90: 0 | AJ90: 0 | AK90: 0 | AL90: 0 | AM90: 0 | AN90: 0 | AO90: 0 | AP90: 0
B91: Set off under MAT | C91: =IF(C$48>=$C$6+$C$13-1,IF(C$48<$C$6+$C$13+$C$15-1,MAX(C89-C90,0),0),0) -> 0 | D91: 0 | E91: 0 | F91: 0 | G91: 0 | H91: 0 | I91: 0 | J91: 0 | K91: 0 | L91: 0 | M91: 0 | N91: 0 | O91: 0 | P91: 0 | Q91: 0 | R91: 17.52592849 | S91: 18.14615639 | T91: 15.37727489 | U91: 11.88374841 | V91: 12.3193254 | W91: 0 | X91: 0 | Y91: 0 | Z91: 0 | AA91: 0 | AB91: 0 | AC91: 0 | AD91: 0 | AE91: 0 | AF91: 0 | AG91: 0 | AH91: 0 | AI91: 0 | AJ91: 0 | AK91: 0 | AL91: 0 | AM91: 0 | AN91: 0 | AO91: 0 | AP91: 0
B92: MAT set off remaining at the end of each year | C92: =IF(C$48=$C$6+$C$13-2,SUM(OFFSET(C90,0,-$C$14+1,1,$C$14)),0) -> 0 | D92: =IF(D$48=$C$6+$C$13-2,SUM(OFFSET(D90,0,-$C$14+1,1,$C$14)),IF(AND(D$48>=$C$6+$C$13-1,D$48<$C$6+$C$13+$C$15-1),MAX(C92-D91,0),0)) -> 0 | E92: 0 | F92: 0 | G92: 0 | H92: 0 | I92: 0 | J92: 0 | K92: 0 | L92: 0 | M92: 0 | N92: 0 | O92: 0 | P92: 0 | Q92: 145.2223548 | R92: 127.6964263 | S92: 109.5502699 | T92: 94.17299502 | U92: 82.2892466 | V92: 69.9699212 | W92: 0 | X92: 0 | Y92: 0 | Z92: 0 | AA92: 0 | AB92: 0 | AC92: 0 | AD92: 0 | AE92: 0 | AF92: 0 | AG92: 0 | AH92: 0 | AI92: 0 | AJ92: 0 | AK92: 0 | AL92: 0 | AM92: 0 | AN92: 0 | AO92: 0 | AP92: 0
B93: TAX Paid (MAT or IT) | C93: =MAX(C89-C91,C90) -> 12.89828812 | D93: 10.6156774 | E93: 11.99324914 | F93: 13.49764324 | G93: 9.728331907 | H93: 10.52510805 | I93: 11.79773314 | J93: 13.07389095 | K93: 14.35127542 | L93: 14.63056162 | M93: 15.87219552 | N93: 17.15143719 | O93: 18.04023994 | P93: 18.27145315 | Q93: 11.50845981 | R93: 11.73733443 | S93: 11.96428285 | T93: 15.50687107 | U93: 19.70999141 | V93: 19.92761157 | W93: 32.85004123 | X93: 33.40813701 | Y93: 33.92525205 | Z93: 34.40449441 | AA93: 34.84816761 | AB93: 0 | AC93: 0 | AD93: 0 | AE93: 0 | AF93: 0 | AG93: 0 | AH93: 0 | AI93: 0 | AJ93: 0 | AK93: 0 | AL93: 0 | AM93: 0 | AN93: 0 | AO93: 0 | AP93: 0
B94: PAT | C94: =C86-C93 -> 51.56736624 | D94: 42.44148673 | E94: 47.94901965 | F94: 53.38224332 | G94: 36.5139748 | H94: 42.07939041 | I94: 47.16734653 | J94: 52.26942646 | K94: 57.37641062 | L94: 58.49299706 | M94: 63.45705037 | N94: 68.5714596 | O94: 72.12489371 | P94: 73.04928429 | Q94: 46.01083153 | R94: 46.92587243 | S94: 47.83321238 | T94: 61.99648292 | U94: 78.80056142 | V94: 79.670607 | W94: 67.81357784 | X94: 68.29480936 | Y94: 68.78684663 | Z94: 69.28216684 | AA94: 69.77371852 | AB94: 0 | AC94: 0 | AD94: 0 | AE94: 0 | AF94: 0 | AG94: 0 | AH94: 0 | AI94: 0 | AJ94: 0 | AK94: 0 | AL94: 0 | AM94: 0 | AN94: 0 | AO94: 0 | AP94: 0
B95: Post-Tax ROE | C95: =IF(C94/$C$7<0,0,C94/$C$7) -> 0.2487571936 | D95: =IF(D94/$C$7<0,0,D94/$C$7) -> 0.20473462 | E95: 0.231302555 | F95: 0.2575120276 | G95: 0.1761407371 | H95: 0.2029878939 | I95: 0.2275318212 | J95: 0.2521438807 | K95: 0.2767795978 | L95: 0.2821659289 | M95: 0.3061121581 | N95: 0.3307836932 | O95: 0.3479251988 | P95: 0.3523843912 | Q95: 0.2219528776 | R95: 0.2263669678 | S95: 0.2307439092 | T95: 0.2990664878 | U95: 0.3801281304 | V95: 0.3843251664 | W95: 0.3271277272 | X95: 0.3294491527 | Y95: 0.3318227044 | Z95: 0.3342120928 | AA95: 0.3365833021 | AB95: 0 | AC95: 0 | AD95: 0 | AE95: 0 | AF95: 0 | AG95: 0 | AH95: 0 | AI95: 0 | AJ95: 0 | AK95: 0 | AL95: 0 | AM95: 0 | AN95: 0 | AO95: 0 | AP95: 0

Sheet Cash Flows
M2: Cash Flows
B3: User Inputs | C3: Value | D3: Units
B4: State | C4: =StateIP -> CERC
B5: Technology | C5: =TechnologyIP -> Solar PV
B6: Project Start Year | C6: ='Inputs&Summary'!D14 -> 2014 | D6: -
B7: Project Cost | C7: ='Inputs&Summary'!$D$41*'Inputs&Summary'!$D$34 -> 691 | D7: Rs Lacs
B8: ='Inputs&Summary'!C40 -> Life of Plant and Machinery / Project Life | C8: ='Inputs&Summary'!$D$40 -> 25 | D8: ='Inputs&Summary'!F40 -> years
B10: PARTICULARS | C10: Yr0 | D10: =C6 -> 2014 | E10: =D10+1 -> 2015 | F10: 2016 | G10: 2017 | H10: 2018 | I10: 2019 | J10: 2020 | K10: 2021 | L10: 2022 | M10: 2023 | N10: 2024 | O10: 2025 | P10: 2026 | Q10: 2027 | R10: 2028 | S10: 2029 | T10: 2030 | U10: 2031 | V10: 2032 | W10: 2033 | X10: 2034 | Y10: 2035 | Z10: 2036 | AA10: 2037 | AB10: 2038 | AC10: 2039 | AD10: 2040 | AE10: 2041 | AF10: 2042 | AG10: 2043 | AH10: 2044 | AI10: 2045 | AJ10: 2046 | AK10: 2047 | AL10: 2048 | AM10: 2049 | AN10: 2050 | AO10: 2051 | AP10: 2052 | AQ10: 2053
B11: Project Cost | C11: =C7 -> 691
B12: Loan Repayment | D12: ='Term Loan 1'!C29+'Term Loan 2'!C32 -> 40.30833333 | E12: ='Term Loan 1'!D29+'Term Loan 2'!D32 -> 40.30833333 | F12: ='Term Loan 1'!E29+'Term Loan 2'!E32 -> 40.30833333 | G12: ='Term Loan 1'!F29+'Term Loan 2'!F32 -> 40.30833333 | H12: ='Term Loan 1'!G29+'Term Loan 2'!G32 -> 40.30833333 | I12: ='Term Loan 1'!H29+'Term Loan 2'!H32 -> 40.30833333 | J12: ='Term Loan 1'!I29+'Term Loan 2'!I32 -> 40.30833333 | K12: ='Term Loan 1'!J29+'Term Loan 2'!J32 -> 40.30833333 | L12: ='Term Loan 1'!K29+'Term Loan 2'!K32 -> 40.30833333 | M12: ='Term Loan 1'!L29+'Term Loan 2'!L32 -> 40.30833333 | N12: ='Term Loan 1'!M29+'Term Loan 2'!M32 -> 40.30833333 | O12: ='Term Loan 1'!N29+'Term Loan 2'!N32 -> 40.30833333 | P12: ='Term Loan 1'!O29+'Term Loan 2'!O32 -> 0 | Q12: ='Term Loan 1'!P29+'Term Loan 2'!P32 -> 0 | R12: ='Term Loan 1'!Q29+'Term Loan 2'!Q32 -> 0 | S12: ='Term Loan 1'!R29+'Term Loan 2'!R32 -> 0 | T12: ='Term Loan 1'!S29+'Term Loan 2'!S32 -> 0 | U12: ='Term Loan 1'!T29+'Term Loan 2'!T32 -> 0 | V12: ='Term Loan 1'!U29+'Term Loan 2'!U32 -> 0 | W12: ='Term Loan 1'!V29+'Term Loan 2'!V32 -> 0 | X12: ='Term Loan 1'!W29+'Term Loan 2'!W32 -> 0 | Y12: ='Term Loan 1'!X29+'Term Loan 2'!X32 -> 0 | Z12: ='Term Loan 1'!Y29+'Term Loan 2'!Y32 -> 0 | AA12: ='Term Loan 1'!Z29+'Term Loan 2'!Z32 -> 0 | AB12: ='Term Loan 1'!AA29+'Term Loan 2'!AA32 -> 0 | AC12: ='Term Loan 1'!AB29+'Term Loan 2'!AB32 -> 0 | AD12: ='Term Loan 1'!AC29+'Term Loan 2'!AC32 -> 0 | AE12: ='Term Loan 1'!AD29+'Term Loan 2'!AD32 -> 0 | AF12: ='Term Loan 1'!AE29+'Term Loan 2'!AE32 -> 0 | AG12: ='Term Loan 1'!AF29+'Term Loan 2'!AF32 -> 0 | AH12: ='Term Loan 1'!AG29+'Term Loan 2'!AG32 -> 0 | AI12: ='Term Loan 1'!AH29+'Term Loan 2'!AH32 -> 0 | AJ12: ='Term Loan 1'!AI29+'Term Loan 2'!AI32 -> 0 | AK12: ='Term Loan 1'!AJ29+'Term Loan 2'!AJ32 -> 0 | AL12: ='Term Loan 1'!AK29+'Term Loan 2'!AK32 -> 0 | AM12: ='Term Loan 1'!AL29+'Term Loan 2'!AL32 -> 0 | AN12: ='Term Loan 1'!AM29+'Term Loan 2'!AM32 -> 0 | AO12: ='Term Loan 1'!AN29+'Term Loan 2'!AN32 -> 0 | AP12: ='Term Loan 1'!AO29+'Term Loan 2'!AO32 -> 0 | AQ12: ='Term Loan 1'!AP29+'Term Loan 2'!AP32 -> 0
